Workbook

Sheet Design the Regulator
A1: LM(2)5149/-Q1 Synchronous Buck Controller Design Tool
N2: http://www.ti.com/product/lm5175
A3: About | C3: xx | F3: = Input Box | N3: TERMS OF USE
A5: Step 1: Operating Specifications
D6: Input Voltage – Min, VIN(min) | E6: 24 | F6: V
D7: Input Voltage – Nom, VIN(nom) | E7: 48 | F7: V
D8: Input Voltage – Max, VIN(max) | E8: 70 | F8: V
D9: Output Voltage, VOUT | E9: 5 | F9: V
D10: Full Load Output Current, IOUT | E10: 16 | F10: A
D11: Switching Frequency, FSW | E11: 300 | F11: kHz
D12: Frequency Set Resistor, RRT | E12: ='Variable Management'!C443 -> 73.2 | F12: kΩ
D13: Ambient Operating Temperature, TA | E13: 25 | F13: °C
A15: Step 2: Current Sense Resistor
D16: Required IOCP Setpoint at VIN(nom) | E16: 22 | F16: A
D17: Recommended Shunt Resistance | E17: =Rs_ideal*1000 -> 2.357496246 | F17: mΩ
D18: Shunt Resistance, RS | E18: 2 | F18: mΩ
D19: Min Inductor Sat Current, ILO(SAT) | E19: ='Variable Management'!B95 -> 30 | F19: A
D20: Max Power Loss in the Shunt | E20: ='Variable Management'!B105 -> 1.459071009 | F20: W
D21: VIN(min) | E21: ='Variable Management'!B97 -> 26.95254812 | F21: A
C22: IOUT(typ) at OCP Inception: | D22: VIN(nom) | E22: ='Variable Management'!B98 -> 26.54927018 | F22: A
D23: VIN(max) | E23: ='Variable Management'!B99 -> 26.42241469 | F23: A
A25: Step 3: Buck Inductance
D26: Inductance for Ideal Slope Comp | E26: =Lopt*1000000 -> 1.388888889 | F26: µH
D27: Inductance for 35% Ripple Current | E27: ='Variable Management'!B41*1000000 -> 2.666170635 | F27: µH
D28: Inductance, LO | E28: 2.2 | F28: µH
D29: Inductor DCR | E29: 3.5 | F29: mΩ
D30: DIL as a % at VIN(nom) | E30: ='Variable Management'!B68*100 -> 43.13412271 | F30: %
D31: Estimate Core Loss at VIN(nom) | E31: 0.2 | F31: W
A33: Step 4: Output Capacitors
D34: Output Voltage Ripple Spec | E34: 100 | F34: mVPK-PK
D35: Minimum Output Capacitance | E35: ='Variable Management'!B121 -> 28.7560818 | F35: µF
D36: Output Capacitance (derated), COUT | E36: 200 | F36: µF | K36: =CHOOSE(SCH_MODE, "", "** For Single-Output Operation in 2-Phase Mode, tie MODE to VDDA and use FB1 to set VOUT **", "** For Single-Output Operation in 3-Phase Mode, tie both MODE pins to VDDA. Use FB1 of master IC to set VOUT. Connect FB2 of master IC to AGND. Connect FB2 of slave IC to VDDA to configure it as a slave **", "** For Single-Output Operation in 4-Phase Mode, tie both MODE pins to VDDA. Use FB1 of master IC to set VOUT. Connect FB2 of master IC to AGND. Connect FB2 of slave IC to VDDA to configure it as a slave **") -> 
D37: Maximum Permitted ESR | E37: ='Variable Management'!B125 -> 14.33913505 | F37: mΩ
D38: Output Capacitor ESR | E38: 1 | F38: mΩ | K38: =CHOOSE(SCH_MODE, "", "** Tie VCCX to GND if not used **", "** Slave controller (CNTRL2) not shown **","** Slave controller (CNTRL2) not shown **") ->  | P38: =IF(SCH_MODE=1, "** Tie VCCX to GND if not used **", "") -> ** Tie VCCX to GND if not used **
D39: Resulting Output Voltage Ripple (max) | E39: ='Variable Management'!B127*1000 -> 15.94861139 | F39: mVPK-PK | K39: =IF(OR(SCH_MODE=3, SCH_MODE=4),"** Tie VCCX to GND if not used **", "") -> 
D40: Output Capacitor RMS Current (max) | E40: ='Variable Management'!B114 -> 2.065519843 | F40: ARMS
A42: =CHOOSE(INFILTER_TYPE, "Step 5: Input Capacitors", "Step 5: Input Capacitors & AEF (see EMI Filter Design)", "Step 5: Input Capacitors") -> Step 5: Input Capacitors & AEF (see EMI Filter Design)
D43: Input Voltage Ripple Spec | E43: 400 | F43: mVPK-PK
D44: Minimum Input Capacitance | E44: ='Variable Management'!B148 -> 21.99074074 | F44: µF
D45: Input Capacitance (derated), CIN | E45: 30 | F45: µF
D46: Maximum Permitted ESR | E46: ='Variable Management'!B155 -> 5.606530685 | F46: mΩ
D47: Input Capacitor ESR | E47: 1 | F47: mΩ
D48: Resulting Input Voltage Ripple (max) | E48: ='Variable Management'!B162*1000 -> 315.7466894 | F48: mVPK-PK
D49: Input Capacitor RMS Current (max) | E49: ='Variable Management'!B138 -> 6.586356736 | F49: ARMS
D50: AEF Inductor | E50: 0.68 | F50: µH
A51: ="Recommended Cinj = "&'Standard Value Calculator'!S24&"µF" -> Recommended Cinj = 5.6µF | D51: CINJ | E51: 0.47 | F51: µF
A52: =CHOOSE(OSC,"Cdamp: DNP","Recommended Caefdamp = "&'Standard Value Calculator'!S25&"µF") -> Recommended Caefdamp = 2.7µF | D52: CDAMP | E52: 0 | F52: µF
A53: ="Recommended Raefdamp = "&Rdamp_AEFstd&"Ω" -> Recommended Raefdamp = 41.2Ω | D53: RDAMP | E53: 6.81 | F53: Ω
D54: Filter Attenuation at FSW | E54: =-'Variable Management'!B303 -> 31.74850063 | F54: dB
D55: VIN Ripple Amplitude | E55: =VinRipple_dBuV -> 109.9867761 | F55: dBµV
D56: Conducted Emissions at FSW | E56: ='Variable Management'!B304 -> 78.23827549 | F56: dBµV
A58: Step 6: Precision Enable, DRSS, FPWM/PFM
D61: VIN UVLO Turn-on Threshold | E61: 22 | F61: V
D62: VIN UVLO Turn-off Threshold | E62: 20 | F62: V
D63: Upper Enable Resistor, RUV1 | E63: =IF(UVLO_TYPE=1,'Variable Management'!B188,0) -> 200 | F63: kΩ
D64: Lower Enable Resistor, RUV2 | E64: =IF(UVLO_TYPE=1,'Variable Management'!B189,"DNP") -> 9.53 | F64: kΩ
D65: Configuration Resistor, RCNFG | E65: =IF(DRSS=1,41.2,29.4) -> 41.2 | F65: kΩ
D66: =IF(DEMB=1, "* Tie PFM/SYNC to GND", "* Tie PFM/SYNC to VDDA") -> * Tie PFM/SYNC to GND
A68: Step 7: Compensation Design
D69: Load Pole Frequency | E69: =Fp_dominant -> 3209.640568 | F69: Hz
D70: ESR Zero Frequency | E70: =Fesr/1000 -> 795.7747164 | F70: kHz
D71: Desired Crossover Frequency | E71: 40 | F71: =" kHz " -> kHz
D72: Error Amp Pole Frequency | E72: =Fp1_u -> 0.3656746672 | F72: Hz
D73: =CHOOSE(VOUT_setting, "Upper Feedback Resistor","","","") ->  | E73: 100 | F73: kΩ
D74: =CHOOSE(VOUT_setting, "Lower Feedback Resistor", "* Pullup FB to VDDA with "&'Variable Management'!D419,"* Tie FB to VDDA","* Pullup FB to VDDA with "&'Variable Management'!D419) -> * Pullup FB to VDDA with 24.9kΩ | E74: =IF(Vout=Vref,"OPEN",Rfb2_u/1000) -> 471 | F74: =IF(Vout=Vref,"","kΩ") -> kΩ
A76: Compensation Components
B77: Calculated / | C77: Std Values | D77: =C77 -> Std Values | F77: Actual P/Z Frequencies
A78: RCOMP | B78: =Rcea1/1000 -> 5.31318585 | C78: ='Standard Value Calculator'!S32 -> 5.36 | D78: =C78 -> 5.36 | E78: kΩ | F78: =Fp1_u -> 0.3656746672 | G78: Hz (FPEA)
A79: CCOMP | B79: =Cc1ea*1000000000 -> 7.488677593 | C79: ='Standard Value Calculator'!S33 -> 6.8 | D79: =C79 -> 6.8 | E79: nF | F79: =Fz1_u/1000 -> 4.366630358 | G79: kHz (FZCOMP)
A80: CHF | B80: =IF(Cc2ea<0, "N/A", Cc2ea*1000000000000) -> 167.8670805 | C80: ='Standard Value Calculator'!S34 -> 180 | D80: =C80 -> 180 | E80: pF | F80: =Fp2_u/1000 -> 140.173478 | G80: kHz (FPCOMP)
A83: Efficiency / Power Loss Analyzer
A85: Step 8: Efficiency
F86: Power MOSFETs | G86: (Q1, Q2)
E87: '852 | F87: '824
E88: High-side | F88: Low-side
D89: On-State Resistance, RDS(on) | E89: 12 | F89: 4.1 | G89: mΩ
D90: Total Gate Charge, QG | E90: 8 | F90: 25 | G90: nC
D91: Gate-Drain Charge, QGD | E91: 2.9 | F91: 9 | G91: nC
D92: Gate-Source Charge, QGS | E92: 3.1 | F92: 8.7 | G92: nC
D93: Output Charge, QOSS | F93: 30 | G93: nC
D94: Output Capacitance, COSS | E94: 116 | F94: 366 | G94: pF
D95: Gate Resistance, RG | E95: 1.2 | F95: 1.2 | G95: Ω
D96: Transconductance, gFS | E96: 55 | F96: 178 | G96: S
D97: Gate-Source Threshold Voltage, VTH | E97: 3.1 | F97: 3 | G97: V
D98: Body Diode Forward Voltage, VBD | E98: 0.7 | F98: 0.7 | G98: V
D99: Body Diode Rev Recovery Charge, QRR | F99: 59 | G99: nC
D100: Thermal Resistance, θJA | E100: 42 | F100: 40.7 | G100: °C/W
A102: External Schottky Diode (if applicable)
D103: Schottky Fwd Voltage, VFWDsch | F103: 0 | G103: V
D104: Schottky Rev Recovery Charge, QRRsch | F104: 0 | G104: nC
A106: Step 9: IC Power Loss
D107: IC Power Dissipation | E107: ='Variable Management'!B362 -> 0.0495 | F107: W
D108: IC Junction Temperature (estimate) | E108: ='Variable Management'!B364 -> 26.68795 | F108: °C
D109: =CHOOSE(Ext_VCC, "", "* Tie VCCX to GND") -> 

Sheet BOM & Schematic
A36: ** Tie PFM/SYNC to VDDA for PFM, to GND for FPWM **
A37: ** Tie VCCX to GND if not used ** | I37: =IF(OR(SCH_MODE=3, SCH_MODE=4),"** Tie VCCX to GND if not used **", "") -> 
A40: ="VIN = "&VIN_min&"V to "&VIN_max&"V, VOUT = "& Vout &"V, IOUT = " &Iout & "A, Fsw = " & Fsw/1000 &"kHz, Current Limit = "&ROUNDUP(Ilimit_DC,0)&"A" -> VIN = 24V to 70V, VOUT = 5V, IOUT = 16A, Fsw = 300kHz, Current Limit = 22A
A41: High-Efficiency Synchronous Buck Regulator BOM
A42: Count | B42: Ref Des | C42: Value | D42: Description | H42: Size | I42: Part Number | J42: MFR
A43: 1 | B43: CBOOT | C43: 0.1 | D43: =C43 -> 0.1 | H43: 0603 | I43: Std | J43: Std
A44: 1 | B44: CCOMP | C44: ='Design the Regulator'!D79 -> 6.8 | D44: 6.8 | H44: 0603 | I44: Std | J44: Std
A45: 1 | B45: CHF | C45: ='Design the Regulator'!D80 -> 180 | D45: 180 | H45: 0603 | I45: Std | J45: Std
A46: =ROUNDUP('Design the Regulator'!E45/10,0) -> 3 | B46: CIN | C46: 10 | D46: =C46 -> 10 | H46: 1210 | I46: Std | J46: Std
A47: =ROUNDUP('Design the Regulator'!E36/47,0) -> 5 | B47: COUT | C47: 47 | D47: =C47 -> 47 | H47: 1210 | I47: Std | J47: Std
A48: 2 | B48: CVCC, CVCCX | C48: 2.2 | D48: 2.2 | H48: 0603 | I48: Std | J48: Std
A49: 1 | B49: CVDDA | C49: 0.47 | D49: 0.47 | H49: 0603 | I49: Std | J49: Std
A50: 1 | B50: LO | C50: ='Design the Regulator'!E28 -> 2.2 | D50: ="Inductor, "&Lf*1000000&"µH, "&Rdcr*1000&"mΩ, >"&ROUNDUP(Ilimit_DC*1.1,0)&"A" -> Inductor, 2.2µH, 3.5mΩ, >25A | H50: - | I50: - | J50: Various
A51: 1 | B51: Q1 | C51: See description | D51: ='Design the Regulator'!E89 -> 12 | H51: Std | I51: ='Design the Regulator'!E87 -> '852 | J51: -
A52: 1 | B52: Q2 | C52: See description | D52: ='Design the Regulator'!F89 -> 4.1 | H52: Std | I52: ='Design the Regulator'!F87 -> '824 | J52: -
A53: 1 | B53: RCOMP | C53: ='Design the Regulator'!D78 -> 5.36 | D53: =C53 -> 5.36 | H53: 0603 | I53: Std | J53: Std
A54: 1 | B54: RS | C54: =Rs*1000 -> 2 | D54: 2 | H54: 0508 | I54: Std | J54: Std
A55: 1 | B55: RRT | C55: ='Design the Regulator'!E12 -> 73.2 | D55: 73.2 | H55: 0603 | I55: Std | J55: Std
A56: 1 | B56: RFB1 | C56: ='Design the Regulator'!E73 -> 100 | D56: 100 | H56: 0603 | I56: Std | J56: Std
A57: 1 | B57: RFB2 | C57: ='Design the Regulator'!E74 -> 471 | D57: 471 | H57: 0603 | I57: Std | J57: Std
A58: 1 | B58: RCNFG | C58: ='Design the Regulator'!E65 -> 41.2 | D58: =C58 -> 41.2 | H58: 0603 | I58: Std | J58: Std
A59: 1 | B59: RPG | C59: 100 | D59: 100 | H59: 0603 | I59: Std | J59: Std
A60: 1 | B60: RCS | C60: 100 | D60: 100 | H60: 0603 | I60: Std | J60: Std
A61: 1 | B61: RUV1 | C61: ='Design the Regulator'!E63 -> 200 | D61: 200 | H61: 0603 | I61: Std | J61: Std
A62: 1 | B62: RVIN | C62: 2.2 | D62: 2.2 | H62: 0603 | I62: Std | J62: Std
A63: 1 | B63: U1 | C63: ='Variable Management'!Q29 -> LM5149 | D63: =CHOOSE(VARIANT, "IC, LM5149, Synchronous Buck PWM Controller With AEF, 3.5V–80V Input", "IC, LM5149-Q1, Synchronous Buck PWM Controller With AEF, 3.5V–80V Input", "IC, LM25149, Synchronous Buck PWM Controller With AEF, 3.5V–42V Input", "IC, LM25149-Q1 Synchronous Buck PWM Controller With AEF, 3.5V–42V Input") -> IC, LM5149, Synchronous Buck PWM Controller With AEF, 3.5V–80V Input | H63: VQFN-24 | I63: =CHOOSE(VARIANT, "LM5149RGYR", "LM5149QRGYRQ1", "LM25149RGYR", "LM25149QRGYRQ1") -> LM5149RGYR | J63: TI
A66: NOTES:
A67: ** Choose logic-level power MOSFETs with RDS(on) rated at VGS = 4.5V **
A68: ** Inductor saturation current should be higher than the peak inductor current at the OCP setpoint for all input voltages and operating temperatures **
A69: ** Effective input and output capacitances should be appropriately derated for applied voltage and temperature, particularly with ceramics **

Sheet EMI Filter Design
A2: AEF | I2: Passive
B3: Design tab – LAEF | C3: ='Design the Regulator'!E50 & "µH" -> 0.68µH | F3: LAEF | G3: 1 | H3: µH | J3: Recommended range for LIN | K3: 0.1-10 | L3: µH | N3: Chosen LIN | O3: 0.68 | P3: µH
B4: Design tab – CINJ | C4: ='Design the Regulator'!E51 & "µF" -> 0.47µF | F4: CINJ | G4: 1 | H4: µF | J4: Recommended range for CF | K4: 0.1-10 | L4: µF | N4: Chosen CF | O4: 0.47 | P4: µF
B5: Design tab – CDAMP | C5: ='Design the Regulator'!E52 & "µF" -> 0µF | F5: CDAMP | G5: 1 | H5: µF | J5: Recommended range for CD | K5: 1-10 | L5: µF | N5: Chosen CD | O5: 10 | P5: µF
B6: Design tab – RDAMP | C6: ='Design the Regulator'!E53 & "Ω" -> 6.81Ω | F6: RDAMP | G6: 10 | H6: Ω | J6: Recommended value for RD | K6: =Rdamp_PassiveStd -> 0.0348 | L6: Ω | N6: Chosen RD | O6: 0.35 | P6: Ω
C8: VIN Ripple at FSW | F8: =VinRipple_dBuV -> 109.9867761 | G8: dBµV | H8: VIN Ripple
D10: AEF Attenuation at FSW | E10: =-'Input Filter Calculations'!AM97 -> 25.67193796 | F10: dB | L10: Passive Attenuation at FSW | M10: =-'Input Filter Calculations'!AA97 -> 11.23066552 | N10: dB
D11: AEF EMI at FSW | E11: =VinRipple_dBuV-E10 -> 84.31483815 | F11: dBµV | L11: Passive EMI at FSW | M11: =VinRipple_dBuV-M10 -> 98.75611059 | N11: dBµV

Sheet EVM
A1: LM(2)5149/-Q1 Buck Controller Design Tool
B6: LM25149-Q1EVM-2100 PCB Layout

Sheet Variable Management (hidden)
A1: EXCEL Variables Names/Calculations
B2: Input from user =
B3: Output =
B4: Constant
A5: Variable Name | B5: Value | C5: STD Units | E5: Notes | I5: Iteration
A6: Step 1: Operational Specs
A7: VIN_min | B7: ='Design the Regulator'!E6 -> 24 | C7: V | D7: Minimum input voltage | I7: 1
A8: VIN_nom | B8: ='Design the Regulator'!E7 -> 48 | C8: V | D8: Nominal input voltage | K8: =CHOOSE(SCH_MODE, "Efficiency vs. IOUT (Ch1)", "Efficiency vs. IOUT - 2 Ph", "Efficiency vs. IOUT - 3 Ph", "Efficiency vs. IOUT - 4 Ph") -> Efficiency vs. IOUT (Ch1) | L8: 1 | N8: DRSS Enabled | O8: 1 | T8: Dual Outputs | U8: 1 | W8: FPWM | X8: 1 | Z8: =CHOOSE(SCH_MODE, "Bode Plot (Ch1)", "Bode Plot - 2 Ph", "Bode Plot - 3 Ph", "Bode Plot - 4 Ph") -> Bode Plot (Ch1) | AA8: 1
A9: VIN_max | B9: ='Design the Regulator'!E8 -> 70 | C9: V | D9: Maximum input voltage | K9: =IF(MODE=1, "Efficiency vs. IOUT (Ch2)", "N/A - Do Not Use") -> Efficiency vs. IOUT (Ch2) | L9: 2 | N9: DRSS Disabled | O9: 2 | T9: Single Output – 2 Phases | U9: 2 | W9: PFM | X9: 2 | Z9: =IF(MODE=1, "AEF Gain", "N/A - Do Not Use") -> AEF Gain | AA9: 2
K10: PLOT_TYPE | L10: 1 | N10: DRSS Yes/No | O10: 1 | P10: 1 = Yes, 2 = No | T10: Single Output – 3 Phases | U10: 3 | W10: FPWM/PFM | X10: 1 | Z10: BODE_PLOT_TYPE | AA10: 1
A11: Vout | B11: ='Design the Regulator'!E9 -> 5 | C11: V | D11: Output voltage - channel 1 | T11: Single Output – 4 Phases | U11: 4
A12: Iout | B12: ='Design the Regulator'!E10 -> 16 | C12: A | D12: Output current - channel 1 | I12: 1 | T12: Single/Dual Yes/No | U12: 1
I13: 1 | K13: Adjustable | L13: 1 | N13: 3.3V | O13: 1 | T13: MODE (Single/Dual), DUAL = 1, SINGLE = 2 | U13: =IF(U12=1, 1, 2) -> 1 | W13: VCCX Connected | X13: 1
A14: Rout | B14: =Vout/Iout -> 0.3125 | C14: W | D14: Load resistance - Channel 1 | K14: 5V | L14: 2 | N14: 5V | O14: 2 | T14: SINGLE OUTPUT (1 = YES) | U14: =IF(U12=1, 2, 1) -> 2 | W14: No External VCC | X14: 2
K15: 3.3V | L15: 3 | N15: Adjustable | O15: 3 | T15: Number of Phases | U15: =SCH_MODE -> 1 | W15: Ext_VCC | X15: 1
A16: Pout | B16: =Vout*Iout -> 80 | C16: W | D16: Output power | K16: 12V | L16: 4 | N16: Ch2 Output Setting | O16: =IF(Vout2=3.3, 1, IF(Vout2=5, 2, 3)) -> 3
K17: Output Voltage Setting | L17: =IF(Vout=3.3, 3, IF(Vout=5, 2, IF(Vout=12,4,1))) -> 2
A18: Efficiency | B18: 0.9 | D18: Estimate of efficiency
A19: Pin | B19: =Pout/Efficiency -> 88.88888889 | C19: W | D19: Calculate input power assuming finite efficiency | W19: 2.2 MHz Fsw Setting | X19: 1 | Z19: Internal Compensation | AA19: 1
W20: 440 kHz Fsw Setting | X20: 2 | Z20: External Compensation | AA20: 2
A21: Iin_Vinmin | B21: =Pin/VIN_min -> 3.703703704 | C21: A | L21: =Vout -> 5 | W21: OSC | X21: =IF(Fsw>1000000,1,2) -> 2 | Z21: COMP_TYPE | AA21: 2
A22: Iin_Vinnom | B22: =Pin/VIN_nom -> 1.851851852 | C22: A | D22: Input currents at min, nom, max Vin | H22: =AND(OSC=1, OR(Fsw/1000>2530, Fsw/1000<1800)) -> FALSE
A23: Iin_Vinmax | B23: =Pin/VIN_max -> 1.26984127 | C23: A | H23: =AND(OSC=2, OR(Fsw/1000>500, Fsw/1000<300)) -> FALSE
H24: =OR(H22,H23) -> FALSE
A25: OSC setting | B25: =CHOOSE(OSC, 2200, 440) -> 440 | C25: kHz | K25: SetVout_IntComp_nAEF | L25: 1 | Q25: LM5149 (80V) | R25: 1 | W25: No Input Filter | X25: 1 | Z25: UVLO Divider | AA25: 1
A26: Fsw | B26: ='Design the Regulator'!E11*1000 -> 300000 | C26: Hz | D26: Nominal switching frequency - determines RT resistor (SYNCIN must be 80-120% of this) | K26: SetVout_IntComp_AEF | L26: 2 | Q26: LM5149-Q1 (80V) | R26: 2 | W26: AEF Input Filter | X26: 2 | Z26: No UVLO Divider | AA26: 2
A27: RT resistor to AGND | B27: =((1000000000/Fsw)-53)/45+0.1 -> 72.9962963 | C27: kΩ | K27: SetVout_ExtComp_nAEF | L27: 3 | Q27: LM25149 (42V) | R27: 3 | W27: Passive LC Filter | X27: 3 | Z27: UVLO_TYPE | AA27: 1
C28: kΩ | I28: 1 | K28: SetVout_ExtComp_AEF | L28: 4 | Q28: LM25149-Q1 (42V) | R28: 4 | W28: INFILTER_TYPE | X28: 2
A29: Tsw | B29: =1/Fsw -> 3.333333333e-06 | C29: sec | D29: Switching period | K29: AdjVout_IntComp_nAEF | L29: 5 | P29: VARIANT | Q29: =CHOOSE(VARIANT, "LM5149", "LM5149-Q1", "LM25149", "LM25149-Q1") -> LM5149 | R29: 1
A30: Vref | B30: 0.8 | C30: V | D30: Reference voltage | K30: AdjVout_IntComp_AEF | L30: 6 | P30: VIN-MAX | Q30: =CHOOSE(VARIANT, 80, 80, 42, 42) -> 80 | R30: V
A31: Rt | B31: ='Standard Value Calculator'!S12/1000 -> 73.2 | C31: kΩ | D31: Frequency set resistor | F31: =IF(OR((Fsw=440000),(Fsw=2200000)),"N/A",Rfadj/1000) -> 0.0732 | K31: AdjVout_ExtComp_nAEF | L31: 7 | P31: VOUT-MAX | Q31: =CHOOSE(VARIANT, 60, 60, 36, 36) -> 60 | R31: V
K32: AdjVout_ExtComp_AEF | L32: 8
A33: Step 2: Buck Inductor | B33: Channel 1 | K33: Schematic setting | L33: =(IF(OR(Vout=3.3,Vout=5,Vout=12),CHOOSE(COMP_TYPE,IF(INFILTER_TYPE=1,1,2),IF(INFILTER_TYPE=1,3,4)),CHOOSE(COMP_TYPE,IF(INFILTER_TYPE=1,5,6),IF(INFILTER_TYPE=1,7,8)))) -> 4
A34: Don1 | B34: =Vout/VIN_nom -> 0.1041666667 | F34: Ideal Duty Cycle at VIN(nom)
A35: Doff1 | B35: =1-34:34 -> 0.8958333333 | F35: Ideal 1- Duty Cycle at VIN(nom)
A37: D_Vinmin | B37: =Vout/VIN_min -> 0.2083333333
A38: D_Vinnom | B38: =Vout/VIN_nom -> 0.1041666667
A39: D_Vinmax | B39: =Vout/VIN_max -> 0.07142857143
A41: L_Vinnom | B41: =(VIN_nom-Vout)*D1_Vinnom/(Fsw*(Iout/Number_of_Phases)*0.35) -> 2.666170635e-06 | C41: H | F41: Calculated inductance for 35% ripple at VIN(nom)
A42: L_slopecomp | B42: =1000*Vout*Rs/24/Fsw -> 1.388888889e-06 | C42: H | F42: Calculated inductance based on one times inductor downslope
A44: Lopt | B44: =B42 -> 1.388888889e-06 | C44: H | F44: Slope comp
A46: Lo | B46: ='Design the Regulator'!E28/1000000 -> 2.2e-06 | C46: H | F46: Chosen inductance
A47: Rdcr | B47: ='Design the Regulator'!E29/1000 -> 0.0035 | C47: W | F47: Chosen inductor DCR
A49: Don2 | B49: =(Vout+Iout*(Rdcr+Rs))/(Vin+Iout*Rs) -> 0.1059293804
A50: Doff2 | B50: =1-_Don2 -> 0.8940706196
A52: D_Vinmin_2 | B52: =CHOOSE(MODE, (Vout+Iout*(Rdcr+Rs))/(VIN_min+Iout*Rs), (Vout+Iout/Number_of_Phases*(Rdcr+Rs))/(VIN_min+Iout/Number_of_Phases*Rs)) -> 0.2117177097 | F52: Duty cycles adjusted for DCR/shunt voltage drops
A53: D_Vinnom_2 | B53: =CHOOSE(MODE, (Vout+Iout*(Rdcr+Rs))/(VIN_nom+Iout*Rs), (Vout+Iout/Number_of_Phases*(Rdcr+Rs))/(VIN_nom+Iout/Number_of_Phases*Rs)) -> 0.1059293804 | F53: need to include RDS(on) later
A54: D_Vinmax_2 | B54: =CHOOSE(MODE, (Vout+Iout*(Rdcr+Rs))/(VIN_max+Iout*Rs), (Vout+Iout/Number_of_Phases*(Rdcr+Rs))/(VIN_max+Iout/Number_of_Phases*Rs)) -> 0.07265250171
A56: Iripple_Vinmin | B56: =(VIN_min-Vout)*D1_Vinmin_2/(Fsw*Lf) -> 6.094903765 | C56: A
A57: Iripple_Vinnom | B57: =(VIN_nom-Vout)*D1_Vinnom_2/(Fsw*Lf) -> 6.901459633 | C57: A
A58: Iripple_Vinmax | B58: =(VIN_max-Vout)*D1_Vinmax_2/(Fsw*Lf) -> 7.155170623 | C58: A
A60: Ishunt_rms_Vinmin | B60: =SQRT((Iout/Number_of_Phases)^2+(Iripple_Vinmin^2)/12) -> 16.0964485 | C60: A
A61: Ishunt_rms_Vinnom | B61: =SQRT((Iout/Number_of_Phases)^2+(Iripple_Vinnom^2)/12) -> 16.12355974 | C61: A
A62: Ishunt_rms_Vinmax | B62: =SQRT((Iout/Number_of_Phases)^2+(Iripple_Vinmax^2)/12) -> 16.13277323 | C62: A
A63: Max shunt power loss at full load | B63: =B61^2*Rs -> 0.5199383575 | C63: W | F63: Note this is power loss at full load - not loss near OCP!
A65: Max inductor ripple current | B65: =MAX(B56:B58) -> 7.155170623 | C65: A | F65: Ripple current at Vin(max)
B67: =B56/(Iout/Number_of_Phases) -> 0.3809314853
A68: % ripple current | B68: =B57/(Iout/Number_of_Phases) -> 0.4313412271
B69: =B58/(Iout/Number_of_Phases) -> 0.447198164
A71: Inductor copper temerature | B71: 100 | C71: °C
A72: DCR at hot | B72: =Rdcr*(1+0.0039*(B71-25)) -> 0.00452375 | C72: W
A75: Step 3: Sense Resistors, Slope Comp, Current Limit
A77: Ilimit_DC | B77: ='Design the Regulator'!E16 -> 22 | C77: A | F77: Chosen OCP level - based on output current
A79: Ilimit_inductor_Vinmin | B79: =CHOOSE(MODE, Ilimit_DC+Iripple_Vinmin/2, Ilimit_DC/Number_of_Phases+Iripple_Vinmin/2) -> 25.04745188 | C79: A | F79: Peak inductor current at current limit inception
A80: Ilimit_inductor_Vinnom | B80: =CHOOSE(MODE, Ilimit_DC+Iripple_Vinnom/2, Ilimit_DC/Number_of_Phases+Iripple_Vinnom/2) -> 25.45072982 | C80: A
A81: Ilimit_inductor_Vinmax | B81: =CHOOSE(MODE, Ilimit_DC+Iripple_Vinmax/2, Ilimit_DC/Number_of_Phases+Iripple_Vinmax/2) -> 25.57758531 | C81: A
A84: CS threshold_min | B84: 0.052 | C84: V
A85: CS threshold | B85: 0.06 | C85: V
A86: CS threshold_max | B86: 0.068 | C86: V
A88: Shunt required to get OCP at VIN(min) | B88: =Buck_CS_threshold/B79 -> 0.002395453249 | C88: W
A89: Shunt required to get OCP at VIN(nom) | B89: =Buck_CS_threshold/B80 -> 0.002357496246 | C89: W
A90: Shunt required to get OCP at VIN(max) | B90: =Buck_CS_threshold/B81 -> 0.002345803924 | C90: W
A92: Rs_ideal | B92: =B89 -> 0.002357496246 | C92: W | F92: Ideal Rs for the required OCP -- based on 73mV CL threshold
A93: Rs | B93: ='Design the Regulator'!E18/1000 -> 0.002 | C93: W | F93: Selected (starndard value) current limit sense resistor
A95: Current limit - peak | B95: =Buck_CS_threshold/Rs -> 30 | C95: A | F95: Peak inductor current limit = min sat current
A97: Iout_OCP_Vinmin | B97: =Number_of_Phases*(Buck_CS_threshold/Rs-Iripple_Vinmin/2) -> 26.95254812 | C97: A | F97: Current limit setpoints (i.e. IOUT) after standard components are selected
A98: Iout_OCP_Vinnom | B98: =Number_of_Phases*(Buck_CS_threshold/Rs-Iripple_Vinnom/2) -> 26.54927018 | C98: A
A99: Iout_OCP_Vinmax | B99: =Number_of_Phases*(Buck_CS_threshold/Rs-Iripple_Vinmax/2) -> 26.42241469 | C99: A
A101: Irms_OCP_Vinmin | B101: =SQRT((Iout_OCP_Vinmin/Number_of_Phases)^2+(Iripple_Vinmin^2)/12) -> 27.00991493 | C101: A
A102: Irms_OCP_Vinnom | B102: =SQRT((Iout_OCP_Vinnom/Number_of_Phases)^2+(Iripple_Vinnom^2)/12) -> 26.62391643 | C102: A
A103: Irms_OCP_Vinmax | B103: =SQRT((Iout_OCP_Vinmax/Number_of_Phases)^2+(Iripple_Vinmax^2)/12) -> 26.50302568 | C103: A
A105: Pshunt_Vinmin | B105: =B101^2*Rs -> 1.459071009 | C105: W | F105: Max power dissipations in shunt
A106: Pshunt_Vinnom | B106: =B102^2*Rs -> 1.417665852 | C106: W
A107: Pshunt_Vinmax | B107: =B103^2*Rs -> 1.40482074 | C107: W
A110: Step 4: Output Capacitor
A111: Icoutrms_VINmin | B111: =Iripple_Vinmin/SQRT(12) -> 1.759447165 | C111: A | F111: Output Cap RMS current
A112: Icoutrms_VINnom | B112: =Iripple_Vinnom/SQRT(12) -> 1.992279788 | C112: A
A113: Icoutrms_VINmax | B113: =Iripple_Vinmax/SQRT(12) -> 2.065519843 | C113: A
A114: Max Cout rms current | B114: =MAX(B111:B113) -> 2.065519843 | C114: A
A116: Vripple1 | B116: ='Design the Regulator'!E34/1000 -> 0.1 | C116: V | F116: Output voltage ripple spec(pk-pk)
A118: Output Ripple Spec (pk-pk) | B118: =Vo1_ripple*1000 -> 100 | C118: mV | F118: Vout ripple spec at Vin(nom)
A120: Coutmin | B120: =Iripple_Vinnom/(Fsw*8*Vo1_ripple) -> 2.87560818e-05 | C120: F | F120: Minimum output capacitnace | H120: =Vo2_ripple -> 0 | I120: 1
A121: Reported Coutmin | B121: =IF(Cout_min*1000000<2, 2.2,Cout_min*1000000) -> 28.7560818 | C121: uF
A122: Cout | B122: ='Design the Regulator'!E36/1000000 -> 0.0002 | C122: F | F122: Chosen output capacitance | I122: 1
A123: Resrmax | B123: =SQRT((Vo1_ripple/Iripple_Vinnom)^2-(1/(Fsw*Cout*8))^2) -> 0.01433913505 | C123: W | F123: Max ESR before ripple exceeds Vripple1 | I123: 1
A125: Reported Cout ESR max | B125: =IF(OR(CoutEsrMax>0.3, CoutEsrMax<0, (ISERROR(CoutEsrMax))), "N/A", CoutEsrMax*1000) -> 14.33913505 | C125: mΩ
A126: CoutEsr | B126: ='Design the Regulator'!E38/1000 -> 0.001 | C126: W | F126: Chosen ESR | I126: 1 | K126: =ISERROR(CoutEsrMax) -> FALSE | L126: =ISERROR(B125) -> FALSE
A127: Vripple | B127: =Iripple_Vinnom*SQRT(Cout_ESR^2+(1/(8*Fsw*Cout))^2) -> 0.01594861139 | C127: Vp-p | L127: =OR(CoutEsrMax>0.3,CoutEsrMax<0) -> FALSE
K128: =OR(TRUE, FALSE, TRUE) -> TRUE
A129: Step 5: Input Capacitor
K130: Two channels operating at full load
A131: Icinrms_VINmin | B131: =SQRT(D1_Vinmin_2*(Iout^2*(1-D1_Vinmin_2)+Iripple_Vinmin^2/12)) -> 6.586356736 | C131: A | D131: =D1_Vinmax -> 0.07142857143 | F131: Calculate input cap rms current with one output unloaded | K131: =SQRT(Iout^2*D1_Vinmin*(1-D1_Vinmin)+Iout2^2*D2_Vinmin*(1-D2_Vinmin)-2*Iout*Iout2*D1_Vinmin*D2_Vinmin) ->  | L131: A | M131: =SQRT(Iout^2*D1_Vinmin*(1-D1_Vinmin)+Iout2^2*D2_Vinmin*(1-D2_Vinmin)-2*Iout*Iout2*(0.5-D2_Vinmin*(1-D1_Vinmin))) ->  | N131: A
A132: Icinrms_VINnom | B132: =SQRT(D1_Vinnom_2*(Iout^2*(1-D1_Vinnom_2)+Iripple_Vinnom^2/12)) -> 4.966466493 | C132: A | D132: =D1_Vinmin -> 0.2083333333 | K132: =SQRT(Iout^2*D1_Vinnom*(1-D1_Vinnom)+Iout2^2*D2_Vinnom*(1-D2_Vinnom)-2*Iout*Iout2*D1_Vinnom*D2_Vinnom) ->  | L132: A
A133: Icinrms_VINmax | B133: =SQRT(D1_Vinmax_2*(Iout^2*(1-D1_Vinmax_2)+Iripple_Vinmax^2/12)) -> 4.19019525 | C133: A | K133: =SQRT(Iout^2*D1_Vinmax*(1-D1_Vinmax)+Iout2^2*D2_Vinmax*(1-D2_Vinmax)-2*Iout*Iout2*D1_Vinmax*D2_Vinmax) ->  | L133: A
A134: Icinrms - multiphase | B134: =Iout*SQRT((D1_Vinmin-F136/Number_of_Phases)*((F136+1)/Number_of_Phases-D1_Vinmin)) -> 6.497862897 | C134: A | K134: =MAX(K131:K133) ->  | L134: A
A135: Max Cin rms current | B135: =MAX(B131:B133) -> 6.586356736 | C135: A | F135: =Number_of_Phases*D1_Vinnom -> 0.1041666667 | G135: N*D
F136: =FLOOR(Number_of_Phases*D1_Vinnom,1) -> 0 | G136: floor(N*D)
A137: Icinrms - multiphase - max | B137: =Iout/2/Number_of_Phases -> 8 | C137: A
A138: Final result | B138: =IF(D1_Vinmin<0.5, B135, B137) -> 6.586356736 | C138: A | D138: …report this
A140: Vinripple1 | B140: ='Design the Regulator'!E43/1000 -> 0.4 | C140: Vp-p | F140: Input voltage ripple spec (pk-pk)
A142: Cinmin_Vinmin | B142: =Iout/Number_of_Phases*D1_Vinmin*(1-D1_Vinmin)/(Vinripple1*Fsw) -> 2.199074074e-05 | C142: F
A143: Cinmin_Vinnom | B143: =Iout/Number_of_Phases*D1_Vinnom*(1-D1_Vinnom)/(Vinripple1*Fsw) -> 1.244212963e-05 | C143: F
A144: Cinmin_Vinmax | B144: =Iout/Number_of_Phases*D1_Vinmax*(1-D1_Vinmax)/(Vinripple1*Fsw) -> 8.843537415e-06 | C144: F | F144: Calculate cap at Vinmax and 50% duty cycle (Vin = 2*Vout)
A146: Cinmin_50%D | B146: =Iout*0.5*(1-0.5)/(Vinripple1*Fsw) -> 3.333333333e-05 | C146: F | F146: Buck 50% typically worst case
A147: Cinmin | B147: =IF(D1_Vinmin<0.5, B142,B146) -> 2.199074074e-05 | C147: F | D147: =(VIN_min+VIN_max)/2 -> 47
A148: Reported Cinmin | B148: =IF(Cinmin*1000000<2.2, 2.2,Cinmin*1000000) -> 21.99074074 | C148: uF | D148: =2*Vout -> 10 | F148: …report this
A150: Cin | B150: ='Design the Regulator'!E45/1000000 -> 3e-05 | C150: F | F150: Input capacitance
A151: CinEsrMax_Vinmin | B151: =-(Iout/Number_of_Phases*D1_Vinmin*(1-D1_Vinmin)/(Cin*Fsw)-Vinripple1)/(Iout/Number_of_Phases+Iripple_Vinmin/2) -> 0.005606530685 | C151: W
A152: CinEsrMax_Vinmax | B152: =-(Iout/Number_of_Phases*D1_Vinmax*(1-D1_Vinmax)/(Cin*Fsw)-Vinripple1)/(Iout/Number_of_Phases+Iripple_Vinmax/2) -> 0.01440862922 | C152: W
A153: CinEsrMax_50%D | B153: =-(Iout/Number_of_Phases*0.5*(1-0.5)/(Cin*Fsw)-Vinripple1)/(Iout/Number_of_Phases+Iripple_Vinmax/2) -> -0.002270169877 | C153: W | F153: Calculate ESR at Vinmax and 50% duty cycle (Vin = 2*Vout)
A154: CinEsrMax | B154: =IF(VIN_min>2*Vout, B151,B153) -> 0.005606530685 | C154: W
A155: Reported Cin ESR max | B155: =IF(OR(CinEsrMax>0.3, CinEsrMax<0), "N/A",CinEsrMax*1000) -> 5.606530685 | C155: mΩ | F155: …report this
A156: RCinEsr | B156: ='Design the Regulator'!E47/1000 -> 0.001 | C156: W | F156: Input capacitance series resistance (ESR)
A158: Vinripple2_Vinmin | B158: =Iout/Number_of_Phases*D1_Vinmin_2*(1-D1_Vinmin_2)/(Cin*Fsw)+(Iout/Number_of_Phases +Iripple_Vinmin/2)*RCinEsr -> 0.3157466894 | C158: Vp-p
A159: Vinripple2_Vinnom | B159: =Iout/Number_of_Phases*D1_Vinnom_2*(1-D1_Vinnom_2)/(Cin*Fsw)+(Iout/Number_of_Phases +Iripple_Vinnom/2)*RCinEsr -> 0.1878211241 | C159: Vp-p
A160: Vinripple2_Vinmax | B160: =Iout/Number_of_Phases*D1_Vinmax_2*(1-D1_Vinmax_2)/(Cin*Fsw)+(Iout/Number_of_Phases +Iripple_Vinmax/2)*RCinEsr -> 0.139353791 | C160: Vp-p
A161: Vinripple2_50%D | B161: =Iout/Number_of_Phases*0.5*(1-0.5)/(Cin*Fsw)+(Iout/Number_of_Phases +Iripple_Vinmax/2)*RCinEsr -> 0.4640220298 | C161: Vp-p | F161: Calculate ripple at Vinmax and 50% duty cycle (Vin = 2*Vout)
A162: Vinripple2 | B162: =IF(D1_Vinmin<0.5, B158,B161) -> 0.3157466894 | C162: Vp-p | F162: …report highest of these
B164: =Iout*D1_Vinmax_2*(1-D1_Vinmax_2)/(Cin*Fsw) -> 0.1197762057 | C164: Vp-p
A166: Step 6a: Soft Start
A167: Tss | B167: ='Design the Regulator'!E59/1000 -> 0 | C167: s | D167: Soft-start time
A168: Iss | B168: =Cout*Vout/Tss ->  | C168: A | D168: Load cap current during soft start
A169: Css | B169: =0.000022*Tss/1.2 -> 0 | C169: F
A170: Css_u | B170: ='Standard Value Calculator'!B4 -> 0 | C170: F
A172: Step 6b: Other Components - Dither, Hiccup, DEMB, MODE
A173: Tres | B173: ='Design the Regulator'!E62/1000 -> 0.02 | C173: s | D173: Hiccup time
A174: Cres | B174: =0.00002*Tres/1.2 -> 3.333333333e-07 | C174: F
A175: Cres_u | B175: ='Standard Value Calculator'!G4 -> 3.3e-07 | C175: F
A177: RPG1/2 | B177: 100 | C177: kΩ
A178: RFB1/2 | C178: W | E178: Tie to VDDA or AGND for 3.3V/5V output, respectively.
A179: R_MODE | C179: W | E179: Tie to VDDA or AGND for Single/Dual operation, respectively.
A180: R_DEMB | C180: W | E180: Tie to VDDA or AGND for FPWM/DEM, respectively.
A182: Enable Hysteresis Current | B182: 1e-05 | C182: A | E182: 10 µA Hysteresis Current
A183: Turn ON Voltage | B183: ='Design the Regulator'!E61 -> 22
A184: Hysteresis Voltage | B184: ='Design the Regulator'!E61-'Design the Regulator'!E62 -> 2
A186: Upper FB resistor | B186: =B184/B182 -> 200000 | C186: W
A187: Lower FB resister | B187: =B186/(B183-1) -> 9523.809524 | C187: W
A188: Standard upper FB resistor | B188: ='Standard Value Calculator'!S40 -> 200 | C188: kΩ
A189: Standard lower FB resistor | B189: ='Standard Value Calculator'!S41 -> 9.53 | C189: kΩ
A191: Dither Modulation Frequency | B191: ='Design the Regulator'!E65*1000 -> 41200 | C191: Hz
A192: Cdither_calculated | B192: =10*10^-6/Fdither/0.12 -> 2.022653722e-09 | C192: F
A193: Cdither_stdvalue | B193: ='Standard Value Calculator'!S21 -> 2.2e-09 | C193: F
A196: Step 7: Compensation
A197: Pi | B197: 3.14159265 | D197: p
A198: CS Amp Gain | B198: 10
A199: Ri | B199: =Rs*CSAmp_gain -> 0.02 | C199: W | F199: Current Sense effective resistance = shunt resistor Rs * CS amp gain
A200: gm | B200: =IF(COMP_TYPE=1,0.00003,0.0012) -> 0.0012 | C200: S | F200: Error Amp Transconductance
A202: Se_ext | B202: =B206/Ri*1000 -> 3409090.909 | C202: A/s | F202: Slope Comp Slope - referred to inductor current
A203: Sn | B203: =(Vin-Vout)/Lf -> 19545454.55 | C203: A/s | F203: On-time Slope
A204: Sf | B204: =Vout/Lf -> 2272727.273 | C204: A/s | F204: Off-time Slope
A206: Se_int | B206: =Fsw*0.001*(5/22) -> 68.18181818 | C206: mV/μs | F206: Slope Comp Slope - referred to IC
A207: Sn_int | B207: =Sn*Ri/1000 -> 390.9090909 | C207: mV/μs | F207: etc
A208: Sf_int | B208: =Sf*Ri/1000 -> 45.45454545 | C208: mV/μs | F208: etc
A210: mc_buck | B210: =1+Se_ext/Sn -> 1.174418605 | F210: mc = 1 + Se/Sn for peak current-mode buck
A211: k_buck | B211: =mc_buck*(1-D1_Vinnom_2) -> 1.05001317 | F211: mc*(1-d)
A213: mc | B213: =1+Se_ext/Sn -> 1.174418605
A214: k | B214: =mc_buck*(1-D1_Vinnom_2) -> 1.05001317
A215: Q | B215: =1/Pi/(k-0.5) -> 0.5787313908 | F215: 1/(Pi*(k-0.5)) | H215: Q = 2/Pi = 0.636 gives ideal one-cycle damping
A217: Error Amp (EA)
A218: GBW | B218: 6 | C218: MHz | F218: EA gain-bandwidth product
A219: Cbw | B219: =gm/(2*Pi*GBW*1000000) -> 3.183098865e-11 | C219: F | F219: EA effective bandwidth limiting capacitance = gm/(2*Pi*GBW)
A220: RoEA | B220: 64000000 | C220: W | F220: EA output resistance
A221: AEA | B221: =gm*RoEA -> 76800 | C221: V/V | F221: EA DC gain = gm*RoEA
A222: Afb | B222: =IF(VOUT_setting=1,Vref/Vout,SQRT((1+(Fcross*zterm1)^2)/((1+Afbr-pterm4*(Fcross)^2)^2+(Fcross*pterm3)^2))) -> 0.157675275 | C222: V/V | F222: Feedback gain from Vout to FB
A223: Acs | B223: =1/Ri -> 50 | F223: Acs = 1/Ri
A224: Am_buck | B224: =(Ro/Number_of_Phases)/Ri/((1+Ro/Number_of_Phases*(k-0.5)/(Fsw*Lf))) -> 12.39663289
A225: Am | B225: =(Ro*Number_of_Phases)/Ri/((1+Ro*Number_of_Phases*(k-0.5)/(Fsw*Lf))) -> 12.39663289 | F225: Buck modulator gain
A227: Scaling factor to calculate Rcomp - buck | B227: =2*Pi*Ri/gm -> 104.719755 | F227: 2*Pi*Ri/gm -- scaling factor to calculate Rcomp given desired buck crossover frequency
A228: DC Gain is Adc = AEA*Afb*Am
A230: Ro | B230: =Rout -> 0.3125 | C230: W | F230: Output Resistance
A232: Fp_load_buck | B232: =1/(2*Pi*Ro*Cout)+(k-0.5)/(2*Pi*Fsw*Lf*Cout/Number_of_Phases) -> 3209.640568 | C232: Hz | F232: Buck dominant pole frequency -- note slope comp influence
A233: Fp_dominant | B233: =Fload_u -> 3209.640568 | C233: Hz
B234: =Cbw -> 3.183098865e-11
A235: Fp_EA | B235: =1/(2*Pi*(RoEA+Rcea1_u)*Cc1ea_u) -> 0.3656746672 | C235: Hz | F235: Error Amp LF pole -- related to amplifier ouptut resistance and comp cap
A236: Fp_HF | B236: =1/(2*Pi*Rcea1_u*(Cc2ea_u+Cbw)) -> 140173.478 | C236: Hz | F236: Error Amp HF pole cancels zero related to Output Cap ESR
A237: Fesr | B237: =1/(2*Pi*Cout*Cout_ESR) -> 795774.7164 | C237: Hz | F237: Cout ESR zero frequency
A238: F_mod | B238: =Fsw/2 -> 150000 | C238: Hz | F238: Zero-order sample-and-hold effects of current-mode control modeled as pole at Fsw/2
D239: Internal Comp Crossover
A240: Desired Crossover Frequency | B240: =CHOOSE(COMP_TYPE,Fcross_Ch2,'Design the Regulator'!E71*1000) -> 40000 | C240: Hz | D240: =Fsw/50 -> 6000
A241: Rcea1 | B241: =Fcross*Cout/Number_of_Phases*2*Pi*Ri/(gm*Afb) -> 5313.18585 | C241: W | F241: This component will largely determine the crossover frequency | K241: =Fcross/Fp_dominant/(gm*Afb*Am) -> 5313.18585
A242: Cc1ea, Cc3ea | B242: =10/(Rcea1*Fcross*2*Pi) -> 7.488677593e-09 | C242: F | F242: This along with Rcea1 will set a zero at Fcrossover/5 to optimize phase margin
A243: Cc2ea, Cc4ea | B243: =MAX(1/(Rcea1*2*Pi*Fesr)-Cbw, 1/(Rcea1*2*Pi*(Fsw/2))-Cbw) -> 1.678670805e-10 | C243: F | F243: This along with Rcea1 places a pole at the output cap ESR zero
A245: =CHOOSE(COMP_TYPE,"Internal Compensation","External Compensation") -> External Compensation
A246: Chosen Compensation Components from the standard value sheet | D246: Internal Values
A247: Rcea1_u | B247: =CHOOSE(COMP_TYPE,D247,'Design the Regulator'!D78*1000) -> 5360 | C247: W | D247: 400000 | G247: =1/(Rcea1*2*Pi*(Fsw/2))-Cbw -> 1.678670805e-10
A248: Cc1ea_u | B248: =CHOOSE(COMP_TYPE,Cc3ea_u,'Design the Regulator'!D79*0.000000001) -> 6.8e-09 | C248: F | D248: =50*0.000000000001 -> 5e-11
A249: Cc2ea_u | B249: =CHOOSE(COMP_TYPE,Cc4ea_u,'Design the Regulator'!D80*0.000000000001) -> 1.8e-10 | C249: F | D249: =0.000000000001 -> 1e-12
A251: Resulting Pole/Zero Locations | F251: =Cout -> 0.0002 | G251: =Cout_ESR -> 0.001
A252: Fz1 | B252: =1/(2*Pi*Rcea1_u*Cc1ea_u) -> 4366.630358 | C252: Hz | F252: This zero is set at or close to the dominant load pole
A253: Fp2 | B253: =1/(2*Pi*Rcea1_u*(Cc1ea_u*(Cc2ea_u+Cbw)/(Cc1ea_u+Cc2ea_u+Cbw))) -> 144540.1084 | C253: Hz | F253: This pole cancels the zero from the Output Cap ESR
... 155 more rows

Sheet Schematic Management (hidden)
A2: =IF(MODE=1, CHOOSE(SCH_SETTING, "SCH_SetVout_IntComp_nAEF","SCH_SetVout_IntComp_AEF","SCH_SetVout_ExtComp_nAEF","SCH_SetVout_ExtComp_AEF","SCH_AdjVout_IntComp_nAEF","SCH_AdjVout_IntComp_AEF","SCH_AdjVout_ExtComp_nAEF","SCH_AdjVout_ExtComp_AEF")) -> SCH_SetVout_ExtComp_AEF

Sheet Stability Calculations (hidden)
A2: Divider Network & EA Poles/Zeros | E2: Modulator | J2: Power Stage Poles/Zeros | M2: Complex Pole Pair | P2: Feedback natural frequencies | T2: Total System
B3: Afb1 | C3: =Afb -> 0.157675275 | D3: V/V | E3: Acs | F3: =Acs -> 50 | G3: A/V | H3: gm | I3: =gm -> 0.0012 | J3: z_ESR | K3: =Fesr -> 795774.7164 | L3: Hz | M3: p3 | N3: =Fsw/2 -> 150000 | O3: Hz | P3: zterm1 | Q3: =((1/wffHz)+(1/wfftHz)) -> 5.810941093e-06 | T3: Adc | U3: =IF(VOUT_setting=1,Am*Afb*AEA,Am*AEA) -> 952061.4056 | V3: V/V
B4: EA zero, z1 | C4: =Fz1_u -> 4366.630358 | D4: Hz | E4: Am | F4: =Am -> 12.39663289 | G4: V/V | J4: p_dom | K4: =Fp_dominant -> 3209.640568 | L4: Hz | M4: pterm1 | N4: =Q*pole3 -> 86809.70862 | P4: pterm3 | Q4: =((1/wfbtHz)+(1/wffHz)+(1/wfftHz)+(Afbr/wffHz)) -> 4.061325101e-05 | T4: Crossover | U4: =AI7 -> 37.80275 | V4: kHz
B5: EA pole, p1 | C5: =Fp1_u -> 0.3656746672 | D5: Hz | E5: Q | F5: =Q -> 0.5787313908 | M5: pterm2 | N5: =pole3^2 -> 22500000000 | P5: pterm4 | Q5: =1/(wffHz*wfbtHz) -> 1.593743715e-12 | T5: Phase Margin | U5: =AI9 -> 49.65820238 | V5: °
B6: Aea | C6: =AEA -> 76800 | D6: V/V | E6: mc | F6: =mc -> 1.174418605 | P6: Afbr | Q6: =Rfb1_/Rfb2_u -> 5.307855626 | T6: radconv | U6: =180/Pi -> 57.29577958 | AH6: XOVER SEARCH
B7: EA pole, p2 | C7: =Fp2_u -> 140173.478 | D7: Hz | E7: k | F7: =k -> 1.05001317 | AH7: xover | AI7: =SUM(AH12:AH613)/1000 -> 37.80275
AH9: phase margin | AI9: =SUM(AI13:AI613) -> 49.65820238
A10: Freq (Hz) | C10: Power Stage | I10: Error Amplifier | O10: Feedback Gain | S10: Sampling Double Pole | U10: System Response | AB10: ERROR AMP Response | AE10: PLANT Response
C11: p_dom | E11: z_ESR | G11: z_RHP | I11: p1 | K11: z1 | M11: p2 | O11: z1 | Q11: p1p2 | S11: p3
C12: Gain(V/V) | D12: Phase(rad) | E12: Gain(V/V) | F12: Phase(rad) | G12: Gain(V/V) | H12: Phase(rad) | I12: Gain(V/V) | J12: Phase(rad) | K12: Gain(V/V) | L12: Phase(rad) | M12: Gain(V/V) | N12: Phase(rad) | O12: Gain(V/V) | P12: Phase(rad) | Q12: Gain(V/V) | R12: Phase(rad) | S12: Gain(V/V) | T12: Phase(rad) | U12: Gain (dB) | V12: Phase (°) | W12: Phase Margin (°) | Z12: Fsquare | AB12: Gain(dB) | AC12: Phase(Deg) | AE12: Gain(dB) | AF12: Phase(Deg)
A13: 1 | B13: =A13/1000 -> 0.001 | C13: =SQRT(1+(A13/pole1)^2) -> 1.000000049 | D13: =ATAN(A13/pole1) -> 0.000311561356 | E13: =SQRT(1+(A13/Zero1)^2) -> 1 | F13: =ATAN(A13/Zero1) -> 1.25663706e-06 | G13: =IF(VIN_nom>Vout, 1, SQRT(1+(A13/z_RHP)^2)) -> 1 | H13: =IF(VIN_nom>Vout, 0, -ATAN(A13/z_RHP)) -> 0 | I13: =SQRT(1+(A13/Pole2)^2) -> 2.911773833 | J13: =ATAN(A13/Pole2) -> 1.220226249 | K13: =SQRT(1+(A13/Zero2)^2) -> 1.000000026 | L13: =ATAN(A13/Zero2) -> 0.0002290095338 | M13: =SQRT(1+(A13/pole4)^2) -> 1 | N13: =ATAN(A13/pole4) -> 7.134017177e-06 | O13: =IF(VOUT_setting=1,1,SQRT(1+(A13*zterm1)^2)) -> 1 | P13: =IF(VOUT_setting=1,0,ATAN(((A13*zterm1)))) -> 5.810941093e-06 | Q13: =IF(VOUT_setting=1,1,SQRT((1+Afbr-pterm4*(A13)^2)^2+(A13*$Q$4)^2)) -> 6.307855626 | R13: =IF(VOUT_setting=1,0,ATAN(A13*$Q$4/(1+Afbr-$Q$5*(A13)^2))) -> 6.438519429e-06 | S13: =SQRT((1-(Z13/pterm2))^2+(A13/pterm1)^2) -> 1 | T13: =IF((ATAN((A13/pterm1)/(1-A13^2/pterm2))>0),ATAN((A13/pterm1)/(1-A13^2/pterm2)),PI()+ATAN((A13/pterm1)/(1-A13^2/pterm2))) -> 1.151944887e-05 | U13: =20*LOG10(((E13*K13*G13*O13)/(C13*I13*S13*M13*Q13))*Adc) -> 94.29251134 | V13: =((F13+L13+H13+P13)-(D13+J13+T13+N13+R13))*radconv -> -69.91957681 | W13: =IF(V13>0,V13,V13+180) -> 110.0804232 | Y13: =IF(U13<0,A13,1000000000) -> 1000000000 | Z13: =A13^2 -> 1 | AB13: =20*LOG10((K13/(I13*M13))*AEA) -> 88.42407185 | AC13: =(L13-(J13+N13))*radconv -> -69.90110169 | AE13: =20*LOG10((E13*G13/(C13*S13))*Acs*Am) -> 55.84547447 | AF13: =(F13+H13-(D13+T13))*radconv -> -0.01843916658 | AH13: =SUM((U14<0)*(U13>0))*A13 -> 0 | AI13: =IF(AH13>0,W11,0) -> 0
A14: 1.0965 | B14: =A14/1000 -> 0.0010965 | C14: 1.000000058 | D14: 0.0003416270246 | E14: 1 | F14: 1.377902536e-06 | G14: 1 | H14: 0 | I14: 3.160918256 | J14: 1.248902414 | K14: 1.000000032 | L14: 0.0002511089529 | M14: 1 | N14: 7.822449835e-06 | O14: 1 | P14: 6.371696908e-06 | Q14: =IF(VOUT_setting=1,1,SQRT((1+Afbr-pterm4*(A14)^2)^2+(A14*$Q$4)^2)) -> 6.307855626 | R14: 7.059836554e-06 | S14: 1 | T14: 1.263107569e-05 | U14: 93.57939878 | V14: -71.56315609 | W14: 108.4368439 | Y14: 1000000000 | Z14: 1.20231225 | AB14: 87.71095938 | AC14: -71.54289811 | AE14: 55.84547438 | AF14: -0.02021854603 | AH14: 0 | AI14: 0
A15: 1.2023 | B15: 0.0012023 | C15: 1.00000007 | D15: 0.0003745902129 | E15: 1 | F15: 1.510854737e-06 | G15: 1 | H15: 0 | I15: 3.436605178 | J15: 1.275540269 | K15: 1.000000038 | L15: 0.0002753381604 | M15: 1 | N15: 8.577228852e-06 | O15: 1 | P15: 6.986494476e-06 | Q15: =IF(VOUT_setting=1,1,SQRT((1+Afbr-$Q$5*(A15)^2)^2+(A15*$Q$4)^2)) -> 6.307855627 | R15: 7.74103191e-06 | S15: 1 | T15: 1.384983338e-05 | U15: 92.85307123 | V15: -73.09000244 | W15: 106.9099976 | Y15: 1000000000 | Z15: 1.44552529 | AB15: 86.98463193 | AC15: -73.06778979 | AE15: 55.84547428 | AF15: -0.02216940967 | AH15: 0 | AI15: 0
A16: 1.3183 | B16: 0.0013183 | C16: 1.000000084 | D16: 0.0004107313258 | E16: 1 | F16: 1.656624636e-06 | G16: 1 | H16: 0 | I16: 3.741239018 | J16: 1.300215549 | K16: 1.000000046 | L16: 0.0003019032645 | M16: 1 | N16: 9.404774845e-06 | O16: 1 | P16: 7.660563643e-06 | Q16: 6.307855627 | R16: 8.487900164e-06 | S16: 1 | T16: 1.518608945e-05 | U16: 92.11535487 | V16: -74.50446031 | W16: 105.4955397 | Y16: 1000000000 | Z16: 1.73791489 | AB16: 86.2469157 | AC16: -74.48010455 | AE16: 55.84547416 | AF16: -0.02430835274 | AH16: 0 | AI16: 0
A17: 1.4454 | B17: 0.0014454 | C17: 1.000000101 | D17: 0.0004503307681 | E17: 1 | F17: 1.816343207e-06 | G17: 1 | H17: 0 | I17: 4.077228041 | J17: 1.323003632 | K17: 1.000000055 | L17: 0.0003310103739 | M17: 1 | N17: 1.031150843e-05 | O17: 1 | P17: 8.399134255e-06 | Q17: 6.307855627 | R17: 9.306235983e-06 | S17: 1 | T17: 1.66502114e-05 | U17: 91.36836386 | V17: -75.81085376 | W17: 104.1891462 | Y17: 1000000000 | Z17: 2.08918116 | AB17: 85.49992483 | AC17: -75.78414981 | AE17: 55.84547401 | AF17: -0.02665197047 | AH17: 0 | AI17: 0
A18: 1.5849 | B18: 0.0015849 | C18: 1.000000122 | D18: 0.000493793569 | E18: 1 | F18: 1.991644076e-06 | G18: 1 | H18: 0 | I18: 4.448046799 | J18: 1.344040303 | K18: 1.000000066 | L18: 0.0003629572005 | M18: 1 | N18: 1.130670382e-05 | O18: 1 | P18: 9.209760538e-06 | Q18: 6.307855627 | R18: 1.020440944e-05 | S18: 1 | T18: 1.825717452e-05 | U18: 90.61227687 | V18: -77.0169701 | W18: 102.9830299 | Y18: 1000000000 | Z18: 2.51190801 | AB18: 84.74383801 | AC18: -76.98768888 | AE18: 55.84547383 | AF18: -0.02922423373 | AH18: 0 | AI18: 0
A19: 1.7378 | B19: 0.0017378 | C19: 1.000000147 | D19: 0.0005414312891 | E19: 1 | F19: 2.183783883e-06 | G19: 1 | H19: 0 | I19: 4.856384098 | J19: 1.363398164 | K19: 1.000000079 | L19: 0.0003979727538 | M19: 1 | N19: 1.239749505e-05 | O19: 1 | P19: 1.009825343e-05 | Q19: 6.307855627 | R19: 1.118885906e-05 | S19: 1 | T19: 2.001849825e-05 | U19: 89.84940316 | V19: -78.12697492 | W19: 101.8730251 | Y19: 1000000000 | Z19: 3.01994884 | AB19: 83.98096452 | AC19: -78.09486885 | AE19: 55.84547362 | AF19: -0.03204358166 | AH19: 0 | AI19: 0
A20: 1.9055 | B20: 0.0019055 | C20: 1.000000176 | D20: 0.0005936801133 | E20: 1 | F20: 2.394521918e-06 | G20: 1 | H20: 0 | I20: 5.30600097 | J20: 1.381196556 | K20: 1.000000095 | L20: 0.0004363776466 | M20: 1 | N20: 1.359386973e-05 | O20: 1 | P20: 1.107274825e-05 | Q20: 6.307855627 | R20: 1.226859877e-05 | S20: 1 | T20: 2.195030982e-05 | U20: 89.0803171 | V20: -79.14771404 | W20: 100.852286 | Y20: 1000000000 | Z20: 3.63093025 | AB20: 83.21187873 | AC20: -79.11250969 | AE20: 55.84547336 | AF20: -0.03513582903 | AH20: 0 | AI20: 0
A21: 2.0893 | B21: 0.0020893 | C21: 1.000000212 | D21: 0.0006509450702 | E21: 1 | F21: 2.625491809e-06 | G21: 1 | H21: 0 | I21: 5.800399826 | J21: 1.397528756 | K21: 1.000000114 | L21: 0.0004784695908 | M21: 1 | N21: 1.490510209e-05 | O21: 1 | P21: 1.214079922e-05 | Q21: 6.307855627 | R21: 1.345199864e-05 | S21: 1 | T21: 2.406758453e-05 | U21: 88.30650485 | V21: -80.08453932 | W21: 99.91546068 | Y21: 1000000000 | Z21: 4.36517449 | AB21: 82.43806678 | AC21: -80.04593925 | AE21: 55.84547305 | AF21: -0.03852494668 | AH21: 0 | AI21: 0
A22: 2.2909 | B22: 0.0022909 | C22: 1.000000255 | D22: 0.0007137558123 | E22: 1 | F22: 2.878829841e-06 | G22: 1 | H22: 0 | I22: 6.344166645 | J22: 1.412511087 | K22: 1.000000138 | L22: 0.000524637902 | M22: 1 | N22: 1.634331995e-05 | O22: 1 | P22: 1.331228495e-05 | Q22: 6.307855627 | R22: 1.475000416e-05 | S22: 1 | T22: 2.638990542e-05 | U22: 87.52817165 | V22: -80.9441254 | W22: 99.0558746 | Y22: 1000000000 | Z22: 5.24822281 | AB22: 81.65973395 | AC22: -80.90180074 | AE22: 55.84547268 | AF22: -0.0422422811 | AH22: 0 | AI22: 0
A23: 2.5119 | B23: 0.0025119 | C23: 1.000000306 | D23: 0.0007826108357 | E23: 1 | F23: 3.156546631e-06 | G23: 1 | H23: 0 | I23: 6.941627567 | J23: 1.426234911 | K23: 1.000000165 | L23: 0.0005752489946 | M23: 1 | N23: 1.791993775e-05 | O23: 1 | P23: 1.459650293e-05 | Q23: 6.307855627 | R23: 1.617291695e-05 | S23: 1 | T23: 2.893570362e-05 | U23: 86.7464369 | V23: -81.73171612 | W23: 98.26828388 | Y23: 1000000000 | Z23: 6.30964161 | AB23: 80.87799965 | AC23: -81.68530847 | AE23: 55.84547223 | AF23: -0.04631733483 | AH23: 0 | AI23: 0
A24: 2.7542 | B24: 0.0027542 | C24: 1.000000368 | D24: 0.0008581021038 | E24: 1 | F24: 3.461029791e-06 | G24: 1 | H24: 0 | I24: 7.597926473 | J24: 1.438798495 | K24: 1.000000199 | L24: 0.0006307379854 | M24: 1 | N24: 1.964851011e-05 | O24: 1 | P24: 1.600449396e-05 | Q24: 6.307855627 | R24: 1.773297021e-05 | S24: 1 | T24: 3.172686608e-05 | U24: 85.96176111 | V24: -82.45295277 | W24: 97.54704723 | Y24: 1000000000 | Z24: 7.58561764 | AB24: 80.0933244 | AC24: -82.4020686 | AE24: 55.84547169 | AF24: -0.05078514212 | AH24: 0 | AI24: 0
A25: 3.02 | B25: 0.00302 | C25: 1.000000443 | D25: 0.0009409150479 | E25: 1 | F25: 3.795043921e-06 | G25: 1 | H25: 0 | I25: 8.319029048 | J25: 1.450298604 | K25: 1.000000239 | L25: 0.0006916086939 | M25: 1 | N25: 2.154473187e-05 | O25: 1 | P25: 1.75490421e-05 | Q25: 6.307855628 | R25: 1.944432867e-05 | S25: 1 | T25: 3.478873559e-05 | U25: 85.17420972 | V25: -83.11339216 | W25: 96.88660784 | Y25: 1000000000 | Z25: 9.1204 | AB25: 79.30577366 | AC25: -83.0575973 | AE25: 55.84547104 | AF25: -0.05568626891 | AH25: 0 | AI25: 0
A26: 3.3113 | B26: 0.0033113 | C26: 1.000000532 | D26: 0.001031672785 | E26: 1 | F26: 4.161102297e-06 | G26: 1 | H26: 0 | I26: 9.11036577 | J26: 1.460809631 | K26: 1.000000288 | L26: 0.0007583191372 | M26: 1 | N26: 2.362287108e-05 | O26: 1 | P26: 1.924176924e-05 | Q26: 6.307855628 | R26: 2.131986938e-05 | S26: 1 | T26: 3.814435105e-05 | U26: 84.38494591 | V26: -83.71730829 | W26: 96.28269171 | Y26: 1000000000 | Z26: 10.96470769 | AB26: 78.51651062 | AC26: -83.65613163 | AE26: 55.84547027 | AF26: -0.06105759324 | AH26: 0 | AI26: 0
A27: 3.6308 | B27: 0.0036308 | C27: 1.00000064 | D27: 0.001131216525 | E27: 1 | F27: 4.562597837e-06 | G27: 1 | H27: 0 | I27: 9.97927464 | J27: 1.470420173 | K27: 1.000000346 | L27: 0.0008314876383 | M27: 1 | N27: 2.590218956e-05 | O27: 1 | P27: 2.109836492e-05 | Q27: 6.307855628 | R27: 2.337697634e-05 | S27: 1 | T27: 4.182481496e-05 | U27: 83.59368225 | V27: -84.26979294 | W27: 95.73020706 | Y27: 1000000000 | Z27: 13.18270864 | AB27: 77.7252479 | AC27: -84.20271348 | AE27: 55.84546933 | AF27: -0.06694890048 | AH27: 0 | AI27: 0
A28: 3.9811 | B28: 0.0039811 | C28: 1.000000769 | D28: 0.001240356318 | E28: 1 | F28: 5.0027978e-06 | G28: 1 | H28: 0 | I28: 10.93282959 | J28: 1.479200674 | K28: 1.000000416 | L28: 0.0009117096184 | M28: 1 | N28: 2.840123578e-05 | O28: 1 | P28: 2.313393758e-05 | Q28: 6.307855628 | R28: 2.563238969e-05 | S28: 1 | T28: 4.58600779e-05 | U28: 82.80100965 | V28: -84.77489721 | W28: 95.22510279 | Y28: 1000000000 | Z28: 15.84915721 | AB28: 76.93257643 | AC28: -84.70134593 | AE28: 55.84546821 | AF28: -0.07340813193 | AH28: 0 | AI28: 0
A29: 4.3652 | B29: 0.0043652 | C29: 1.000000925 | D29: 0.001360026837 | E29: 1 | F29: 5.485472094e-06 | G29: 1 | H29: 0 | I29: 11.97919894 | J29: 1.487221032 | K29: 1.0000005 | L29: 0.0009996721015 | M29: 1 | N29: 3.114141177e-05 | O29: 1 | P29: 2.536592005e-05 | Q29: 6.307855629 | R29: 2.810542501e-05 | S29: 1 | T29: 5.028469821e-05 | U29: 82.00710506 | V29: -85.23664326 | W29: 94.76335674 | Y29: 1000000000 | Z29: 19.05497104 | AB29: 76.13867319 | AC29: -85.15599569 | AE29: 55.84546685 | AF29: -0.08049060444 | AH29: 0 | AI29: 0
A30: 4.7863 | B30: 0.0047863 | C30: 1.000001112 | D30: 0.001491225061 | E30: 1 | F30: 6.01464196e-06 | G30: 1 | H30: 0 | I30: 13.12710157 | J30: 1.494544176 | K30: 1.000000601 | L30: 0.001096107912 | M30: 1.000000001 | N30: 3.41455464e-05 | O30: 1 | P30: 2.781290735e-05 | Q30: 6.307855629 | R30: 3.081668554e-05 | S30: 1.000000001 | T30: 5.513553813e-05 | U30: 81.21228295 | V30: -85.65865517 | W30: 94.34134483 | Y30: 1000000000 | Z30: 22.90866769 | AB30: 75.3438527 | AC30: -85.57022774 | AE30: 55.84546523 | AF30: -0.08825532244 | AH30: 0 | AI30: 0
A31: 5.2481 | B31: 0.0052481 | C31: 1.000001337 | D31: 0.001635103748 | E31: 1 | F31: 6.594956954e-06 | G31: 1 | H31: 0 | I31: 14.38662478 | J31: 1.501231226 | K31: 1.000000722 | L31: 0.001201864377 | M31: 1.000000001 | N31: 3.744003553e-05 | O31: 1 | P31: 3.049639994e-05 | Q31: 6.30785563 | R31: 3.37899938e-05 | S31: 1.000000001 | T31: 6.045521962e-05 | U31: 80.41648062 | V31: -86.04445603 | W31: 93.95554397 | Y31: 1000000000 | Z31: 27.54255361 | AB31: 74.54805233 | AC31: -85.94749681 | AE31: 55.84546327 | AF31: -0.09677050968 | AH31: 0 | AI31: 0
A32: 5.7544 | B32: 0.0057544 | C32: 1.000001607 | D32: 0.001792846804 | E32: 1 | F32: 7.231192298e-06 | G32: 1 | H32: 0 | I32: 15.76813372 | J32: 1.507334692 | K32: 1.000000868 | L32: 0.001317811722 | M32: 1.000000001 | N32: 4.105198842e-05 | O32: 1.000000001 | P32: 3.343847941e-05 | Q32: 6.307855631 | R32: 3.704981619e-05 | S32: 1.000000001 | T32: 6.628751659e-05 | U32: 79.62005199 | V32: -86.39707646 | W32: 93.60292354 | Y32: 1000000000 | Z32: 33.11311936 | AB32: 73.75162605 | AC32: -86.29076331 | AE32: 55.84546092 | AF32: -0.1061062334 | AH32: 0 | AI32: 0
A33: 6.3096 | B33: 0.0063096 | C33: 1.000001932 | D33: 0.001965825063 | E33: 1 | F33: 7.928877194e-06 | G33: 1 | H33: 0 | I33: 17.28363508 | J33: 1.512905798 | K33: 1.000001044 | L33: 0.001444957574 | M33: 1.000000001 | N33: 4.501279475e-05 | O33: 1.000000001 | P33: 3.66647139e-05 | Q33: 6.307855631 | R33: 4.062448217e-05 | S33: 1.000000001 | T33: 7.26831146e-05 | U33: 78.82295481 | V33: -86.71947671 | W33: 93.28052329 | Y33: 1000000000 | Z33: 39.81105216 | AB33: 72.95453169 | AC33: -86.60290621 | AE33: 55.8454581 | AF33: -0.116343624 | AH33: 0 | AI33: 0
A34: 6.9183 | B34: 0.0069183 | C34: 1.000002323 | D34: 0.002155471661 | E34: 1 | F34: 8.693792172e-06 | G34: 1 | H34: 0 | I34: 18.94568576 | J34: 1.517989322 | K34: 1.000001255 | L34: 0.00158435536 | M34: 1.000000001 | N34: 4.9355271e-05 | O34: 1.000000001 | P34: 4.020183374e-05 | Q34: 6.307855633 | R34: 4.454360894e-05 | S34: 1.000000001 | T34: 7.969500313e-05 | U34: 78.02544842 | V34: -87.01424885 | W34: 92.98575115 | Y34: 1000000000 | Z34: 47.86287489 | AB34: 72.1570287 | AC34: -86.88643258 | AE34: 55.8454547 | AF34: -0.1275674989 | AH34: 0 | AI34: 0
A35: 7.5858 | B35: 0.0075858 | C35: 1.000002793 | D35: 0.00236343781 | E35: 1 | F35: 9.532597409e-06 | G35: 1 | H35: 0 | I35: 20.76875778 | J35: 1.522628458 | K35: 1.000001509 | L35: 0.001737218804 | M35: 1.000000001 | N35: 5.411722745e-05 | O35: 1.000000001 | P35: 4.408063691e-05 | Q35: 6.307855634 | R35: 4.884132065e-05 | S35: 1.000000001 | T35: 8.738423525e-05 | U35: 77.22744271 | V35: -87.28389825 | W35: 92.71610175 | Y35: 1000000000 | Z35: 57.54436164 | AB35: 71.35902707 | AC35: -87.1437499 | AE35: 55.84545062 | AF35: -0.1398755821 | AH35: 0 | AI35: 0
A36: 8.3176 | B36: 0.0083176 | C36: 1.000003358 | D36: 0.002591437017 | E36: 1 | F36: 1.045220441e-05 | G36: 1 | H36: 0 | I36: 22.76787298 | J36: 1.526860655 | K36: 1.000001814 | L36: 0.001904807428 | M36: 1.000000002 | N36: 5.933790121e-05 | O36: 1.000000001 | P36: 4.83330836e-05 | Q36: 6.307855635 | R36: 5.355302916e-05 | S36: 1.000000002 | T36: 9.581416794e-05 | U36: 76.42920168 | V36: -87.53060228 | W36: 92.46939772 | Y36: 1000000000 | Z36: 69.18246976 | AB36: 70.56079095 | AC36: -87.37693392 | AE36: 55.84544571 | AF36: -0.1533692844 | AH36: 0 | AI36: 0
A37: 9.1201 | B37: 0.0091201 | C37: 1.000004037 | D37: 0.002841463167 | E37: 1 | F37: 1.146065565e-05 | G37: 1 | H37: 0 | I37: 24.96051497 | J37: 1.530722326 | K37: 1.000002181 | L37: 0.002088586849 | M37: 1.000000002 | N37: 6.506294997e-05 | O37: 1.000000001 | P37: 5.299636381e-05 | Q37: 6.307855637 | R37: 5.871994098e-05 | S37: 1.000000002 | T37: 0.0001050585257 | U37: 75.63057733 | V37: -87.75648414 | W37: 92.24351586 | Y37: 1000000000 | Z37: 83.17622401 | AB37: 69.7621725 | AC37: -87.58798959 | AE37: 55.84543981 | AF37: -0.1681666103 | AH37: 0 | AI37: 0
A38: 10 | B38: 0.01 | C38: 1.000004854 | D38: 0.00311560358 | E38: 1 | F38: 1.25663706e-05 | G38: 1 | H38: 0 | I38: 27.36499015 | J38: 1.534245146 | K38: 1.000002622 | L38: 0.002290091375 | M38: 1.000000003 | N38: 7.134017165e-05 | O38: 1.000000002 | P38: 5.810941086e-05 | Q38: 6.307855639 | R38: 6.438519421e-05 | S38: 1.000000002 | T38: 0.0001151944887 | U38: 74.83173897 | V38: -87.9633973 | W38: 92.0366027 | Y38: 1000000000 | Z38: 100 | AB38: 68.96334123 | AC38: -87.77864663 | AE38: 55.84543272 | AF38: -0.184391094 | AH38: 0 | AI38: 0
A39: 10.965 | B39: 0.010965 | C39: 1.000005835 | D39: 0.003416257089 | E39: 1 | F39: 1.377902536e-05 | G39: 1 | H39: 0 | I39: 30.00234028 | J39: 1.537459419 | K39: 1.000003153 | L39: 0.002511084304 | M39: 1.000000003 | N39: 7.822449819e-05 | O39: 1.000000002 | P39: 6.3716969e-05 | Q39: 6.307855642 | R39: 7.059836543e-05 | S39: 1.000000003 | T39: 0.0001263107569 | U39: 74.03253831 | V39: -88.15312237 | W39: 91.84687763 | Y39: 1000000000 | Z39: 120.231225 | AB39: 68.16414911 | AC39: -87.95054339 | AE39: 55.84542418 | AF39: -0.2021847064 | AH39: 0 | AI39: 0
A40: 12.023 | B40: 0.012023 | C40: 1.000007016 | D40: 0.003745884784 | E40: 1 | F40: 1.510854737e-05 | G40: 1 | H40: 0 | I40: 32.89415625 | J40: 1.540391106 | K40: 1.000003791 | L40: 0.002753374715 | M40: 1.000000004 | N40: 8.577228831e-05 | O40: 1.000000002 | P40: 6.986494465e-05 | Q40: 6.307855645 | R40: 7.741031895e-05 | S40: 1.000000003 | T40: 0.0001384983338 | U40: 73.23326121 | V40: -88.32719231 | W40: 91.67280769 | Y40: 1000000000 | Z40: 144.552529 | AB40: 67.36488227 | AC40: -88.10506689 | AE40: 55.84541393 | AF40: -0.2216931029 | AH40: 0 | AI40: 0
A41: 13.183 | B41: 0.013183 | C41: 1.000008435 | D41: 0.004107290392 | E41: 1 | F41: 1.656624636e-05 | G41: 1 | H41: 0 | I41: 36.06503762 | J41: 1.543065088 | K41: 1.000004557 | L41: 0.003019023565 | M41: 1.000000004 | N41: 9.404774817e-05 | O41: 1.000000003 | P41: 7.660563628e-05 | Q41: 6.307855649 | R41: 8.487900144e-05 | S41: 1.000000004 | T41: 0.0001518608945 | U41: 72.43390276 | V41: -88.48708462 | W41: 91.51291538 | Y41: 1000000000 | Z41: 173.791489 | AB41: 66.56553615 | AC41: -88.24352837 | AE41: 55.84540159 | AF41: -0.2430822173 | AH41: 0 | AI41: 0
A42: 14.454 | B42: 0.014454 | C42: 1.00001014 | D42: 0.004503277544 | E42: 1 | F42: 1.816343206e-05 | G42: 1 | H42: 0 | I42: 39.53958586 | J42: 1.54550252 | K42: 1.000005478 | L42: 0.00331009177 | M42: 1.000000005 | N42: 0.0001031150839 | O42: 1.000000004 | P42: 8.399134236e-05 | Q42: 6.307855653 | R42: 9.306235957e-05 | S42: 1.000000005 | T42: 0.000166502114 | U42: 71.63498141 | V42: -88.63406322 | W42: 91.36593678 | Y42: 1000000000 | Z42: 208.918116 | AB42: 65.76662962 | AC42: -88.36702551 | AE42: 55.84538678 | AF42: -0.2665179779 | AH42: 0 | AI42: 0
A43: 15.849 | B43: 0.015849 | C43: 1.000012192 | D43: 0.004937895957 | E43: 1 | F43: 1.991644076e-05 | G43: 1 | H43: 0 | I43: 43.35333935 | J43: 1.547728007 | K43: 1.000006587 | L43: 0.003629556227 | M43: 1.000000006 | N43: 0.0001130670378 | O43: 1.000000004 | P43: 9.209760512e-05 | Q43: 6.307855659 | R43: 0.0001020440941 | S43: 1.000000006 | T43: 0.0001825717452 | U43: 70.83516442 | V43: -88.7696127 | W43: 91.2303873 | Y43: 1000000000 | Z43: 251.190801 | AB43: 64.96683045 | AC43: -88.47680275 | AE43: 55.84536895 | AF43: -0.2922400608 | AH43: 0 | AI43: 0
A44: 17.378 | B44: 0.017378 | C44: 1.000014657 | D44: 0.005414260514 | E44: 1 | F44: 2.183783883e-05 | G44: 1 | H44: 0 | I44: 47.53363705 | J44: 1.549757041 | K44: 1.000007919 | L44: 0.003979706738 | M44: 1.000000008 | N44: 0.0001239749499 | O44: 1.000000005 | P44: 0.000100982534 | Q44: 6.307855665 | R44: 0.0001118885902 | S44: 1.000000007 | T44: 0.0002001849825 | U44: 70.03558474 | V44: -88.89467834 | W44: 91.10532166 | Y44: 1000000000 | Z44: 301.994884 | AB44: 64.1672722 | AC44: -88.57362066 | AE44: 55.84534752 | AF44: -0.3204328156 | AH44: 0 | AI44: 0
A45: 19.055 | B45: 0.019055 | C45: 1.000017623 | D45: 0.005936732083 | E45: 1 | F45: 2.394521917e-05 | G45: 1 | H45: 0 | I45: 52.11875507 | J45: 1.551608198 | K45: 1.000009521 | L45: 0.004363749044 | M45: 1.000000009 | N45: 0.0001359386965 | O45: 1.000000006 | P45: 0.0001107274821 | Q45: 6.307855673 | R45: 0.0001226859871 | S45: 1.000000008 | T45: 0.0002195030983 | U45: 69.23571312 | V45: -89.01040514 | W45: 90.98959486 | Y45: 1000000000 | Z45: 363.093025 | AB45: 63.36742635 | AC45: -88.65836564 | AE45: 55.84532176 | AF45: -0.351354334 | AH45: 0 | AI45: =IF(AH45>0,W43,0) -> 0
A46: 20.893 | B46: 0.020893 | C46: 1.000021186 | D46: 0.006509359682 | E46: 1 | F46: 2.625491809e-05 | G46: 1 | H46: 0 | I46: 57.14423693 | J46: 1.553295856 | K46: 1.000011447 | L46: 0.004784659762 | M46: 1.000000011 | N46: 0.0001490510198 | O46: 1.000000007 | P46: 0.0001214079917 | Q46: 6.307855683 | R46: 0.0001345199856 | S46: 1.00000001 | T46: 0.0002406758453 | U46: 68.43613077 | V46: -89.11769169 | W46: 90.88230831 | Y46: 1000000000 | Z46: 436.517449 | AB46: 62.56787497 | AC46: -88.73169617 | AE46: 55.84529079 | AF46: -0.3852442517 | AH46: 0 | AI46: 0
A47: 22.909 | B47: 0.022909 | C47: 1.000025472 | D47: 0.007137438132 | E47: 1 | F47: 2.87882984e-05 | G47: 1 | H47: 0 | I47: 62.65656423 | J47: 1.554835629 | K47: 1.000013762 | L47: 0.005246331368 | M47: 1.000000013 | N47: 0.0001634331981 | O47: 1.000000009 | P47: 0.0001331228487 | Q47: 6.307855694 | R47: 0.0001475000406 | S47: 1.000000011 | T47: 0.0002638990542 | U47: 67.63623084 | V47: -89.21753058 | W47: 90.78246942 | Y47: 1000000000 | Z47: 524.822281 | AB47: 61.76801229 | AC47: -88.79429089 | AE47: 55.84525355 | AF47: -0.422415936 | AH47: 0 | AI47: 0
A48: 25.119 | B48: 0.025119 | C48: 1.000030624 | D48: 0.007825950182 | E48: 1 | F48: 3.15654663e-05 | G48: 1 | H48: 0 | I48: 68.69948564 | J48: 1.556239663 | K48: 1.000016545 | L48: 0.005752427129 | M48: 1.000000016 | N48: 0.0001791993756 | O48: 1.000000011 | P48: 0.0001459650283 | Q48: 6.307855708 | R48: 0.0001617291682 | S48: 1.000000014 | T48: 0.0002893570362 | U48: 66.83647205 | V48: -89.31070978 | W48: 90.68929022 | Y48: 1000000000 | Z48: 630.964161 | AB48: 60.96829826 | AC48: -88.84664227 | AE48: 55.84520879 | AF48: -0.4631642856 | AH48: 0 | AI48: 0
A49: 27.542 | B49: 0.027542 | C49: 1.000036816 | D49: 0.008580812535 | E49: 1.000000001 | F49: 3.461029789e-05 | G49: 1 | H49: 0 | I49: 75.32495382 | J49: 1.557520124 | K49: 1.000019891 | L49: 0.00630729705 | M49: 1.000000019 | N49: 0.0001964850986 | O49: 1.000000013 | P49: 0.0001600449382 | Q49: 6.307855724 | R49: 0.0001773297003 | S49: 1.000000017 | T49: 0.0003172686609 | U49: 66.03673949 | V49: -89.39803579 | W49: 90.60196421 | Y49: 1000000000 | Z49: 758.561764 | AB49: 60.16861952 | AC49: -88.88920597 | AE49: 55.84515497 | AF49: -0.5078394749 | AH49: 0 | AI49: 0
A50: 30.2 | B50: 0.0302 | C50: 1.000044265 | D50: 0.009408875599 | E50: 1.000000001 | F50: 3.795043919e-05 | G50: 1 | H50: 0 | I50: 82.59312581 | J50: 1.558688486 | K50: 1.000023916 | L50: 0.006915977774 | M50: 1.000000023 | N50: 0.0002154473154 | O50: 1.000000015 | P50: 0.0001754904192 | Q50: 6.307855744 | R50: 0.0001944432844 | S50: 1.00000002 | T50: 0.000347887356 | U50: 65.23660911 | V50: -89.48029266 | W50: 90.51970734 | Y50: 1000000000 | Z50: 912.04 | AB50: 59.36855387 | AC50: -88.9223598 | AE50: 55.84509025 | AF50: -0.5568469397 | AH50: 0 | AI50: 0
A51: 33.113 | B51: 0.033113 | C51: 1.000053216 | D51: 0.01031636552 | E51: 1.000000001 | F51: 4.161102294e-05 | G51: 1 | H51: 0 | I51: 90.55869062 | J51: 1.55975354 | K51: 1.000028752 | L51: 0.007583047474 | M51: 1.000000028 | N51: 0.0002362287064 | O51: 1.000000019 | P51: 0.00019241769 | Q51: 6.307855768 | R51: 0.0002131986907 | S51: 1.000000024 | T51: 0.0003814435106 | U51: 64.43684866 | V51: -89.55809914 | W51: 90.44190086 | Y51: 1000000000 | Z51: 1096.470769 | AB51: 58.5688712 | AC51: -88.94635331 | AE51: 55.84501247 | AF51: -0.6105551721 | AH51: 0 | AI51: 0
A52: 36.308 | B52: 0.036308 | C52: 1.000063981 | D52: 0.0113116876 | E52: 1.000000001 | F52: 4.562597834e-05 | G52: 1 | H52: 0 | I52: 99.29547942 | J52: 1.560725205 | K52: 1.000034568 | L52: 0.008314686684 | M52: 1.000000034 | N52: 0.0002590218899 | O52: 1.000000022 | P52: 0.0002109836461 | Q52: 6.307855797 | R52: 0.0002337697593 | S52: 1.000000029 | T52: 0.0004182481497 | U52: 63.63681873 | V52: -89.6321789 | W52: 90.3678211 | Y52: 1000000000 | Z52: 1318.270864 | AB52: 57.76893482 | AC52: -88.96141171 | AE52: 55.84491894 | AF52: -0.6694616369 | AH52: 0 | AI52: 0
A53: 39.811 | B53: 0.039811 | C53: 1.000076921 | D53: 0.01240293351 | E53: 1.000000001 | F53: 5.002797795e-05 | G53: 1 | H53: 0 | I53: 108.8745898 | J53: 1.561611318 | K53: 1.00004156 | L53: 0.009116846114 | M53: 1.00000004 | N53: 0.0002840123502 | O53: 1.000000027 | P53: 0.0002313393717 | Q53: 6.307855831 | R53: 0.0002563238915 | S53: 1.000000035 | T53: 0.0004586007792 | U53: 62.83682586 | V53: -89.70313052 | W53: 90.29686948 | Y53: 1000000000 | Z53: 1584.915721 | AB53: 56.9690544 | AC53: -88.96765377 | AE53: 55.8448065 | AF53: -0.7340452419 | AH53: 0 | AI53: 0
A54: 43.652 | B54: 0.043652 | C54: 1.000092479 | D54: 0.01359943831 | E54: 1.000000002 | F54: 5.485472089e-05 | G54: 1 | H54: 0 | I54: 119.3780579 | J54: 1.56241948 | K54: 1.000049966 | L54: 0.009996391359 | M54: 1.000000048 | N54: 0.0003114141078 | O54: 1.000000032 | P54: 0.0002536591951 | Q54: 6.307855872 | R54: 0.0002810542429 | S54: 1.000000042 | T54: 0.0005028469823 | U54: 62.03680405 | V54: -89.77156192 | W54: 90.22843808 | Y54: 1000000000 | Z54: 1905.497104 | AB54: 56.16916778 | AC54: -88.96513382 | AE54: 55.84467131 | AF54: -0.8048584856 | AH54: 0 | AI54: 0
A55: 47.863 | B55: 0.047863 | C55: 1.000111182 | D55: 0.01491115644 | E55: 1.000000002 | F55: 6.014641953e-05 | G55: 1 | H55: 0 | I55: 130.8933901 | J55: 1.563156447 | K55: 1.000060071 | L55: 0.01096064457 | M55: 1.000000058 | N55: 0.0003414554509 | O55: 1.000000039 | P55: 0.0002781290664 | Q55: 6.307855922 | R55: 0.0003081668459 | S55: 1.00000005 | T55: 0.0005513553816 | U55: 61.23686509 | V55: -89.8380441 | W55: 90.1619559 | Y55: 1000000000 | Z55: 2290.866769 | AB55: 55.36939133 | AC55: -88.95383253 | AE55: 55.84450881 | AF55: -0.8824905329 | AH55: 0 | AI55: 0
A56: 52.481 | B56: 0.052481 | C56: 1.00013367 | D56: 0.0163495951 | E56: 1.000000002 | F56: 6.594956945e-05 | G56: 1 | H56: 0 | I56: 143.5217658 | J56: 1.563828686 | K56: 1.000072221 | L56: 0.01201807091 | M56: 1.00000007 | N56: 0.000374400338 | O56: 1.000000047 | P56: 0.00030496399 | Q56: 6.307855982 | R56: 0.0003378999255 | S56: 1.00000006 | T56: 0.0006045521966 | U56: 60.43677405 | V56: -89.90316006 | W56: 90.09683994 | Y56: 1000000000 | Z56: 2754.255361 | AB56: 54.56949569 | AC56: -88.93365052 | AE56: 55.84431342 | AF56: -0.9676224543 | AH56: 0 | AI56: 0
A57: 57.544 | B57: 0.057544 | C57: 1.000160702 | D57: 0.0179265667 | E57: 1.000000003 | F57: 7.231192285e-05 | G57: 1 | H57: 0 | I57: 157.3670998 | J57: 1.564441716 | K57: 1.000086828 | L57: 0.01317736207 | M57: 1.000000084 | N57: 0.0004105198614 | O57: 1.000000056 | P57: 0.0003343847818 | Q57: 6.307856054 | R57: 0.0003704981454 | S57: 1.000000073 | T57: 0.0006628751663 | U57: 59.63674246 | V57: -89.96744406 | W57: 90.03255594 | Y57: 1000000000 | Z57: 3311.311936 | AB57: 53.76969899 | AC57: -88.90442152 | AE57: 55.84407855 | AF57: -1.060953396 | AH57: 0 | AI57: 0
A58: 63.096 | B58: 0.063096 | C58: 1.000193205 | D58: 0.01965574424 | E58: 1.000000003 | F58: 7.928877177e-05 | G58: 1 | H58: 0 | I58: 172.5497151 | J58: 1.565000863 | K58: 1.00010439 | L58: 0.01444858028 | M58: 1.000000101 | N58: 0.0004501279174 | O58: 1.000000067 | P58: 0.0003666471228 | Q58: 6.30785614 | R58: 0.0004062448 | S58: 1.000000087 | T58: 0.0007268311466 | U58: 58.83660632 | V58: -90.03145367 | W58: 89.96854633 | Y58: 1000000000 | Z58: 3981.105216 | AB58: 52.96984526 | AC58: -88.86589226 | AE58: 55.84379616 | AF58: -1.163292635 | AH58: 0 | AI58: 0
A59: 69.183 | B59: 0.069183 | C59: 1.000232277 | D59: 0.02155141275 | E59: 1.000000004 | F59: 8.69379215e-05 | G59: 1 | H59: 0 | I59: 189.195404 | J59: 1.565510762 | K59: 1.000125501 | L59: 0.01584224138 | M59: 1.000000122 | N59: 0.0004935526703 | O59: 1.000000081 | P59: 0.000402018316 | Q59: 6.307856244 | R59: 0.0004454360608 | S59: 1.000000105 | T59: 0.0007969500321 | U59: 58.03652331 | V59: -90.09571778 | W59: 89.90428222 | Y59: 1000000000 | Z59: 4786.287489 | AB59: 52.17010172 | AC59: -88.81774444 | AE59: 55.84345672 | AF59: -1.275485692 | AH59: 0 | AI59: 0
A60: 75.858 | B60: 0.075858 | C60: 1.000279254 | D60: 0.02363002296 | E60: 1.000000005 | F60: 9.532597381e-05 | G60: 1 | H60: 0 | I60: 207.4491021 | J60: 1.565975849 | K60: 1.000150885 | L60: 0.01737045823 | M60: 1.000000146 | N60: 0.0005411722222 | O60: 1.000000097 | P60: 0.0004408063409 | Q60: 6.30785637 | R60: 0.0004884131687 | S60: 1.000000126 | T60: 0.0008738423536 | U60: 57.23631586 | V60: -90.16079395 | W60: 89.83920605 | Y60: 1000000000 | Z60: 5754.436164 | AB60: 51.37030242 | AC60: -88.75955999 | AE60: 55.8430486 | AF60: -1.39850629 | AH60: 0 | AI60: 0
A61: 83.176 | B61: 0.083176 | C61: 1.000335722 | D61: 0.02590862951 | E61: 1.000000005 | F61: 0.0001045220437 | G61: 1 | H61: 0 | I61: 227.4612143 | J61: 1.566399959 | K61: 1.000181399 | L61: 0.01904579408 | M61: 1.000000176 | N61: 0.0005933789431 | O61: 1.000000117 | P61: 0.0004833307987 | Q61: 6.30785652 | R61: 0.0005355302418 | S61: 1.000000152 | T61: 0.0009581416808 | U61: 56.43617414 | V61: -90.22721599 | W61: 89.77278401 | Y61: 1000000000 | Z61: 6918.246976 | AB61: 50.57065127 | AC61: -88.69086126 | AE61: 55.84255806 | AF61: -1.533363928 | AH61: 0 | AI61: 0
A62: 91.201 | B62: 0.091201 | C62: 1.000403616 | D62: 0.02840706455 | E62: 1.000000007 | F62: 0.000114606556 | G62: 1 | H62: 0 | I62: 249.4067576 | J62: 1.566786802 | K62: 1.000218087 | L62: 0.0208828627 | M62: 1.000000212 | N62: 0.0006506294088 | O62: 1.00000014 | P62: 0.000529963589 | Q62: 6.307856701 | R62: 0.0005871993442 | S62: 1.000000182 | T62: 0.001050585258 | U62: 55.63588537 | V62: -90.29556156 | W62: 89.70443844 | Y62: 1000000000 | Z62: 8317.622401 | AB62: 49.7709523 | AC62: -88.61104965 | AE62: 55.84196831 | AF62: -1.681232538 | AH62: 0 | AI62: 0
A63: 100 | B63: 0.1 | C63: 1.000485235 | D63: 0.03114606134 | E63: 1.000000008 | F63: 0.0001256637053 | G63: 1 | H63: 0 | I63: 273.4689536 | J63: 1.567139596 | K63: 1.000262192 | L63: 0.02289695154 | M63: 1.000000254 | N63: 0.0007134015967 | O63: 1.000000169 | P63: 0.0005810940439 | Q63: 6.307856918 | R63: 0.0006438518556 | S63: 1.000000219 | T63: 0.00115194489 | U63: 54.83556278 | V63: -90.3663963 | W63: 89.6336037 | Y63: 1000000000 | Z63: 10000 | AB63: 48.97133869 | AC63: -88.5194611 | AE63: 55.84125938 | AF63: -1.843339446 | AH63: 0 | AI63: 0
A64: 109.65 | B64: 0.10965 | C64: 1.000583375 | D64: 0.03414942277 | E64: 1.000000009 | F64: 0.0001377902528 | G64: 1 | H64: 0 | I64: 299.8583703 | J64: 1.567461413 | K64: 1.000315229 | L64: 0.02510561987 | M64: 1.000000306 | N64: 0.000782244824 | O64: 1.000000203 | P64: 0.0006371696046 | Q64: 6.307857179 | R64: 0.0007059835403 | S64: 1.000000263 | T64: 0.001263107572 | U64: 54.03500751 | V64: -90.44033336 | W64: 89.55966664 | Y64: 1000000000 | Z64: 12023.1225 | AB64: 48.17163583 | AC64: -88.41529687 | AE64: 55.84040703 | AF64: -2.021093733 | AH64: 0 | AI64: 0
A65: 120.23 | B65: 0.12023 | C65: 1.000701343 | D65: 0.03744151721 | E65: 1.000000011 | F65: 0.0001510854726 | G65: 1 | H65: 0 | I65: 328.7910454 | J65: 1.567754877 | K65: 1.000378984 | L65: 0.027526862 | M65: 1.000000368 | N65: 0.0008577226749 | O65: 1.000000244 | P65: 0.0006986493339 | Q65: 6.307857493 | R65: 0.0007741030392 | S65: 1.000000317 | T65: 0.001384983342 | U65: 53.23445993 | V65: -90.51796996 | W65: 89.48203004 | Y65: 1000000000 | Z65: 14455.2529 | AB65: 47.37211277 | AC65: -88.29770872 | AE65: 55.83938258 | AF65: -2.215938058 | AH65: 0 | AI65: 0
A66: 131.83 | B66: 0.13183 | C66: 1.000843146 | D66: 0.04105006141 | E66: 1.000000014 | F66: 0.0001656624621 | G66: 1 | H66: 0 | I66: 360.5130981 | J66: 1.568022499 | K66: 1.000455624 | L66: 0.03018116 | M66: 1.000000442 | N66: 0.0009404772072 | O66: 1.000000293 | P66: 0.0007660562144 | Q66: 6.307857871 | R66: 0.0008487898163 | S66: 1.000000381 | T66: 0.00151860895 | U66: 52.43387199 | V66: -90.59995744 | W66: 89.40004256 | Y66: 1000000000 | Z66: 17379.1489 | AB66: 46.5727562 | AC66: -88.16570376 | AE66: 55.83815132 | AF66: -2.429513394 | AH66: 0 | AI66: 0
A67: 144.54 | B67: 0.14454 | C67: 1.001013476 | D67: 0.0450026748 | E67: 1.000000016 | F67: 0.0001816343187 | G67: 1 | H67: 0 | I67: 395.2706477 | J67: 1.568266412 | K67: 1.000547689 | L67: 0.03308895717 | M67: 1.000000532 | N67: 0.001031150477 | O67: 1.000000353 | P67: 0.0008399132281 | Q67: 6.307858325 | R67: 0.0009306233346 | S67: 1.000000458 | T67: 0.001665021147 | U67: 51.63372129 | V67: -90.68692208 | W67: 89.31307792 | Y67: 1000000000 | Z67: 20891.8116 | AB67: 45.77408434 | AC67: -88.01826964 | AE67: 55.83667258 | AF67: -2.663455141 | AH67: 0 | AI67: 0
A68: 158.49 | B68: 0.15849 | C68: 1.001218418 | D68: 0.04933928527 | E68: 1.00000002 | F68: 0.000199164405 | G68: 1 | H68: 0 | I68: 433.4192004 | J68: 1.56848909 | K68: 1.000658473 | L68: 0.03627979582 | M68: 1.000000639 | N68: 0.001130669901 | O68: 1.000000424 | P68: 0.0009209757934 | Q68: 6.30785887 | R68: 0.001020440597 | S68: 1.00000055 | T68: 0.001825717461 | U68: 50.83263137 | V68: -90.77973493 | W68: 89.22026507 | Y68: 1000000000 | Z68: 25119.0801 | AB68: 44.97477346 | AC68: -87.85390858 | AE68: 55.83489368 | AF68: -2.920127439 | AH68: 0 | AI68: 0
A69: 173.78 | B69: 0.17378 | C69: 1.001464667 | D69: 0.05409032057 | E69: 1.000000024 | F69: 0.0002183783848 | G69: 1 | H69: 0 | I69: 475.2322223 | J69: 1.568692091 | K69: 1.000791598 | L69: 0.03977628681 | M69: 1.000000768 | N69: 0.00123974887 | O69: 1.00000051 | P69: 0.001009825 | Q69: 6.307859527 | R69: 0.001118885448 | S69: 1.000000662 | T69: 0.002001849838 | U69: 50.03169395 | V69: -90.87903645 | W69: 89.12096355 | Y69: 1000000000 | Z69: 30199.4884 | AB69: 44.17597315 | AC69: -87.67145528 | AE69: 55.83275672 | AF69: -3.201332472 | AH69: 0 | AI69: 0
A70: 190.55 | B70: 0.19055 | C70: 1.001760731 | D70: 0.05929841669 | E70: 1.000000029 | F70: 0.0002394521872 | G70: 1 | H70: 0 | I70: 521.0925666 | J70: 1.568877281 | K70: 1.000951675 | L70: 0.04361009989 | M70: 1.000000924 | N70: 0.001359386136 | O70: 1.000000613 | P70: 0.001107274373 | Q70: 6.307860316 | R70: 0.001226859273 | S70: 1.000000795 | T70: 0.002195030999 | U70: 49.23033308 | V70: -90.98570642 | W70: 89.01429358 | Y70: 1000000000 | Z70: 36309.3025 | AB70: 43.37718102 | AC70: -87.46925928 | AE70: 55.83018817 | AF70: -3.509595425 | AH70: 0 | AI70: 0
A71: 208.93 | B71: 0.20893 | C71: 1.002116408 | D71: 0.06500280768 | E71: 1.000000034 | F71: 0.0002625491749 | G71: 1 | H71: 0 | I71: 571.3557398 | J71: 1.569046103 | K71: 1.001144012 | L71: 0.04781050028 | M71: 1.000001111 | N71: 0.001490509105 | O71: 1.000000737 | P71: 0.001214079326 | Q71: 6.307861264 | R71: 0.001345199068 | S71: 1.000000956 | T71: 0.002406758475 | U71: 48.42908102 | V71: -91.10053294 | W71: 88.89946706 | Y71: 1000000000 | Z71: 43651.7449 | AB71: 42.57901394 | AC71: -87.24577965 | AE71: 55.82710342 | AF71: -3.847240684 | AH71: 0 | AI71: 0
A72: 229.09 | B72: 0.22909 | C72: 1.002544002 | D72: 0.07125475544 | E72: 1.000000041 | F72: 0.0002878829761 | G72: 1 | H72: 0 | I72: 626.4866352 | J72: 1.569200123 | K72: 1.001375279 | L72: 0.0524157397 | M72: 1.000001336 | N72: 0.00163433054 | O72: 1.000000886 | P72: 0.001331227709 | Q72: 6.307862404 | R72: 0.001474999366 | S72: 1.00000115 | T72: 0.002638990571 | U72: 47.62727369 | V72: -91.22452674 | W72: 88.77547326 | Y72: 1000000000 | Z72: 52482.2281 | AB72: 41.7809139 | AC72: -86.99898393 | AE72: 55.82339641 | AF72: -4.217305304 | AH72: 0 | AI72: 0
A73: 251.19 | B73: 0.25119 | C73: 1.003057725 | D73: 0.0781019063 | E73: 1.00000005 | F73: 0.0003156546526 | G73: 1 | H73: 0 | I73: 686.9227997 | J73: 1.569340559 | K73: 1.001653191 | L73: 0.05746157932 | M73: 1.000001606 | N73: 0.001791991857 | O73: 1.000001065 | P73: 0.001459649256 | Q73: 6.307863775 | R73: 0.001617290311 | S73: 1.000001382 | T73: 0.002893570401 | U73: 46.82530724 | V73: -91.35860379 | W73: 88.64139621 | Y73: 1000000000 | Z73: 63096.4161 | AB73: 40.98339941 | AC73: -86.72695832 | AE73: 55.81894478 | AF73: -4.6226133 | AH73: 0 | AI73: 0
A74: 275.42 | B74: 0.27542 | C74: 1.003674945 | D74: 0.08560053886 | E74: 1.00000006 | F74: 0.0003461029652 | G74: 1 | H74: 0 | I74: 753.1838201 | J74: 1.569468629 | K74: 1.001987178 | L74: 0.06299036371 | M74: 1.00000193 | N74: 0.001964848482 | O74: 1.000001281 | P74: 0.001600448029 | Q74: 6.307865423 | R74: 0.001773295196 | S74: 1.000001662 | T74: 0.003172686659 | U74: 46.02299325 | V74: -91.50382851 | W74: 88.49617149 | Y74: 1000000000 | Z74: 75856.1764 | AB74: 40.18643128 | AC74: -86.42742417 | AE74: 55.81359932 | AF74: -5.066500923 | AH74: 0 | AI74: 0
A75: 302 | B75: 0.302 | C75: 1.004416854 | D75: 0.09381532736 | E75: 1.000000072 | F75: 0.0003795043739 | G75: 1 | H75: 0 | I75: 825.8713236 | J75: 1.569585484 | K75: 1.002388761 | L75: 0.06905092507 | M75: 1.000002321 | N75: 0.002154469854 | O75: 1.00000154 | P75: 0.001754902409 | Q75: 6.307867405 | R75: 0.001944430462 | S75: 1.000001998 | T75: 0.003478873626 | U75: 45.21982079 | V75: -91.66140163 | W75: 88.33859837 | Y75: 1000000000 | Z75: 91204 | AB75: 39.38968028 | AC75: -86.09773937 | AE75: 55.80717833 | AF75: -5.552803095 | AH75: 0 | AI75: 0
A76: 331.13 | B76: 0.33113 | C76: 1.005307662 | D76: 0.1028036147 | E76: 1.000000087 | F76: 0.0004161102057 | G76: 1 | H76: 0 | I76: 905.5322439 | J76: 1.569692004 | K76: 1.002871119 | L76: 0.07568707103 | M76: 1.00000279 | N76: 0.002362282714 | O76: 1.000001851 | P76: 0.001924174549 | Q76: 6.307869787 | R76: 0.002131983767 | S76: 1.000002402 | T76: 0.003814435193 | U76: 44.4164608 | V76: -91.83235566 | W76: 88.16764434 | Y76: 1000000000 | Z76: 109647.0769 | AB76: 38.59402427 | AC76: -85.73552614 | AE76: 55.79947493 | AF76: -6.084922927 | AH76: 0 | AI76: 0
A77: 363.08 | B77: 0.36308 | C77: =SQRT(1+(A77/pole1)^2) -> 1.006377921 | D77: =ATAN(A77/pole1) -> 0.1126428507 | E77: =SQRT(1+(A77/Zero1)^2) -> 1.000000104 | F77: =ATAN(A77/Zero1) -> 0.0004562597521 | G77: =IF(VIN_nom>Vout, 1, SQRT(1+(A77/z_RHP)^2)) -> 1 | H77: =IF(VIN_nom>Vout, 0, -ATAN(A77/z_RHP)) -> 0 | I77: =SQRT(1+(A77/Pole2)^2) -> 992.9049418 | J77: =ATAN(A77/Pole2) -> 1.569789181 | K77: =SQRT(1+(A77/Zero2)^2) -> 1.003450906 | L77: =ATAN(A77/Zero2) -> 0.08295795151 | M77: =SQRT(1+(A77/pole4)^2) -> 1.000003355 | N77: =ATAN(A77/pole4) -> 0.002590213164 | O77: =IF(VOUT_setting=1,1,SQRT(1+(A77*zterm1)^2)) -> 1.000002226 | P77: =IF(VOUT_setting=1,0,ATAN(((A77*zterm1)))) -> 0.002109833361 | Q77: 6.307872652 | R77: =IF(VOUT_setting=1,0,ATAN(A77*$Q$4/(1+Afbr-$Q$5*(A77)^2))) -> 0.002337693454 | S77: =SQRT((1-(Z77/pterm2))^2+(A77/pterm1)^2) -> 1.000002888 | T77: =IF((ATAN((A77/pterm1)/(1-A77^2/pterm2))>0),ATAN((A77/pterm1)/(1-A77^2/pterm2)),PI()+ATAN((A77/pterm1)/(1-A77^2/pterm2))) -> 0.004182481613 | U77: =20*LOG10(((E77*K77*G77*O77)/(C77*I77*S77*M77*Q77))*Adc) -> 43.61215402 | V77: =((F77+L77+H77+P77)-(D77+J77+T77+N77+R77))*radconv -> -92.01807482 | W77: =IF(V77>0,V77,V77+180) -> 87.98192518 | Y77: =IF(U77<0,A77,1000000000) -> 1000000000 | Z77: =A77^2 -> 131827.0864 | AB77: =20*LOG10((K77/(I77*M77))*AEA) -> 37.7989644 | AC77: =(L77-(J77+N77))*radconv -> -85.33756267 | AE77: =20*LOG10((E77*G77/(C77*S77))*Acs*Am) -> 55.79022871 | AF77: =(F77+H77-(D77+T77))*radconv -> -6.66745673 | AH77: =SUM((U78<0)*(U77>0))*A77 -> 0 | AI77: =IF(AH77>0,W75,0) -> 0
A78: 398.11 | B78: =A78/1000 -> 0.39811 | C78: 1.007663066 | D78: 0.123405413 | E78: 1.000000125 | F78: 0.0005002797382 | G78: 1 | H78: 0 | I78: 1088.700431 | J78: 1.5698778 | K78: 1.004147474 | L78: 0.09091963056 | M78: 1.000004033 | N78: 0.002840115942 | O78: 1.000002676 | P78: 0.002313389632 | Q78: 6.307876096 | R78: 0.002563233459 | S78: 1.000003472 | T78: 0.004586007944 | U78: 42.80707056 | V78: -92.21980728 | W78: 87.78019272 | Y78: 1000000000 | Z78: 158491.5721 | AB78: 37.00497147 | AC78: -84.90078796 | AE78: 55.77913901 | AF78: -7.304704327 | AH78: 0 | AI78: 0
A79: 436.52 | B79: 0.43652 | C79: 1.009206001 | D79: 0.1351734159 | E79: 1.00000015 | F79: 0.0005485471544 | G79: 1 | H79: 0 | I79: 1193.739114 | J79: 1.569958623 | K79: 1.004984303 | L79: 0.09963622016 | M79: 1.000004849 | N79: 0.003114131112 | O79: 1.000003217 | P79: 0.002536586565 | Q79: =IF(VOUT_setting=1,1,SQRT((1+Afbr-$Q$5*(A79)^2)^2+(A79*$Q$4)^2)) -> 6.307880236 | R79: 0.002810535236 | S79: 1.000004174 | T79: 0.005028470024 | U79: 42.00098191 | V79: -92.43893788 | W79: 87.56106212 | Y79: 1000000000 | Z79: 190549.7104 | AB79: 36.21217937 | AC79: -84.42169486 | AE79: 55.76584346 | AF79: -8.001546916 | AH79: 0 | AI79: 0
A80: 478.63 | B80: 0.47863 | C80: 1.011057642 | D80: 0.1480317607 | E80: 1.000000181 | F80: 0.0006014641235 | G80: 1 | H80: 0 | I80: 1308.896083 | J80: 1.570032324 | K80: 1.005989332 | L80: 0.1091749982 | M80: 1.00000583 | N80: 0.003414541371 | O80: 1.000003868 | P80: 0.002781283564 | Q80: 6.307885213 | R80: 0.003081658978 | S80: 1.000005018 | T80: 0.005513554081 | U80: 41.19381033 | V80: -92.67684555 | W80: 87.32315445 | Y80: 1000000000 | Z80: 229086.6769 | AB80: 35.4209379 | AC80: -83.89659815 | AE80: 55.74991456 | AF80: -8.763037157 | AH80: 0 | AI80: 0
A81: 524.81 | B81: 0.52481 | C81: 1.01327967 | D81: 0.1620762697 | E81: 1.000000217 | F81: 0.0006594955998 | G81: 1 | H81: 0 | I81: 1435.183168 | J81: 1.570099552 | K81: 1.007196502 | L81: 0.1196127701 | M81: 1.000007009 | N81: 0.003743986061 | O81: 1.00000465 | P81: 0.003049630541 | Q81: 6.307891198 | R81: 0.003378986757 | S81: 1.000006033 | T81: 0.006045522315 | U81: 40.38509527 | V81: -92.93503906 | W81: 87.06496094 | Y81: 1000000000 | Z81: 275425.5361 | AB81: 34.63130105 | AC81: -83.32128551 | AE81: 55.73083779 | AF81: -9.594882823 | AH81: 0 | AI81: 0
A82: 575.44 | B82: 0.57544 | C82: 1.01594442 | D82: 0.1774001674 | E82: 1.000000261 | F82: 0.0007231191038 | G82: 1 | H82: 0 | I82: 1573.639543 | J82: 1.570160857 | K82: 1.008645774 | L82: 0.1310262491 | M82: 1.000008426 | N82: 0.004105175784 | O82: 1.000005591 | P82: 0.00334383548 | Q82: 6.307898392 | R82: 0.003704964978 | S82: 1.000007253 | T82: 0.006628752123 | U82: 39.57478933 | V82: -93.21488847 | W82: 86.78511153 | Y82: 1000000000 | Z82: 331131.1936 | AB82: 33.84381947 | AC82: -82.69154854 | AE82: 55.70801517 | AF82: -10.50264874 | AH82: 0 | AI82: 0
A83: 630.96 | B83: 0.63096 | C83: 1.019139236 | D83: 0.1941076028 | E83: 1.000000314 | F83: 0.0007928875532 | G83: 1 | H83: 0 | I83: 1725.468463 | J83: 1.570216774 | K83: 1.010385596 | L83: 0.1435026257 | M83: 1.000010131 | N83: 0.004501249078 | O83: 1.000006721 | P83: 0.003666454963 | Q83: 6.307907042 | R83: 0.00406242628 | S83: 1.00000872 | T83: 0.007268312073 | U83: 38.76242286 | V83: -93.51785035 | W83: 86.48214965 | Y83: 1000000000 | Z83: 398110.5216 | AB83: 33.05873882 | AC83: -82.00260194 | AE83: 55.68073144 | AF83: -11.49256092 | AH83: 0 | AI83: 0
A84: 691.83 | B84: 0.69183 | C84: 1.022966629 | D84: 0.212299411 | E84: 1.000000378 | F84: 0.0008693789982 | G84: 1 | H84: 0 | I84: 1891.927877 | J84: 1.570267765 | K84: 1.012473141 | L84: 0.1571296069 | M84: 1.00001218 | N84: 0.004935487029 | O84: 1.000008081 | P84: 0.004020161719 | Q84: 6.307917441 | R84: 0.004454331976 | S84: 1.000010484 | T84: 0.00796950112 | U84: 37.94780517 | V84: -93.84517843 | W84: 86.15482157 | Y84: 1000000000 | Z84: 478628.7489 | AB84: 32.2766973 | AC84: -81.24963502 | AE84: 55.64815778 | AF84: -12.57066729 | AH84: 0 | AI84: 0
A85: 758.58 | B85: 0.75858 | C85: 1.0275498 | D85: 0.23208545 | E85: 1.000000454 | F85: 0.0009532594522 | G85: 1 | H85: 0 | I85: 2074.467159 | J85: 1.570314275 | K85: 1.014977513 | L85: 0.1720054273 | M85: 1.000014643 | N85: 0.005411669921 | O85: 1.000009715 | P85: 0.004408035143 | Q85: 6.307929945 | R85: 0.004884093943 | S85: 1.000012605 | T85: 0.008738424589 | U85: 37.13035319 | V85: -94.19811144 | W85: 85.80188856 | Y85: 1000000000 | Z85: 575443.6164 | AB85: 31.49809434 | AC85: -80.42726139 | AE85: 55.60931177 | AF85: -13.74357389 | AH85: 0 | AI85: 0
A86: 831.76 | B86: 0.83176 | C86: 1.033032313 | D86: 0.2535663572 | E86: 1.000000546 | F86: 0.00104522006 | G86: 1 | H86: 0 | I86: 2274.59038 | J86: 1.570356687 | K86: 1.017979863 | L86: 0.1882261206 | M86: 1.000017605 | N86: 0.005933720486 | O86: 1.00001168 | P86: 0.004833270727 | Q86: 6.307944975 | R86: 0.005355252662 | S86: 1.000015154 | T86: 0.009581418196 | U86: 36.30980459 | V86: -94.57750304 | W86: 85.42249696 | Y86: 1000000000 | Z86: 691824.6976 | AB86: 30.72379127 | AC86: -79.53022544 | AE86: 55.56306988 | AF86: -15.01737024 | AH86: 0 | AI86: 0
A87: 912.01 | B87: 0.91201 | C87: 1.039586246 | D87: 0.2768501353 | E87: 1.000000657 | F87: 0.001146065063 | G87: 1 | H87: 0 | I87: 2494.047729 | J87: 1.570395372 | K87: 1.021578229 | L87: 0.2058991257 | M87: 1.000021166 | N87: 0.0065062032 | O87: 1.000014043 | P87: 0.005299586771 | Q87: 6.307963048 | R87: 0.005871927851 | S87: 1.00001822 | T87: 0.01050585441 | U87: 35.48542884 | V87: -94.98406764 | W87: 85.01593236 | Y87: 1000000000 | Z87: 831762.2401 | AB87: 29.95437793 | AC87: -78.55265416 | AE87: 55.50811184 | AF87: -16.39862075 | AH87: 0 | AI87: 0
A88: 1000 | B88: 1 | C88: 1.047411326 | D88: 0.3020295144 | E88: 1.00000079 | F88: 0.001256636399 | G88: 1 | H88: 0 | I88: 2734.671435 | J88: 1.570430652 | K88: 1.0258876 | L88: 0.2251274855 | M88: 1.000025447 | N88: 0.007133896154 | O88: 1.000016883 | P88: 0.005810875688 | Q88: 6.307984776 | R88: 0.00643843209 | S88: 1.000021905 | T88: 0.01151945131 | U88: 34.65677591 | V88: -95.41792464 | W88: 84.58207536 | Y88: 1000000000 | Z88: 1000000 | AB88: 29.1908959 | AC88: -77.48893584 | AE88: 55.44294617 | AF88: -17.89303247 | AH88: 0 | AI88: 0
A89: 1096.5 | B89: 1.0965 | C89: 1.056744545 | D89: 0.3291962249 | E89: 1.000000949 | F89: 0.001377901664 | G89: 1 | H89: 0 | I89: 2998.567195 | J89: 1.570462834 | K89: 1.03104593 | L89: 0.2460221159 | M89: 1.000030595 | N89: 0.007822290287 | O89: 1.000020299 | P89: 0.006371610683 | Q89: 6.308010904 | R89: 0.007059721412 | S89: 1.000026337 | T89: 0.0126310789 | U89: 33.8230248 | V89: -95.87878743 | W89: 84.12121257 | Y89: 1000000000 | Z89: 1202312.25 | AB89: 28.43424319 | AC89: -76.33304768 | AE89: 55.36585409 | AF89: -19.5063139 | AH89: 0 | AI89: 0
A90: 1202.3 | B90: 1.2023 | C90: 1.067856657 | D90: 0.3584113718 | E90: 1.000001141 | F90: 0.001510853588 | G90: 1 | H90: 0 | I90: 3287.895398 | J90: 1.570492181 | K90: 1.037213144 | L90: 0.2686805752 | M90: 1.000036784 | N90: 0.008577018523 | O90: 1.000024405 | P90: 0.006986380806 | Q90: 6.308042314 | R90: 0.007740880119 | S90: 1.000031665 | T90: 0.01384983761 | U90: 32.98377581 | V90: -96.36539807 | W90: 83.63460193 | Y90: 1000000000 | Z90: 1445525.29 | AB90: 27.68590529 | AC90: -75.07973777 | AE90: 55.27495058 | AF90: -21.24243067 | AH90: 0 | AI90: =IF(AH90>0,W90,0) -> 0
A91: 1318.3 | B91: 1.3183 | C91: 1.081064402 | D91: 0.3897231716 | E91: 1.000001372 | F91: 0.001656623121 | G91: 1 | H91: 0 | I91: 3605.11725 | J91: 1.570518943 | K91: 1.044579143 | L91: 0.2932020012 | M91: 1.000044224 | N91: 0.009404497576 | O91: 1.000029342 | P91: 0.007660413797 | Q91: 6.308080076 | R91: 0.008487700064 | S91: 1.00003807 | T91: 0.01518609502 | U91: 32.13831503 | V91: -96.87578258 | W91: 83.12421742 | Y91: 1000000000 | Z91: 1737914.89 | AB91: 26.94727941 | AC91: -73.72370799 | AE91: 55.16812481 | AF91: -23.10467457 | AH91: 0 | AI91: 0
A92: 1445.4 | B92: 1.4454 | C92: 1.096721399 | D92: 0.4231289844 | E92: 1.00000165 | F92: 0.001816341209 | G92: 1 | H92: 0 | I92: 3952.693954 | J92: 1.570543335 | K92: 1.053360278 | L92: 0.3196584469 | M92: 1.000053162 | N92: 0.01031114299 | O92: 1.000035272 | P92: 0.008398936757 | Q92: 6.30812544 | R92: 0.00930597225 | S92: 1.000045766 | T92: 0.01665021874 | U92: 31.28650283 | V92: -97.4066027 | W92: 82.5933973 | Y92: 1000000000 | Z92: 2089181.16 | AB92: 26.22043761 | AC92: -72.26120979 | AE92: 55.04316536 | AF92: -25.0934236 | AH92: 0 | AI92: 0
A93: 1584.9 | B93: 1.5849 | C93: 1.115272222 | D93: 0.4586701805 | E93: 1.000001983 | F93: 0.001991641443 | G93: 1 | H93: 0 | I93: 4334.180583 | J93: 1.570565603 | K93: 1.063831726 | L93: 0.3481710421 | M93: 1.000063919 | N93: 0.01130622204 | O93: 1.000042409 | P93: 0.009209500162 | Q93: 6.308180033 | R93: 0.01020406175 | S93: 1.000055027 | T93: 0.01825718419 | U93: 30.42627109 | V93: -97.9546448 | W93: 82.0453552 | Y93: 1000000000 | Z93: 2511908.01 | AB93: 25.50598794 | AC93: -70.68584811 | AE93: 54.89739647 | AF93: -27.21181251 | AH93: 0 | AI93: 0
A94: 1737.8 | B94: 1.7378 | C94: 1.13716661 | D94: 0.4962407932 | E94: 1.000002384 | F94: 0.002183780411 | G94: 1 | H94: 0 | I94: 4752.311807 | J94: 1.570585903 | K94: 1.076281715 | L94: 0.3787575485 | M94: 1.000076846 | N94: 0.01239685995 | O94: 1.000050986 | P94: 0.0100979102 | Q94: 6.308245643 | R94: 0.01118840072 | S94: 1.000066157 | T94: 0.02001851099 | U94: 29.55828748 | V94: -98.51386084 | W94: 81.48613916 | Y94: 1000000000 | Z94: 3019948.84 | AB94: 24.80697764 | AC94: -68.99702245 | AE94: 54.72843901 | AF94: -29.45435789 | AH94: 0 | AI94: 0
A95: 1905.5 | B95: 1.9055 | C95: 1.162951486 | D95: 0.5357596172 | E95: 1.000002867 | F95: 0.002394517341 | G95: 1 | H95: 0 | I95: 5210.916167 | J95: 1.570604422 | K95: 1.09106621 | L95: 0.4114680358 | M95: 1.000092392 | N95: 0.01359303247 | O95: 1.000061301 | P95: 0.01107229576 | Q95: 6.308324547 | R95: 0.01226799453 | S95: 1.000079543 | T95: 0.0219503266 | U95: 28.68159106 | V95: -99.07818504 | W95: 80.92181496 | Y95: 1000000000 | Z95: 3630930.25 | AB95: 24.12516232 | AC95: -67.19244627 | AE95: 54.53357695 | AF95: -31.81723027 | AH95: 0 | AI95: 0
A96: 2089.3 | B96: 2.0893 | C96: 1.19320141 | D96: 0.577039371 | E96: 1.000003447 | F96: 0.002625485777 | G96: 1 | H96: 0 | I96: 5713.548735 | J96: 1.570621304 | K96: 1.108572589 | L96: 0.4462754319 | M96: 1.000111075 | N96: 0.01490399845 | O96: 1.000073697 | P96: 0.01214020276 | Q96: 6.308419367 | R96: 0.01345120216 | S96: 1.000095631 | T96: 0.0240676066 | U96: 27.79665162 | V96: -99.63978785 | W96: 80.36021215 | Y96: 1000000000 | Z96: 4365174.49 | AB96: 23.46342366 | AC96: -65.27420948 | AE96: 54.31039907 | AF96: -34.29046364 | AH96: 0 | AI96: 0
A97: 2290.9 | B97: 2.2909 | C97: 1.228595756 | D97: 0.6198985973 | E97: 1.000004144 | F97: 0.002878821888 | G97: 1 | H97: 0 | I97: 6264.858451 | J97: 1.570636706 | K97: 1.129267452 | L97: 0.4831631378 | M97: 1.000133543 | N97: 0.01634186506 | O97: 1.000088605 | P97: 0.01331149865 | Q97: 6.308533402 | R97: 0.01474895417 | S97: 1.00011498 | T97: 0.02638993447 | U97: 26.90290887 | V97: -100.1909868 | W97: 79.80901317 | Y97: 1000000000 | Z97: 5248222.81 | AB97: 22.8237755 | AC97: -63.24396578 | AE97: 54.05633202 | AF97: -36.86466092 | AH97: 0 | AI97: 0
A98: 2511.9 | B98: 2.5119 | C98: 1.269834623 | D98: 0.6640475891 | E98: 1.000004982 | F98: 0.003156536147 | G98: 1 | H98: 0 | I98: 6869.220791 | J98: 1.57065075 | K98: 1.153651368 | L98: 0.5220214334 | M98: 1.000160549 | N98: 0.01791801994 | O98: 1.000106523 | P98: 0.01459546643 | Q98: 6.308670469 | R98: 0.01617153287 | S98: 1.000138239 | T98: 0.02893574184 | U98: 26.00131468 | V98: -100.723127 | W98: 79.27687297 | Y98: 1000000000 | Z98: 6309641.61 | AB98: 22.20917219 | AC98: -61.1086611 | AE98: 53.76937423 | AF98: -39.52416398 | AH98: 0 | AI98: 0
A99: 2754.2 | B99: 2.7542 | C99: 1.317702388 | D99: 0.7091791089 | E99: 1.000005989 | F99: 0.003461015971 | G99: 1 | H99: 0 | I99: 7531.831629 | J99: 1.570663557 | K99: 1.182298825 | L99: 0.5627149302 | M99: 1.000193013 | N99: 0.01964598217 | O99: 1.000128064 | P99: 0.01600312768 | Q99: 6.308835239 | R99: 0.01773114578 | S99: 1.000166201 | T99: 0.03172691634 | U99: 25.09254642 | V99: -101.2283291 | W99: 78.77167094 | Y99: 1000000000 | Z99: 7585617.64 | AB99: 21.62208117 | AC99: -58.87683421 | AE99: 53.44773677 | AF99: -42.2524867 | AH99: 0 | AI99: 0
A100: 3020 | B100: 3.02 | C100: 1.373070155 | D100: 0.7549659067 | E100: 1.000007201 | F100: 0.003795025702 | G100: 1 | H100: 0 | I100: 8258.707242 | J100: 1.570675242 | K100: 1.21586296 | L100: 0.6050720607 | M100: 1.000232061 | N100: 0.02154139929 | O100: 1.000153973 | P100: 0.01754724091 | Q100: 6.309033424 | R100: 0.01944192351 | S100: 1.000199839 | T100: 0.03478880166 | U100: 24.17728804 | V100: -101.6999484 | W100: 78.30005162 | Y100: 1000000000 | Z100: 9120400 | AB100: 21.06466012 | AC100: -56.55921833 | AE100: 53.08994728 | AF100: -45.03217273 | AH100: 0 | AI100: 0
A101: 3311.3 | B101: 3.3113 | C101: 1.436784428 | D101: 0.8009865891 | E101: 1.000008657 | F101: 0.004161078281 | G101: 1 | H101: 0 | I101: 9055.316972 | J101: 1.570685894 | K101: 1.255009217 | L101: 0.648804223 | M101: 1.000278981 | N101: 0.02361847838 | O101: 1.000185106 | P101: 0.01923939504 | Q101: 6.309271569 | R101: 0.02131669908 | S101: 1.000240265 | T101: 0.03814443783 | U101: 23.25792103 | V101: -102.1324431 | W101: 77.86755694 | Y101: 1000000000 | Z101: 10964707.69 | AB101: 20.53966671 | AC101: -54.17316817 | AE101: 52.69563117 | AF101: -47.84025413 | AH101: 0 | AI101: 0
A102: 3630.8 | B102: 3.6308 | C102: 1.509851622 | D102: 0.8468895929 | E102: 1.000010409 | F102: 0.004562566178 | G102: 1 | H102: 0 | I102: 9929.044432 | J102: 1.570695612 | K102: 1.30052759 | L102: 0.6936481376 | M102: 1.000335405 | N102: 0.0258963991 | O102: 1.000222546 | P102: 0.02109523517 | Q102: 6.309557955 | R102: 0.02337279719 | S102: 1.000288889 | T102: 0.04182492887 | U102: 22.33547894 | V102: -102.5235434 | W102: 77.47645659 | Y102: 1000000000 | Z102: 13182708.64 | AB102: 20.04855391 | AC102: -51.73487316 | AE102: 52.264371 | AF102: -50.65817556 | AH102: 0 | AI102: 0
A103: 3981.1 | B103: 3.9811 | C103: 1.593262494 | D103: 0.8922744777 | E103: 1.000012514 | F103: 0.005002756064 | G103: 1 | H103: 0 | I103: 10886.99977 | J103: 1.570704474 | K103: 1.353223887 | L103: 0.7392471037 | M103: 1.000403234 | N103: 0.02839360305 | O103: 1.000267554 | P103: 0.02312981198 | Q103: 6.309902227 | R103: 0.02562688083 | S103: 1.000347354 | T103: 0.04586022729 | U103: 21.41224282 | V103: -102.8734258 | W103: 77.12657418 | Y103: 1000000000 | Z103: 15849157.21 | AB103: 19.5929515 | AC103: -49.26583185 | AE103: 51.79682037 | AF103: -53.46452246 | AH103: 0 | AI103: 0
A104: 4365.2 | B104: 4.3652 | C104: 1.688098124 | D104: 0.936783319 | E104: 1.000015045 | F104: 0.005485417075 | G104: 1 | H104: 0 | I104: 11937.38699 | J104: 1.570712556 | K104: 1.413981958 | L104: 0.7852343538 | M104: 1.000484776 | N104: 0.03113135079 | O104: 1.000321663 | P104: 0.02536048176 | Q104: 6.310316112 | R104: 0.02809816343 | S104: 1.000417659 | T104: 0.05028489392 | U104: 20.49010252 | V104: -103.1856901 | W104: 76.81430992 | Y104: 1000000000 | Z104: 19054971.04 | AB104: 19.1737066 | AC104: -46.78828097 | AE104: 51.29402484 | AF104: -56.24055151 | AH104: 0 | AI104: 0
A105: 4786.3 | B105: 4.7863 | C105: 1.795481963 | D105: 0.9800831122 | E105: 1.000018088 | F105: 0.006014569433 | G105: 1 | H105: 0 | I105: 13088.95705 | J105: 1.570719927 | K105: 1.483729597 | L105: 0.8312169237 | M105: 1.000582789 | N105: 0.03413228539 | O105: 1.000386704 | P105: 0.02780573905 | Q105: 6.310813607 | R105: 0.03080711409 | S105: 1.000502193 | T105: 0.05513579417 | U105: 19.57105941 | V105: -103.4670679 | W105: 76.5329321 | Y105: 1000000000 | Z105: 22908667.69 | AB105: 18.79115818 | AC105: -44.32603695 | AE105: 50.75765017 | AF105: -58.96906483 | AH105: 0 | AI105: 0
A106: 5248.1 | B106: 5.2481 | C106: 1.91665569 | D106: 1.021904553 | E106: 1.000021746 | F106: 0.006594861345 | G106: 1 | H106: 0 | I106: 14351.82823 | J106: 1.570726649 | K106: 1.563483089 | L106: 0.876821676 | M106: 1.000700633 | N106: 0.03742255631 | O106: 1.000464907 | P106: 0.03048695103 | Q106: 6.311411769 | R106: 0.03377737743 | S106: 1.00060387 | T106: 0.06045555406 | U106: 18.65650508 | V106: -103.7273168 | W106: 76.27268315 | Y106: 1000000000 | Z106: 27542553.61 | AB106: 18.44486012 | AC106: -41.90198093 | AE106: 50.18953816 | AF106: -61.63680837 | AH106: 0 | AI106: 0
A107: 5370.3 | B107: 5.3703 | C107: 1.949236936 | D107: 1.032095477 | E107: 1.000022771 | F107: 0.006748415558 | G107: 1 | H107: 0 | I107: 14686.00506 | J107: 1.570728235 | K107: 1.585096473 | L107: 0.8881140465 | M107: 1.000733628 | N107: 0.03829308431 | O107: 1.000486804 | P107: 0.03119637276 | Q107: 6.311579254 | R107: 0.03456326295 | S107: 1.000632347 | T107: 0.0618632537 | U107: 18.42885072 | V107: -103.7904154 | W107: 76.20958464 | Y107: 1000000000 | Z107: 28840122.09 | AB107: 18.36389504 | AC107: -41.30494418 | AE107: 50.04288927 | AF107: -62.29256258 | AH107: 0 | AI107: 0
A108: 5432.85 | B108: 5.43285 | C108: 1.965990528 | D108: 1.037180896 | E108: 1.000023305 | F108: 0.006827014585 | G108: 1 | H108: 0 | I108: 14857.05875 | J108: 1.570729019 | K108: 1.596236231 | L108: 0.8937755313 | M108: 1.000750811 | N108: 0.03873865543 | O108: 1.000498207 | P108: 0.03155948938 | Q108: 6.311666474 | R108: 0.03496551471 | S108: 1.000647178 | T108: 0.06258380736 | U108: 18.31446662 | V108: -103.8220071 | W108: 76.17799295 | Y108: 1000000000 | Z108: 29515859.12 | AB108: 18.32399186 | AC108: -41.00613926 | AE108: 49.96842939 | AF108: -62.62071691 | AH108: 0 | AI108: 0
A109: 5495.4 | B109: 5.4954 | C109: 1.982794103 | D109: 1.042180248 | E109: 1.000023844 | F109: 0.006905613527 | G109: 1 | H109: 0 | I109: 15028.11243 | J109: 1.570729785 | K109: 1.607426443 | L109: 0.8993583672 | M109: 1.000768193 | N109: 0.03918421116 | O109: 1.000509743 | P109: 0.03192259766 | Q109: 6.311754703 | R109: 0.03536775535 | S109: 1.000662182 | T109: 0.06330436128 | U109: 18.20149198 | V109: -103.8531716 | W109: 76.14682835 | Y109: 1000000000 | Z109: 30199421.16 | AB109: 18.28508798 | AC109: -40.71183868 | AE109: 49.89437989 | AF109: -62.94393997 | AH109: 0 | AI109: 0
A110: 5559.4 | B110: 5.5594 | C110: 2.00003763 | D110: 1.047208414 | E110: 1.000024403 | F110: 0.006986034419 | G110: 1 | H110: 0 | I110: 15203.13139 | J110: 1.570730551 | K110: 1.618927189 | L110: 0.9049905588 | M110: 1.000786183 | N110: 0.03964007941 | O110: 1.000521682 | P110: 0.03229411461 | Q110: 6.311846021 | R110: 0.03577930888 | S110: 1.000677712 | T110: 0.06404161894 | U110: 18.08732481 | V110: -103.8846547 | W110: 76.11534534 | Y110: 1000000000 | Z110: 30906928.36 | AB110: 18.24628375 | AC110: -40.4153011 | AE110: 49.81903898 | AF110: -63.26966664 | AH110: 0 | AI110: 0
A111: 5623.4 | B111: 5.6234 | C111: 2.017330858 | D111: 1.052150497 | E111: 1.000024968 | F111: 0.00706645522 | G111: 1 | H111: 0 | I111: 15378.15035 | J111: 1.570731299 | K111: 1.630478565 | L111: 0.9105431201 | M111: 1.000804381 | N111: 0.04009593118 | O111: 1.000533759 | P111: 0.03266562264 | Q111: 6.311938395 | R111: 0.0361908505 | S111: 1.000693422 | T111: 0.06477887688 | U111: 17.97456831 | V111: -103.9157659 | W111: 76.08423414 | Y111: 1000000000 | Z111: 31622627.56 | AB111: 18.20846027 | AC111: -40.12332404 | AE111: 49.74412822 | AF111: -63.59046114 | AH111: 0 | AI111: 0
A112: 5688.9 | B112: 5.6889 | C112: 2.035079535 | D112: 1.057121318 | E112: 1.000025553 | F112: 0.00714876079 | G112: 1 | H112: 0 | I112: 15557.27132 | J112: 1.570732048 | K112: 1.642351986 | L112: 0.916144768 | M112: 1.000823221 | N112: 0.0405624497 | O112: 1.000546262 | P112: 0.03304582855 | Q112: 6.312034027 | R112: 0.03661202517 | S112: 1.000709688 | T112: 0.06553341458 | U112: 17.860597 | V112: -103.947258 | W112: 76.05274199 | Y112: 1000000000 | Z112: 32363583.21 | AB112: 18.17073322 | AC112: -39.8291457 | AE112: 49.66790702 | AF112: -63.9137843 | AH112: 0 | AI112: 0
A113: 5754.4 | B113: 5.7544 | C113: 2.052877627 | D113: 1.062006067 | E113: 1.000026145 | F113: 0.007231066262 | G113: 1 | H113: 0 | I113: 15736.39228 | J113: 1.57073278 | K113: 1.654276199 | L113: 0.9216658324 | M113: 1.000842278 | N113: 0.04102895057 | O113: 1.00055891 | P113: 0.0334260249 | Q113: 6.312130766 | R113: 0.03703318708 | S113: 1.000726143 | T113: 0.06628795257 | U113: 17.74803779 | V113: -103.9784335 | W113: 76.02156654 | Y113: 1000000000 | Z113: 33113119.36 | AB113: 18.13396851 | AC113: -39.53958246 | AE113: 49.59213584 | AF113: -64.23217584 | AH113: 0 | AI113: 0
A114: 5821.4 | B114: 5.8214 | C114: 2.071133106 | D114: 1.0669157 | E114: 1.000026757 | F114: 0.007315256491 | G114: 1 | H114: 0 | I114: 15919.61526 | J114: 1.570733511 | K114: 1.666524902 | L114: 0.927231417 | M114: 1.000861998 | N114: 0.04150611617 | O114: 1.000571997 | P114: 0.03381491804 | Q114: 6.312230864 | R114: 0.03746398057 | S114: 1.00074317 | T114: 0.06705977034 | U114: 17.6343289 | V114: -104.0100306 | W114: 75.98996941 | Y114: 1000000000 | Z114: 33888697.96 | AB114: 18.09732521 | AC114: -39.24807943 | AE114: 49.51509439 | AF114: -64.55287527 | AH114: 0 | AI114: 0
A115: 5888.4 | B115: 5.8884 | C115: 2.089437635 | D115: 1.071739426 | E115: 1.000027377 | F115: 0.007399446617 | G115: 1 | H115: 0 | I115: 16102.83823 | J115: 1.570734226 | K115: 1.678824472 | L115: 0.9327156191 | M115: 1.000881945 | N115: 0.04198326286 | O115: 1.000585235 | P115: 0.03420380094 | Q115: 6.312332119 | R115: 0.0378947604 | S115: 1.000760395 | T115: 0.06783158842 | U115: 17.52203164 | V115: -104.0413663 | W115: 75.95863375 | Y115: 1000000000 | Z115: 34673254.56 | AB115: 18.06162453 | AC115: -38.96123724 | AE115: 49.43852222 | AF115: -64.86865261 | AH115: 0 | AI115: 0
A116: 5957 | B116: 5.957 | C116: 2.108228775 | D116: 1.076591443 | E116: 1.000028018 | F116: 0.007485647144 | G116: 1 | H116: 0 | I116: 16290.43668 | J116: 1.570734941 | K116: 1.691469309 | L116: 0.9382479798 | M116: 1.000902605 | N116: 0.04247178428 | O116: 1.000598947 | P116: 0.03460195988 | Q116: 6.312436991 | R116: 0.0383358132 | S116: 1.000778237 | T116: 0.06862183829 | U116: 17.40848201 | V116: -104.0732133 | W116: 75.92678672 | Y116: 1000000000 | Z116: 35485849 | AB116: 18.02601593 | AC116: -38.67228751 | AE116: 49.36060646 | AF116: -65.18699174 | AH116: 0 | AI116: 0
A117: 6025.6 | B117: 6.0256 | C117: 2.127068669 | D117: 1.081357619 | E117: 1.000028667 | F117: 0.00757184756 | G117: 1 | H117: 0 | I117: 16478.03513 | J117: 1.57073564 | K117: 1.704165148 | L117: 0.9436980743 | M117: 1.000923503 | N117: 0.04296028541 | O117: 1.000612817 | P117: 0.03500010784 | Q117: 6.312543076 | R117: 0.03877685135 | S117: 1.000796287 | T117: 0.06941208847 | U117: 17.29634576 | V117: -104.1048533 | W117: 75.89514674 | Y117: 1000000000 | Z117: 36307855.36 | AB117: 17.99133175 | AC117: -38.38804919 | AE117: 49.28317997 | AF117: -65.50041261 | AH117: 0 | AI117: 0
A118: 6095.8 | B118: 6.0958 | C118: 2.146397112 | D118: 1.086148229 | E118: 1.000029339 | F118: 0.007660058365 | G118: 1 | H118: 0 | I118: 16670.00905 | J118: 1.570736339 | K118: 1.717208719 | L118: 0.9491916879 | M118: 1.000945137 | N118: 0.04346015892 | O118: 1.000627174 | P118: 0.03540753056 | Q118: 6.31265289 | R118: 0.03922816076 | S118: 1.000814973 | T118: 0.07022077048 | U118: 17.18302383 | V118: -104.1370493 | W118: 75.86295072 | Y118: 1000000000 | Z118: 37158777.64 | AB118: 17.95676391 | AC118: -38.10196901 | AE118: 49.20445234 | AF118: -65.81617429 | AH118: 0 | AI118: 0
A119: 6166 | B119: 6.166 | C119: 2.165773934 | D119: 1.090853223 | E119: 1.000030019 | F119: 0.007748269051 | G119: 1 | H119: 0 | I119: 16861.98297 | J119: 1.570737022 | K119: 1.730303332 | L119: 0.9546023133 | M119: 1.00096702 | N119: 0.04396001069 | O119: 1.000641698 | P119: 0.03581494152 | Q119: 6.312763975 | R119: 0.03967945448 | S119: 1.000833876 | T119: 0.07102945283 | U119: 17.07111503 | V119: -104.1690924 | W119: 75.83090759 | Y119: 1000000000 | Z119: 38019556 | AB119: 17.92310099 | AC119: -37.82064153 | AE119: 49.12623324 | AF119: -66.1270306 | AH119: 0 | AI119: 0
A120: 6237.8 | B120: 6.2378 | C120: 2.185641099 | D120: 1.095579049 | E120: 1.000030722 | F120: 0.007838490112 | G120: 1 | H120: 0 | I120: 17058.33237 | J120: 1.570737704 | K120: 1.743748001 | L120: 0.9600520334 | M120: 1.000989661 | N120: 0.04447123236 | O120: 1.000656725 | P120: 0.0362316259 | Q120: 6.312878906 | R120: 0.04014101767 | S120: 1.000853435 | T120: 0.07185656703 | U120: 16.95808377 | V120: -104.2017385 | W120: 75.7982615 | Y120: 1000000000 | Z120: 38910148.84 | AB120: 17.88957558 | AC120: -37.53772552 | AE120: 49.04675508 | AF120: -66.44002133 | AH120: 0 | AI120: 0
A121: 6309.6 | B121: 6.3096 | C121: 2.205556196 | D121: 1.100219633 | E121: 1.000031433 | F121: 0.007928711045 | G121: 1 | H121: 0 | I121: 17254.68176 | J121: 1.570738372 | K121: 1.757243665 | L121: 0.965418203 | M121: 1.001012563 | N121: 0.04498243077 | O121: 1.000671925 | P121: 0.03664829768 | Q121: 6.312995164 | R121: 0.04060256407 | S121: 1.000873222 | T121: 0.07268368159 | U121: 16.84646353 | V121: -104.2342853 | W121: 75.76571474 | Y121: 1000000000 | Z121: 39811052.16 | AB121: 17.85693449 | AC121: -37.25959439 | AE121: 48.96780396 | AF121: -66.74812809 | AH121: 0 | AI121: 0
A122: 6383.05 | B122: 6.38305 | C122: 2.225977209 | D122: 1.104880837 | E122: 1.000032169 | F122: 0.008021005167 | G122: 1 | H122: 0 | I122: 17455.54336 | J122: 1.570739038 | K122: 1.771101016 | L122: 0.9708229101 | M122: 1.001036263 | N122: 0.04550535243 | O122: 1.000687654 | P122: 0.03707453163 | Q122: 6.313115469 | R122: 0.04107469945 | S122: 1.000893699 | T122: 0.07352980403 | U122: 16.73370443 | V122: -104.2675062 | W122: 75.73249377 | Y122: 1000000000 | Z122: 40743327.3 | AB122: 17.8244274 | AC122: -36.97992689 | AE122: 48.88758093 | AF122: -67.0583866 | AH122: 0 | AI122: 0
A123: 6456.5 | B123: 6.4565 | C123: 2.246445705 | D123: 1.109457198 | E123: 1.000032914 | F123: 0.008113299152 | G123: 1 | H123: 0 | I123: 17656.40497 | J123: 1.57073969 | K123: 1.785009299 | L123: 0.9761435468 | M123: 1.001060236 | N123: 0.04602824919 | O123: 1.000703565 | P123: 0.03750075209 | Q123: 6.313237164 | R123: 0.04154681684 | S123: 1.000914414 | T123: 0.07437592684 | U123: 16.62235436 | V123: -104.3006804 | W123: 75.6993196 | Y123: 1000000000 | Z123: 41686392.25 | AB123: 17.79278422 | AC123: -36.70507399 | AE123: 48.80790337 | AF123: -67.36378398 | AH123: 0 | AI123: 0
A124: 6531.7 | B124: 6.5317 | C124: 2.26744973 | D124: 1.114056897 | E124: 1.000033685 | F124: 0.008207791966 | G124: 1 | H124: 0 | I124: 17862.05225 | J124: 1.570740342 | K124: 1.79930049 | L124: 0.9815055777 | M124: 1.001085064 | N124: 0.04656357825 | O124: 1.000720044 | P124: 0.03793711344 | Q124: 6.313363199 | R124: 0.04203016393 | S124: 1.00093587 | T124: 0.07524220953 | U124: 16.50977709 | V124: -104.3346238 | W124: 75.66537617 | Y124: 1000000000 | Z124: 42663104.89 | AB124: 17.76125163 | AC124: -36.4285617 | AE124: 48.72688906 | AF124: -67.6715476 | AH124: 0 | AI124: 0
A125: 6606.9 | B125: 6.6069 | C125: 2.288500846 | D125: 1.118572067 | E125: 1.000034465 | F125: 0.008302284633 | G125: 1 | H125: 0 | I125: 18067.69952 | J125: 1.570740979 | K125: 1.813642597 | L125: 0.9867829535 | M125: 1.001110178 | N125: 0.04709888061 | O125: 1.000736713 | P125: 0.03837346034 | Q125: 6.31349069 | R125: 0.04251349173 | S125: 1.000957575 | T125: 0.07610849263 | U125: 16.39860879 | V125: -104.3685719 | W125: 75.63142809 | Y125: 1000000000 | Z125: 43651127.61 | AB125: 17.73056382 | AC125: -36.15689742 | AE125: 48.64643928 | AF125: -67.97446816 | AH125: 0 | AI125: 0
A126: 6683.85 | B126: 6.68385 | C126: 2.310089253 | D126: 1.123107032 | E126: 1.000035272 | F126: 0.008398976112 | G126: 1 | H126: 0 | I126: 18278.13248 | J126: 1.570741617 | K126: 1.82836992 | L126: 0.9920972828 | M126: 1.001136175 | N126: 0.04764661217 | O126: 1.000753968 | P126: 0.03881994646 | Q126: 6.313622657 | R126: 0.04300804698 | S126: 1.000980045 | T126: 0.07699493564 | U126: 16.28627781 | V126: -104.4033404 | W126: 75.59665961 | Y126: 1000000000 | Z126: 44673850.82 | AB126: 17.70000626 | AC126: -35.88382799 | AE126: 48.56469767 | AF126: -68.27955191 | AH126: 0 | AI126: 0
A127: 6760.8 | B127: 6.7608 | C127: 2.33172429 | D127: 1.12755793 | E127: 1.000036089 | F127: 0.008495667434 | G127: 1 | H127: 0 | I127: 18488.56543 | J127: 1.570742239 | K127: 1.843148054 | L127: 0.9973265386 | M127: 1.001162471 | N127: 0.04819431512 | O127: 1.000771421 | P127: 0.03926641709 | Q127: 6.313756148 | R127: 0.04350258157 | S127: 1.001002776 | T127: 0.07788137908 | U127: 16.17535382 | V127: -104.4381639 | W127: 75.56183612 | Y127: 1000000000 | Z127: 45708416.64 | AB127: 17.67027332 | AC127: -35.61563045 | AE127: 48.48353877 | AF127: -68.57981908 | AH127: 0 | AI127: 0
A128: 6839.55 | B128: 6.83955 | C128: 2.353912345 | D128: 1.132028142 | E128: 1.000036935 | F128: 0.008594620376 | G128: 1 | H128: 0 | I128: 18703.92079 | J128: 1.570742862 | K128: 1.858323219 | L128: 1.002591857 | M128: 1.001189694 | N128: 0.04875479987 | O128: 1.00078949 | P128: 0.03972331526 | Q128: 6.313894342 | R128: 0.04400866258 | S128: 1.001026311 | T128: 0.07878855846 | U128: 16.06325751 | V128: -104.4738826 | W128: 75.52611735 | Y128: 1000000000 | Z128: 46779444.2 | AB128: 17.64066897 | AC128: -35.34609901 | AE128: 48.40108012 | AF128: -68.88225132 | AH128: 0 | AI128: 0
A129: 6918.3 | B129: 6.9183 | C129: 2.376146559 | D129: 1.136414783 | E129: 1.00003779 | F129: 0.008693573151 | G129: 1 | H129: 0 | I129: 18919.27615 | J129: 1.570743471 | K129: 1.873549067 | L129: 1.007771738 | M129: 1.001217231 | N129: 0.04931525397 | O129: 1.000807767 | P129: 0.04018019684 | Q129: 6.314034132 | R129: 0.04451472145 | S129: 1.001050119 | T129: 0.07969573828 | U129: 15.95256617 | V129: -104.5097055 | W129: 75.49029449 | Y129: 1000000000 | Z129: 47862874.89 | AB129: 17.6118692 | AC129: -35.08146023 | AE129: 48.31922221 | AF129: -69.17989531 | AH129: 0 | AI129: 0
A130: 6998.9 | B130: 6.9989 | C130: 2.398949559 | D130: 1.140820186 | E130: 1.000038676 | F130: 0.008794850353 | G130: 1 | H130: 0 | I130: 19139.69065 | J130: 1.570744079 | K130: 1.889183807 | L130: 1.012986702 | M130: 1.00124574 | N130: 0.04988884219 | O130: 1.000826691 | P130: 0.04064779413 | Q130: 6.314178861 | R130: 0.04503264549 | S130: 1.001074771 | T130: 0.08062423009 | U130: 15.84069483 | V130: -104.5464996 | W130: 75.45350039 | Y130: 1000000000 | Z130: 48984601.21 | AB130: 17.58319678 | AC130: -34.81556388 | AE130: 48.23605816 | AF130: -69.47970225 | AH130: 0 | AI130: 0
A131: 7079.5 | B131: 7.0795 | C131: 2.42179824 | D131: 1.145142546 | E131: 1.000039572 | F131: 0.008896127376 | G131: 1 | H131: 0 | I131: 19360.10516 | J131: 1.570744674 | K131: 1.904869081 | L131: 1.01811592 | M131: 1.001274579 | N131: 0.05046239755 | O131: 1.000845833 | P131: 0.04111537363 | Q131: 6.314325262 | R131: 0.04555054579 | S131: 1.00109971 | T131: 0.08155272235 | U131: 15.73022634 | V131: -104.5834455 | W131: 75.41655448 | Y131: 1000000000 | Z131: 50119320.25 | AB131: 17.55530901 | AC131: -34.55457771 | AE131: 48.1535127 | AF131: -69.77475117 | AH131: 0 | AI131: 0
A132: 7161.95 | B132: 7.16195 | C132: 2.445217293 | D132: 1.149480453 | E132: 1.000040499 | F132: 0.008999728806 | G132: 1 | H132: 0 | I132: 19585.5788 | J132: 1.570745269 | K132: 1.920965373 | L132: 1.02327606 | M132: 1.001304421 | N132: 0.05104908326 | O132: 1.000865641 | P132: 0.04159366681 | Q132: 6.314476755 | R132: 0.04608030855 | S132: 1.001125519 | T132: 0.08250252664 | U132: 15.61863923 | V132: -104.6214165 | W132: 75.37858345 | Y132: 1000000000 | Z132: 51293527.8 | AB132: 17.52756425 | AC132: -34.29257215 | AE132: 48.06970684 | AF132: -70.07177877 | AH132: 0 | AI132: 0
A133: 7244.4 | B133: 7.2444 | C133: 2.468681486 | D133: 1.153735977 | E133: 1.000041437 | F133: 0.009103330043 | G133: 1 | H133: 0 | I133: 19811.05244 | J133: 1.57074585 | K133: 1.937111963 | L133: 1.02835031 | M133: 1.001334607 | N133: 0.0516357338 | O133: 1.000885677 | P133: 0.04207194094 | Q133: 6.314629998 | R133: 0.04661004591 | S133: 1.00115163 | T133: 0.08345233142 | U133: 15.50845105 | V133: -104.6595854 | W133: 75.34041456 | Y133: 1000000000 | Z133: 52481331.36 | AB133: 17.50058339 | AC133: -34.03548495 | AE133: 47.98653642 | AF133: -70.36408623 | AH133: 0 | AI133: 0
A134: 7328.75 | B134: 7.32875 | C134: 2.492731776 | D134: 1.158006582 | E134: 1.000042407 | F134: 0.009209318492 | G134: 1 | H134: 0 | I134: 20041.72196 | J134: 1.570746431 | K134: 1.95368139 | L134: 1.033454561 | M134: 1.001365846 | N134: 0.05223586646 | O134: 1.000906413 | P134: 0.04256121663 | Q134: 6.314788584 | R134: 0.04715196407 | S134: 1.001178653 | T134: 0.08442402425 | U134: 15.3971367 | V134: -104.6988568 | W134: 75.30114325 | Y134: 1000000000 | Z134: 53710576.56 | AB134: 17.47374305 | AC134: -33.77745123 | AE134: 47.90210061 | AF134: -70.65837507 | AH134: 0 | AI134: 0
A135: 7413.1 | B135: 7.4131 | C135: 2.516826659 | D135: 1.162195493 | E135: 1.000043389 | F135: 0.009315306735 | G135: 1 | H135: 0 | I135: 20272.39148 | J135: 1.570746999 | K135: 1.970300861 | L135: 1.038472833 | M135: 1.001397445 | N135: 0.05283596147 | O135: 1.000927388 | P135: 0.04305047192 | Q135: 6.314949002 | R135: 0.04769385503 | S135: 1.001205991 | T135: 0.08539571758 | U135: 15.28721734 | V135: -104.7383703 | W135: 75.26162966 | Y135: 1000000000 | Z135: 54954051.61 | AB135: 17.44764608 | AC135: -33.52434086 | AE135: 47.81831685 | AF135: -70.94798322 | AH135: 0 | AI135: 0
A136: 7499.45 | B136: 7.49945 | C136: 2.541537718 | D136: 1.166401377 | E136: 1.000044406 | F136: 0.009423807819 | G136: 1 | H136: 0 | I136: 20508.53035 | J136: 1.570747567 | K136: 1.987364917 | L136: 1.043523022 | M136: 1.001430167 | N136: 0.0534502457 | O136: 1.000949108 | P136: 0.04355130645 | Q136: 6.31511512 | R136: 0.04824856612 | S136: 1.001234305 | T136: 0.086390451 | U136: 15.17610199 | V136: -104.779088 | W136: 75.220912 | Y136: 1000000000 | Z136: 56241750.3 | AB136: 17.42167259 | AC136: -33.27021481 | AE136: 47.73321498 | AF136: -71.23974004 | AH136: 0 | AI136: 0
A137: 7585.8 | B137: 7.5858 | C137: 2.566292868 | D137: 1.170526192 | E137: 1.000045434 | F137: 0.009532308682 | G137: 1 | H137: 0 | I137: 20744.66921 | J137: 1.570748122 | K137: 2.004478797 | L137: 1.0484871 | M137: 1.001463267 | N137: 0.05406448957 | O137: 1.00097108 | P137: 0.04405211912 | Q137: 6.315283158 | R137: 0.04880324803 | S137: 1.001262948 | T137: 0.08738518495 | U137: 15.0663792 | V137: -104.820091 | W137: 75.179909 | Y137: 1000000000 | Z137: 57544361.64 | AB137: 17.39642297 | AC137: -33.02101946 | AE137: 47.64878227 | AF137: -71.5268519 | AH137: 0 | AI137: 0
A138: 7674.15 | B138: 7.67415 | C138: 2.591665704 | D138: 1.174664913 | E138: 1.000046499 | F138: 0.00964332236 | G138: 1 | H138: 0 | I138: 20986.27741 | J138: 1.570748677 | K138: 2.022039308 | L138: 1.053479057 | M138: 1.001497524 | N138: 0.054692918 | O138: 1.00099382 | P138: 0.0445645085 | Q138: 6.315457074 | R138: 0.04937074671 | S138: 1.001292597 | T138: 0.08840295902 | U138: 14.9555216 | V138: -104.8623533 | W138: 75.13764665 | Y138: 1000000000 | Z138: 58892578.22 | AB138: 17.37131049 | AC138: -32.77103947 | AE138: 47.56307902 | AF138: -71.81593671 | AH138: 0 | AI138: 0
A139: 7762.5 | B139: 7.7625 | C139: 2.617082071 | D139: 1.178723315 | E139: 1.000047575 | F139: 0.009754335801 | G139: 1 | H139: 0 | I139: 21227.88562 | J139: 1.570749219 | K139: 2.039649339 | L139: 1.058384935 | M139: 1.001532177 | N139: 0.0553213032 | O139: 1.001016823 | P139: 0.04507687446 | Q139: 6.315632999 | R139: 0.04993821414 | S139: 1.001322592 | T139: 0.08942073365 | U139: 14.84605237 | V139: -104.9049421 | W139: 75.09505792 | Y139: 1000000000 | Z139: 60256406.25 | AB139: 17.34690167 | AC139: -32.52598825 | AE139: 47.47806097 | AF139: -72.10041959 | AH139: 0 | AI139: 0
A140: 7852.9 | B140: 7.8529 | C140: 2.643131928 | D140: 1.182795027 | E140: 1.00004869 | F140: 0.009867924857 | G140: 1 | H140: 0 | I140: 21475.0999 | J140: 1.570749761 | K140: 2.057717909 | L140: 1.063317609 | M140: 1.001568043 | N140: 0.05596422366 | O140: 1.001040632 | P140: 0.04560110443 | Q140: 6.315815085 | R140: 0.0505188159 | S140: 1.001353642 | T140: 0.09046212445 | U140: 14.73544536 | V140: -104.9488693 | W140: 75.05113072 | Y140: 1000000000 | Z140: 61668038.41 | AB140: 17.32262811 | AC140: -32.28023454 | AE140: 47.39177135 | AF140: -72.38687062 | AH140: 0 | AI140: 0
A141: 7943.3 | B141: 7.9433 | C141: =SQRT(1+(A141/pole1)^2) -> 2.669224748 | D141: =ATAN(A141/pole1) -> 1.186787198 | E141: =SQRT(1+(A141/Zero1)^2) -> 1.000049817 | F141: =ATAN(A141/Zero1) -> 0.009981513657 | G141: =IF(VIN_nom>Vout, 1, SQRT(1+(A141/z_RHP)^2)) -> 1 | H141: =IF(VIN_nom>Vout, 0, -ATAN(A141/z_RHP)) -> 0 | I141: =SQRT(1+(A141/Pole2)^2) -> 21722.31418 | J141: =ATAN(A141/Pole2) -> 1.570750291 | K141: =SQRT(1+(A141/Zero2)^2) -> 2.075835674 | L141: =ATAN(A141/Zero2) -> 1.068164296 | M141: =SQRT(1+(A141/pole4)^2) -> 1.001604324 | N141: =ATAN(A141/pole4) -> 0.05660709781 | O141: =IF(VOUT_setting=1,1,SQRT(1+(A141*zterm1)^2)) -> 1.001064716 | P141: =IF(VOUT_setting=1,0,ATAN(((A141*zterm1)))) -> 0.04612530931 | Q141: 6.315999275 | R141: =IF(VOUT_setting=1,0,ATAN(A141*$Q$4/(1+Afbr-$Q$5*(A141)^2))) -> 0.05109938421 | S141: =SQRT((1-(Z141/pterm2))^2+(A141/pterm1)^2) -> 1.001385054 | T141: =IF((ATAN((A141/pterm1)/(1-A141^2/pterm2))>0),ATAN((A141/pterm1)/(1-A141^2/pterm2)),PI()+ATAN((A141/pterm1)/(1-A141^2/pterm2))) -> 0.09150351582 | U141: =20*LOG10(((E141*K141*G141*O141)/(C141*I141*S141*M141*Q141))*Adc) -> 14.6262224 | V141: =((F141+L141+H141+P141)-(D141+J141+T141+N141+R141))*radconv -> -104.9931621 | W141: =IF(V141>0,V141,V141+180) -> 75.0068379 | Y141: =IF(U141<0,A141,1000000000) -> 1000000000 | Z141: =A141^2 -> 63096014.89 | AB141: =20*LOG10((K141/(I141*M141))*AEA) -> 17.2990382 | AC141: =(L141-(J141+N141))*radconv -> -32.03940422 | AE141: =20*LOG10((E141*G141/(C141*S141))*Acs*Am) -> 47.30618263 | AF141: =(F141+H141-(D141+T141))*radconv -> -72.66876438 | AH141: =SUM((U142<0)*(U141>0))*A141 -> 0 | AI141: 0
A142: 8035.8 | B142: =A142/1000 -> 8.0358 | C142: 2.695966879 | D142: 1.190792053 | E142: 1.000050984 | F142: 0.01009774087 | G142: 1 | H142: 0 | I142: 21975.27127 | J142: 1.570750821 | K142: 2.094423907 | L142: 1.073036657 | M142: 1.001641875 | N142: 0.05726485749 | O142: 1.001089644 | P142: 0.04666166526 | Q142: 6.316189919 | R142: 0.05169340413 | S142: 1.001417571 | T142: 0.0925690994 | U142: 14.51586 | V142: -105.0388729 | W142: 74.9611271 | Y142: 1000000000 | Z142: 64574081.64 | AB142: 17.27558178 | AC142: -31.79795572 | AE142: 47.21932253 | AF142: -72.95261978 | AH142: 0 | AI142: 0
A143: 8128.3 | B143: 8.1283 | C143: 2.7227514 | D143: 1.194718176 | E143: 1.000052165 | F143: 0.01021396781 | G143: 1 | H143: 0 | I143: 22228.22836 | J143: 1.570751339 | K143: 2.113060985 | L143: 1.077823182 | M143: 1.00167986 | N143: 0.05792256758 | O143: 1.00111486 | P143: 0.04719799435 | Q143: =IF(VOUT_setting=1,1,SQRT((1+Afbr-$Q$5*(A143)^2)^2+(A143*$Q$4)^2)) -> 6.316382765 | R143: 0.05228738821 | S143: 1.001450467 | T143: 0.09363468358 | U143: 14.40687717 | V143: -105.0849867 | W143: 74.91501328 | Y143: 1000000000 | Z143: 66069260.89 | AB143: 17.2527892 | AC143: -31.56142171 | AE143: 47.13317871 | AF143: -73.23196422 | AH143: 0 | AI143: 0
A144: 8222.95 | B144: 8.22295 | C144: 2.750201068 | D144: 1.198656332 | E144: 1.000053387 | F144: 0.01033289595 | G144: 1 | H144: 0 | I144: 22487.06499 | J144: 1.570751857 | K144: 2.132180476 | L144: 1.082634232 | M144: 1.001719176 | N144: 0.05859551304 | O144: 1.00114096 | P144: 0.04774676133 | Q144: 6.316582372 | R144: 0.05289514088 | S144: 1.001484522 | T144: 0.09472503601 | U144: 14.29675446 | V144: -105.1325983 | W144: 74.86740168 | Y144: 1000000000 | Z144: 67616906.7 | AB144: 17.23012839 | AC144: -31.32435545 | AE144: 47.04576483 | AF144: -73.51326245 | AH144: 0 | AI144: 0
A145: 8270.275 | B145: 8.270275 | C145: 2.763941659 | D145: 1.200596062 | E145: 1.000054003 | F145: 0.01039235992 | G145: 1 | H145: 0 | I145: 22616.48331 | J145: 1.570752111 | K145: 2.141758481 | L145: 1.085007518 | M145: 1.001739005 | N145: 0.05893196589 | O145: 1.001154124 | P145: 0.04802113405 | Q145: 6.31668304 | R145: 0.05319900284 | S145: 1.001501698 | T145: 0.09527021246 | U145: 14.24221081 | V145: -105.1565681 | W145: 74.84343186 | Y145: 1000000000 | Z145: 68397448.58 | AB145: 17.21904109 | AC145: -31.20766807 | AE145: 47.0023327 | AF145: -73.65223004 | AH145: 0 | AI145: 0
A146: 8317.6 | B146: 8.3176 | C146: 2.777692546 | D146: 1.202516593 | E146: 1.000054623 | F146: 0.01045182381 | G146: 1 | H146: 0 | I146: 22745.90163 | J146: 1.570752363 | K146: 2.151348441 | L146: 1.087359659 | M146: 1.001758946 | N146: 0.05926840538 | O146: 1.001167362 | P146: 0.04829549954 | Q146: 6.316784284 | R146: 0.05350285516 | S146: 1.001518974 | T146: 0.09581538906 | U146: 14.18800668 | V146: -105.1806485 | W146: 74.81935152 | Y146: 1000000000 | Z146: 69182469.76 | AB146: 17.2081118 | AC146: -31.0921913 | AE146: 46.95908222 | AF146: -73.79009768 | AH146: 0 | AI146: 0
A147: 8366.05 | B147: 8.36605 | C147: 2.791780824 | D147: 1.204463173 | E147: 1.000055261 | F147: 0.01051270118 | G147: 1 | H147: 0 | I147: 22878.39645 | J147: 1.570752617 | K147: 2.161178591 | L147: 1.089746076 | M147: 1.001779479 | N147: 0.05961282873 | O147: 1.001180993 | P147: 0.04857637964 | Q147: 6.316888531 | R147: 0.05381392053 | S147: 1.001536764 | T147: 0.09637352565 | U147: 14.13286141 | V147: -105.2054166 | W147: 74.79458342 | Y147: 1000000000 | Z147: 69990792.6 | AB147: 17.19708328 | AC147: -30.97520826 | AE147: 46.91499055 | AF147: -73.93011933 | AH147: 0 | AI147: 0
A148: 8414.5 | B148: 8.4145 | C148: 2.805879575 | D148: 1.206390197 | E148: 1.000055903 | F148: 0.01057357848 | G148: 1 | H148: 0 | I148: 23010.89127 | J148: 1.570752869 | K148: =SQRT(1+(A148/Zero2)^2) -> 2.171020938 | L148: =ATAN(A148/Zero2) -> 1.092110869 | M148: 1.001800131 | N148: 0.05995723791 | O148: 1.001194704 | P148: 0.04885725208 | Q148: 6.316993382 | R148: 0.05412497566 | S148: 1.001554658 | T148: 0.0969316624 | U148: 14.07806328 | V148: -105.2303021 | W148: 74.76969786 | Y148: 1000000000 | Z148: 70803810.25 | AB148: 17.18621415 | AC148: -30.85946323 | AE148: 46.87108679 | AF148: -74.06902058 | AH148: 0 | AI148: 0
A149: 8462.95 | B149: 8.46295 | C149: 2.819988641 | D149: 1.208297947 | E149: 1.000056548 | F149: 0.0106344557 | G149: 1 | H149: 0 | I149: 23143.38609 | J149: 1.570753118 | K149: 2.180875316 | L149: 1.094454304 | M149: 1.001820902 | N149: 0.06030163286 | O149: 1.001208493 | P149: 0.0491381168 | Q149: 6.317098836 | R149: 0.05443602051 | S149: 1.001572657 | T149: 0.09748979931 | U149: 14.02360801 | V149: -105.2553059 | W149: 74.74469411 | Y149: 1000000000 | Z149: 71621522.7 | AB149: 17.17550135 | AC149: -30.74494093 | AE149: 46.82736968 | AF149: -74.20681744 | AH149: 0 | AI149: 0
A150: 8511.4 | B150: 8.5114 | C150: 2.834107867 | D150: 1.210186694 | E150: 1.000057198 | F150: 0.01069533284 | G150: 1 | H150: 0 | I150: 23275.88092 | J150: 1.570753364 | K150: 2.190741563 | L150: 1.096776644 | M150: 1.001841792 | N150: 0.06064601348 | O150: 1.001222361 | P150: 0.04941897376 | Q150: 6.317204895 | R150: 0.054747055 | S150: 1.001590759 | T150: 0.09804793638 | U150: 13.96949139 | V150: -105.2804285 | W150: 74.71957153 | Y150: 1000000000 | Z150: 72443929.96 | AB150: 17.16494194 | AC150: -30.63162631 | AE150: 46.78383799 | AF150: -74.34352559 | AH150: 0 | AI150: 0
A151: 8560.95 | B151: 8.56095 | C151: 2.848558007 | D151: 1.21209895 | E151: 1.000057866 | F151: 0.01075759204 | G151: 1 | H151: 0 | I151: 23411.38388 | J151: 1.570753613 | K151: 2.200843921 | L151: 1.09913016 | M151: 1.001863279 | N151: 0.06099819796 | O151: 1.001236626 | P151: 0.04970619918 | Q151: 6.317313985 | R151: 0.0550651404 | S151: 1.001609381 | T151: 0.09861874545 | U151: 13.91449208 | V151: -105.306245 | W151: 74.69375504 | Y151: 1000000000 | Z151: 73289864.9 | AB151: 17.15429839 | AC151: -30.51697268 | AE151: 46.73950847 | AF151: -74.48222756 | AH151: 0 | AI151: 0
A152: 8610.5 | B152: 8.6105 | C152: 2.863018458 | D152: 1.213991897 | E152: 1.000058537 | F152: 0.01081985116 | G152: 1 | H152: 0 | I152: 23546.88684 | J152: 1.570753858 | K152: 2.210958359 | L152: 1.101462156 | M152: 1.00188489 | N152: 0.06135036729 | O152: 1.001250974 | P152: 0.04999341639 | Q152: 6.317423707 | R152: 0.05538321485 | S152: 1.001628112 | T152: 0.0991895547 | U152: 13.85983829 | V152: -105.3321869 | W152: 74.66781307 | Y152: 1000000000 | Z152: 74140710.25 | AB152: 17.1438092 | AC152: -30.40355105 | AE152: 46.69537027 | AF152: -74.61982318 | AH152: 0 | AI152: 0
A153: 8660.05 | B153: 8.66005 | C153: 2.877489064 | D153: 1.215865811 | E153: 1.000059213 | F153: 0.0108821102 | G153: 1 | H153: 0 | I153: 23682.3898 | J153: 1.570754101 | K153: 2.22108471 | L153: 1.103772901 | M153: 1.001906625 | N153: 0.06170252139 | O153: 1.001265404 | P153: 0.05028062534 | Q153: 6.31753406 | R153: 0.05570127829 | S153: 1.001646952 | T153: 0.0997603641 | U153: 13.80552574 | V153: -105.3582549 | W153: 74.64174512 | Y153: 1000000000 | Z153: 74996466 | AB153: 17.13347138 | AC153: -30.29134601 | AE153: 46.65142208 | AF153: -74.75632834 | AH153: 0 | AI153: 0
A154: 8709.6 | B154: 8.7096 | C154: 2.891969674 | D154: 1.217720965 | E154: 1.000059893 | F154: 0.01094436915 | G154: 1 | H154: 0 | I154: 23817.89276 | J154: 1.570754342 | K154: 2.231222813 | L154: 1.106062658 | M154: 1.001928485 | N154: 0.06205466016 | O154: 1.001279916 | P154: 0.050567826 | Q154: 6.317645045 | R154: 0.05601933066 | S154: 1.001665901 | T154: 0.1003311737 | U154: 13.75155025 | V154: -105.3844493 | W154: 74.61555075 | Y154: 1000000000 | Z154: 75857132.16 | AB154: 17.12328205 | AC154: -30.18034238 | AE154: 46.60766261 | AF154: -74.89175866 | AH154: 0 | AI154: =IF(AH154>0,W154,0) -> 0
A155: 8760.325 | B155: 8.760325 | C155: 2.906803875 | D155: 1.219600959 | E155: 1.000060592 | F155: 0.01100810438 | G155: 1 | H155: 0 | I155: 23956.60896 | J155: 1.570754585 | K155: 2.241613332 | L155: 1.108385247 | M155: 1.001950991 | N155: 0.06241513339 | O155: 1.001294858 | P155: 0.05086182851 | Q155: 6.317759315 | R155: 0.05634491359 | S155: 1.001685413 | T155: 0.1009155193 | U155: 13.69663963 | V155: -105.4113961 | W155: 74.58860385 | Y155: 1000000000 | Z155: 76743294.11 | AB155: 17.11300196 | AC155: -30.06793535 | AE155: 46.56305958 | AF155: -75.02930316 | AH155: 0 | AI155: 0
A156: 8811.05 | B156: 8.81105 | C156: 2.921648245 | D156: 1.221461856 | E156: 1.000061296 | F156: 0.01107183953 | G156: 1 | H156: 0 | I156: 24095.32516 | J156: 1.570754825 | K156: 2.252015832 | L156: 1.110686392 | M156: 1.001973628 | N156: 0.06277559037 | O156: 1.001309887 | P156: 0.05115582222 | Q156: 6.317874247 | R156: 0.05667048479 | S156: 1.001705039 | T156: 0.101499865 | U156: 13.64207357 | V156: -105.4384763 | W156: 74.56152371 | Y156: 1000000000 | Z156: 77634602.1 | AB156: 17.10287154 | AC156: -29.95675593 | AE156: 46.51865157 | AF156: -75.16575347 | AH156: 0 | AI156: 0
A157: 8861.775 | B157: 8.861775 | C157: 2.93650263 | D157: 1.223303932 | E157: 1.000062004 | F157: 0.01113557459 | G157: 1 | H157: 0 | I157: 24234.04136 | J157: 1.570755063 | K157: 2.262430147 | L157: 1.112966363 | M157: 1.001996395 | N157: 0.06313603102 | O157: 1.001325003 | P157: 0.05144980709 | Q157: 6.31798984 | R157: 0.05699604419 | S157: 1.00172478 | T157: 0.102084211 | U157: 13.58784778 | V157: -105.46569 | W157: 74.53431002 | Y157: 1000000000 | Z157: 78531056.15 | AB157: 17.09288791 | AC157: -29.84678853 | AE157: 46.47443721 | AF157: -75.30112547 | AH157: 0 | AI157: 0
A158: 8912.5 | B158: 8.9125 | C158: 2.951366879 | D158: 1.225127459 | E158: 1.000062716 | F158: 0.01119930955 | G158: 1 | H158: 0 | I158: 24372.75755 | J158: 1.570755297 | K158: =SQRT(1+(A158/Zero2)^2) -> 2.272856115 | L158: =ATAN(A158/Zero2) -> 1.115225429 | M158: 1.002019292 | N158: 0.06349645525 | O158: 1.001340205 | P158: 0.05174378305 | Q158: 6.318106095 | R158: 0.05732159171 | S158: 1.001744635 | T158: 0.1026685571 | U158: 13.53395806 | V158: -105.4930374 | W158: 74.50696255 | Y158: 1000000000 | Z158: 79432656.25 | AB158: 17.08304824 | AC158: -29.73801784 | AE158: 46.43041513 | AF158: -75.43543471 | AH158: 0 | AI158: 0
A159: 8964.4 | B159: 8.9644 | C159: 2.9665855 | D159: 1.226974307 | E159: 1.000063448 | F159: 0.01126452079 | G159: 1 | H159: 0 | I159: 24514.68699 | J159: 1.570755535 | K159: 2.283535486 | L159: 1.117515461 | M159: 1.002042854 | N159: 0.06386521129 | O159: 1.001355848 | P159: 0.05204455944 | Q159: 6.318225727 | R159: 0.05765466789 | S159: 1.001765069 | T159: 0.1032664392 | U159: 13.47916358 | V159: -105.5211571 | W159: 74.47884293 | Y159: 1000000000 | Z159: 80360467.36 | AB159: 17.07312674 | AC159: -29.62795043 | AE159: 46.38557091 | AF159: -75.5717711 | AH159: 0 | AI159: 0
A160: 9016.3 | B160: 9.0163 | C160: 2.981814136 | D160: 1.228802297 | E160: 1.000064185 | F160: 0.01132973193 | G160: 1 | H160: 0 | I160: 24656.61643 | J160: 1.57075577 | K160: 2.294226721 | L160: 1.119784162 | M160: 1.002066553 | N160: 0.06423394993 | O160: 1.001371582 | P160: 0.05234532641 | Q160: 6.318346051 | R160: 0.0579877315 | S160: 1.001785622 | T160: 0.1038643215 | U160: 13.42471227 | V160: -105.5494171 | W160: 74.45058291 | Y160: 1000000000 | Z160: 81293665.69 | AB160: 17.06335016 | AC160: -29.51910408 | AE160: 46.3409251 | AF160: -75.70702701 | AH160: 0 | AI160: 0
A161: 9068.2 | B161: 9.0682 | C161: 2.997052635 | D161: 1.230611704 | E161: 1.000064926 | F161: 0.01139494297 | G161: 1 | H161: 0 | I161: 24798.54587 | J161: 1.570756002 | K161: 2.304929654 | L161: 1.122031805 | M161: 1.002090388 | N161: 0.06460267109 | O161: 1.001387407 | P161: 0.0526460839 | Q161: 6.318467068 | R161: 0.05832078247 | S161: 1.001806296 | T161: 0.104462204 | U161: 13.37059985 | V161: -105.5778176 | W161: 74.4221824 | Y161: 1000000000 | Z161: 82232251.24 | AB161: 17.05371567 | AC161: -29.4114631 | AE161: 46.29647627 | AF161: -75.84121822 | AH161: 0 | AI161: 0
A162: 9120.1 | B162: 9.1201 | C162: 3.012300847 | D162: 1.232402798 | E162: 1.000065671 | F162: 0.01146015392 | G162: 1 | H162: 0 | I162: 24940.47531 | J162: 1.570756231 | K162: 2.315644124 | L162: 1.124258659 | M162: 1.002114358 | N162: 0.06497137465 | O162: 1.001403323 | P162: 0.05294683185 | Q162: 6.318588777 | R162: 0.05865382073 | S162: 1.00182709 | T162: 0.1050600867 | U162: 13.31682214 | V162: -105.6063586 | W162: 74.39364136 | Y162: 1000000000 | Z162: 83176224.01 | AB162: 17.04422052 | AC162: -29.30501206 | AE162: 46.25222299 | AF162: -75.97436021 | AH162: 0 | AI162: 0
A163: 9173.2 | B163: 9.1732 | C163: 3.027911518 | D163: 1.23421663 | E163: 1.000066438 | F163: 0.01152687253 | G163: 1 | H163: 0 | I163: 25085.68635 | J163: 1.570756463 | K163: 2.326618102 | L163: 1.126515763 | M163: 1.002139025 | N163: 0.06534858485 | O163: 1.0014197 | P163: 0.05325452359 | Q163: 6.318714017 | R163: 0.05899454606 | S163: 1.001848488 | T163: 0.1056717934 | U163: 13.26214314 | V163: -105.635705 | W163: 74.36429497 | Y163: 1000000000 | Z163: 84147598.24 | AB163: 17.03464721 | AC163: -29.19731538 | AE163: 46.2071474 | AF163: -76.10951059 | AH163: 0 | AI163: 0
A164: 9226.3 | B164: 9.2263 | C164: 3.043532048 | D164: 1.236011848 | E164: 1.000067209 | F164: 0.01159359104 | G164: 1 | H164: 0 | I164: 25230.89739 | J164: 1.570756693 | K164: 2.33760382 | L164: 1.128751663 | M164: 1.002163833 | N164: 0.06572577642 | O164: 1.001436172 | P164: 0.05356220524 | Q164: 6.318839981 | R164: 0.05933525792 | S164: 1.001870012 | T164: 0.1062835003 | U164: 13.20780586 | V164: -105.6651985 | W164: 74.33480152 | Y164: 1000000000 | Z164: 85124611.69 | AB164: 17.02521411 | AC164: -29.09083236 | AE164: 46.16227351 | AF164: -76.24359456 | AH164: 0 | AI164: 0
A165: 9279.4 | B165: 9.2794 | C165: 3.059162287 | D165: 1.237788727 | E165: 1.000067985 | F165: 0.01166030945 | G165: 1 | H165: 0 | I165: 25376.10844 | J165: 1.57075692 | K165: 2.348601116 | L165: 1.130966635 | M165: 1.002188785 | N165: 0.06610294927 | O165: 1.001452738 | P165: 0.05386987674 | Q165: 6.318966669 | R165: 0.05967595625 | S165: 1.001891662 | T165: 0.1068952074 | U165: 13.15380605 | V165: -105.6948389 | W165: 74.30516113 | Y165: 1000000000 | Z165: 86107264.36 | AB165: 17.01591846 | AC165: -28.98554721 | AE165: 46.1175998 | AF165: -76.37662781 | AH165: 0 | AI165: 0
A166: 9332.5 | B166: 9.3325 | C166: 3.074802087 | D166: 1.239547536 | E166: 1.000068766 | F166: 0.01172702775 | G166: 1 | H166: 0 | I166: 25521.31948 | J166: 1.570757144 | K166: 2.359609827 | L166: 1.13316095 | M166: 1.002213879 | N166: 0.06648010328 | O166: 1.0014694 | P166: 0.05417753804 | Q166: 6.319094082 | R166: 0.06001664096 | S166: 1.001913438 | T166: 0.1075069146 | U166: 13.10013954 | V166: -105.7246261 | W166: 74.27537395 | Y166: 1000000000 | Z166: 87095556.25 | AB166: 17.00675759 | AC166: -28.8814444 | AE166: 46.07312479 | AF166: -76.5086257 | AH166: 0 | AI166: 0
A167: 9386.85 | B167: 9.38685 | C167: 3.090819804 | D167: 1.24132931 | E167: 1.000069569 | F167: 0.01179531653 | G167: 1 | H167: 0 | I167: 25669.94886 | J167: 1.570757371 | K167: 2.370889343 | L167: 1.135385807 | M167: 1.002239711 | N167: 0.06686611607 | O167: 1.001486552 | P167: 0.05449243119 | Q167: 6.319225245 | R167: 0.06036533138 | S167: 1.001935856 | T167: 0.1081330219 | U167: 13.04555056 | V167: -105.7552663 | W167: 74.24473373 | Y167: 1000000000 | Z167: 88112952.92 | AB167: 16.99751789 | AC167: -28.77609941 | AE167: 46.02780703 | AF167: -76.64267446 | AH167: 0 | AI167: 0
A168: 9441.2 | B168: 9.4412 | C168: 3.106847232 | D168: 1.243092706 | E168: 1.000070377 | F168: 0.0118636052 | G168: 1 | H168: 0 | I168: 25818.57824 | J168: 1.570757595 | K168: 2.382180484 | L168: 1.137589583 | M168: 1.002265693 | N168: 0.0672521089 | O168: 1.001503803 | P168: 0.05480731353 | Q168: 6.319357166 | R168: 0.06071400737 | S168: 1.001958406 | T168: 0.1087591294 | U168: 12.99130212 | V168: -105.7860598 | W168: 74.21394018 | Y168: 1000000000 | Z168: 89136257.44 | AB168: 16.98841389 | AC168: -28.67196094 | AE168: 45.98269431 | AF168: -76.77567026 | AH168: 0 | AI168: 0
A169: 9495.55 | B169: 9.49555 | C169: 3.122884223 | D169: 1.244837996 | E169: 1.000071189 | F169: 0.01193189375 | G169: 1 | H169: 0 | I169: 25967.20763 | J169: 1.570757817 | K169: 2.393483086 | L169: 1.139772556 | M169: 1.002291824 | N169: 0.06763808166 | O169: 1.001521153 | P169: 0.05512218499 | Q169: 6.319489847 | R169: 0.06106266885 | S169: 1.001981088 | T169: 0.1093852371 | U169: 12.93738998 | V169: -105.8170064 | W169: 74.18299357 | Y169: 1000000000 | Z169: 90165469.8 | AB169: 16.9794429 | AC169: -28.56901309 | AE169: 45.93778505 | AF169: -76.90762869 | AH169: 0 | AI169: 0
A170: 9549.9 | B170: 9.5499 | C170: 3.138930628 | D170: 1.246565447 | E170: 1.000072007 | F170: 0.0120001822 | G170: 1 | H170: 0 | I170: 26115.83701 | J170: 1.570758036 | K170: 2.404796986 | L170: 1.141935 | M170: 1.002318104 | N170: 0.06802403424 | O170: 1.001538603 | P170: 0.05543704551 | Q170: 6.319623286 | R170: 0.06141131574 | S170: 1.002003902 | T170: 0.110011345 | U170: 12.88380996 | V170: -105.8481058 | W170: 74.15189425 | Y170: 1000000000 | Z170: 91200590.01 | AB170: 16.9706023 | AC170: -28.46724024 | AE170: 45.8930777 | AF170: -77.03856504 | AH170: 0 | AI170: 0
A171: 9605.525 | B171: 9.605525 | C171: 3.155363067 | D171: 1.248315224 | E171: 1.000072848 | F171: 0.01207007251 | G171: 1 | H171: 0 | I171: 26267.9531 | J171: 1.570758258 | K171: 2.416387833 | L171: 1.144127193 | M171: 1.002345155 | N171: 0.06841901989 | O171: 1.001556565 | P171: 0.05575928097 | Q171: 6.319760641 | R171: 0.06176812637 | S171: 1.002027387 | T171: 0.1106521409 | U171: 12.82931263 | V171: -105.8800924 | W171: 74.11990762 | Y171: 1000000000 | Z171: 92266110.53 | AB171: 16.96168665 | AC171: -28.36428052 | AE171: 45.84752902 | AF171: -77.17153038 | AH171: 0 | AI171: 0
A172: 9661.15 | B172: 9.66115 | C172: 3.171805066 | D172: 1.250046866 | E172: 1.000073694 | F172: 0.01213996271 | G172: 1 | H172: 0 | I172: 26420.06919 | J172: 1.570758477 | K172: 2.427990181 | L172: 1.146298446 | M172: 1.002372363 | N172: 0.06881398415 | O172: 1.001574631 | P172: 0.05608150484 | Q172: 6.319898791 | R172: 0.06212492154 | S172: 1.002051011 | T172: 0.1112929371 | U172: 12.77515458 | V172: -105.9122382 | W172: 74.08776184 | Y172: 1000000000 | Z172: 93337819.32 | AB172: 16.95290223 | AC172: -28.26251925 | AE172: 45.80218859 | AF172: -77.30345664 | AH172: 0 | AI172: 0
A173: 9716.775 | B173: 9.716775 | C173: 3.188256478 | D173: 1.251760642 | E173: 1.000074545 | F173: 0.01220985278 | G173: 1 | H173: 0 | I173: 26572.18527 | J173: 1.570758693 | K173: 2.439603868 | L173: 1.148449036 | M173: 1.002399727 | N173: 0.06920892692 | O173: 1.001592801 | P173: 0.05640371705 | Q173: 6.320037736 | R173: 0.06248170116 | S173: 1.002074772 | T173: 0.1119337334 | U173: 12.72133157 | V173: -105.9445426 | W173: 74.0554574 | Y173: 1000000000 | Z173: 94415716.4 | AB173: 16.94424643 | AC173: -28.16194047 | AE173: 45.75705477 | AF173: -77.4343593 | AH173: 0 | AI173: 0
A174: 9772.4 | B174: 9.7724 | C174: 3.204717157 | D174: 1.253456818 | E174: 1.000075401 | F174: 0.01227974274 | G174: 1 | H174: 0 | I174: 26724.30136 | J174: 1.570758908 | K174: 2.45122873 | L174: 1.150579238 | M174: 1.002427247 | N174: 0.06960384806 | O174: 1.001611075 | P174: 0.05672591754 | Q174: 6.320177475 | R174: 0.06283846514 | S174: 1.002098672 | T174: 0.1125745299 | U174: 12.66783944 | V174: -105.9770052 | W174: 74.02299479 | Y174: 1000000000 | Z174: 95499801.76 | AB174: 16.9357167 | AC174: -28.06252848 | AE174: 45.71212595 | AF174: -77.56425355 | AH174: 0 | AI174: 0
A175: 9829.3 | B175: 9.8293 | C175: 3.221564579 | D175: 1.255173933 | E175: 1.000076281 | F175: 0.01235123454 | G175: 1 | H175: 0 | I175: 26879.90416 | J175: 1.570759124 | K175: 2.463131448 | L175: 1.152737453 | M175: 1.00245556 | N175: 0.07000779883 | O175: 1.001629875 | P175: 0.05705549109 | Q175: 6.320321239 | R175: 0.06320339037 | S175: 1.002123262 | T175: 0.1132300145 | U175: 12.61345928 | V175: -106.010375 | W175: 73.98962503 | Y175: 1000000000 | Z175: 96615138.49 | AB175: 16.92711929 | AC175: -27.96202894 | AE175: 45.66637773 | AF175: -77.69609735 | AH175: 0 | AI175: 0
A176: 9886.2 | B176: 9.8862 | C176: 3.2384214 | D176: 1.256873178 | E176: 1.000077167 | F176: 0.01242272622 | G176: 1 | H176: 0 | I176: 27035.50695 | J176: 1.570759338 | K176: 2.475045529 | L176: 1.1548749 | M176: 1.002484037 | N176: 0.07041172671 | O176: 1.001648784 | P176: 0.05738505224 | Q176: 6.320465835 | R176: 0.06356829906 | S176: 1.002147998 | T176: 0.1138854992 | U176: 12.55941675 | V176: -106.043909 | W176: 73.95609096 | Y176: 1000000000 | Z176: 97736950.44 | AB176: 16.91864858 | AC176: -27.86271787 | AE176: 45.62084065 | AF176: -77.82691723 | AH176: 0 | AI176: 0
A177: 9943.1 | B177: 9.9431 | C177: 3.255287475 | D177: 1.258554819 | E177: 1.000078058 | F177: 0.01249421777 | G177: 1 | H177: 0 | I177: 27191.10975 | J177: 1.57075955 | K177: 2.48697081 | L177: 1.156991858 | M177: 1.002512677 | N177: 0.07081563158 | O177: 1.001667802 | P177: 0.05771460092 | Q177: 6.320611262 | R177: 0.0639331911 | S177: 1.002172877 | T177: 0.1145409842 | U177: 12.50570765 | V177: -106.0776068 | W177: 73.92239322 | Y177: 1000000000 | Z177: 98865237.61 | AB177: 16.91030204 | AC177: -27.76457927 | AE177: 45.57551302 | AF177: -77.95672853 | AH177: 0 | AI177: 0
A178: 10000 | B178: 10 | C178: 3.272162661 | D178: 1.26021912 | E178: 1.000078954 | F178: 0.0125657092 | G178: 1 | H178: 0 | I178: 27346.71254 | J178: 1.570759759 | K178: 2.498907129 | L178: 1.159088602 | M178: 1.00254148 | N178: 0.07121951331 | O178: 1.001686929 | P178: 0.05804413704 | Q178: 6.32075752 | R178: 0.06429806641 | S178: 1.002197902 | T178: 0.1151964693 | U178: 12.45232782 | V178: -106.1114675 | W178: 73.8885325 | Y178: 1000000000 | Z178: 100000000 | AB178: 16.9020772 | AC178: -27.66759741 | AE178: 45.53039317 | AF178: -78.08554632 | AH178: 0 | AI178: 0
A179: 10058.25 | B179: 10.05825 | C179: 3.289447517 | D179: 1.261905214 | E179: 1.000079876 | F179: 0.01263889668 | G179: 1 | H179: 0 | I179: 27506.00714 | J179: 1.570759971 | K179: 2.511137918 | L179: 1.161214435 | M179: 1.002571137 | N179: 0.07163295336 | O179: 1.001706622 | P179: 0.05838147861 | Q179: 6.320908109 | R179: 0.06467158125 | S179: 1.00222367 | T179: 0.1158675066 | U179: 12.39801834 | V179: -106.1462997 | W179: 73.85370032 | Y179: 1000000000 | Z179: 101168393.1 | AB179: 16.89378074 | AC179: -27.56949666 | AE179: 45.48441632 | AF179: -78.21640669 | AH179: 0 | AI179: 0
A180: 10116.5 | B180: 10.1165 | C180: 3.306741625 | D180: 1.263573677 | E180: 1.000080804 | F180: 0.01271208403 | G180: 1 | H180: 0 | I180: 27665.30174 | J180: 1.57076018 | K180: 2.523379946 | L180: 1.163319651 | M180: 1.002600965 | N180: 0.07204636888 | O180: 1.001726429 | P180: 0.05871880687 | Q180: 6.321059569 | R180: 0.06504507836 | S180: 1.00224959 | T180: 0.116538544 | U180: 12.34404538 | V180: -106.1813011 | W180: 73.81869886 | Y180: 1000000000 | Z180: 102343572.2 | AB180: 16.88560676 | AC180: -27.47257564 | AE180: 45.43865373 | AF180: -78.34625685 | AH180: 0 | AI180: 0
A181: 10174.75 | B181: 10.17475 | C181: 3.324044844 | D181: 1.265224774 | E181: 1.000081737 | F181: 0.01278527124 | G181: 1 | H181: 0 | I181: 27824.59634 | J181: 1.570760387 | K181: 2.535633049 | L181: 1.165404529 | M181: 1.002630964 | N181: 0.07245975973 | O181: 1.00174635 | P181: 0.05905612176 | Q181: 6.3212119 | R181: 0.06541855764 | S181: 1.002275661 | T181: 0.1172095817 | U181: 12.29040473 | V181: -106.2164711 | W181: 73.78352893 | Y181: 1000000000 | Z181: 103525537.6 | AB181: 16.87755277 | AC181: -27.37681831 | AE181: 45.39310365 | AF181: -78.47511204 | AH181: 0 | AI181: 0
A182: 10233 | B182: 10.233 | C182: 3.34135703 | D182: 1.266858766 | E182: 1.000082676 | F182: 0.01285845832 | G182: 1 | H182: 0 | I182: 27983.89094 | J182: 1.570760592 | K182: 2.547897067 | L182: 1.167469346 | M182: 1.002661134 | N182: 0.07287312578 | O182: 1.001766386 | P182: 0.05939342319 | Q182: 6.321365102 | R182: 0.06579201897 | S182: 1.002301885 | T182: 0.1178806195 | U182: 12.23709225 | V182: -106.2518086 | W182: 73.74819138 | Y182: 1000000000 | Z182: 104714289 | AB182: 16.86961637 | AC182: -27.28220887 | AE182: 45.34776437 | AF182: -78.60298722 | AH182: 0 | AI182: 0
A183: 10292.5 | B183: 10.2925 | C183: 3.359049837 | D183: 1.268510429 | E183: 1.00008364 | F183: 0.01293321579 | G183: 1 | H183: 0 | I183: 28146.60388 | J183: 1.570760799 | K183: 2.560435368 | L183: 1.169558042 | M183: 1.002692129 | N183: 0.07329533658 | O183: 1.001786968 | P183: 0.05973794889 | Q183: 6.321522491 | R183: 0.06617347586 | S183: 1.002328828 | T183: 0.1185660574 | U183: 12.18297032 | V183: -106.2880766 | W183: 73.71192336 | Y183: 1000000000 | Z183: 105935556.2 | AB183: 16.86162862 | AC183: -27.18673816 | AE183: 45.30166798 | AF183: -78.73260995 | AH183: 0 | AI183: 0
A184: 10352 | B184: 10.352 | C184: 3.376751711 | D184: 1.27014478 | E184: 1.00008461 | F184: 0.01300797311 | G184: 1 | H184: 0 | I184: 28309.31682 | J184: 1.570761003 | K184: 2.572984731 | L184: 1.171626372 | M184: 1.002723302 | N184: 0.07371752121 | O184: 1.00180767 | P184: 0.06008246038 | Q184: 6.321680788 | R184: 0.06655491383 | S184: 1.002355929 | T184: 0.1192514955 | U184: 12.12918229 | V184: -106.3245177 | W184: 73.67548229 | Y184: 1000000000 | Z184: 107163904 | AB184: 16.85375865 | AC184: -27.09243268 | AE184: 45.25578793 | AF184: -78.86124076 | AH184: 0 | AI184: 0
A185: 10411.5 | B185: 10.4115 | C185: 3.394462511 | D185: 1.27176208 | E185: 1.000085585 | F185: 0.0130827303 | G185: 1 | H185: 0 | I185: 28472.02976 | J185: 1.570761205 | K185: 2.585544994 | L185: 1.173674615 | M185: 1.002754655 | N185: 0.07413967951 | O185: 1.00182849 | P185: 0.0604269576 | Q185: 6.321839994 | R185: 0.06693633276 | S185: 1.002383189 | T185: 0.1199369338 | U185: 12.07572399 | V185: -106.3611308 | W185: 73.63886915 | Y185: 1000000000 | Z185: 108399332.2 | AB185: 16.84600409 | AC185: -26.99927644 | AE185: 45.21012242 | AF185: -78.98889468 | AH185: 0 | AI185: 0
A186: 10471 | B186: 10.471 | C186: 3.412182097 | D186: 1.273362586 | E186: 1.000086566 | F186: 0.01315748733 | G186: 1 | H186: 0 | I186: 28634.7427 | J186: 1.570761404 | K186: 2.598115999 | L186: 1.175703046 | M186: 1.002786186 | N186: 0.07456181134 | O186: 1.00184943 | P186: 0.06077144045 | Q186: 6.322000108 | R186: 0.06731773254 | S186: 1.002410607 | T186: 0.1206223723 | U186: 12.02259133 | V186: -106.3979151 | W186: 73.60208493 | Y186: 1000000000 | Z186: 109641841 | AB186: 16.8383626 | AC186: -26.90725372 | AE186: 45.16466969 | AF186: -79.11558644 | AH186: 0 | AI186: 0
A187: 10532 | B187: 10.532 | C187: 3.430357375 | D187: 1.274986273 | E187: 1.000087577 | F187: 0.01323412884 | G187: 1 | H187: 0 | I187: 28801.55764 | J187: 1.570761606 | K187: 2.61101491 | L187: 1.177762328 | M187: 1.002818697 | N187: 0.07499455751 | O187: 1.001871021 | P187: 0.06112459276 | Q187: 6.322165202 | R187: 0.06770872745 | S187: 1.002438881 | T187: 0.1213250909 | U187: 11.96845302 | V187: -106.4358032 | W187: 73.56419683 | Y187: 1000000000 | Z187: 110923024 | AB187: 16.83064347 | AC187: -26.81407168 | AE187: 45.11829014 | AF187: -79.24448837 | AH187: 0 | AI187: 0
A188: 10593 | B188: 10.593 | C188: 3.448541601 | D188: 1.276592839 | E188: 1.000088595 | F188: 0.0133107702 | G188: 1 | H188: 0 | I188: 28968.37259 | J188: 1.570761806 | K188: 2.623924784 | L188: 1.179801355 | M188: 1.002851396 | N188: 0.07542727554 | O188: 1.001892736 | P188: 0.0614777298 | Q188: 6.32233125 | R188: 0.06809970201 | S188: 1.002467322 | T188: 0.1220278096 | U188: 11.91464846 | V188: -106.4738689 | W188: 73.52613107 | Y188: 1000000000 | Z188: 112211649 | AB188: 16.82303841 | AC188: -26.72204841 | AE188: 45.0721305 | AF188: -79.37240946 | AH188: 0 | AI188: 0
A189: 10654 | B189: 10.654 | C189: 3.466734634 | D189: 1.278182548 | E189: 1.000089618 | F189: 0.0133874114 | G189: 1 | H189: 0 | I189: 29135.18754 | J189: 1.570762004 | K189: 2.636845461 | L189: 1.181820408 | M189: 1.002884283 | N189: 0.07585996528 | O189: 1.001914577 | P189: 0.06183085149 | Q189: 6.322498253 | R189: 0.06849065611 | S189: 1.002495929 | T189: 0.1227305286 | U189: 11.86117348 | V189: -106.5121112 | W189: 73.4878888 | Y189: 1000000000 | Z189: 113507716 | AB189: 16.81554509 | AC189: -26.63116783 | AE189: 45.02618893 | AF189: -79.49936467 | AH189: 0 | AI189: 0
A190: 10715 | B190: 10.715 | C190: 3.484936337 | D190: 1.279755655 | E190: 1.000090647 | F190: 0.01346405245 | G190: 1 | H190: 0 | I190: 29302.00248 | J190: 1.570762199 | K190: 2.649776782 | L190: 1.183819762 | M190: 1.002917357 | N190: 0.07629262655 | O190: 1.001936542 | P190: 0.06218395774 | Q190: 6.32266621 | R190: 0.06888158962 | S190: 1.002524704 | T190: 0.1234332477 | U190: 11.80802395 | V190: -106.5505289 | W190: 73.44947115 | Y190: 1000000000 | Z190: 114811225 | AB190: 16.80816124 | AC190: -26.54141414 | AE190: 44.98046357 | AF190: -79.62536867 | AH190: 0 | AI190: 0
A191: 10777.5 | B191: 10.7775 | C191: 3.503594474 | D191: 1.281350487 | E191: 1.000091708 | F191: 0.01354257794 | G191: 1 | H191: 0 | I191: 29472.91944 | J191: 1.570762397 | K191: 2.663036964 | L191: 1.185848133 | M191: 1.00295144 | N191: 0.07673589736 | O191: 1.001959178 | P191: 0.06254573083 | Q191: 6.322839287 | R191: 0.06928211478 | S191: 1.002554358 | T191: 0.124153247 | U191: 11.75390081 | V191: -106.5900719 | W191: 73.40992811 | Y191: 1000000000 | Z191: 116154506.2 | AB191: 16.80070703 | AC191: -26.45060592 | AE191: 44.93383618 | AF191: -79.75349959 | AH191: 0 | AI191: 0
A192: 10840 | B192: 10.84 | C192: 3.522261427 | D192: 1.28292842 | E192: 1.000092774 | F192: 0.01362110327 | G192: 1 | H192: 0 | I192: 29643.83639 | J192: 1.570762593 | K192: 2.676307995 | L192: 1.187856396 | M192: 1.00298572 | N192: 0.07717913795 | O192: 1.001981944 | P192: 0.06290748752 | Q192: 6.323013366 | R192: 0.06968261808 | S192: 1.002584189 | T192: 0.1248732464 | U192: 11.70011083 | V192: -106.6297966 | W192: 73.37020344 | Y192: 1000000000 | Z192: 117505600 | AB192: 16.79336308 | AC192: -26.36094795 | AE192: 44.88743192 | AF192: -79.88066222 | AH192: 0 | AI192: 0
A193: 10902.5 | B193: 10.9025 | C193: 3.540937058 | D193: 1.284489711 | E193: 1.000093847 | F193: 0.01369962843 | G193: 1 | H193: 0 | I193: 29814.75334 | J193: 1.570762786 | K193: 2.689589712 | L193: 1.189844832 | M193: 1.003020196 | N193: 0.07762234816 | O193: 1.002004841 | P193: 0.06326922773 | Q193: 6.323188447 | R193: 0.07008309941 | S193: 1.002614194 | T193: 0.125593246 | U193: 11.64664982 | V193: -106.6697016 | W193: 73.33029842 | Y193: 1000000000 | Z193: 118864506.2 | AB193: 16.78612713 | AC193: -26.27242408 | AE193: 44.84124889 | AF193: -80.00687141 | AH193: 0 | AI193: 0
A194: 10965 | B194: 10.965 | C194: 3.55962123 | D194: 1.286034616 | E194: 1.000094926 | F194: 0.01377815343 | G194: 1 | H194: 0 | I194: 29985.6703 | J194: 1.570762978 | K194: 2.70288196 | L194: 1.191813719 | M194: 1.00305487 | N194: 0.07806552781 | O194: 1.00202787 | P194: 0.06363095136 | Q194: 6.32336453 | R194: 0.07048355863 | S194: 1.002644374 | T194: 0.1263132458 | U194: 11.59351368 | V194: -106.7097857 | W194: 73.29021432 | Y194: 1000000000 | Z194: 120231225 | AB194: 16.77899695 | AC194: -26.18501845 | AE194: 44.79528518 | AF194: -80.13214175 | AH194: 0 | AI194: 0
A195: 11028.75 | B195: 11.02875 | C195: 3.578687746 | D195: 1.287593797 | E195: 1.000096033 | F195: 0.01385824874 | G195: 1 | H195: 0 | I195: 30160.00559 | J195: 1.57076317 | K195: 2.71645074 | L195: 1.193802125 | M195: 1.00309044 | N195: 0.0785175394 | O195: 1.002051494 | P195: 0.06399989228 | Q195: 6.323545166 | R195: 0.07089200415 | S195: 1.002675339 | T195: 0.1270476457 | U195: 11.5396453 | V195: -106.7508546 | W195: 73.24914542 | Y195: 1000000000 | Z195: 121633326.6 | AB195: 16.7718309 | AC195: -26.09700057 | AE195: 44.74862619 | AF195: -80.25896509 | AH195: 0 | AI195: 0
A196: 11092.5 | B196: 11.0925 | C196: 3.597762869 | D196: 1.289136447 | E196: 1.000097147 | F196: 0.01393834388 | G196: 1 | H196: 0 | I196: 30334.34088 | J196: 1.570763361 | K196: 2.730030153 | L196: 1.195770758 | M196: 1.003126215 | N196: 0.07896951885 | O196: 1.002075255 | P196: 0.06436881576 | Q196: 6.323726844 | R196: 0.0713004264 | S196: 1.002706486 | T196: 0.1277820457 | U196: 11.48610651 | V196: -106.7921071 | W196: 73.20789295 | Y196: 1000000000 | Z196: 123043556.2 | AB196: 16.76477042 | AC196: -26.01011364 | AE196: 44.70219146 | AF196: -80.38484138 | AH196: 0 | AI196: 0
A197: 11156.25 | B197: 11.15625 | C197: 3.616846464 | D197: 1.290662823 | E197: 1.000098266 | F197: 0.01401843884 | G197: 1 | H197: 0 | I197: 30508.67617 | J197: 1.570763549 | K197: 2.743620042 | L197: 1.197719897 | M197: 1.003162195 | N197: 0.07942146596 | O197: 1.002099152 | P197: 0.06473772169 | Q197: 6.323909563 | R197: 0.07170882527 | S197: 1.002737816 | T197: 0.128516446 | U197: 11.43289316 | V197: -106.8335417 | W197: 73.16645831 | Y197: 1000000000 | Z197: 124461914.1 | AB197: 16.75781333 | AC197: -25.9243417 | AE197: 44.65597904 | AF197: -80.50978518 | AH197: 0 | AI197: 0
A198: 11220 | B198: 11.22 | C198: 3.635938396 | D198: 1.292173172 | E198: 1.000099393 | F198: 0.01409853362 | G198: 1 | H198: 0 | I198: 30683.01146 | J198: 1.570763735 | K198: 2.757220252 | L198: 1.199649813 | M198: 1.00319838 | N198: 0.07987338056 | O198: 1.002123185 | P198: 0.06510660998 | Q198: 6.324093325 | R198: 0.07211720061 | S198: 1.002769328 | T198: 0.1292508463 | U198: 11.38000121 | V198: -106.8751571 | W198: 73.1248429 | Y198: 1000000000 | Z198: 125888400 | AB198: 16.75095751 | AC198: -25.83966908 | AE198: 44.609987 | AF198: -80.63381076 | AH198: 0 | AI198: 0
A199: 11285.5 | B199: 11.2855 | C199: 3.655562969 | D199: 1.293708546 | E199: 1.000100556 | F199: 0.0141808269 | G199: 1 | H199: 0 | I199: 30862.13243 | J199: 1.570763925 | K199: 2.77120439 | L199: 1.201612971 | M199: 1.003235771 | N199: 0.08033766661 | O199: 1.00214802 | P199: 0.06548560613 | Q199: 6.324283216 | R199: 0.07253676162 | S199: 1.002801896 | T199: 0.1300054069 | U199: 11.3259879 | V199: -106.9181017 | W199: 73.08189833 | Y199: 1000000000 | Z199: 127362510.2 | AB199: 16.74401678 | AC199: -25.75380091 | AE199: 44.56295996 | AF199: -80.76029931 | AH199: 0 | AI199: 0
A200: 11351 | B200: 11.351 | C200: 3.675196067 | D200: 1.29522752 | E200: 1.000101727 | F200: 0.01426311998 | G200: 1 | H200: 0 | I200: 31041.2534 | J200: 1.570764112 | K200: 2.785199101 | L200: 1.203556407 | M200: 1.003273379 | N200: 0.08080191796 | O200: 1.002172999 | P200: 0.06586458345 | Q200: 6.324474207 | R200: 0.07295629753 | S200: 1.002834656 | T200: 0.1307599675 | U200: 11.27230542 | V200: -106.961234 | W200: 73.03876596 | Y200: 1000000000 | Z200: 128845201 | AB200: 16.73717857 | AC200: -25.66906056 | AE200: 44.51616149 | AF200: -80.88584819 | AH200: 0 | AI200: 0
A201: 11416.5 | B201: 11.4165 | C201: 3.694837554 | D201: 1.296730348 | E201: 1.000102904 | F201: 0.01434541286 | G201: 1 | H201: 0 | I201: 31220.37437 | J201: 1.570764296 | K201: 2.799204227 | L201: 1.205480404 | M201: 1.003311203 | N201: 0.0812661344 | O201: 1.002198122 | P201: 0.06624354182 | Q201: 6.324666297 | R201: 0.07337580818 | S201: 1.002867609 | T201: 0.1315145283 | U201: 11.21894961 | V201: -107.0045527 | W201: 72.99544733 | Y201: 1000000000 | Z201: 130336472.2 | AB201: 16.73044074 | AC201: -25.58543191 | AE201: 44.46958958 | AF201: -81.010472 | AH201: 0 | AI201: 0
A202: 11482 | B202: 11.482 | C202: 3.714487298 | D202: 1.298217279 | E202: 1.000104088 | F202: 0.01442770556 | G202: 1 | H202: 0 | I202: 31399.49533 | J202: 1.570764479 | K202: 2.813219611 | L202: 1.207385237 | M202: 1.003349243 | N202: 0.08173031574 | O202: 1.002223389 | P202: 0.06662248113 | Q202: 6.324859486 | R202: 0.07379529343 | S202: 1.002900756 | T202: 0.1322690893 | U202: 11.1659164 | V202: -107.048056 | W202: 72.95194401 | Y202: 1000000000 | Z202: 131836324 | AB202: 16.72380122 | AC202: -25.50289912 | AE202: 44.42324222 | AF202: -81.134185 | AH202: 0 | AI202: 0
... 433 more rows

Sheet Bode Plot Management (hidden)
J1: Single or dual output (MODE) | N1: 3.3V or 5V fixed (FB1/2)
A2: =CHOOSE(BODE_PLOT_TYPE, "BODE_PLOT_Ch1", "BODE_PLOT_Ch2") -> BODE_PLOT_Ch1 | J2: With/without dither (DITH) | N2: With/without VOUT connected to VCCX
J3: FPWM or DEM (DEMB)
J4: Shunt or inductor DCR current sensing
F6: =INDIRECT(A2) -> 0

Sheet Efficiency Calculations (hidden)
A1: BUCK CONTROLLER POWER DESIGN TOOL
H2: =AV19 -> 0.9376633997 | I2: 10% load
H3: =AV59 -> 0.9445794696 | I3: 50% load | AP3: =IF(MODE=1, (Qg_Q1+Qg_Q2)*Fsw*Vin, (Qg_Q1+Qg_Q2+Qg_Q3+Qg_Q4)*Fsw*Vin) -> 0.4752
H4: =AV109 -> 0.9333349029 | I4: 100% load | AO4: I_VCC | AP4: =(Qg_Q1+Qg_Q2)*Fsw*1000 -> 9.9 | AQ4: mA | AR4: =AP4*5/1000 -> 0.0495
A6: Enter the values of your design and MOSFET datasheet specifications below. Note that thermal resistance (θJA) will change when components are placed on the PCB
G7: Operating Point Condtions | R7: Filter Inductor | V7: Cout | Y7: Cin | AB7: High-side BUCK "Control" MOSFET Losses | AH7: Low-side BUCK "Sync" MOSFET Losses | AL7: External Diode | AM7: Diode/FET | AN7: Sense Rs | AO7: Controller IC Losses | AT7: RESULTS | AZ7: Consolidated Buck/Boost Efficiency & Losses
A8: Input Parameters | G8: Step | H8: Vin | I8: Mode | J8: Iout | K8: Iout/ phase | L8: Iin | M8: Duty Cycle BUCK Leg | N8: Ripple Current pk-pk | O8: Peak Inductor Current | P8: Valley Inductor Current | Q8: SW node voltage at Q1 turn-on | R8: Irms Lf | S8: DCR Loss | T8: Core Loss | U8: Total Inductor Loss | V8: Irms Cout | W8: Cout ESR Loss | X8: Total Cout Loss | Y8: Irms Cin | Z8: Cin ESR Loss | AA8: Total Cin Loss | AB8: Irms | AC8: RDS(on) Loss | AD8: Transition Loss (not including capacitive loss) | AE8: MOSFET Output Capacitance Loss | AF8: Dead Time Loss | AG8: Total Control MOSFET Loss | AH8: Irms | AI8: RDS(on) Loss | AJ8: Deadtime Loss | AK8: Total Sync MOSFET Loss | AL8: Deadtime Loss | AM8: Reverse Recovery Loss | AN8: Isense Shunt Loss | AO8: IQ Loss | AP8: Switching Current Loss | AQ8: Switching Current Diss | AR8: LDO Loss Saved from Gate Drive Current (ext VCC) | AS8: Total IC Loss | AT8: Total Loss | AU8: Pout | AV8: EFF, h | AW8: =IF(Vin>Vout, "Buck ''CONTROL'' MOSFET Temp Rise", "Boost ''CONTROL'' MOSFET Temp Rise") -> Buck ''CONTROL'' MOSFET Temp Rise | AX8: =IF(Vin>Vout, "Buck ''SYNC'' MOSFET Temp Rise", "Boost ''SYNC'' MOSFET Temp Rise") -> Buck ''SYNC'' MOSFET Temp Rise | AZ8: h | BA8: Inductor Cu & Core Loss | BB8: Total MOSFET Loss | BC8: Control MOSFET Loss | BD8: SYNC MOSFET Loss | BE8: Shunt Loss
A9: Design | B9: Input Value | C9: Units | D9: Description | G9: 0 | H9: =Vin -> 48 | I9: =MODE -> 1 | J9: 0 | K9: =Iout*G9/100/Number_of_Phases -> 0 | L9: =Vout*K9/(Vin*Efficiency) -> 0 | M9: =(Vout+(Rdson2+Rs+Rdcr)*K9)/(Vin+(Rs+Rdson2-Rdson1)*K9) -> 0.1041666667 | N9: =(Vin-(Rdson1+Rdcr)*K9-Vout)*M9/(Fsw*Lf) -> 6.786616162 | O9: =K9+N9/2 -> 3.393308081 | P9: =K9-N9/2 -> -3.393308081 | Q9: =IF(MIN(Vin, -P9/(Coss_Q1+Coss_Q2)*0.00000002)<0, 0, MIN(Vin, -P9/(Coss_Q1+Coss_Q2)*0.00000002)) -> 48 | R9: =SQRT(K9^2+(N9^2)/12) -> 1.959127334 | S9: =R9^2*Rdcr -> 0.01343362969 | T9: =Core_Loss_Ch1 -> 0.2 | U9: =(T9+S9*(1+Ltc*(Ta-25)))/(1-S9*Ltc*ThetaCa) -> 0.2136632515 | V9: =N9/SQRT(12) -> 1.959127334 | W9: =RCoutEsr*V9^2 -> 0.00383817991 | X9: =W9 -> 0.00383817991 | Y9: =SQRT(M9*(1-M9))*SQRT(K9^2+(N9^2)/12) -> 0.5984676181 | Z9: =RCinEsr*Y9^2 -> 0.0003581634899 | AA9: =Z9 -> 0.0003581634899 | AB9: =SQRT(M9)*SQRT(K9^2+(N9^2)/12) -> 0.6323056281 | AC9: =Rdson1*AB9^2 -> 0.004797724888 | AD9: =(Vin*K9/2)*Fsw*(Tr_buck+Tf_buck) -> 0 | AE9: =(0.5*Coss_Q1*(Vin-Q9)^2-0.5*Coss_Q2*(Vin-Q9)^2+(Qoss_Q2*(Vin-Q9)/Vin)*Vin)*Fsw -> 0 | AF9: =IF(K9>N9/2,0,ABS(K9-N9/2)*Vsd_Q1*Deadtime*Fsw) -> 0.009976325758 | AG9: =(AF9+AE9+AD9+AC9*(1+RdsonTopTc*Ta-RdsonTopTc*25))/(1-AC9*RdsonTopTc*ThetaJA_Q1) -> 0.0147859684 | AH9: =SQRT((1-M9))*SQRT(K9^2+(N9^2)/12) -> 1.854284094 | AI9: =Rdson2*AH9^2 -> 0.01409731496 | AJ9: =IF(K9<N9/2,Deadtime*Fsw*IF(VfdSky_Q2>0,0,Vsd_Q2)*(K9+N9/2),2*Deadtime*Fsw*IF(VfdSky_Q2>0,0,Vsd_Q2)*K9) -> 0.009976325758 | AK9: =(AJ9+AI9*(1+RdsonBotTc*Ta-RdsonBotTc*25))/(1-AI9*RdsonBotTc*ThetaJA_Q2) -> 0.02412901785 | AL9: =2*Deadtime*Fsw*IF(VfdSky_Q2>0,VfdSky_Q2,Vsd_Q2)*K9 -> 0 | AM9: =IF(QrrSky_Q2>0,QrrSky_Q2,Qrr_Q2*K9/(Iout/Number_of_Phases))*Fsw*Vin -> 0 | AN9: =Rs*R9^2 -> 0.007676359821 | AO9: =Iq*Vin -> 0.0001056 | AP9: =IF(Ext_VCC=1, (Qg_Q1+Qg_Q2)*Fsw*VCC, (Qg_Q1+Qg_Q2)*Fsw*Vin) -> 0.0495 | AQ9: =(Vin-VCC)*Fsw*(Qg_Q1+Qg_Q2)+(RdsonDRT+RdsonDRT2)*Fsw*Qg_Q1*VCC/(RdsonDRT+2*Rgate1+RdsonDRT2)+(RdsonDRB+RdsonDRB2)*Fsw*Qg_Q2*VCC/(RdsonDRB+2*Rgate2+RdsonDRB2) -> 0.4447384615 | AR9: =(Qg_Q1+Qg_Q2)*Fsw*(Vin-VCC) -> 0.4257 | AS9: =SUM(AO9:AP9) -> 0.0496056 | AT9: =SUM(U9,X9,AA9,AG9,AK9,AL9,AM9,AS9,AN9) -> 0.314056541 | AU9: =Vout*K9 -> 0 | AV9: =AU9/(AU9+AT9) -> 0 | AW9: =ThetaJA_Q1*BC9 -> 0.6210106728 | AX9: =ThetaJA_Q2*BD9 -> 0.9820510265 | AZ9: =AV9*100 -> 0 | BA9: =U9 -> 0.2136632515 | BB9: =AG9+AK9+AM9 -> 0.03891498625 | BC9: =AG9+AM9*0.66 -> 0.0147859684 | BD9: =AK9+AM9*0.33 -> 0.02412901785 | BE9: =AN9 -> 0.007676359821
G10: 1 | H10: 48 | I10: 1 | J10: =Iout*G10/100 -> 0.16 | K10: 0.16 | L10: 0.01851851852 | M10: 0.1042007159 | N10: 6.788442982 | O10: =K10+N10/2 -> 3.554221491 | P10: =K10-N10/2 -> -3.234221491 | Q10: 48 | R10: =SQRT(K10^2+(N10^2)/12) -> 1.966175605 | S10: 0.01353046278 | T10: 0.2 | U10: 0.2137618465 | V10: =N10/SQRT(12) -> 1.959654691 | W10: 0.00384024651 | X10: =W10 -> 0.00384024651 | Y10: =SQRT(M10*(1-M10))*SQRT(K10^2+(N10^2)/12) -> 0.6007074392 | Z10: 0.0003608494276 | AA10: =Z10 -> 0.0003608494276 | AB10: =SQRT(M10)*SQRT(K10^2+(N10^2)/12) -> 0.634684153 | AC10: 0.004833887689 | AD10: 0.009579048121 | AE10: 0 | AF10: 0.009508611183 | AG10: 0.02394098931 | AH10: 1.860919809 | AI10: 0.0141983924 | AJ10: 0.01044941118 | AK10: 0.02470490893 | AL10: 0.0009408 | AM10: 0.008496 | AN10: 0.007731693019 | AO10: 0.0001056 | AP10: 0.0495 | AQ10: 0.4447384615 | AR10: 0.4257 | AS10: 0.0496056 | AT10: 0.3333829337 | AU10: 0.8 | AV10: =AU10/(AU10+AT10) -> 0.7058514613 | AW10: 1.241030671 | AX10: 1.11959957 | AZ10: =AV10*100 -> 70.58514613 | BA10: 0.2137618465 | BB10: 0.05714189824 | BC10: 0.02954834931 | BD10: 0.02750858893 | BE10: 0.007731693019
A11: Vin | B11: =Vin -> 48 | C11: V | D11: Vin | G11: 2 | H11: 48 | I11: 1 | J11: 0.32 | K11: 0.32 | L11: 0.03703703704 | M11: 0.1042347666 | N11: 6.790269633 | O11: 3.715134817 | P11: -3.075134817 | Q11: 48 | R11: 1.986130276 | S11: 0.01380649716 | T11: 0.2 | U11: 0.2140429118 | V11: 1.960182 | W11: 0.003842313474 | X11: 0.003842313474 | Y11: 0.6068916079 | Z11: 0.0003683174238 | AA11: 0.0003683174238 | AB11: 0.6412302926 | AC11: 0.004934115458 | AD11: 0.01915809624 | AE11: 0 | AF11: 0.009040896361 | AG11: 0.03316059592 | AH11: 1.879770514 | AI11: 0.01448750246 | AJ11: 0.01092249636 | AK11: 0.02547007165 | AL11: 0.0018816 | AM11: 0.016992 | AN11: 0.007889426949 | AO11: 0.0001056 | AP11: 0.0495 | AQ11: 0.4447384615 | AR11: 0.4257 | AS11: 0.0496056 | AT11: 0.3532528372 | AU11: 1.6 | AV11: 0.8191463847 | AW11: 1.863763269 | AX11: 1.264851468 | AZ11: 81.91463847 | BA11: 0.2140429118 | BB11: 0.07562266757 | BC11: 0.04437531592 | BD11: 0.03107743165 | BE11: 0.007889426949
A12: Vout | B12: =Vout -> 5 | C12: V | D12: Vout | G12: 3 | H12: 48 | I12: 1 | J12: 0.48 | K12: 0.48 | L12: 0.05555555556 | M12: 0.1042688185 | N12: 6.792096116 | O12: 3.876048058 | P12: -2.916048058 | Q12: 48 | R12: 2.018608631 | S12: 0.01426173281 | T12: 0.2 | U12: 0.2145064715 | V12: 1.960709261 | W12: 0.003844380804 | X12: 0.003844380804 | Y12: 0.6169048697 | Z12: 0.0003805716183 | AA12: 0.0003805716183 | AB12: 0.6518225067 | AC12: 0.005098470963 | AD12: 0.02873714436 | AE12: 0 | AF12: 0.008573181291 | AG12: 0.04244515272 | AH12: 1.910473298 | AI12: 0.01496462372 | AJ12: 0.01139558129 | AK12: 0.02642458165 | AL12: 0.0028224 | AM12: 0.025488 | AN12: 0.008149561608 | AO12: 0.0001056 | AP12: 0.0495 | AQ12: 0.4447384615 | AR12: 0.4257 | AS12: 0.0496056 | AT12: 0.3736667199 | AU12: 2.4 | AV12: 0.8652805987 | AW12: 2.489223774 | AX12: 1.417809801 | AZ12: 86.52805987 | BA12: 0.2145064715 | BB12: 0.09435773437 | BC12: 0.05926723272 | BD12: 0.03483562165 | BE12: 0.008149561608
A13: Fsw | B13: =Fsw/1000 -> 300 | C13: kHz | D13: Switching Frequency | G13: 4 | H13: 48 | I13: 1 | J13: 0.64 | K13: 0.64 | L13: 0.07407407407 | M13: 0.1043028718 | N13: 6.79392243 | O13: 4.036961215 | P13: -2.756961215 | Q13: 48 | R13: 2.063019268 | S13: 0.01489616975 | T13: 0.2 | U13: 0.2151525657 | V13: 1.961236472 | W13: 0.003846448499 | X13: 0.003846448499 | Y13: 0.6305681172 | Z13: 0.0003976161504 | AA13: 0.0003976161504 | AB13: 0.6662717772 | AC13: 0.005327016973 | AD13: 0.03831619248 | AE13: 0 | AF13: 0.008105465973 | AG13: 0.05179502881 | AH13: 1.952467776 | AI13: 0.01562973471 | AJ13: 0.01186866597 | AK13: 0.02756854943 | AL13: 0.0037632 | AM13: 0.033984 | AN13: 0.008512096998 | AO13: 0.0001056 | AP13: 0.0495 | AQ13: 0.4447384615 | AR13: 0.4257 | AS13: 0.0496056 | AT13: 0.3946251056 | AU13: 3.2 | AV13: 0.8902180077 | AW13: 3.11742769 | AX13: 1.578479066 | AZ13: 89.02180077 | BA13: 0.2151525657 | BB13: 0.1133475782 | BC13: 0.07422446881 | BD13: 0.03878326943 | BE13: 0.008512096998
A14: Iout | B14: =Iout -> 16 | C14: A | D14: Max Output Current | G14: 5 | H14: 48 | I14: 1 | J14: 0.8 | K14: 0.8 | L14: 0.09259259259 | M14: 0.1043369265 | N14: 6.795748576 | O14: 4.197874288 | P14: -2.597874288 | Q14: 48 | R14: 2.118611942 | S14: 0.01570980796 | T14: 0.2 | U14: 0.2159812499 | V14: 1.961763635 | W14: 0.003848516559 | X14: 0.003848516559 | Y14: 0.6476535795 | Z14: 0.0004194551591 | AA14: 0.0004194551591 | AB14: 0.6843376521 | AC14: 0.005619816266 | AD14: 0.04789524061 | AE14: 0 | AF14: 0.007637750407 | AG14: 0.06121059799 | AH14: 2.005043276 | AI14: 0.016482814 | AJ14: 0.01234175041 | AK14: 0.02890212042 | AL14: 0.004704 | AM14: 0.04248 | AN14: 0.008977033118 | AO14: 0.0001056 | AP14: 0.0495 | AQ14: 0.4447384615 | AR14: 0.4257 | AS14: 0.0496056 | AT14: 0.4161285731 | AU14: 4 | AV14: 0.9057707297 | AW14: 3.748390715 | AX14: 1.746865181 | AZ14: 90.57707297 | BA14: 0.2159812499 | BB14: 0.1325927184 | BC14: 0.08924739799 | BD14: 0.04292052042 | BE14: 0.008977033118
A15: Ta | B15: =Ta -> 25 | C15: °C | D15: Ambient Temperature | G15: 6 | H15: 48 | I15: 1 | J15: 0.96 | K15: 0.96 | L15: 0.1111111111 | M15: 0.1043709824 | N15: 6.797574553 | O15: 4.358787276 | P15: -2.438787276 | Q15: 48 | R15: 2.184533127 | S15: 0.01670264744 | T15: 0.2 | U15: 0.2169925955 | V15: 1.962290749 | W15: 0.003850584983 | X15: 0.003850584983 | Y15: 0.6679017765 | Z15: 0.000446092783 | AA15: 0.000446092783 | AB15: 0.7057461549 | AC15: 0.005976931621 | AD15: 0.05747428873 | AE15: 0 | AF15: 0.007170034593 | AG15: 0.07069223875 | AH15: 2.067391436 | AI15: 0.01752384013 | AJ15: 0.01281483459 | AK15: 0.03042547499 | AL15: 0.0056448 | AM15: 0.050976 | AN15: 0.009544369967 | AO15: 0.0001056 | AP15: 0.0495 | AQ15: 0.4447384615 | AR15: 0.4257 | AS15: 0.0496056 | AT15: 0.438177757 | AU15: 4.8 | AV15: 0.9163492006 | AW15: 4.382128747 | AX15: 1.922975488 | AZ15: 91.63492006 | BA15: 0.2169925955 | BB15: 0.1520937137 | BC15: 0.1043363987 | BD15: 0.04724755499 | BE15: 0.009544369967
A16: Vcc | B16: =VCC -> 5 | C16: V | D16: Subregulated VCC Voltage | G16: 7 | H16: 48 | I16: 1 | J16: 1.12 | K16: 1.12 | L16: 0.1296296296 | M16: 0.1044050398 | N16: 6.799400361 | O16: 4.51970018 | P16: -2.27970018 | Q16: 48 | R16: 2.25987915 | S16: 0.0178746882 | T16: 0.2 | U16: 0.2181866897 | V16: 1.962817814 | W16: 0.003852653772 | X16: 0.003852653772 | Y16: 0.6910377416 | Z16: 0.0004775331603 | AA16: 0.0004775331603 | AB16: 0.7302069242 | AC16: 0.006398425826 | AD16: 0.06705333685 | AE16: 0 | AF16: 0.006702318531 | AG16: 0.08024033439 | AH16: 2.138656499 | AI16: 0.01875279164 | AJ16: 0.01328791853 | AK16: 0.03213882855 | AL16: 0.0065856 | AM16: 0.059472 | AN16: 0.01021410754 | AO16: 0.0001056 | AP16: 0.0495 | AQ16: 0.4447384615 | AR16: 0.4257 | AS16: 0.0496056 | AT16: 0.4607733471 | AU16: 5.6 | AV16: 0.9239744962 | AW16: 5.018657884 | AX16: 2.106818754 | AZ16: 92.39744962 | BA16: 0.2181866897 | BB16: 0.1718511629 | BC16: 0.1194918544 | BD16: 0.05176458855 | BE16: 0.01021410754
A17: Components | B17: Input Value | C17: Units | D17: Description | G17: 8 | H17: 48 | I17: 1 | J17: 1.28 | K17: 1.28 | L17: 0.1481481481 | M17: 0.1044390984 | N17: 6.801226 | O17: 4.680613 | P17: -2.120613 | Q17: 48 | R17: 2.343741224 | S17: 0.01922593024 | T17: 0.2 | U17: 0.2195636355 | V17: 1.963344831 | W17: 0.003854722926 | X17: 0.003854722926 | Y17: 0.7167847855 | Z17: 0.0005137804287 | AA17: 0.0005137804287 | AB17: 0.7574277562 | AC17: 0.00688436167 | AD17: 0.07663238497 | AE17: 0 | AF17: 0.006234602221 | AG17: 0.08985527302 | AH17: 2.217977935 | AI17: 0.02016964709 | AJ17: 0.01376100222 | AK17: 0.03404243167 | AL17: 0.0075264 | AM17: 0.067968 | AN17: 0.01098624585 | AO17: 0.0001056 | AP17: 0.0495 | AQ17: 0.4447384615 | AR17: 0.4257 | AS17: 0.0496056 | AT17: 0.4839160893 | AU17: 6.4 | AV17: 0.9297033719 | AW17: 5.657994427 | AX17: 2.298405177 | AZ17: 92.97033719 | BA17: 0.2195636355 | BB17: 0.1918657047 | BC17: 0.134714153 | BD17: 0.05647187167 | BE17: 0.01098624585
A18: L | B18: =Lf*1000000 -> 2.2 | C18: uH | D18: Filter Inductance | G18: 9 | H18: 48 | I18: 1 | J18: 1.44 | K18: 1.44 | L18: 0.1666666667 | M18: 0.1044731584 | N18: 6.803051471 | O18: 4.841525736 | P18: -1.961525736 | Q18: 48 | R18: 2.43523971 | S18: 0.02075637355 | T18: 0.2 | U18: 0.2211235514 | V18: 1.963871799 | W18: 0.003856792443 | X18: 0.003856792443 | Y18: 0.7448749732 | Z18: 0.0005548387257 | AA18: 0.0005548387257 | AB18: 0.7871256756 | AC18: 0.00743480195 | AD18: 0.08621143309 | AE18: 0 | AF18: 0.005766885663 | AG18: 0.09953744763 | AH18: 2.30452286 | AI18: 0.02177438502 | AJ18: 0.01423408566 | AK18: 0.03613657012 | AL18: 0.0084672 | AM18: 0.076464 | AN18: 0.01186078489 | AO18: 0.0001056 | AP18: 0.0495 | AQ18: 0.4447384615 | AR18: 0.4257 | AS18: 0.0496056 | AT18: 0.5076067852 | AU18: 7.2 | AV18: 0.9341421015 | AW18: 6.30015488 | AX18: 2.497746388 | AZ18: 93.41421015 | BA18: 0.2211235514 | BB18: 0.2121380177 | BC18: 0.1500036876 | BD18: 0.06136969012 | BE18: 0.01186078489
A19: Rdcr | B19: =Rdcr*1000 -> 3.5 | C19: mW | D19: Inductor DCR at 25°C | G19: 10 | H19: 48 | I19: 1 | J19: 1.6 | K19: 1.6 | L19: 0.1851851852 | M19: 0.1045072198 | N19: 6.804876773 | O19: 5.002438387 | P19: -1.802438387 | Q19: 48 | R19: 2.53354738 | S19: 0.02246601814 | T19: 0.2 | U19: 0.2228665721 | V19: 1.964398718 | W19: 0.003858862325 | X19: 0.003858862325 | Y19: 0.7750562485 | Z19: 0.0006007121883 | AA19: 0.0006007121883 | AB19: 0.8190344654 | AC19: 0.008049809467 | AD19: 0.09579048121 | AE19: 0 | AF19: 0.005299168857 | AG19: 0.1092872561 | AH19: 2.397508054 | AI19: 0.02356698396 | AJ19: 0.01470716886 | AK19: 0.03842156503 | AL19: 0.009408 | AM19: 0.08496 | AN19: 0.01283772465 | AO19: 0.0001056 | AP19: 0.0495 | AQ19: 0.4447384615 | AR19: 0.4257 | AS19: 0.0496056 | AT19: 0.5318462924 | AU19: 8 | AV19: 0.9376633997 | AW19: 6.945155957 | AX19: 2.704855457 | AZ19: 93.76633997 | BA19: 0.2228665721 | BB19: 0.2326688212 | BC19: 0.1653608561 | BD19: 0.06645836503 | BE19: 0.01283772465
A20: LTc | B20: =Ltc*1000000 -> 4000 | C20: ppm | D20: Inductor Series Resistance Temp Co | G20: 11 | H20: 48 | I20: 1 | J20: 1.76 | K20: 1.76 | L20: 0.2037037037 | M20: 0.1045412824 | N20: 6.806701907 | O20: 5.163350953 | P20: -1.643350953 | Q20: 48 | R20: 2.637903063 | S20: 0.024354864 | T20: 0.2 | U20: 0.2247928479 | V20: 1.964925589 | W20: 0.00386093257 | X20: 0.00386093257 | Y20: 0.8070966195 | Z20: 0.0006514049532 | AA20: 0.0006514049532 | AB20: 0.8529090917 | AC20: 0.008729447025 | AD20: 0.1053695293 | AE20: 0 | AF20: 0.004831451803 | AG20: 0.1191051014 | AH20: 2.496212862 | AI20: 0.02554742247 | AJ20: 0.0151802518 | AK20: 0.04089777304 | AL20: 0.0103488 | AM20: 0.093456 | AN20: 0.01391706514 | AO20: 0.0001056 | AP20: 0.0495 | AQ20: 0.4447384615 | AR20: 0.4257 | AS20: 0.0496056 | AT20: 0.556635525 | AU20: 8.8 | AV20: 0.9405090084 | AW20: 7.593014579 | AX20: 2.919746899 | AZ20: 94.05090084 | BA20: 0.2247928479 | BB20: 0.2534588744 | BC20: 0.1807860614 | BD20: 0.07173825304 | BE20: 0.01391706514
A21: ThetaCa | B21: =ThetaCa -> 20 | C21: °C/W | D21: Core to Ambient Thermal Resistance | G21: 12 | H21: 48 | I21: 1 | J21: 1.92 | K21: 1.92 | L21: 0.2222222222 | M21: 0.1045753464 | N21: 6.808526871 | O21: 5.324263436 | P21: -1.484263436 | Q21: 48 | R21: 2.747617728 | S21: 0.02642291113 | T21: 0.2 | U21: 0.2269025452 | V21: 1.965452411 | W21: 0.00386300318 | X21: 0.00386300318 | Y21: 0.8407860349 | Z21: 0.0007069211565 | AA21: 0.0007069211565 | AB21: 0.8885276884 | AC21: 0.009473777436 | AD21: 0.1149485775 | AE21: 0 | AF21: 0.004363734501 | AG21: 0.1289913914 | AH21: 2.599984947 | AI21: 0.02771567908 | AJ21: 0.0156533345 | AK21: 0.04356558641 | AL21: 0.0112896 | AM21: 0.101952 | AN21: 0.01509880636 | AO21: 0.0001056 | AP21: 0.0495 | AQ21: 0.4447384615 | AR21: 0.4257 | AS21: 0.0496056 | AT21: 0.5819754537 | AU21: 9.6 | AV21: 0.9428425794 | AW21: 8.243747878 | AX21: 3.142436679 | AZ21: 94.28425794 | BA21: 0.2269025452 | BB21: 0.2745089778 | BC21: 0.1962797114 | BD21: 0.07720974641 | BE21: 0.01509880636
A22: Cin | B22: =Cin*1000000 -> 30 | C22: μF | D22: Input Capacitance | G22: 13 | H22: 48 | I22: 1 | J22: 2.08 | K22: 2.08 | L22: 0.2407407407 | M22: 0.1046094118 | N22: 6.810351667 | O22: 5.485175834 | P22: -1.325175834 | Q22: 48 | R22: 2.862075148 | S22: 0.02867015953 | T22: 0.2 | U22: 0.2291958461 | V22: 1.965979184 | W22: 0.003865074152 | X22: 0.003865074152 | Y22: 0.875936604 | Z22: 0.0007672649342 | AA22: 0.0007672649342 | AB22: 0.9256917915 | AC22: 0.01028286351 | AD22: 0.1245276256 | AE22: 0 | AF22: 0.003896016951 | AG22: 0.1389465391 | AH22: 2.708240916 | AI22: 0.03007173232 | AJ22: 0.01612641695 | AK22: 0.04642543325 | AL22: 0.0122304 | AM22: 0.110448 | AN22: 0.0163829483 | AO22: 0.0001056 | AP22: 0.0495 | AQ22: 0.4447384615 | AR22: 0.4257 | AS22: 0.0496056 | AT22: 0.6078671058 | AU22: 10.4 | AV22: 0.9447788477 | AW22: 8.897373203 | AX22: 3.372942221 | AZ22: 94.47788477 | BA22: 0.2291958461 | BB22: 0.2958199724 | BC22: 0.2118422191 | BD22: 0.08287327325 | BE22: 0.0163829483
A23: RCinEsr | B23: =RCinEsr*1000 -> 1 | C23: mW | D23: Input Capacitor ESR | G23: 14 | H23: 48 | I23: 1 | J23: 2.24 | K23: 2.24 | L23: 0.2592592593 | M23: 0.1046434785 | N23: 6.812176294 | O23: 5.646088147 | P23: -1.166088147 | Q23: 48 | R23: 2.98072902 | S23: 0.03109660921 | T23: 0.2 | U23: 0.2316729487 | V23: 1.966505909 | W23: 0.003867145489 | X23: 0.003867145489 | Y23: 0.9123817303 | Z23: 0.0008324404218 | AA23: 0.0008324404218 | AB23: 0.9642254267 | AC23: 0.01115676808 | AD23: 0.1341066737 | AE23: 0 | AF23: 0.003428299152 | AG23: 0.1489709627 | AH23: 2.820463582 | AI23: 0.03261556074 | AJ23: 0.01659949915 | AK23: 0.04947777765 | AL23: 0.0131712 | AM23: 0.118944 | AN23: 0.01776949098 | AO23: 0.0001056 | AP23: 0.0495 | AQ23: 0.4447384615 | AR23: 0.4257 | AS23: 0.0496056 | AT23: 0.6343115659 | AU23: 11.2 | AV23: 0.9464006366 | AW23: 9.553908114 | AX23: 3.611282415 | AZ23: 94.64006366 | BA23: 0.2316729487 | BB23: 0.3173927404 | BC23: 0.2274740027 | BD23: 0.08872929765 | BE23: 0.01776949098
A24: Cout | B24: =Cout*1000000 -> 200 | C24: μF | D24: Output Capcitance | G24: 15 | H24: 48 | I24: 1 | J24: 2.4 | K24: 2.4 | L24: 0.2777777778 | M24: 0.1046775465 | N24: 6.814000752 | O24: 5.807000376 | P24: -1.007000376 | Q24: 41.78424798 | R24: 3.103097998 | S24: 0.03370226016 | T24: 0.2 | U24: 0.2343340672 | V24: 1.967032584 | W24: 0.003869217188 | X24: 0.003869217188 | Y24: 0.9499746072 | Z24: 0.0009024517543 | AA24: 0.0009024517543 | AB24: 1.003973521 | AC24: 0.01209555396 | AD24: 0.1436857218 | AE24: 0.05449293422 | AF24: 0.002960581106 | AG24: 0.2136689778 | AH24: 2.936197261 | AI24: 0.03534714287 | AJ24: 0.01707258111 | AK24: 0.05272311995 | AL24: 0.014112 | AM24: 0.12744 | AN24: 0.01925843438 | AO24: 0.0001056 | AP24: 0.0495 | AQ24: 0.4447384615 | AR24: 0.4257 | AS24: 0.0496056 | AT24: 0.7159138682 | AU24: 12 | AV24: 0.9436993774 | AW24: 12.50673387 | AX24: 3.857477622 | AZ24: 94.36993774 | BA24: 0.2343340672 | BB24: 0.3938320978 | BC24: 0.2977793778 | BD24: 0.09477831995 | BE24: 0.01925843438
A25: RCoutEsr | B25: =Cout_ESR*1000 -> 1 | C25: mW | D25: Output Capacitor ESR | G25: 16 | H25: 48 | I25: 1 | J25: 2.56 | K25: 2.56 | L25: 0.2962962963 | M25: 0.1047116159 | N25: 6.815825042 | O25: 5.967912521 | P25: -0.847912521 | Q25: 35.18309216 | R25: 3.228759708 | S25: 0.03648711238 | T25: 0.2 | U25: 0.2371794318 | V25: 1.967559211 | W25: 0.00387128925 | X25: 0.00387128925 | Y25: 0.988586398 | Z25: 0.0009773030664 | AA25: 0.0009773030664 | AB25: 1.04479998 | AC25: 0.01309928399 | AD25: 0.1532647699 | AE25: 0.1091919283 | AF25: 0.002492862812 | AG25: 0.2786620911 | AH25: 3.055042103 | AI25: 0.03826645723 | AJ25: 0.01754566281 | AK25: 0.05616199688 | AL25: 0.0150528 | AM25: 0.135936 | AN25: 0.0208497785 | AO25: 0.0001056 | AP25: 0.0495 | AQ25: 0.4447384615 | AR25: 0.4257 | AS25: 0.0496056 | AT25: 0.7982962906 | AU25: 12.8 | AV25: 0.9412943891 | AW25: 15.47195375 | AX25: 4.111549689 | AZ25: 94.12943891 | BA25: 0.2371794318 | BB25: 0.470760088 | BC25: 0.3683798511 | BD25: 0.1010208769 | BE25: 0.0208497785
A26: Top Driver | B26: Input Value | C26: Units | D26: Description | G26: 17 | H26: 48 | I26: 1 | J26: 2.72 | K26: 2.72 | L26: 0.3148148148 | M26: 0.1047456866 | N26: 6.817649163 | O26: 6.128824581 | P26: -0.6888245814 | Q26: 28.58193284 | R26: 3.357344438 | S26: 0.03945116586 | T26: 0.2 | U26: 0.2402092888 | V26: 1.96808579 | W26: 0.003873361676 | X26: 0.003873361676 | Y26: 1.02810432 | Z26: 0.001056998492 | AA26: 0.001056998492 | AB26: 1.086585669 | AC26: 0.014168021 | AD26: 0.1628438181 | AE26: 0.1606228045 | AF26: 0.002025144269 | AG26: 0.3404701843 | AH26: 3.176648117 | AI26: 0.04137348236 | AJ26: 0.01801874427 | AK26: 0.05979498189 | AL26: 0.0159936 | AM26: 0.144432 | AN26: 0.02254352335 | AO26: 0.0001056 | AP26: 0.0495 | AQ26: 0.4447384615 | AR26: 0.4257 | AS26: 0.0496056 | AT26: 0.8779795385 | AU26: 13.6 | AV26: 0.9393575923 | AW26: 18.30340278 | AX26: 4.373521955 | AZ26: 93.93575923 | BA26: 0.2402092888 | BB26: 0.5446971662 | BC26: 0.4357953043 | BD26: 0.1074575419 | BE26: 0.02254352335
A27: RdsonDRT | B27: 0.7 | C27: W | D27: Drain to Source Resistance of pullup Top FET Driver | G27: 18 | H27: 48 | I27: 1 | J27: 2.88 | K27: 2.88 | L27: 0.3333333333 | M27: 0.1047797587 | N27: 6.819473115 | O27: 6.289736557 | P27: -0.5297365574 | Q27: 21.98077002 | R27: 3.488528983 | S27: 0.04259442062 | T27: 0.2 | U27: 0.2434239006 | V27: 1.968612319 | W27: 0.003875434464 | X27: 0.003875434464 | Y27: 1.068429767 | Z27: 0.001141542166 | AA27: 0.001141542166 | AB27: 1.129226425 | AC27: 0.01530182782 | AD27: 0.1724228662 | AE27: 0.2087855575 | AF27: 0.001557425479 | AG27: 0.3990936298 | AH27: 3.30070934 | AI27: 0.04466819679 | AJ27: 0.01849182548 | AK27: 0.06362268532 | AL27: 0.0169344 | AM27: 0.152928 | AN27: 0.02433966893 | AO27: 0.0001056 | AP27: 0.0495 | AQ27: 0.4447384615 | AR27: 0.4257 | AS27: 0.0496056 | AT27: 0.9549648613 | AU27: 14.4 | AV27: 0.9378074213 | AW27: 21.00109661 | AX27: 4.643419261 | AZ27: 93.78074213 | BA27: 0.2434239006 | BB27: 0.6156443151 | BC27: 0.5000261098 | BD27: 0.1140889253 | BE27: 0.02433966893
A28: RdsonDRT2 | B28: =RdsonDRT2 -> 0.5 | C28: W | D28: Drain to Source Resistance of pulldown Top FET Driver | G28: 19 | H28: 48 | I28: 1 | J28: 3.04 | K28: 3.04 | L28: 0.3518518519 | M28: 0.1048138321 | N28: 6.821296898 | O28: 6.450648449 | P28: -0.370648449 | Q28: 15.37960369 | R28: 3.622030869 | S28: 0.04591687665 | T28: 0.2 | U28: 0.246823546 | V28: 1.9691388 | W28: 0.003877507614 | X28: 0.003877507614 | Y28: 1.109476553 | Z28: 0.001230938222 | AA28: 0.001230938222 | AB28: 1.172631205 | AC28: 0.01650076731 | AD28: 0.1820019143 | AE28: 0.2536801822 | AF28: 0.00108970644 | AG28: 0.4545325932 | AH28: 3.42695837 | AI28: 0.04815057905 | AJ28: 0.01896490644 | AK28: 0.06764575476 | AL28: 0.0178752 | AM28: 0.161424 | AN28: 0.02623821523 | AO28: 0.0001056 | AP28: 0.0495 | AQ28: 0.4447384615 | AR28: 0.4257 | AS28: 0.0496056 | AT28: 1.029253355 | AU28: 15.2 | AV28: 0.9365803631 | AW28: 23.56504219 | AX28: 4.921267963 | AZ28: 93.65803631 | BA28: 0.246823546 | BB28: 0.683602348 | BC28: 0.5610724332 | BD28: 0.1209156748 | BE28: 0.02623821523
A29: Bottom Driver | B29: Input Value | C29: Units | D29: Description | G29: 20 | H29: 48 | I29: 1 | J29: 3.2 | K29: 3.2 | L29: 0.3703703704 | M29: 0.1048479068 | N29: 6.823120512 | O29: 6.611560256 | P29: -0.2115602561 | Q29: 8.778433864 | R29: 3.757603109 | S29: 0.04941853394 | T29: 0.2 | U29: 0.2504085197 | V29: 1.969665232 | W29: 0.003879581127 | X29: 0.003879581127 | Y29: 1.151169315 | Z29: 0.001325190791 | AA29: 0.001325190791 | AB29: 1.216720398 | AC29: 0.01776490232 | AD29: 0.1915809624 | AE29: 0.2953066733 | AF29: 0.000621987153 | AG29: 0.506787033 | AH29: 3.555161403 | AI29: 0.05182060766 | AJ29: 0.01943798715 | AK29: 0.07186487528 | AL29: 0.018816 | AM29: 0.16992 | AN29: 0.02823916225 | AO29: 0.0001056 | AP29: 0.0495 | AQ29: 0.4447384615 | AR29: 0.4257 | AS29: 0.0496056 | AT29: 1.100845962 | AU29: 16 | AV29: 0.9356262278 | AW29: 25.99523778 | AX29: 5.207095944 | AZ29: 93.56262278 | BA29: 0.2504085197 | BB29: 0.7485719082 | BC29: 0.618934233 | BD29: 0.1279384753 | BE29: 0.02823916225
A30: RdsonDRB | B30: 0.7 | C30: W | D30: Drain to Source Resistance of pullup Bottom FET Driver | G30: 21 | H30: 48 | I30: 1 | J30: 3.36 | K30: 3.36 | L30: 0.3888888889 | M30: 0.1048819829 | N30: 6.824943958 | O30: 6.772471979 | P30: -0.05247197889 | Q30: 2.177260535 | R30: 3.895029525 | S30: 0.05309939251 | T30: 0.2 | U30: 0.2541791331 | V30: 1.970191616 | W30: 0.003881655002 | X30: 0.003881655002 | Y30: 1.193442084 | Z30: 0.001424304008 | AA30: 0.001424304008 | AB30: 1.261424317 | AC30: 0.0190942957 | AD30: 0.2011600105 | AE30: 0.3336650257 | AF30: 0.0001542676179 | AG30: 0.5558566999 | AH30: 3.685113797 | AI30: 0.05567826115 | AJ30: 0.01991106762 | AK30: 0.07628076977 | AL30: 0.0197568 | AM30: 0.178416 | AN30: 0.03034251 | AO30: 0.0001056 | AP30: 0.0495 | AQ30: 0.4447384615 | AR30: 0.4257 | AS30: 0.0496056 | AT30: 1.169743472 | AU30: 16.8 | AV30: 0.9349048319 | AW30: 28.29167291 | AX30: 5.500932626 | AZ30: 93.49048319 | BA30: 0.2541791331 | BB30: 0.8105534696 | BC30: 0.6736112599 | BD30: 0.1351580498 | BE30: 0.03034251
A31: RdsonDRB2 | B31: 0.5 | C31: W | D31: Drain to Source Resistance of pulldown Bottom FET Driver | G31: 22 | H31: 48 | I31: 1 | J31: 3.52 | K31: 3.52 | L31: 0.4074074074 | M31: 0.1049160603 | N31: 6.826767234 | O31: 6.933383617 | P31: 0.1066163828 | Q31: 0 | R31: 4.034120628 | S31: 0.05695945234 | T31: 0.2 | U31: 0.2581357138 | V31: 1.97071795 | W31: 0.003883729239 | X31: 0.003883729239 | Y31: 1.236237034 | Z31: 0.001528282005 | AA31: 0.001528282005 | AB31: 1.306681876 | AC31: 0.0204890103 | AD31: 0.2107390587 | AE31: 0.3456 | AF31: 0 | AG31: 0.578820458 | AH31: 3.816636178 | AI31: 0.05972351803 | AJ31: 0.0206976 | AK31: 0.08121072903 | AL31: 0.0206976 | AM31: 0.186912 | AN31: 0.03254825848 | AO31: 0.0001056 | AP31: 0.0495 | AQ31: 0.4447384615 | AR31: 0.4257 | AS31: 0.0496056 | AT31: 1.213342371 | AU31: 17.6 | AV31: 0.9355062834 | AW31: 29.49165987 | AX31: 5.815691744 | AZ31: 93.55062834 | BA31: 0.2581357138 | BB31: 0.846943187 | BC31: 0.702182378 | BD31: 0.142891689 | BE31: 0.03254825848
A32: Deadtime | B32: Input Value | C32: Units | D32: Description | G32: 23 | H32: 48 | I32: 1 | J32: 3.68 | K32: 3.68 | L32: 0.4259259259 | M32: 0.1049501391 | N32: 6.828590342 | O32: 7.094295171 | P32: 0.2657048288 | Q32: 0 | R32: 4.17471003 | S32: 0.06099871344 | T32: 0.2 | U32: 0.262278606 | V32: 1.971244236 | W32: 0.003885803839 | X32: 0.003885803839 | Y32: 1.279503386 | Z32: 0.001637128914 | AA32: 0.001637128914 | AB32: 1.352439432 | AC32: 0.02194910901 | AD32: 0.2203181068 | AE32: 0.3456 | AF32: 0 | AG32: 0.5900429699 | AH32: 3.949571043 | AI32: 0.06395635683 | AJ32: 0.0216384 | AK32: 0.08649535467 | AL32: 0.0216384 | AM32: 0.195408 | AN32: 0.03485640768 | AO32: 0.0001056 | AP32: 0.0495 | AQ32: 0.4447384615 | AR32: 0.4257 | AS32: 0.0496056 | AT32: 1.245848271 | AU32: 18.4 | AV32: 0.9365846537 | AW32: 30.1985145 | AX32: 6.144885783 | AZ32: 93.65846537 | BA32: 0.262278606 | BB32: 0.8719463246 | BC32: 0.7190122499 | BD32: 0.1509799947 | BE32: 0.03485640768
A33: Deadtime | B33: =Deadtime*1000000000 -> 14 | C33: ns | D33: Total Deadtime | G33: 24 | H33: 48 | I33: 1 | J33: 3.84 | K33: 3.84 | L33: 0.4444444444 | M33: 0.1049842192 | N33: 6.830413281 | O33: 7.255206641 | P33: 0.4247933594 | Q33: 0 | R33: 4.316651341 | S33: 0.0652171758 | T33: 0.2 | U33: 0.2666081704 | V33: 1.971770473 | W33: 0.003887878799 | X33: 0.003887878799 | Y33: 1.323196458 | Z33: 0.001750848865 | AA33: 0.001750848865 | AB33: 1.398649786 | AC33: 0.02347465468 | AD33: 0.2298971549 | AE33: 0.3456 | AF33: 0 | AG33: 0.6013433526 | AH33: 4.083779815 | AI33: 0.06837675606 | AJ33: 0.0225792 | AK33: 0.09197985148 | AL33: 0.0225792 | AM33: 0.203904 | AN33: 0.0372669576 | AO33: 0.0001056 | AP33: 0.0495 | AQ33: 0.4447384615 | AR33: 0.4257 | AS33: 0.0496056 | AT33: 1.27892586 | AU33: 19.2 | AV33: 0.9375491728 | AW33: 30.90863969 | AX33: 6.482214579 | AZ33: 93.75491728 | BA33: 0.2666081704 | BB33: 0.8972272041 | BC33: 0.7359199926 | BD33: 0.1592681715 | BE33: 0.0372669576
A34: IQ | B34: Input Value | C34: Units | D34: Description | G34: 25 | H34: 48 | I34: 1 | J34: 4 | K34: 4 | L34: 0.462962963 | M34: 0.1050183007 | N34: 6.832236051 | O34: 7.416118026 | P34: 0.5838819743 | Q34: 0 | R34: 4.459815481 | S34: 0.06961483943 | T34: 0.2 | U34: 0.2711247841 | V34: 1.972296662 | W34: 0.003889954122 | X34: 0.003889954122 | Y34: 1.367276853 | Z34: 0.001869445991 | AA34: 0.001869445991 | AB34: 1.445271318 | AC34: 0.02506571019 | AD34: 0.239476203 | AE34: 0.3456 | AF34: 0 | AG34: 0.6127221101 | AH34: 4.219140308 | AI34: 0.07298469425 | AJ34: 0.02352 | AK34: 0.09766514251 | AL34: 0.02352 | AM34: 0.2124 | AN34: 0.03977990824 | AO34: 0.0001056 | AP34: 0.0495 | AQ34: 0.4447384615 | AR34: 0.4257 | AS34: 0.0496056 | AT34: 1.312576945 | AU34: 20 | AV34: 0.9384130343 | AW34: 31.62205662 | AX34: 6.8277157 | AZ34: 93.84130343 | BA34: 0.2711247841 | BB34: 0.9227872526 | BC34: 0.7529061101 | BD34: 0.1677571425 | BE34: 0.03977990824
A35: IQ | B35: =Iq*1000 -> 0.0022 | C35: mA | D35: Quiescent Current Of Controller (Not Switching!) | G35: 26 | H35: 48 | I35: 1 | J35: 4.16 | K35: 4.16 | L35: 0.4814814815 | M35: 0.1050523835 | N35: 6.834058653 | O35: 7.577029326 | P35: 0.7429706737 | Q35: 0 | R35: 4.604088379 | S35: 0.07419170432 | T35: 0.2 | U35: 0.2758288413 | V35: 1.972822801 | W35: 0.003892029806 | X35: 0.003892029806 | Y35: 1.411709752 | Z35: 0.001992924423 | AA35: 0.001992924423 | AB35: 1.492267246 | AC35: 0.02672233842 | AD35: 0.2490552511 | AE35: 0.3456 | AF35: 0 | AG35: 0.6241797527 | AH35: 4.355544544 | AI35: 0.07778014991 | AJ35: 0.0244608 | AK35: 0.1035521908 | AL35: 0.0244608 | AM35: 0.220896 | AN35: 0.04239525961 | AO35: 0.0001056 | AP35: 0.0495 | AQ35: 0.4447384615 | AR35: 0.4257 | AS35: 0.0496056 | AT35: 1.346803399 | AU35: 20.8 | AV35: 0.9391874586 | AW35: 32.33878673 | AX35: 7.18142834 | AZ35: 93.91874586 | BA35: 0.2758288413 | BB35: 0.9486279435 | BC35: 0.7699711127 | BD35: 0.1764478708 | BE35: 0.04239525961
A36: High-side FET | B36: Input Value | C36: Units | D36: Description | G36: 27 | H36: 48 | I36: 1 | J36: 4.32 | K36: 4.32 | L36: 0.5 | M36: 0.1050864676 | N36: 6.835881085 | O36: 7.737940543 | P36: 0.9020594575 | Q36: 0 | R36: 4.749368995 | S36: 0.07894777048 | T36: 0.2 | U36: 0.2807207527 | V36: 1.973348892 | W36: 0.003894105851 | X36: 0.003894105851 | Y36: 1.456464311 | Z36: 0.00212128829 | AA36: 0.00212128829 | AB36: 1.539604989 | AC36: 0.02844460225 | AD36: 0.2586342993 | AE36: 0.3456 | AF36: 0 | AG36: 0.635716797 | AH36: 4.492896875 | AI36: 0.08276310155 | AJ36: 0.0254016 | AK36: 0.1096419995 | AL36: 0.0254016 | AM36: 0.229392 | AN36: 0.0451130117 | AO36: 0.0001056 | AP36: 0.0495 | AQ36: 0.4447384615 | AR36: 0.4257 | AS36: 0.0496056 | AT36: 1.381607155 | AU36: 21.6 | AV36: 0.939882048 | AW36: 33.05885172 | AX36: 7.543393333 | AZ36: 93.9882048 | BA36: 0.2807207527 | BB36: 0.9747507966 | BC36: 0.787115517 | BD36: 0.1853413595 | BE36: 0.0451130117
A37: RdsonTop | B37: =Rdson1*1000 -> 12 | C37: mW | D37: Drain-Source Resistance of Top FET | G37: 28 | H37: 48 | I37: 1 | J37: 4.48 | K37: 4.48 | L37: 0.5185185185 | M37: 0.1051205531 | N37: 6.837703348 | O37: 7.898851674 | P37: 1.061148326 | Q37: 0 | R37: 4.895567613 | S37: 0.0838830379 | T37: 0.2 | U37: 0.285800946 | V37: 1.973874934 | W37: 0.003896182257 | X37: 0.003896182257 | Y37: 1.501513144 | Z37: 0.002254541723 | AA37: 0.002254541723 | AB37: 1.587255613 | AC37: 0.03023256458 | AD37: 0.2682133474 | AE37: 0.3456 | AF37: 0 | AG37: 0.647333766 | AH37: 4.63111238 | AI37: 0.08793352769 | AJ37: 0.0263424 | AK37: 0.115935613 | AL37: 0.0263424 | AM37: 0.237888 | AN37: 0.04793316451 | AO37: 0.0001056 | AP37: 0.0495 | AQ37: 0.4447384615 | AR37: 0.4257 | AS37: 0.0496056 | AT37: 1.416990214 | AU37: 22.4 | AV37: 0.940505068 | AW37: 33.78227353 | AX37: 7.913653179 | AZ37: 94.0505068 | BA37: 0.285800946 | BB37: 1.001157379 | BC37: 0.804339846 | BD37: 0.194438653 | BE37: 0.04793316451
A38: RdsonTopTc | B38: =RdsonTopTc*1000000 -> 4000 | C38: ppm | D38: Drain to Source Resistance Temp Co | G38: 29 | H38: 48 | I38: 1 | J38: 4.64 | K38: 4.64 | L38: 0.537037037 | M38: 0.1051546399 | N38: 6.839525443 | O38: 8.059762722 | P38: 1.220237278 | Q38: 0 | R38: 5.042604389 | S38: 0.08899750658 | T38: 0.2 | U38: 0.291069866 | V38: 1.974400928 | W38: 0.003898259024 | X38: 0.003898259024 | Y38: 1.546831875 | Z38: 0.002392688851 | AA38: 0.002392688851 | AB38: 1.63519337 | AC38: 0.0320862883 | AD38: 0.2777923955 | AE38: 0.3456 | AF38: 0 | AG38: 0.6590311891 | AH38: 4.770115477 | AI38: 0.09329140683 | AJ38: 0.0272832 | AK38: 0.1224341167 | AL38: 0.0272832 | AM38: 0.246384 | AN38: 0.05085571805 | AO38: 0.0001056 | AP38: 0.0495 | AQ38: 0.4447384615 | AR38: 0.4257 | AS38: 0.0496056 | AT38: 1.452954638 | AU38: 23.2 | AV38: 0.9410636713 | AW38: 34.50907442 | AX38: 8.292252055 | AZ38: 94.10636713 | BA38: 0.291069866 | BB38: 1.027849306 | BC38: 0.8216446291 | BD38: 0.2037408367 | BE38: 0.05085571805
A39: QgTop | B39: =Qg_Q1*1000000000 -> 8 | C39: nC | D39: Gate Charge Of Top FET | G39: 30 | H39: 48 | I39: 1 | J39: 4.8 | K39: 4.8 | L39: 0.5555555556 | M39: 0.105188728 | N39: 6.841347369 | O39: 8.220673684 | P39: 1.379326316 | Q39: 0 | R39: 5.190408091 | S39: 0.09429117653 | T39: 0.2 | U39: 0.2965279743 | V39: 1.974926872 | W39: 0.003900336152 | X39: 0.003900336152 | Y39: 1.592398758 | Z39: 0.002535733803 | AA39: 0.002535733803 | AB39: 1.683395287 | AC39: 0.03400583631 | AD39: 0.2873714436 | AE39: 0.3456 | AF39: 0 | AG39: 0.6708096021 | AH39: 4.909838741 | AI39: 0.09883671748 | AJ39: 0.028224 | AK39: 0.1291386379 | AL39: 0.028224 | AM39: 0.25488 | AN39: 0.0538806723 | AO39: 0.0001056 | AP39: 0.0495 | AQ39: 0.4447384615 | AR39: 0.4257 | AS39: 0.0496056 | AT39: 1.489502557 | AU39: 24 | AV39: 0.941564079 | AW39: 35.23927689 | AX39: 8.679235844 | AZ39: 94.1564079 | BA39: 0.2965279743 | BB39: 1.05482824 | BC39: 0.8390304021 | BD39: 0.2132490379 | BE39: 0.0538806723
A40: QgdTop | B40: =Qgd_Q1*1000000000 -> 2.9 | C40: nC | D40: Gate to Drain Charge | G40: 31 | H40: 48 | I40: 1 | J40: 4.96 | K40: 4.96 | L40: 0.5740740741 | M40: 0.1052228175 | N40: 6.843169125 | O40: 8.381584563 | P40: 1.538415437 | Q40: 0 | R40: 5.338915025 | S40: 0.09976404774 | T40: 0.2 | U40: 0.3021757498 | V40: 1.975452768 | W40: 0.00390241364 | X40: 0.00390241364 | Y40: 1.638194344 | Z40: 0.002683680709 | AA40: 0.002683680709 | AB40: 1.73184082 | AC40: 0.03599127151 | AD40: 0.2969504918 | AE40: 0.3456 | AF40: 0 | AG40: 0.6826695476 | AH40: 5.050221878 | AI40: 0.1045694382 | AJ40: 0.0291648 | AK40: 0.1360503463 | AL40: 0.0291648 | AM40: 0.263376 | AN40: 0.05700802728 | AO40: 0.0001056 | AP40: 0.0495 | AQ40: 0.4447384615 | AR40: 0.4257 | AS40: 0.0496056 | AT40: 1.526636165 | AU40: 24.8 | AV40: 0.942011727 | AW40: 35.97290372 | AX40: 9.074652149 | AZ40: 94.2011727 | BA40: 0.3021757498 | BB40: 1.082095894 | BC40: 0.8564977076 | BD40: 0.2229644263 | BE40: 0.05700802728
A41: QgsTop | B41: =Qgs_Q1*1000000000 -> 3.1 | C41: nC | G41: 32 | H41: =Vin -> 48 | I41: =MODE -> 1 | J41: 5.12 | K41: =Iout*G41/100/Number_of_Phases -> 5.12 | L41: =Vout*K41/(Vin*Efficiency) -> 0.5925925926 | M41: =(Vout+(Rdson2+Rs+Rdcr)*K41)/(Vin+(Rs+Rdson2-Rdson1)*K41) -> 0.1052569083 | N41: =(Vin-(Rdson1+Rdcr)*K41-Vout)*M41/(Fsw*Lf) -> 6.844990713 | O41: 8.542495357 | P41: 1.697504643 | Q41: =IF(MIN(Vin, -P41/(Coss_Q1+Coss_Q2)*0.00000002)<0, 0, MIN(Vin, -P41/(Coss_Q1+Coss_Q2)*0.00000002)) -> 0 | R41: 5.488068102 | S41: =R41^2*Rdcr -> 0.1054161202 | T41: =Core_Loss_Ch1 -> 0.2 | U41: =(T41+S41*(1+Ltc*(Ta-25)))/(1-S41*Ltc*ThetaCa) -> 0.3080136889 | V41: 1.975978615 | W41: 0.003904491489 | X41: 0.003904491489 | Y41: 1.684201205 | Z41: 0.002836533698 | AA41: 0.002836533698 | AB41: 1.780511556 | AC41: =Rdson1*AB41^2 -> 0.03804265681 | AD41: =(Vin*K41/2)*Fsw*(Tr_buck+Tf_buck) -> 0.3065295399 | AE41: =(0.5*Coss_Q1*(Vin-Q41)^2-0.5*Coss_Q2*(Vin-Q41)^2+(Qoss_Q2*(Vin-Q41)/Vin)*Vin)*Fsw -> 0.3456 | AF41: =IF(K41>N41/2,0,ABS(K41-N41/2)*Vsd_Q1*Deadtime*Fsw) -> 0 | AG41: =(AF41+AE41+AD41+AC41*(1+RdsonTopTc*Ta-RdsonTopTc*25))/(1-AC41*RdsonTopTc*ThetaJA_Q1) -> 0.6946115748 | AH41: =SQRT((1-M41))*SQRT(K41^2+(N41^2)/12) -> 5.19121085 | AI41: =Rdson2*AH41^2 -> 0.1104895474 | AJ41: =IF(K41<N41/2,Deadtime*Fsw*IF(VfdSky_Q2>0,0,Vsd_Q2)*(K41+N41/2),2*Deadtime*Fsw*IF(VfdSky_Q2>0,0,Vsd_Q2)*K41) -> 0.0301056 | AK41: =(AJ41+AI41*(1+RdsonBotTc*Ta-RdsonBotTc*25))/(1-AI41*RdsonBotTc*ThetaJA_Q2) -> 0.1431704543 | AL41: =2*Deadtime*Fsw*IF(VfdSky_Q2>0,VfdSky_Q2,Vsd_Q2)*K41 -> 0.0301056 | AM41: =IF(QrrSky_Q2>0,QrrSky_Q2,Qrr_Q2*K41/(Iout/Number_of_Phases))*Fsw*Vin -> 0.271872 | AN41: =Rs*R41^2 -> 0.06023778298 | AO41: =Iq*Vin -> 0.0001056 | AP41: =IF(Ext_VCC=1, (Qg_Q1+Qg_Q2)*Fsw*VCC, (Qg_Q1+Qg_Q2)*Fsw*Vin) -> 0.0495 | AQ41: 0.4447384615 | AR41: =(Qg_Q1+Qg_Q2)*Fsw*(Vin-VCC) -> 0.4257 | AS41: =SUM(AO41:AP41) -> 0.0496056 | AT41: =SUM(U41,X41,AA41,AG41,AK41,AL41,AM41,AS41,AN41) -> 1.564357726 | AU41: =Vout*K41 -> 25.6 | AV41: 0.9424113855 | AW41: =ThetaJA_Q1*BC41 -> 36.70997798 | AX41: =ThetaJA_Q2*BD41 -> 9.478550322 | AZ41: 94.24113855 | BA41: =U41 -> 0.3080136889 | BB41: =AG41+AK41+AM41 -> 1.109654029 | BC41: =AG41+AM41*0.66 -> 0.8740470948 | BD41: =AK41+AM41*0.33 -> 0.2328882143 | BE41: =AN41 -> 0.06023778298
A42: RGateTop | B42: =Rgate1 -> 1.2 | C42: W | D42: Gate Resistance | G42: 33 | H42: 48 | I42: 1 | J42: =Iout*G42/100 -> 5.28 | K42: 5.28 | L42: 0.6111111111 | M42: 0.1052910005 | N42: 6.846812132 | O42: 8.703406066 | P42: 1.856593934 | Q42: 0 | R42: 5.63781604 | S42: 0.1112473939 | T42: 0.2 | U42: 0.314042305 | V42: 1.976504414 | W42: 0.003906569698 | X42: 0.003906569698 | Y42: 1.73040368 | Z42: 0.002994296896 | AA42: 0.002994296896 | AB42: 1.829390954 | AC42: 0.04016005513 | AD42: 0.316108588 | AE42: 0.3456 | AF42: 0 | AG42: 0.7066362396 | AH42: 5.332757114 | AI42: 0.1165970236 | AJ42: 0.0310464 | AK42: 0.150500218 | AL42: 0.0310464 | AM42: =IF(QrrSky_Q2>0,QrrSky_Q2,Qrr_Q2*K42/(Iout/Number_of_Phases))*Fsw*Vin -> 0.280368 | AN42: 0.0635699394 | AO42: 0.0001056 | AP42: 0.0495 | AQ42: 0.4447384615 | AR42: 0.4257 | AS42: 0.0496056 | AT42: 1.602669569 | AU42: 26.4 | AV42: 0.9427672578 | AW42: 37.45052302 | AX42: 9.890981482 | AZ42: 94.27672578 | BA42: 0.314042305 | BB42: 1.137504458 | BC42: 0.8916791196 | BD42: 0.243021658 | BE42: 0.0635699394
A43: GfsTop | B43: =Gfs_Q1 -> 55 | C43: S | D43: Transconductance of Top FET | G43: 34 | H43: 48 | I43: 1 | J43: 5.44 | K43: 5.44 | L43: 0.6296296296 | M43: 0.105325094 | N43: 6.848633382 | O43: 8.864316691 | P43: 2.015683309 | Q43: 0 | R43: 5.788112669 | S43: 0.1172578689 | T43: 0.2 | U43: 0.3202621293 | V43: 1.977030163 | W43: 0.003908648267 | X43: 0.003908648267 | Y43: 1.776787672 | Z43: 0.003156974431 | AA43: 0.003156974431 | AB43: 1.87846412 | AC43: 0.04234352939 | AD43: 0.3256876361 | AE43: 0.3456 | AF43: 0 | AG43: 0.7187441047 | AH43: 5.474816967 | AI43: 0.1228918454 | AJ43: 0.0319872 | AK43: 0.1580409376 | AL43: 0.0319872 | AM43: 0.288864 | AN43: 0.06700449653 | AO43: 0.0001056 | AP43: 0.0495 | AQ43: 0.4447384615 | AR43: 0.4257 | AS43: 0.0496056 | AT43: 1.641574091 | AU43: 27.2 | AV43: 0.9430830618 | AW43: 38.19456248 | AX43: 10.31199854 | AZ43: 94.30830618 | BA43: 0.3202621293 | BB43: 1.165649042 | BC43: 0.9093943447 | BD43: 0.2533660576 | BE43: 0.06700449653
A44: VthTop | B44: =Vth_Q1 -> 3.1 | C44: V | D44: Threshold Voltage of Top FET | G44: 35 | H44: 48 | I44: 1 | J44: 5.6 | K44: 5.6 | L44: 0.6481481481 | M44: 0.1053591889 | N44: 6.850454463 | O44: 9.025227231 | P44: 2.174772769 | Q44: 0 | R44: 5.938916332 | S44: 0.1234475452 | T44: 0.2 | U44: 0.3266737106 | V44: 1.977555864 | W44: 0.003910727196 | X44: 0.003910727196 | Y44: 1.82334046 | Z44: 0.003324570432 | AA44: 0.003324570432 | AB44: 1.927717617 | AC44: 0.04459314251 | AD44: 0.3352666842 | AE44: 0.3456 | AF44: 0 | AG44: 0.73093574 | AH44: 5.617350976 | AI44: 0.1293739911 | AJ44: 0.032928 | AK44: 0.1657939577 | AL44: 0.032928 | AM44: 0.29736 | AN44: 0.07054145439 | AO44: 0.0001056 | AP44: 0.0495 | AQ44: 0.4447384615 | AR44: 0.4257 | AS44: 0.0496056 | AT44: 1.68107376 | AU44: 28 | AV44: 0.9433620975 | AW44: 38.94212028 | AX44: 10.74165624 | AZ44: 94.33620975 | BA44: 0.3266737106 | BB44: 1.194089698 | BC44: 0.92719334 | BD44: 0.2639227577 | BE44: 0.07054145439
A45: VspTop | B45: =Vsp_Q1 -> 3.390909091 | C45: V | G45: 36 | H45: 48 | I45: 1 | J45: 5.76 | K45: 5.76 | L45: 0.6666666667 | M45: 0.1053932851 | N45: 6.852275375 | O45: 9.186137687 | P45: 2.333862313 | Q45: 0 | R45: 6.090189364 | S45: 0.1298164227 | T45: 0.2 | U45: 0.3332776153 | V45: 1.978081516 | W45: 0.003912806484 | X45: 0.003912806484 | Y45: 1.870050541 | Z45: 0.003497089025 | AA45: 0.003497089025 | AB45: 1.977139293 | AC45: 0.04690895743 | AD45: 0.3448457324 | AE45: 0.3456 | AF45: 0 | AG45: 0.743211722 | AH45: 5.760323489 | AI45: 0.1360434395 | AJ45: 0.0338688 | AK45: 0.1737606685 | AL45: 0.0338688 | AM45: 0.305856 | AN45: 0.07418081297 | AO45: 0.0001056 | AP45: 0.0495 | AQ45: 0.4447384615 | AR45: 0.4257 | AS45: 0.0496056 | AT45: 1.721171114 | AU45: 28.8 | AV45: 0.9436073043 | AW45: 39.69322064 | AX45: 11.18001114 | AZ45: 94.36073043 | BA45: 0.3332776153 | BB45: 1.222828391 | BC45: 0.945076682 | BD45: 0.2746931485 | BE45: 0.07418081297
A46: VsdTop | B46: =Vsd_Q1 -> 0.7 | C46: V | G46: 37 | H46: 48 | I46: 1 | J46: 5.92 | K46: 5.92 | L46: 0.6851851852 | M46: 0.1054273827 | N46: 6.854096118 | O46: 9.347048059 | P46: 2.492951941 | Q46: 0 | R46: 6.241897639 | S46: 0.1363645015 | T46: 0.2 | U46: 0.3400744278 | V46: 1.978607119 | W46: 0.003914886133 | X46: 0.003914886133 | Y46: 1.916907493 | Z46: 0.003674534336 | AA46: 0.003674534336 | AB46: 2.026718141 | AC46: 0.04929103706 | AD46: 0.3544247805 | AE46: 0.3456 | AF46: 0 | AG46: 0.7555726346 | AH46: 5.903702204 | AI46: 0.1429001688 | AJ46: 0.0348096 | AK46: 0.1819425061 | AL46: 0.0348096 | AM46: 0.314352 | AN46: 0.07792257227 | AO46: 0.0001056 | AP46: 0.0495 | AQ46: 0.4447384615 | AR46: 0.4257 | AS46: 0.0496056 | AT46: 1.761868761 | AU46: 29.6 | AV46: 0.9438213081 | AW46: 40.44788809 | AX46: 11.62712171 | AZ46: 94.38213081 | BA46: 0.3400744278 | BB46: 1.251867141 | BC46: 0.9630449546 | BD46: 0.2856786661 | BE46: 0.07792257227
A47: θJATop | B47: =ThetaJA_Q1 -> 42 | C47: °C/W | D47: Junction to Ambient Resistance | G47: 38 | H47: 48 | I47: 1 | J47: 6.08 | K47: 6.08 | L47: 0.7037037037 | M47: 0.1054614815 | N47: 6.855916692 | O47: 9.507958346 | P47: 2.652041654 | Q47: 0 | R47: 6.394010177 | S47: 0.1430917815 | T47: 0.2 | U47: 0.3470647506 | V47: 1.979132674 | W47: 0.00391696614 | X47: 0.00391696614 | Y47: 1.963901854 | Z47: 0.003856910492 | AA47: 0.003856910492 | AB47: 2.076444163 | AC47: 0.05173944437 | AD47: 0.3640038286 | AE47: 0.3456 | AF47: 0 | AG47: 0.7680190688 | AH47: 6.047457795 | AI47: 0.1499441577 | AJ47: 0.0357504 | AK47: 0.1903409534 | AL47: 0.0357504 | AM47: 0.322848 | AN47: 0.08176673228 | AO47: 0.0001056 | AP47: 0.0495 | AQ47: 0.4447384615 | AR47: 0.4257 | AS47: 0.0496056 | AT47: 1.803169382 | AU47: 30.4 | AV47: 0.9440064622 | AW47: 41.20614745 | AX47: 12.08304829 | AZ47: 94.40064622 | BA47: 0.3470647506 | BB47: 1.281208022 | BC47: 0.9810987488 | BD47: 0.2968807934 | BE47: 0.08176673228
A48: Low-side FET | B48: Input Value | C48: Units | D48: Description | G48: 39 | H48: 48 | I48: 1 | J48: 6.24 | K48: 6.24 | L48: 0.7222222222 | M48: 0.1054955818 | N48: 6.857737097 | O48: 9.668868548 | P48: 2.811131452 | Q48: 0 | R48: 6.546498798 | S48: 0.1499982628 | T48: 0.2 | U48: 0.354249204 | V48: 1.979658179 | W48: 0.003919046507 | X48: 0.003919046507 | Y48: 2.011025017 | Z48: 0.004044221619 | AA48: 0.004044221619 | AB48: 2.126308269 | AC48: 0.05425424228 | AD48: 0.3735828767 | AE48: 0.3456 | AF48: 0 | AG48: 0.7805516228 | AH48: 6.191563587 | AI48: 0.1571753846 | AJ48: 0.0366912 | AK48: 0.1989575405 | AL48: 0.0366912 | AM48: 0.331344 | AN48: 0.08571329301 | AO48: 0.0001056 | AP48: 0.0495 | AQ48: 0.4447384615 | AR48: 0.4257 | AS48: 0.0496056 | AT48: 1.845075728 | AU48: 31.2 | AV48: 0.9441648812 | AW48: 41.96802384 | AX48: 12.54785316 | AZ48: 94.41648812 | BA48: 0.354249204 | BB48: 1.310853163 | BC48: 0.9992386628 | BD48: 0.3083010605 | BE48: 0.08571329301
A49: RdsonBot | B49: =Rdson2*1000 -> 4.1 | C49: mW | D49: Drain-Source Resistance of Low-side FET | G49: 40 | H49: 48 | I49: 1 | J49: 6.4 | K49: 6.4 | L49: 0.7407407407 | M49: 0.1055296834 | N49: 6.859557333 | O49: 9.829778666 | P49: 2.970221334 | Q49: 0 | R49: 6.699337821 | S49: 0.1570839453 | T49: 0.2 | U49: 0.3616284269 | V49: 1.980183636 | W49: 0.003921127233 | X49: 0.003921127233 | Y49: 2.058269137 | Z49: 0.004236471841 | AA49: 0.004236471841 | AB49: 2.176302172 | AC49: 0.05683549374 | AD49: 0.3831619248 | AE49: 0.3456 | AF49: 0 | AG49: 0.7931709022 | AH49: 6.335995272 | AI49: 0.164593828 | AJ49: 0.037632 | AK49: 0.2077938459 | AL49: 0.037632 | AM49: 0.33984 | AN49: 0.08976225447 | AO49: 0.0001056 | AP49: 0.0495 | AQ49: 0.4447384615 | AR49: 0.4257 | AS49: 0.0496056 | AT49: 1.887590629 | AU49: 32 | AV49: 0.9442984705 | AW49: 42.73354269 | AX49: 13.02160057 | AZ49: 94.42984705 | BA49: 0.3616284269 | BB49: 1.340804748 | BC49: 1.017465302 | BD49: 0.3199410459 | BE49: 0.08976225447
A50: RdsonBotTc | B50: =RdsonBotTc*1000000 -> 4000 | C50: ppm | D50: Drain To Source Resitance Temp Co | G50: 41 | H50: 48 | I50: 1 | J50: 6.56 | K50: 6.56 | L50: 0.7592592593 | M50: 0.1055637863 | N50: 6.861377399 | O50: 9.9906887 | P50: 3.1293113 | Q50: 0 | R50: 6.852503799 | S50: 0.1643488291 | T50: 0.2 | U50: 0.3692030766 | V50: 1.980709044 | W50: 0.003923208318 | X50: 0.003923208318 | Y50: 2.105627052 | Z50: 0.004433665283 | AA50: 0.004433665283 | AB50: 2.226418307 | AC50: 0.05948326172 | AD50: 0.392740973 | AE50: 0.3456 | AF50: 0 | AG50: 0.8058775202 | AH50: 6.480730656 | AI50: 0.1721994663 | AJ50: 0.0385728 | AK50: 0.2168514971 | AL50: 0.0385728 | AM50: 0.348336 | AN50: 0.09391361664 | AO50: 0.0001056 | AP50: 0.0495 | AQ50: 0.4447384615 | AR50: 0.4257 | AS50: 0.0496056 | AT50: 1.930716984 | AU50: 32.8 | AV50: 0.9444089512 | AW50: 43.50272977 | AX50: 13.50435675 | AZ50: 94.44089512 | BA50: 0.3692030766 | BB50: 1.371065017 | BC50: 1.03577928 | BD50: 0.3318023771 | BE50: 0.09391361664
A51: QgBot | B51: =Qg_Q2*1000000000 -> 25 | C51: nC | D51: Gate Charge Of Top FET | G51: 42 | H51: 48 | I51: 1 | J51: 6.72 | K51: 6.72 | L51: 0.7777777778 | M51: 0.1055978905 | N51: 6.863197297 | O51: 10.15159865 | P51: 3.288401351 | Q51: 0 | R51: 7.00597529 | S51: 0.1717929142 | T51: 0.2 | U51: 0.3769738288 | V51: 1.981234404 | W51: 0.003925289762 | X51: 0.003925289762 | Y51: 2.153092211 | Z51: 0.004635806071 | AA51: 0.004635806071 | AB51: 2.276649753 | AC51: 0.06219760918 | AD51: 0.4023200211 | AE51: 0.3456 | AF51: 0 | AG51: 0.8186720974 | AH51: 6.625749442 | AI51: 0.1799922782 | AJ51: 0.0395136 | AK51: 0.2261321711 | AL51: 0.0395136 | AM51: 0.356832 | AN51: 0.09816737952 | AO51: 0.0001056 | AP51: 0.0495 | AQ51: 0.4447384615 | AR51: 0.4257 | AS51: 0.0496056 | AT51: 1.974457773 | AU51: 33.6 | AV51: 0.9444978815 | AW51: 44.27561113 | AX51: 13.99618996 | AZ51: 94.44978815 | BA51: 0.3769738288 | BB51: 1.401636268 | BC51: 1.054181217 | BD51: 0.3438867311 | BE51: 0.09816737952
A52: RGateBot | B52: =Rgate2 -> 1.2 | C52: W | D52: Gate Resistance | G52: 43 | H52: 48 | I52: 1 | J52: 6.88 | K52: 6.88 | L52: 0.7962962963 | M52: 0.1056319961 | N52: 6.865017026 | O52: 10.31250851 | P52: 3.447491487 | Q52: 0 | R52: 7.159732646 | S52: 0.1794162005 | T52: 0.2 | U52: 0.384941378 | V52: 1.981759714 | W52: 0.003927371564 | X52: 0.003927371564 | Y52: 2.200658612 | Z52: 0.004842898328 | AA52: 0.004842898328 | AB52: 2.326990171 | AC52: 0.06497859906 | AD52: 0.4118990692 | AE52: 0.3456 | AF52: 0 | AG52: 0.831555262 | AH52: 6.771033031 | AI52: 0.1879722421 | AJ52: 0.0404544 | AK52: 0.2356375957 | AL52: 0.0404544 | AM52: 0.365328 | AN52: 0.1025235431 | AO52: 0.0001056 | AP52: 0.0495 | AQ52: 0.4447384615 | AR52: 0.4257 | AS52: 0.0496056 | AT52: 2.018816049 | AU52: 34.4 | AV52: 0.9445666755 | AW52: 45.05221316 | AX52: 14.49717051 | AZ52: 94.45666755 | BA52: 0.384941378 | BB52: 1.432520858 | BC52: 1.072671742 | BD52: 0.3561958357 | BE52: 0.1025235431
A53: VsdBot | B53: =Vsd_Q2 -> 0.7 | C53: V | D53: Diode Forward Voltage of Bottom FET Body Diode | G53: 44 | H53: 48 | I53: 1 | J53: 7.04 | K53: 7.04 | L53: 0.8148148148 | M53: 0.1056661031 | N53: 6.866836586 | O53: 10.47341829 | P53: 3.606581707 | Q53: 0 | R53: 7.313757839 | S53: 0.187218688 | T53: 0.2 | U53: 0.3931064378 | V53: 1.982284976 | W53: 0.003929453725 | X53: 0.003929453725 | Y53: 2.248320746 | Z53: 0.005054946179 | AA53: 0.005054946179 | AB53: 2.377433742 | AC53: 0.06782629435 | AD53: 0.4214781173 | AE53: 0.3456 | AF53: 0 | AG53: 0.8445276501 | AH53: 6.916564359 | AI53: 0.1961393364 | AJ53: 0.0413952 | AK53: 0.2453695502 | AL53: 0.0413952 | AM53: 0.373824 | AN53: 0.1069821074 | AO53: 0.0001056 | AP53: 0.0495 | AQ53: 0.4447384615 | AR53: 0.4257 | AS53: 0.0496056 | AT53: 2.063794945 | AU53: 35.2 | AV53: 0.9446166192 | AW53: 45.83256258 | AX53: 15.00737084 | AZ53: 94.46166192 | BA53: 0.3931064378 | BB53: 1.4637212 | BC53: 1.09125149 | BD53: 0.3687314702 | BE53: 0.1069821074
A54: QrrBot | B54: =Qrr_Q2*1000000000 -> 59 | C54: nC | D54: Reverse Recovery Charge of Body Diode | G54: 45 | H54: 48 | I54: 1 | J54: 7.2 | K54: 7.2 | L54: 0.8333333333 | M54: 0.1057002114 | N54: 6.868655977 | O54: 10.63432799 | P54: 3.765672012 | Q54: 0 | R54: 7.468034296 | S54: 0.1952003769 | T54: 0.2 | U54: 0.4014697404 | V54: 1.982810189 | W54: 0.003931536244 | X54: 0.003931536244 | Y54: 2.29607355 | Z54: 0.005271953746 | AA54: 0.005271953746 | AB54: 2.427975117 | AC54: 0.07074075802 | AD54: 0.4310571654 | AE54: 0.3456 | AF54: 0 | AG54: 0.8575899055 | AH54: 7.062327738 | AI54: 0.2044935396 | AJ54: 0.042336 | AK54: 0.2553298662 | AL54: 0.042336 | AM54: 0.38232 | AN54: 0.1115430725 | AO54: 0.0001056 | AP54: 0.0495 | AQ54: 0.4447384615 | AR54: 0.4257 | AS54: 0.0496056 | AT54: 2.109397675 | AU54: 36 | AV54: 0.9446488844 | AW54: 46.61668643 | AX54: 15.52686547 | AZ54: 94.46488844 | BA54: 0.4014697404 | BB54: 1.495239772 | BC54: 1.109921106 | BD54: 0.3814954662 | BE54: 0.1115430725
A55: TrrBot | B55: =Trr_Q2*1000000000 -> 40 | C55: ns | D55: Reverse Recovery Time of Body Diode | G55: 46 | H55: 48 | I55: 1 | J55: 7.36 | K55: 7.36 | L55: 0.8518518519 | M55: 0.105734321 | N55: 6.870475198 | O55: 10.7952376 | P55: 3.924762401 | Q55: 0 | R55: 7.622546761 | S55: 0.2033612669 | T55: 0.2 | U55: 0.4100320377 | V55: 1.983335353 | W55: 0.003933619121 | X55: 0.003933619121 | Y55: 2.34391236 | Z55: 0.005493925152 | AA55: 0.005493925152 | AB55: 2.478609372 | AC55: 0.07372205305 | AD55: 0.4406362136 | AE55: 0.3456 | AF55: 0 | AG55: 0.8707426802 | AH55: 7.208308727 | AI55: 0.2130348303 | AJ55: 0.0432768 | AK55: 0.2655204285 | AL55: 0.0432768 | AM55: 0.390816 | AN55: 0.1162064382 | AO55: 0.0001056 | AP55: 0.0495 | AQ55: 0.4447384615 | AR55: 0.4257 | AS55: 0.0496056 | AT55: 2.155627529 | AU55: 36.8 | AV55: 0.944664541 | AW55: 47.40461209 | AX55: 16.05573113 | AZ55: 94.4664541 | BA55: 0.4100320377 | BB55: 1.527079109 | BC55: 1.12868124 | BD55: 0.3944897085 | BE55: 0.1162064382
A56: θJABot | B56: =ThetaJA_Q2 -> 40.7 | C56: °C/W | D56: Junction to Ambient Resistance | G56: 47 | H56: 48 | I56: 1 | J56: 7.52 | K56: 7.52 | L56: 0.8703703704 | M56: 0.105768432 | N56: 6.872294251 | O56: 10.95614713 | P56: 4.083852875 | Q56: 0 | R56: 7.777281167 | S56: 0.2117013582 | T56: 0.2 | U56: 0.4187941006 | V56: 1.983860468 | W56: 0.003935702356 | X56: 0.003935702356 | Y56: 2.391832879 | Z56: 0.005720864521 | AA56: 0.005720864521 | AB56: 2.529331967 | AC56: 0.07677024241 | AD56: 0.4502152617 | AE56: 0.3456 | AF56: 0 | AG56: 0.883986634 | AH56: 7.354494011 | AI56: 0.2217631868 | AJ56: 0.0442176 | AK56: 0.2759431762 | AL56: 0.0442176 | AM56: 0.399312 | AN56: 0.1209722047 | AO56: 0.0001056 | AP56: 0.0495 | AQ56: 0.4447384615 | AR56: 0.4257 | AS56: 0.0496056 | AT56: 2.202487882 | AU56: 37.6 | AV56: 0.9446645675 | AW56: 48.19636727 | AX56: 16.59404675 | AZ56: 94.46645675 | BA56: 0.4187941006 | BB56: 1.55924181 | BC56: 1.147532554 | BD56: 0.4077161362 | BE56: 0.1209722047
A57: Bottom Schottky | B57: Input Value | C57: Units | D57: Std Units | G57: 48 | H57: 48 | I57: 1 | J57: 7.68 | K57: 7.68 | L57: 0.8888888889 | M57: 0.1058025443 | N57: 6.874113134 | O57: 11.11705657 | P57: 4.242943433 | Q57: 0 | R57: 7.932224527 | S57: 0.2202206508 | T57: 0.2 | U57: 0.4277567199 | V57: 1.984385534 | W57: 0.003937785949 | X57: 0.003937785949 | Y57: 2.439831136 | Z57: 0.005952775974 | AA57: 0.005952775974 | AB57: 2.580138709 | AC57: 0.07988538911 | AD57: 0.4597943098 | AE57: 0.3456 | AF57: 0 | AG57: 0.8973224348 | AH57: 7.500871295 | AI57: 0.2306785878 | AJ57: 0.0451584 | AK57: 0.286600104 | AL57: 0.0451584 | AM57: 0.407808 | AN57: 0.1258403719 | AO57: 0.0001056 | AP57: 0.0495 | AQ57: 0.4447384615 | AR57: 0.4257 | AS57: 0.0496056 | AT57: 2.249982192 | AU57: 38.4 | AV57: 0.9446498603 | AW57: 48.99198002 | AX57: 17.14189348 | AZ57: 94.46498603 | BA57: 0.4277567199 | BB57: 1.591730539 | BC57: 1.166475715 | BD57: 0.421176744 | BE57: 0.1258403719
A58: VfdSky | B58: =VfdSky_Q2 -> 0 | C58: V | D58: Diode Forward Voltage | G58: 49 | H58: 48 | I58: 1 | J58: 7.84 | K58: 7.84 | L58: 0.9074074074 | M58: 0.1058366579 | N58: 6.875931849 | O58: 11.27796592 | P58: 4.402034076 | Q58: 0 | R58: 8.08736483 | S58: 0.2289191446 | T58: 0.2 | U58: 0.4369207058 | V58: 1.984910552 | W58: 0.003939869899 | X58: 0.003939869899 | Y58: 2.487903462 | Z58: 0.006189663634 | AA58: 0.006189663634 | AB58: 2.631025721 | AC58: 0.08306755613 | AD58: 0.4693733579 | AE58: 0.3456 | AF58: 0 | AG58: 0.9107507591 | AH58: 7.647429212 | AI58: 0.2397810116 | AJ58: 0.0460992 | AK58: 0.2974932623 | AL58: 0.0460992 | AM58: 0.416304 | AN58: 0.1308109398 | AO58: 0.0001056 | AP58: 0.0495 | AQ58: 0.4447384615 | AR58: 0.4257 | AS58: 0.0496056 | AT58: 2.298114001 | AU58: 39.2 | AV58: 0.9446212423 | AW58: 49.79147876 | AX58: 17.6993548 | AZ58: 94.46212423 | BA58: 0.4369207058 | BB58: 1.624548021 | BC58: 1.185511399 | BD58: 0.4348735823 | BE58: 0.1308109398
A59: QrrSky | B59: =QrrSky_Q2*1000000000 -> 0 | C59: nC | D59: Diode Reverse Recovery Charge | G59: 50 | H59: 48 | I59: 1 | J59: 8 | K59: 8 | L59: 0.9259259259 | M59: 0.1058707729 | N59: 6.877750394 | O59: 11.4388752 | P59: 4.561124803 | Q59: 0 | R59: 8.242690957 | S59: 0.2377968397 | T59: 0.2 | U59: 0.4462868887 | V59: 1.985435521 | W59: 0.003941954207 | X59: 0.003941954207 | Y59: 2.536046455 | Z59: 0.006431531621 | AA59: 0.006431531621 | AB59: 2.681989412 | AC59: 0.08631680647 | AD59: 0.4789524061 | AE59: 0.3456 | AF59: 0 | AG59: 0.9242722916 | AH59: 7.794157235 | AI59: 0.2490704367 | AJ59: 0.04704 | AK59: 0.3086247593 | AL59: 0.04704 | AM59: 0.4248 | AN59: 0.1358839084 | AO59: 0.0001056 | AP59: 0.0495 | AQ59: 0.4447384615 | AR59: 0.4257 | AS59: 0.0496056 | AT59: 2.346886934 | AU59: 40 | AV59: 0.9445794696 | AW59: 50.59489225 | AX59: 18.2665165 | AZ59: 94.45794696 | BA59: 0.4462868887 | BB59: 1.657697051 | BC59: 1.204640292 | BD59: 0.4488087593 | BE59: 0.1358839084
A60: Ireverse | B60: =Ireverse -> 0 | C60: mA | D60: Reverse Leakage Current | G60: 51 | H60: 48 | I60: 1 | J60: 8.16 | K60: 8.16 | L60: 0.9444444444 | M60: 0.1059048893 | N60: 6.87956877 | O60: 11.59978439 | P60: 4.720215615 | Q60: 0 | R60: 8.398192596 | S60: 0.2468537361 | T60: 0.2 | U60: 0.4558561189 | V60: 1.985960441 | W60: 0.003944038872 | X60: 0.003944038872 | Y60: 2.584256964 | Z60: 0.006678384057 | AA60: 0.006678384057 | AB60: 2.733026453 | AC60: 0.08963320314 | AD60: 0.4885314542 | AE60: 0.3456 | AF60: 0 | AG60: 0.9378877253 | AH60: 7.941045603 | AI60: 0.2585468416 | AJ60: 0.0479808 | AK60: 0.3199967616 | AL60: 0.0479808 | AM60: 0.433296 | AN60: 0.1410592777 | AO60: 0.0001056 | AP60: 0.0495 | AQ60: 0.4447384615 | AR60: 0.4257 | AS60: 0.0496056 | AT60: 2.396304707 | AU60: 40.8 | AV60: 0.9445252384 | AW60: 51.40224958 | AX60: 18.84346677 | AZ60: 94.45252384 | BA60: 0.4558561189 | BB60: 1.691180487 | BC60: 1.223863085 | BD60: 0.4629844416 | BE60: 0.1410592777
A61: Controller | B61: Input Value | C61: Units | D61: Std Units | G61: 52 | H61: 48 | I61: 1 | J61: 8.32 | K61: 8.32 | L61: 0.962962963 | M61: 0.105939007 | N61: 6.881386977 | O61: 11.76069349 | P61: 4.879306511 | Q61: 0 | R61: 8.553860175 | S61: 0.2560898336 | T61: 0.2 | U61: 0.4656292674 | V61: 1.986485312 | W61: 0.003946123894 | X61: 0.003946123894 | Y61: 2.632532063 | Z61: 0.006930225063 | AA61: 0.006930225063 | AB61: 2.784133754 | AC61: 0.09301680914 | AD61: 0.4981105023 | AE61: 0.3456 | AF61: 0 | AG61: 0.9515977621 | AH61: 8.088085257 | AI61: 0.2682102048 | AJ61: 0.0489216 | AK61: 0.3316114952 | AL61: 0.0489216 | AM61: 0.441792 | AN61: 0.1463370478 | AO61: 0.0001056 | AP61: 0.0495 | AQ61: 0.4447384615 | AR61: 0.4257 | AS61: 0.0496056 | AT61: 2.446371121 | AU61: 41.6 | AV61: 0.9444591902 | AW61: 52.21358025 | AX61: 19.43029621 | AZ61: 94.44591902 | BA61: 0.4656292674 | BB61: 1.725001257 | BC61: 1.243180482 | BD61: 0.4774028552 | BE61: 0.1463370478
A62: θJA | B62: 30 | C62: °C/W | D62: Junction to Ambient Resistance | G62: 53 | H62: 48 | I62: 1 | J62: 8.48 | K62: 8.48 | L62: 0.9814814815 | M62: 0.105973126 | N62: 6.883205015 | O62: 11.92160251 | P62: 5.038397493 | Q62: 0 | R62: 8.709684798 | S62: 0.2655051325 | T62: 0.2 | U62: 0.4756072252 | V62: 1.987010134 | W62: 0.003948209273 | X62: 0.003948209273 | Y62: 2.68086903 | Z62: 0.007187058758 | AA62: 0.007187058758 | AB62: 2.835308441 | AC62: 0.09646768749 | AD62: 0.5076895504 | AE62: 0.3456 | AF62: 0 | AG62: 0.9654031125 | AH62: 8.235267774 | AI62: 0.2780605048 | AJ62: 0.0498624 | AK62: 0.3434712471 | AL62: 0.0498624 | AM62: 0.450288 | AN62: 0.1517172185 | AO62: 0.0001056 | AP62: 0.0495 | AQ62: 0.4447384615 | AR62: 0.4257 | AS62: 0.0496056 | AT62: 2.497090071 | AU62: 42.4 | AV62: 0.9443819172 | AW62: 53.02891408 | AX62: 20.02709789 | AZ62: 94.43819172 | BA62: 0.4756072252 | BB62: 1.75916236 | BC62: 1.262593192 | BD62: 0.4920662871 | BE62: 0.1517172185
A63: Theta Ja | B63: 2 | C63: °C/W | D63: Junction to Ambient Resistance | G63: 54 | H63: 48 | I63: 1 | J63: 8.64 | K63: 8.64 | L63: 1 | M63: 0.1060072464 | N63: 6.885022884 | O63: 12.08251144 | P63: 5.197488558 | Q63: 0 | R63: 8.865658182 | S63: 0.2750996325 | T63: 0.2 | U63: 0.4857909045 | V63: 1.987534908 | W63: 0.003950295009 | X63: 0.003950295009 | Y63: 2.729265334 | Z63: 0.007448889262 | AA63: 0.007448889262 | AB63: 2.88654784 | AC63: 0.09998590121 | AD63: 0.5172685985 | AE63: 0.3456 | AF63: 0 | AG63: 0.9793044957 | AH63: 8.382585316 | AI63: 0.28809772 | AJ63: 0.0508032 | AK63: 0.3555783663 | AL63: 0.0508032 | AM63: 0.458784 | AN63: 0.15719979 | AO63: 0.0001056 | AP63: 0.0495 | AQ63: 0.4447384615 | AR63: 0.4257 | AS63: 0.0496056 | AT63: 2.548465541 | AU63: 43.2 | AV63: 0.9442939668 | AW63: 53.8482813 | AX63: 20.63396741 | AZ63: 94.42939668 | BA63: 0.4857909045 | BB63: 1.793666862 | BC63: 1.282101936 | BD63: 0.5069770863 | BE63: 0.15719979
G64: 55 | H64: 48 | I64: 1 | J64: 8.8 | K64: 8.8 | L64: 1.018518519 | M64: 0.1060413681 | N64: 6.886840583 | O64: 12.24342029 | P64: 5.356579708 | Q64: 0 | R64: 9.021772614 | S64: 0.2848733339 | T64: 0.2 | U64: 0.4961812381 | V64: 1.988059632 | W64: 0.003952381101 | X64: 0.003952381101 | Y64: 2.777718614 | Z64: 0.007715720696 | AA64: 0.007715720696 | AB64: 2.937849459 | AC64: 0.1035715133 | AD64: 0.5268476467 | AE64: 0.3456 | AF64: 0 | AG64: 0.9933026401 | AH64: 8.530030578 | AI64: 0.2983218288 | AJ64: 0.051744 | AK64: 0.3679352649 | AL64: 0.051744 | AM64: 0.46728 | AN64: 0.1627847622 | AO64: 0.0001056 | AP64: 0.0495 | AQ64: 0.4447384615 | AR64: 0.4257 | AS64: 0.0496056 | AT64: 2.600501607 | AU64: 44 | AV64: 0.9441958452 | AW64: 54.67171248 | AX64: 21.25100296 | AZ64: 94.41958452 | BA64: 0.4961812381 | BB64: 1.828517905 | BC64: 1.30170744 | BD64: 0.5221376649 | BE64: 0.1627847622
G65: 56 | H65: 48 | I65: 1 | J65: 8.96 | K65: 8.96 | L65: 1.037037037 | M65: 0.1060754911 | N65: 6.888658113 | O65: 12.40432906 | P65: 5.515670943 | Q65: 0 | R65: 9.178020895 | S65: 0.2948262364 | T65: 0.2 | U65: 0.5067791803 | V65: 1.988584308 | W65: 0.00395446755 | X65: 0.00395446755 | Y65: 2.826226668 | Z65: 0.007987557178 | AA65: 0.007987557178 | AB65: 2.989210972 | AC65: 0.1072245868 | AD65: 0.5364266948 | AE65: 0.3456 | AF65: 0 | AG65: 1.007398283 | AH65: 8.677596748 | AI65: 0.3087328098 | AJ65: 0.0526848 | AK65: 0.3805444198 | AL65: 0.0526848 | AM65: 0.475776 | AN65: 0.1684721351 | AO65: 0.0001056 | AP65: 0.0495 | AQ65: 0.4447384615 | AR65: 0.4257 | AS65: 0.0496056 | AT65: 2.653202443 | AU65: 44.8 | AV65: 0.9440880213 | AW65: 55.4992386 | AX65: 21.87830534 | AZ65: 94.40880213 | BA65: 0.5067791803 | BB65: 1.863718703 | BC65: 1.321410443 | BD65: 0.5375504998 | BE65: 0.1684721351
A66: Outputs | G66: 57 | H66: 48 | I66: 1 | J66: 9.12 | K66: 9.12 | L66: 1.055555556 | M66: 0.1061096155 | N66: 6.890475475 | O66: 12.56523774 | P66: 5.674762263 | Q66: 0 | R66: 9.334396304 | S66: 0.3049583402 | T66: 0.2 | U66: 0.5175857065 | V66: 1.989108935 | W66: 0.003956554355 | X66: 0.003956554355 | Y66: 2.87478744 | Z66: 0.008264402826 | AA66: 0.008264402826 | AB66: 3.040630209 | AC66: 0.1109451848 | AD66: 0.5460057429 | AE66: 0.3456 | AF66: 0 | AG66: 1.021592171 | AH66: 8.825277462 | AI66: 0.3193306414 | AJ66: 0.0536256 | AK66: 0.3934083737 | AL66: 0.0536256 | AM66: 0.484272 | AN66: 0.1742619087 | AO66: 0.0001056 | AP66: 0.0495 | AQ66: 0.4447384615 | AR66: 0.4257 | AS66: 0.0496056 | AT66: 2.706572317 | AU66: 45.6 | AV66: 0.9439709301 | AW66: 56.33089101 | AX66: 22.51597804 | AZ66: 94.39709301 | BA66: 0.5175857065 | BB66: 1.899272544 | BC66: 1.341211691 | BD66: 0.5532181337 | BE66: 0.1742619087
A67: Design | B67: Value | C67: Units | G67: 58 | H67: 48 | I67: 1 | J67: 9.28 | K67: 9.28 | L67: 1.074074074 | M67: 0.1061437413 | N67: 6.892292667 | O67: 12.72614633 | P67: 5.833853667 | Q67: 0 | R67: 9.490892556 | S67: 0.3152696453 | T67: 0.2 | U67: 0.5286018138 | V67: 1.989633513 | W67: 0.003958641517 | X67: 0.003958641517 | Y67: 2.923399008 | Z67: 0.00854626176 | AA67: 0.00854626176 | AB67: 3.092105139 | AC67: 0.1147333703 | AD67: 0.555584791 | AE67: 0.3456 | AF67: 0 | AG67: 1.035885059 | AH67: 8.973066774 | AI67: 0.330115302 | AJ67: 0.0545664 | AK67: 0.4065297366 | AL67: 0.0545664 | AM67: 0.492768 | AN67: 0.180154083 | AO67: 0.0001056 | AP67: 0.0495 | AQ67: 0.4447384615 | AR67: 0.4257 | AS67: 0.0496056 | AT67: 2.760615596 | AU67: 46.4 | AV67: 0.943844975 | AW67: 57.16670146 | AX67: 23.16412729 | AZ67: 94.3844975 | BA67: 0.5286018138 | BB67: 1.935182796 | BC67: 1.361111939 | BD67: 0.5691431766 | BE67: 0.180154083
A68: Dmax | B68: =D1_Vinmin -> 0.2083333333 | C68: index | G68: 59 | H68: 48 | I68: 1 | J68: 9.44 | K68: 9.44 | L68: 1.092592593 | M68: 0.1061778684 | N68: 6.894109689 | O68: 12.88705484 | P68: 5.992945155 | Q68: 0 | R68: 9.647503772 | S68: 0.3257601516 | T68: 0.2 | U68: 0.5398285213 | V68: 1.990158042 | W68: 0.003960729034 | X68: 0.003960729034 | Y68: 2.972059572 | Z68: 0.008833138097 | AA68: 0.008833138097 | AB68: 3.143633862 | AC68: 0.1185892063 | AD68: 0.5651638391 | AE68: 0.3456 | AF68: 0 | AG68: 1.050277714 | AH68: 9.120959115 | AI68: 0.3410867702 | AJ68: 0.0555072 | AK68: 0.4199111876 | AL68: 0.0555072 | AM68: 0.501264 | AN68: 0.1861486581 | AO68: 0.0001056 | AP68: 0.0495 | AQ68: 0.4447384615 | AR68: 0.4257 | AS68: 0.0496056 | AT68: 2.815336748 | AU68: 47.2 | AV68: 0.943710531 | AW68: 58.00670208 | AX68: 23.82286212 | AZ68: 94.3710531 | BA68: 0.5398285213 | BB68: 1.971452902 | BC68: 1.381111954 | BD68: 0.5853283076 | BE68: 0.1861486581
A69: Dprime | B69: =1-B68 -> 0.7916666667 | C69: index | G69: 60 | H69: 48 | I69: 1 | J69: 9.6 | K69: 9.6 | L69: 1.111111111 | M69: 0.1062119968 | N69: 6.895926543 | O69: 13.04796327 | P69: 6.152036729 | Q69: 0 | R69: 9.804224442 | S69: 0.3364298592 | T69: 0.2 | U69: 0.55126687 | V69: 1.990682523 | W69: 0.003962816907 | X69: 0.003962816907 | Y69: 3.020767445 | Z69: 0.009125035954 | AA69: 0.009125035954 | AB69: 3.195214597 | AC69: 0.1225127559 | AD69: 0.5747428873 | AE69: 0.3456 | AF69: 0 | AG69: 1.06477091 | AH69: 9.268949271 | AI69: 0.3522450244 | AJ69: 0.056448 | AK69: 0.4335554756 | AL69: 0.056448 | AM69: 0.50976 | AN69: 0.1922456338 | AO69: 0.0001056 | AP69: 0.0495 | AQ69: 0.4447384615 | AR69: 0.4257 | AS69: 0.0496056 | AT69: 2.870740343 | AU69: 48 | AV69: 0.9435679465 | AW69: 58.85092543 | AX69: 24.49229442 | AZ69: 94.35679465 | BA69: 0.55126687 | BB69: 2.008086386 | BC69: 1.40121251 | BD69: 0.6017762756 | BE69: 0.1922456338
A70: Ipp | B70: =Iripple_Vinnom -> 6.901459633 | C70: A | G70: 61 | H70: 48 | I70: 1 | J70: 9.76 | K70: 9.76 | L70: 1.12962963 | M70: 0.1062461266 | N70: 6.897743227 | O70: 13.20887161 | P70: 6.311128386 | Q70: 0 | R70: 9.961049399 | S70: 0.347278768 | T70: 0.2 | U70: 0.5629179234 | V70: 1.991206954 | W70: 0.003964905136 | X70: 0.003964905136 | Y70: 3.069521046 | Z70: 0.009421959449 | AA70: 0.009421959449 | AB70: 3.246845676 | AC70: 0.1265040821 | AD70: 0.5843219354 | AE70: 0.3456 | AF70: 0 | AG70: 1.079365432 | AH70: 9.417032351 | AI70: 0.363590043 | AJ70: 0.0573888 | AK70: 0.4474654216 | AL70: 0.0573888 | AM70: 0.518256 | AN70: 0.1984450103 | AO70: 0.0001056 | AP70: 0.0495 | AQ70: 0.4447384615 | AR70: 0.4257 | AS70: 0.0496056 | AT70: 2.926831052 | AU70: 48.8 | AV70: 0.9434175457 | AW70: 59.69940446 | AX70: 25.172539 | AZ70: 94.34175457 | BA70: 0.5629179234 | BB70: 2.045086854 | BC70: 1.421414392 | BD70: 0.6184899016 | BE70: 0.1984450103
A71: Top FET | B71: Value | C71: Units | G71: 62 | H71: 48 | I71: 1 | J71: 9.92 | K71: 9.92 | L71: 1.148148148 | M71: 0.1062802577 | N71: 6.899559742 | O71: 13.36977987 | P71: 6.470220129 | Q71: 0 | R71: 10.1179738 | S71: 0.358306878 | T71: 0.2 | U71: 0.5747827675 | V71: 1.991731337 | W71: 0.00396699372 | X71: 0.00396699372 | Y71: 3.11831889 | Z71: 0.009723912698 | AA71: 0.009723912698 | AB71: 3.29852553 | AC71: 0.130563248 | AD71: 0.5939009835 | AE71: 0.3456 | AF71: 0 | AG71: 1.094062074 | AH71: 9.565203764 | AI71: 0.3751218045 | AJ71: 0.0583296 | AK71: 0.4616439201 | AL71: 0.0583296 | AM71: 0.526752 | AN71: 0.2047467874 | AO71: 0.0001056 | AP71: 0.0495 | AQ71: 0.4447384615 | AR71: 0.4257 | AS71: 0.0496056 | AT71: 2.983613655 | AU71: 49.6 | AV71: 0.9432596308 | AW71: 60.55217253 | AX71: 25.86371366 | AZ71: 94.32596308 | BA71: 0.5747827675 | BB71: 2.082457994 | BC71: 1.441718394 | BD71: 0.6354720801 | BE71: 0.2047467874
A72: Tr | B72: =(Qgd_Q1+Qgs_Q1/2)*(RdsonDRT+Rgate1)/(VCC-Vsp_Q1)*1000000000 -> 6.084180791 | C72: ns | D72: Turn on of MOSFET -> Rise time of current | G72: 63 | H72: 48 | I72: 1 | J72: 10.08 | K72: 10.08 | L72: 1.166666667 | M72: 0.1063143902 | N72: 6.901376088 | O72: 13.53068804 | P72: 6.629311956 | Q72: 0 | R72: 10.27499307 | S72: 0.3695141893 | T72: 0.2 | U72: 0.5868625113 | V72: 1.992255671 | W72: 0.003969082659 | X72: 0.003969082659 | Y72: 3.167159582 | Z72: 0.01003089982 | AA72: 0.01003089982 | AB72: 3.350252686 | AC72: 0.1346903167 | AD72: 0.6034800316 | AE72: 0.3456 | AF72: 0 | AG72: 1.10886164 | AH72: 9.713459198 | AI72: 0.3868402874 | AJ72: 0.0592704 | AK72: 0.4760939405 | AL72: 0.0592704 | AM72: 0.535248 | AN72: 0.2111509653 | AO72: 0.0001056 | AP72: 0.0495 | AQ72: 0.4447384615 | AR72: 0.4257 | AS72: 0.0496056 | AT72: 3.041093039 | AU72: 50.4 | AV72: 0.9430944828 | AW72: 61.40926343 | AX72: 26.56593927 | AZ72: 94.30944828 | BA72: 0.5868625113 | BB72: 2.12020358 | BC72: 1.46212532 | BD72: 0.6527257805 | BE72: 0.2111509653
A73: Tf | B73: =(Qgd_Q1+Qgs_Q1/2)*(RdsonDRT2+Rgate1)/(Vsp_Q1)*1000000000 -> 2.230965147 | C73: ns | D73: Turn off of MOSFET -> Fall time of current | G73: 64 | H73: =Vin -> 48 | I73: =MODE -> 1 | J73: 10.24 | K73: =Iout*G73/100/Number_of_Phases -> 10.24 | L73: =Vout*K73/(Vin*Efficiency) -> 1.185185185 | M73: =(Vout+(Rdson2+Rs+Rdcr)*K73)/(Vin+(Rs+Rdson2-Rdson1)*K73) -> 0.106348524 | N73: =(Vin-(Rdson1+Rdcr)*K73-Vout)*M73/(Fsw*Lf) -> 6.903192265 | O73: 13.69159613 | P73: 6.788403868 | Q73: =IF(MIN(Vin, -P73/(Coss_Q1+Coss_Q2)*0.00000002)<0, 0, MIN(Vin, -P73/(Coss_Q1+Coss_Q2)*0.00000002)) -> 0 | R73: 10.43210295 | S73: =R73^2*Rdcr -> 0.3809007018 | T73: =Core_Loss_Ch1 -> 0.2 | U73: =(T73+S73*(1+Ltc*(Ta-25)))/(1-S73*Ltc*ThetaCa) -> 0.5991582868 | V73: 1.992779956 | W73: 0.003971171954 | X73: 0.003971171954 | Y73: 3.21604181 | Z73: 0.01034292492 | AA73: 0.01034292492 | AB73: 3.402025759 | AC73: =Rdson1*AB73^2 -> 0.1388853512 | AD73: =(Vin*K73/2)*Fsw*(Tr_buck+Tf_buck) -> 0.6130590797 | AE73: =(0.5*Coss_Q1*(Vin-Q73)^2-0.5*Coss_Q2*(Vin-Q73)^2+(Qoss_Q2*(Vin-Q73)/Vin)*Vin)*Fsw -> 0.3456 | AF73: =IF(K73>N73/2,0,ABS(K73-N73/2)*Vsd_Q1*Deadtime*Fsw) -> 0 | AG73: =(AF73+AE73+AD73+AC73*(1+RdsonTopTc*Ta-RdsonTopTc*25))/(1-AC73*RdsonTopTc*ThetaJA_Q1) -> 1.123764945 | AH73: =SQRT((1-M73))*SQRT(K73^2+(N73^2)/12) -> 9.861794598 | AI73: =Rdson2*AH73^2 -> 0.39874547 | AJ73: =IF(K73<N73/2,Deadtime*Fsw*IF(VfdSky_Q2>0,0,Vsd_Q2)*(K73+N73/2),2*Deadtime*Fsw*IF(VfdSky_Q2>0,0,Vsd_Q2)*K73) -> 0.0602112 | AK73: =(AJ73+AI73*(1+RdsonBotTc*Ta-RdsonBotTc*25))/(1-AI73*RdsonBotTc*ThetaJA_Q2) -> 0.4908185291 | AL73: =2*Deadtime*Fsw*IF(VfdSky_Q2>0,VfdSky_Q2,Vsd_Q2)*K73 -> 0.0602112 | AM73: =IF(QrrSky_Q2>0,QrrSky_Q2,Qrr_Q2*K73/(Iout/Number_of_Phases))*Fsw*Vin -> 0.543744 | AN73: =Rs*R73^2 -> 0.2176575439 | AO73: =Iq*Vin -> 0.0001056 | AP73: =IF(Ext_VCC=1, (Qg_Q1+Qg_Q2)*Fsw*VCC, (Qg_Q1+Qg_Q2)*Fsw*Vin) -> 0.0495 | AQ73: =(Vin-VCC)*Fsw*(Qg_Q1+Qg_Q2)+(RdsonDRT+RdsonDRT2)*Fsw*Qg_Q1*VCC/(RdsonDRT+2*Rgate1+RdsonDRT2)+(RdsonDRB+RdsonDRB2)*Fsw*Qg_Q2*VCC/(RdsonDRB+2*Rgate2+RdsonDRB2) -> 0.4447384615 | AR73: =(Qg_Q1+Qg_Q2)*Fsw*(Vin-VCC) -> 0.4257 | AS73: 0.0496056 | AT73: =SUM(U73,X73,AA73,AG73,AK73,AL73,AM73,AS73,AN73) -> 3.099274202 | AU73: =Vout*K73 -> 51.2 | AV73: 0.9429223641 | AW73: =ThetaJA_Q1*BC73 -> 62.27071137 | AX73: =ThetaJA_Q2*BD73 -> 27.2793398 | AZ73: 94.29223641 | BA73: =U73 -> 0.5991582868 | BB73: 2.158327474 | BC73: 1.482635985 | BD73: 0.6702540491 | BE73: 0.2176575439
A74: Part Power | B74: Value | C74: Units | G74: 65 | H74: 48 | I74: 1 | J74: =Iout*G74/100 -> 10.4 | K74: 10.4 | L74: 1.203703704 | M74: 0.1063826592 | N74: 6.905008272 | O74: =K74+N74/2 -> 13.85250414 | P74: =K74-N74/2 -> 6.947495864 | Q74: 0 | R74: =SQRT(K74^2+(N74^2)/12) -> 10.58929939 | S74: 0.3924664156 | T74: 0.2 | U74: 0.6116712494 | V74: =N74/SQRT(12) -> 1.993304192 | W74: =RCoutEsr*V74^2 -> 0.003973261603 | X74: =W74 -> 0.003973261603 | Y74: =SQRT(M74*(1-M74))*SQRT(K74^2+(N74^2)/12) -> 3.264964339 | Z74: =RCinEsr*Y74^2 -> 0.01065999213 | AA74: =Z74 -> 0.01065999213 | AB74: =SQRT(M74)*SQRT(K74^2+(N74^2)/12) -> 3.453843446 | AC74: 0.1431484146 | AD74: 0.6226381279 | AE74: 0.3456 | AF74: 0 | AG74: 1.138772814 | AH74: 10.01020614 | AI74: 0.4108373309 | AJ74: 0.061152 | AK74: 0.5058208106 | AL74: 0.061152 | AM74: 0.55224 | AN74: 0.2242665232 | AO74: 0.0001056 | AP74: 0.0495 | AQ74: 0.4447384615 | AR74: 0.4257 | AS74: 0.0496056 | AT74: 3.158162251 | AU74: 52 | AV74: =AU74/(AU74+AT74) -> 0.9427435193 | AW74: 63.136551 | AX74: 28.00404243 | AZ74: =AV74*100 -> 94.27435193 | BA74: 0.6116712494 | BB74: =AG74+AK74+AM74 -> 2.196833625 | BC74: =AG74+AM74*0.66 -> 1.503251214 | BD74: =AK74+AM74*0.33 -> 0.6880600106 | BE74: =AN74 -> 0.2242665232
A75: Power Dis | B75: =AS9 -> 0.0496056 | C75: W | G75: 66 | H75: 48 | I75: 1 | J75: 10.56 | K75: 10.56 | L75: 1.222222222 | M75: 0.1064167957 | N75: 6.90682411 | O75: 14.01341205 | P75: 7.106587945 | Q75: 0 | R75: 10.7465786 | S75: 0.4042113306 | T75: 0.2 | U75: 0.6244025784 | V75: 1.99382838 | W75: 0.003975351607 | X75: 0.003975351607 | Y75: 3.313926004 | Z75: 0.01098210556 | AA75: 0.01098210556 | AB75: 3.505704518 | AC75: 0.14747957 | AD75: 0.632217176 | AE75: 0.3456 | AF75: 0 | AG75: 1.153886083 | AH75: 10.15869024 | AI75: 0.4231158485 | AJ75: 0.0620928 | AK75: 0.5211039902 | AL75: 0.0620928 | AM75: 0.560736 | AN75: 0.2309779032 | AO75: 0.0001056 | AP75: 0.0495 | AQ75: 0.4447384615 | AR75: 0.4257 | AS75: =SUM(AO75:AP75) -> 0.0496056 | AT75: 3.217762412 | AU75: 52.8 | AV75: 0.9425581767 | AW75: 64.00681739 | AX75: 28.74017762 | AZ75: 94.25581767 | BA75: 0.6244025784 | BB75: 2.235726073 | BC75: 1.523971843 | BD75: 0.7061468702 | BE75: 0.2309779032
A76: Temp rise | B76: =B75*B62 -> 1.488168 | C76: °C | G76: 67 | H76: 48 | I76: 1 | J76: 10.72 | K76: 10.72 | L76: 1.240740741 | M76: 0.1064509335 | N76: 6.908639779 | O76: 14.17431989 | P76: 7.265680111 | Q76: 0 | R76: 10.90393699 | S76: 0.4161354469 | T76: 0.2 | U76: 0.6373534768 | V76: 1.994352518 | W76: 0.003977441966 | X76: 0.003977441966 | Y76: 3.362925708 | Z76: 0.01130926932 | AA76: 0.01130926932 | AB76: 3.557607815 | AC76: 0.1518788804 | AD76: 0.6417962241 | AE76: 0.3456 | AF76: 0 | AG76: 1.169105596 | AH76: 10.3072435 | AI76: 0.4355810013 | AJ76: 0.0630336 | AK76: 0.5366713554 | AL76: 0.0630336 | AM76: 0.569232 | AN76: 0.2377916839 | AO76: 0.0001056 | AP76: 0.0495 | AQ76: 0.4447384615 | AR76: 0.4257 | AS76: 0.0496056 | AT76: 3.278080023 | AU76: 53.6 | AV76: 0.9423665493 | AW76: 64.88154607 | AX76: 29.48787916 | AZ76: 94.23665493 | BA76: 0.6373534768 | BB76: 2.275008951 | BC76: 1.544798716 | BD76: 0.7245179154 | BE76: 0.2377916839
A77: Current (switching) | B77: =(Qg_Q1+Qg_Q2)*Fsw+Iq -> 0.0099022 | C77: A | G77: 68 | H77: 48 | I77: 1 | J77: 10.88 | K77: 10.88 | L77: 1.259259259 | M77: 0.1064850727 | N77: 6.910455278 | O77: 14.33522764 | P77: 7.424772361 | Q77: 0 | R77: 11.06137119 | S77: 0.4282387644 | T77: 0.2 | U77: 0.650525172 | V77: 1.994876608 | W77: 0.003979532679 | X77: 0.003979532679 | Y77: 3.411962415 | Z77: 0.01164148752 | AA77: 0.01164148752 | AB77: 3.609552246 | AC77: 0.156346409 | AD77: 0.6513752722 | AE77: 0.3456 | AF77: 0 | AG77: 1.184432211 | AH77: 10.45586272 | AI77: 0.4482327676 | AJ77: 0.0639744 | AK77: 0.5525262779 | AL77: 0.0639744 | AM77: 0.577728 | AN77: 0.2447078654 | AO77: 0.0001056 | AP77: 0.0495 | AQ77: 0.4447384615 | AR77: 0.4257 | AS77: 0.0496056 | AT77: 3.339120546 | AU77: 54.4 | AV77: 0.9421688361 | AW77: 65.76077301 | AX77: 30.24728428 | AZ77: 94.21688361 | BA77: 0.650525172 | BB77: 2.314686489 | BC77: 1.565732691 | BD77: 0.7431765179 | BE77: 0.2447078654
A78: Qrr Current | B78: =Qrr_Q2*Fsw -> 0.0177 | C78: A | G78: 69 | H78: 48 | I78: 1 | J78: 11.04 | K78: 11.04 | L78: 1.277777778 | M78: 0.1065192132 | N78: 6.912270608 | O78: 14.4961353 | P78: 7.583864696 | Q78: 0 | R78: 11.21887801 | S78: 0.4405212831 | T78: 0.2 | U78: 0.6639189161 | V78: 1.995400648 | W78: 0.003981623747 | X78: 0.003981623747 | Y78: 3.461035147 | Z78: 0.01197876429 | AA78: 0.01197876429 | AB78: 3.661536777 | AC78: 0.1608822188 | AD78: 0.6609543204 | AE78: 0.3456 | AF78: 0 | AG78: 1.199866794 | AH78: 10.60454488 | AI78: 0.4610711259 | AJ78: 0.0649152 | AK78: 0.5686722155 | AL78: 0.0649152 | AM78: 0.586224 | AN78: 0.2517264475 | AO78: 0.0001056 | AP78: 0.0495 | AQ78: 0.4447384615 | AR78: 0.4257 | AS78: 0.0496056 | AT78: 3.400889561 | AU78: 55.2 | AV78: 0.9419652229 | AW78: 66.64453464 | AX78: 31.01853371 | AZ78: 94.19652229 | BA78: 0.6639189161 | BB78: 2.35476301 | BC78: 1.586774634 | BD78: 0.7621261355 | BE78: 0.2517264475
A79: Diode Current | B79: =Deadtime*Fsw*(Iripple_Vinnom/2)*(Vsd_Q2)/Vin -> 0.0002113572013 | G79: 70 | H79: 48 | I79: 1 | J79: 11.2 | K79: 11.2 | L79: 1.296296296 | M79: 0.1065533551 | N79: 6.914085769 | O79: 14.65704288 | P79: 7.742957115 | Q79: 0 | R79: 11.37645442 | S79: 0.4529830031 | T79: 0.2 | U79: 0.6775359859 | V79: 1.99592464 | W79: 0.003983715169 | X79: 0.003983715169 | Y79: 3.510142978 | Z79: 0.01232110373 | AA79: 0.01232110373 | AB79: 3.713560432 | AC79: 0.165486373 | AD79: 0.6705333685 | AE79: 0.3456 | AF79: 0 | AG79: 1.215410225 | AH79: 10.75328713 | AI79: 0.4740960548 | AJ79: 0.065856 | AK79: 0.5851127144 | AL79: 0.065856 | AM79: 0.59472 | AN79: 0.2588474303 | AO79: 0.0001056 | AP79: 0.0495 | AQ79: 0.4447384615 | AR79: 0.4257 | AS79: 0.0496056 | AT79: 3.463392774 | AU79: 56 | AV79: 0.9417558835 | AW79: 67.53286785 | AX79: 31.8017718 | AZ79: 94.17558835 | BA79: 0.6775359859 | BB79: 2.395242939 | BC79: 1.607925425 | BD79: 0.7813703144 | BE79: 0.2588474303
A80: Total | B80: =SUM(B77:B79) -> 0.0278135572 | C80: A | G80: 71 | H80: 48 | I80: 1 | J80: 11.36 | K80: 11.36 | L80: 1.314814815 | M80: 0.1065874983 | N80: 6.915900761 | O80: 14.81795038 | P80: 7.90204962 | Q80: 0 | R80: 11.53409758 | S80: 0.4656239243 | T80: 0.2 | U80: 0.6913776835 | V80: 1.996448583 | W80: 0.003985806944 | X80: 0.003985806944 | Y80: 3.559285034 | Z80: 0.01266850995 | AA80: 0.01266850995 | AB80: 3.765622288 | AC80: 0.1701589346 | AD80: 0.6801124166 | AE80: 0.3456 | AF80: 0 | AG80: 1.231063392 | AH80: 10.90208676 | AI80: 0.4873075325 | AJ80: 0.0667968 | AK80: 0.6018514115 | AL80: 0.0667968 | AM80: 0.603216 | AN80: 0.2660708139 | AO80: 0.0001056 | AP80: 0.0495 | AQ80: 0.4447384615 | AR80: 0.4257 | AS80: 0.0496056 | AT80: 3.526636018 | AU80: 56.8 | AV80: 0.9415409801 | AW80: 68.42581 | AX80: 32.59714654 | AZ80: 94.15409801 | BA80: 0.6913776835 | BB80: 2.436130804 | BC80: 1.629185952 | BD80: 0.8009126915 | BE80: 0.2660708139
G81: 72 | H81: 48 | I81: 1 | J81: 11.52 | K81: 11.52 | L81: 1.333333333 | M81: 0.1066216429 | N81: 6.917715583 | O81: 14.97885779 | P81: 8.061142209 | Q81: 0 | R81: 11.69180478 | S81: 0.4784440468 | T81: 0.2 | U81: 0.7054453365 | V81: 1.996972477 | W81: 0.003987899074 | X81: 0.003987899074 | Y81: 3.608460486 | Z81: 0.01302098708 | AA81: 0.01302098708 | AB81: 3.817721471 | AC81: 0.1748999668 | AD81: 0.6896914647 | AE81: 0.3456 | AF81: 0 | AG81: 1.246827197 | AH81: 11.05094122 | AI81: 0.5007055376 | AJ81: 0.0677376 | AK81: 0.6188920362 | AL81: 0.0677376 | AM81: 0.611712 | AN81: 0.2733965981 | AO81: 0.0001056 | AP81: 0.0495 | AQ81: 0.4447384615 | AR81: 0.4257 | AS81: 0.0496056 | AT81: 3.590625254 | AU81: 57.6 | AV81: 0.9413206641 | AW81: 69.32339893 | AX81: 33.40480974 | AZ81: 94.13206641 | BA81: 0.7054453365 | BB81: 2.477431234 | BC81: 1.650557117 | BD81: 0.8207569962 | BE81: 0.2733965981
G82: 73 | H82: 48 | I82: 1 | J82: 11.68 | K82: 11.68 | L82: 1.351851852 | M82: 0.1066557888 | N82: 6.919530236 | O82: 15.13976512 | P82: 8.220234882 | Q82: 0 | R82: 11.84957348 | S82: 0.4914433704 | T82: 0.2 | U82: 0.7197402983 | V82: 1.997496322 | W82: 0.003989991557 | X82: 0.003989991557 | Y82: 3.65766855 | Z82: 0.01337853922 | AA82: 0.01337853922 | AB82: 3.869857153 | AC82: 0.1797095326 | AD82: 0.6992705128 | AE82: 0.3456 | AF82: 0 | AG82: 1.262702553 | AH82: 11.19984809 | AI82: 0.5142900484 | AJ82: 0.0686784 | AK82: 0.6362384129 | AL82: 0.0686784 | AM82: 0.620208 | AN82: 0.2808247831 | AO82: 0.0001056 | AP82: 0.0495 | AQ82: 0.4447384615 | AR82: 0.4257 | AS82: 0.0496056 | AT82: 3.655366578 | AU82: 58.4 | AV82: 0.9410950772 | AW82: 70.22567297 | AX82: 34.22491705 | AZ82: 94.10950772 | BA82: 0.7197402983 | BB82: 2.519148966 | BC82: 1.672039833 | BD82: 0.8409070529 | BE82: 0.2808247831
G83: 74 | H83: 48 | I83: 1 | J83: 11.84 | K83: 11.84 | L83: 1.37037037 | M83: 0.1066899361 | N83: 6.921344719 | O83: 15.30067236 | P83: 8.37932764 | Q83: 0 | R83: 12.00740123 | S83: 0.5046218954 | T83: 0.2 | U83: 0.7342639486 | V83: 1.998020118 | W83: 0.003992084393 | X83: 0.003992084393 | Y83: 3.706908481 | Z83: 0.01374117048 | AA83: 0.01374117048 | AB83: 3.922028548 | AC83: 0.1845876952 | AD83: 0.708849561 | AE83: 0.3456 | AF83: 0 | AG83: 1.278690382 | AH83: 11.34880507 | AI83: 0.5280610435 | AJ83: 0.0696192 | AK83: 0.6538944637 | AL83: 0.0696192 | AM83: 0.628704 | AN83: 0.2883553688 | AO83: 0.0001056 | AP83: 0.0495 | AQ83: 0.4447384615 | AR83: 0.4257 | AS83: 0.0496056 | AT83: 3.720866218 | AU83: 59.2 | AV83: 0.9408643517 | AW83: 71.13267092 | AX83: 35.0576281 | AZ83: 94.08643517 | BA83: 0.7342639486 | BB83: 2.561288846 | BC83: 1.693635022 | BD83: 0.8613667837 | BE83: 0.2883553688
G84: 75 | H84: 48 | I84: 1 | J84: 12 | K84: 12 | L84: 1.388888889 | M84: 0.1067240847 | N84: 6.923159033 | O84: 15.46157952 | P84: 8.538420483 | Q84: 0 | R84: 12.16528576 | S84: 0.5179796215 | T84: 0.2 | U84: 0.7490176937 | V84: 1.998543866 | W84: 0.003994177583 | X84: 0.003994177583 | Y84: 3.756179573 | Z84: 0.01410888498 | AA84: 0.01410888498 | AB84: 3.974234913 | AC84: 0.1895345177 | AD84: 0.7184286091 | AE84: 0.3456 | AF84: 0 | AG84: 1.294791621 | AH84: 11.49780998 | AI84: 0.5420185012 | AJ84: 0.07056 | AK84: 0.6718642103 | AL84: 0.07056 | AM84: 0.6372 | AN84: 0.2959883552 | AO84: 0.0001056 | AP84: 0.0495 | AQ84: 0.4447384615 | AR84: 0.4257 | AS84: 0.0496056 | AT84: 3.787130543 | AU84: 60 | AV84: 0.940628611 | AW84: 72.04443209 | AX84: 35.90310656 | AZ84: 94.0628611 | BA84: 0.7490176937 | BB84: 2.603855832 | BC84: 1.715343621 | BD84: 0.8821402103 | BE84: 0.2959883552
G85: 76 | H85: 48 | I85: 1 | J85: 12.16 | K85: 12.16 | L85: 1.407407407 | M85: 0.1067582346 | N85: 6.924973178 | O85: 15.62248659 | P85: 8.697513411 | Q85: 0 | R85: 12.32322487 | S85: 0.5315165489 | T85: 0.2 | U85: 0.7640029666 | V85: 1.999067564 | W85: 0.003996271126 | X85: 0.003996271126 | Y85: 3.805481156 | Z85: 0.01448168683 | AA85: 0.01448168683 | AB85: 4.02647554 | AC85: 0.1945500632 | AD85: 0.7280076572 | AE85: 0.3456 | AF85: 0 | AG85: 1.311007219 | AH85: 11.64686077 | AI85: 0.5561624 | AJ85: 0.0715008 | AK85: 0.6901517771 | AL85: 0.0715008 | AM85: 0.645696 | AN85: 0.3037237423 | AO85: 0.0001056 | AP85: 0.0495 | AQ85: 0.4447384615 | AR85: 0.4257 | AS85: 0.0496056 | AT85: 3.854166063 | AU85: 60.8 | AV85: 0.9403879704 | AW85: 72.96099631 | AX85: 36.7615203 | AZ85: 94.03879704 | BA85: 0.7640029666 | BB85: 2.646854996 | BC85: 1.737166579 | BD85: 0.9032314571 | BE85: 0.3037237423
G86: 77 | H86: 48 | I86: 1 | J86: 12.32 | K86: 12.32 | L86: 1.425925926 | M86: 0.1067923859 | N86: 6.926787153 | O86: 15.78339358 | P86: 8.856606423 | Q86: 0 | R86: 12.48121649 | S86: 0.5452326776 | T86: 0.2 | U86: 0.7792212277 | V86: 1.999591214 | W86: 0.003998365022 | X86: 0.003998365022 | Y86: 3.854812594 | Z86: 0.01485958013 | AA86: 0.01485958013 | AB86: 4.078749757 | AC86: 0.199634395 | AD86: 0.7375867053 | AE86: 0.3456 | AF86: 0 | AG86: 1.327338134 | AH86: 11.79595547 | AI86: 0.5704927183 | AJ86: 0.0724416 | AK86: 0.7087613936 | AL86: 0.0724416 | AM86: 0.654192 | AN86: 0.31156153 | AO86: 0.0001056 | AP86: 0.0495 | AQ86: 0.4447384615 | AR86: 0.4257 | AS86: 0.0496056 | AT86: 3.921979431 | AU86: 61.6 | AV86: 0.9401425374 | AW86: 73.88240388 | AX86: 37.63304147 | AZ86: 94.01425374 | BA86: 0.7792212277 | BB86: 2.690291528 | BC86: 1.759104854 | BD86: 0.9246447536 | BE86: 0.31156153
G87: 78 | H87: 48 | I87: 1 | J87: 12.48 | K87: 12.48 | L87: 1.444444444 | M87: 0.1068265386 | N87: 6.928600959 | O87: 15.94430048 | P87: 9.01569952 | Q87: 0 | R87: 12.63925865 | S87: 0.5591280074 | T87: 0.2 | U87: 0.7946739651 | V87: 2.000114814 | W87: 0.004000459271 | X87: 0.004000459271 | Y87: 3.904173281 | Z87: 0.01524256901 | AA87: 0.01524256901 | AB87: 4.131056927 | AC87: 0.204787576 | AD87: 0.7471657534 | AE87: 0.3456 | AF87: 0 | AG87: 1.343785341 | AH87: 11.94509221 | AI87: 0.5850094346 | AJ87: 0.0733824 | AK87: 0.727697397 | AL87: 0.0733824 | AM87: 0.662688 | AN87: 0.3195017185 | AO87: 0.0001056 | AP87: 0.0495 | AQ87: 0.4447384615 | AR87: 0.4257 | AS87: 0.0496056 | AT87: 3.990577449 | AU87: 62.4 | AV87: 0.9398924124 | AW87: 74.80869566 | AX87: 38.51784658 | AZ87: 93.98924124 | BA87: 0.7946739651 | BB87: 2.734170738 | BC87: 1.781159421 | BD87: 0.946384437 | BE87: 0.3195017185
G88: 79 | H88: 48 | I88: 1 | J88: 12.64 | K88: 12.64 | L88: 1.462962963 | M88: 0.1068606926 | N88: 6.930414596 | O88: 16.1052073 | P88: 9.174792702 | Q88: 0 | R88: 12.79734949 | S88: 0.5732025386 | T88: 0.2 | U88: 0.8103626949 | V88: 2.000638366 | W88: 0.004002553873 | X88: 0.004002553873 | Y88: 3.953562641 | Z88: 0.01563065756 | AA88: 0.01563065756 | AB88: 4.183396441 | AC88: 0.2100096694 | AD88: 0.7567448016 | AE88: 0.3456 | AF88: 0 | AG88: 1.360349823 | AH88: 12.09426923 | AI88: 0.5997125272 | AJ88: 0.0743232 | AK88: 0.7469642353 | AL88: 0.0743232 | AM88: 0.671184 | AN88: 0.3275443077 | AO88: 0.0001056 | AP88: 0.0495 | AQ88: 0.4447384615 | AR88: 0.4257 | AS88: 0.0496056 | AT88: 4.059967072 | AU88: 63.2 | AV88: 0.9396376887 | AW88: 75.73991303 | AX88: 39.41611668 | AZ88: 93.96376887 | BA88: 0.8103626949 | BB88: 2.778498058 | BC88: 1.803331263 | BD88: 0.9684549553 | BE88: 0.3275443077
G89: 80 | H89: 48 | I89: 1 | J89: 12.8 | K89: 12.8 | L89: 1.481481481 | M89: 0.1068948479 | N89: 6.932228063 | O89: 16.26611403 | P89: 9.333885968 | Q89: 0 | R89: 12.95548721 | S89: 0.5874562709 | T89: 0.2 | U89: 0.8262889615 | V89: 2.001161869 | W89: 0.004004648827 | X89: 0.004004648827 | Y89: 4.002980127 | Z89: 0.0160238499 | AA89: 0.0160238499 | AB89: 4.235767723 | AC89: 0.2153007385 | AD89: 0.7663238497 | AE89: 0.3456 | AF89: 0 | AG89: 1.377032578 | AH89: 12.24348482 | AI89: 0.6146019745 | AJ89: 0.075264 | AK89: 0.7665664703 | AL89: 0.075264 | AM89: 0.67968 | AN89: 0.3356892977 | AO89: 0.0001056 | AP89: 0.0495 | AQ89: 0.4447384615 | AR89: 0.4257 | AS89: 0.0496056 | AT89: 4.130155406 | AU89: 64 | AV89: 0.9393784532 | AW89: 76.67609788 | AX89: 40.32803742 | AZ89: 93.93784532 | BA89: 0.8262889615 | BB89: 2.823279048 | BC89: 1.825621378 | BD89: 0.9908608703 | BE89: 0.3356892977
G90: 81 | H90: 48 | I90: 1 | J90: 12.96 | K90: 12.96 | L90: 1.5 | M90: 0.1069290046 | N90: 6.934041361 | O90: 16.42702068 | P90: 9.49297932 | Q90: 0 | R90: 13.11367012 | S90: 0.6018892045 | T90: 0.2 | U90: 0.8424543382 | V90: 2.001685323 | W90: 0.004006744133 | X90: 0.004006744133 | Y90: 4.052425217 | Z90: 0.01642215014 | AA90: 0.01642215014 | AB90: 4.288170222 | AC90: 0.2206608463 | AD90: 0.7759028978 | AE90: 0.3456 | AF90: 0 | AG90: 1.393834618 | AH90: 12.3927374 | AI90: 0.6296777551 | AJ90: 0.0762048 | AK90: 0.7865087803 | AL90: 0.0762048 | AM90: 0.688176 | AN90: 0.3439366883 | AO90: 0.0001056 | AP90: 0.0495 | AQ90: 0.4447384615 | AR90: 0.4257 | AS90: 0.0496056 | AT90: 4.201149719 | AU90: 64.8 | AV90: 0.9391147867 | AW90: 77.61729268 | AX90: 41.25379921 | AZ90: 93.91147867 | BA90: 0.8424543382 | BB90: 2.868519398 | BC90: 1.848030778 | BD90: 1.01360686 | BE90: 0.3439366883
G91: 82 | H91: 48 | I91: 1 | J91: 13.12 | K91: 13.12 | L91: 1.518518519 | M91: 0.1069631626 | N91: 6.935854489 | O91: 16.58792724 | P91: 9.652072755 | Q91: 0 | R91: 13.27189662 | S91: 0.6165013393 | T91: 0.2 | U91: 0.8588604276 | V91: 2.002208728 | W91: 0.004008839791 | X91: 0.004008839791 | Y91: 4.101897412 | Z91: 0.01682556238 | AA91: 0.01682556238 | AB91: 4.340603414 | AC91: 0.226090056 | AD91: 0.7854819459 | AE91: 0.3456 | AF91: 0 | AG91: 1.410756966 | AH91: 12.54202543 | AI91: 0.6449398474 | AJ91: 0.0771456 | AK91: 0.8067959635 | AL91: 0.0771456 | AM91: 0.696672 | AN91: 0.3522864796 | AO91: 0.0001056 | AP91: 0.0495 | AQ91: 0.4447384615 | AR91: 0.4257 | AS91: 0.0496056 | AT91: 4.272957439 | AU91: 65.6 | AV91: 0.9388467642 | AW91: 78.56354042 | AX91: 42.19359734 | AZ91: 93.88467642 | BA91: 0.8588604276 | BB91: 2.91422493 | BC91: 1.870560486 | BD91: 1.036697723 | BE91: 0.3522864796
G92: 83 | H92: 48 | I92: 1 | J92: 13.28 | K92: 13.28 | L92: 1.537037037 | M92: 0.106997322 | N92: 6.937667448 | O92: 16.74883372 | P92: 9.811166276 | Q92: 0 | R92: 13.43016514 | S92: 0.6312926753 | T92: 0.2 | U92: 0.8755088618 | V92: 2.002732084 | W92: 0.004010935801 | X92: 0.004010935801 | Y92: 4.15139624 | Z92: 0.01723409074 | AA92: 0.01723409074 | AB92: 4.393066798 | AC92: 0.2315884307 | AD92: 0.795060994 | AE92: 0.3456 | AF92: 0 | AG92: 1.42780066 | AH92: 12.69134744 | AI92: 0.6603882296 | AJ92: 0.0780864 | AK92: 0.8274329412 | AL92: 0.0780864 | AM92: 0.705168 | AN92: 0.3607386716 | AO92: 0.0001056 | AP92: 0.0495 | AQ92: 0.4447384615 | AR92: 0.4257 | AS92: 0.0496056 | AT92: 4.345586161 | AU92: 66.4 | AV92: 0.9385744554 | AW92: 79.51488468 | AX92: 43.14763211 | AZ92: 93.85744554 | BA92: 0.8755088618 | BB92: 2.960401601 | BC92: 1.89321154 | BD92: 1.060138381 | BE92: 0.3607386716
G93: 84 | H93: 48 | I93: 1 | J93: 13.44 | K93: 13.44 | L93: 1.555555556 | M93: 0.1070314827 | N93: 6.939480237 | O93: 16.90974012 | P93: 9.970259881 | Q93: 0 | R93: 13.58847424 | S93: 0.6462632126 | T93: 0.2 | U93: 0.8924013032 | V93: 2.003255392 | W93: 0.004013032164 | X93: 0.004013032164 | Y93: 4.200921246 | Z93: 0.01764773932 | AA93: 0.01764773932 | AB93: 4.445559899 | AC93: 0.2371560337 | AD93: 0.8046400422 | AE93: 0.3456 | AF93: 0 | AG93: 1.44496675 | AH93: 12.84070206 | AI93: 0.6760228803 | AJ93: 0.0790272 | AK93: 0.8484247612 | AL93: 0.0790272 | AM93: 0.713664 | AN93: 0.3692932643 | AO93: 0.0001056 | AP93: 0.0495 | AQ93: 0.4447384615 | AR93: 0.4257 | AS93: 0.0496056 | AT93: 4.41904365 | AU93: 67.2 | AV93: 0.9382979243 | AW93: 80.47136958 | AX93: 44.11610897 | AZ93: 93.82979243 | BA93: 0.8924013032 | BB93: 3.007055511 | BC93: 1.91598499 | BD93: 1.083933881 | BE93: 0.3692932643
G94: 85 | H94: 48 | I94: 1 | J94: 13.6 | K94: 13.6 | L94: 1.574074074 | M94: 0.1070656447 | N94: 6.941292857 | O94: 17.07064643 | P94: 10.12935357 | Q94: 0 | R94: 13.7468225 | S94: 0.6614129511 | T94: 0.2 | U94: 0.9095394445 | V94: 2.00377865 | W94: 0.004015128877 | X94: 0.004015128877 | Y94: 4.250472001 | Z94: 0.01806651223 | AA94: 0.01806651223 | AB94: 4.498082259 | AC94: 0.2427929281 | AD94: 0.8142190903 | AE94: 0.3456 | AF94: 0 | AG94: 1.462256301 | AH94: 12.99008795 | AI94: 0.6918437779 | AJ94: 0.079968 | AK94: 0.8697766014 | AL94: 0.079968 | AM94: 0.72216 | AN94: 0.3779502578 | AO94: 0.0001056 | AP94: 0.0495 | AQ94: 0.4447384615 | AR94: 0.4257 | AS94: 0.0496056 | AT94: 4.493337845 | AU94: 68 | AV94: 0.9380172306 | AW94: 81.43303982 | AX94: 45.09923864 | AZ94: 93.80172306 | BA94: 0.9095394445 | BB94: 3.054192902 | BC94: 1.938881901 | BD94: 1.108089401 | BE94: 0.3779502578
G95: 86 | H95: 48 | I95: 1 | J95: 13.76 | K95: 13.76 | L95: 1.592592593 | M95: 0.1070998081 | N95: 6.943105308 | O95: 17.23155265 | P95: 10.28844735 | Q95: 0 | R95: 13.90520859 | S95: 0.6767418908 | T95: 0.2 | U95: 0.9269250095 | V95: 2.004301859 | W95: 0.004017225943 | X95: 0.004017225943 | Y95: 4.30004809 | Z95: 0.01849041358 | AA95: 0.01849041358 | AB95: 4.550633446 | AC95: 0.2484991771 | AD95: 0.8237981384 | AE95: 0.3456 | AF95: 0 | AG95: 1.47967039 | AH95: 13.13950384 | AI95: 0.7078509008 | AJ95: 0.0809088 | AK95: 0.8914937732 | AL95: 0.0809088 | AM95: 0.730656 | AN95: 0.3867096519 | AO95: 0.0001056 | AP95: 0.0495 | AQ95: 0.4447384615 | AR95: 0.4257 | AS95: 0.0496056 | AT95: 4.568476865 | AU95: 68.8 | AV95: 0.9377324287 | AW95: 82.39994072 | AX95: 46.0972373 | AZ95: 93.77324287 | BA95: 0.9269250095 | BB95: 3.101820164 | BC95: 1.96190335 | BD95: 1.132610253 | BE95: 0.3867096519
G96: 87 | H96: 48 | I96: 1 | J96: 13.92 | K96: 13.92 | L96: 1.611111111 | M96: 0.1071339729 | N96: 6.944917589 | O96: 17.39245879 | P96: 10.44754121 | Q96: 0 | R96: 14.06363123 | S96: 0.6922500318 | T96: 0.2 | U96: 0.9445597533 | V96: 2.00482502 | W96: 0.004019323359 | X96: 0.004019323359 | Y96: 4.349649121 | Z96: 0.01891944747 | AA96: 0.01891944747 | AB96: 4.603213044 | AC96: 0.2542748439 | AD96: 0.8333771865 | AE96: 0.3456 | AF96: 0 | AG96: 1.497210112 | AH96: 13.28894853 | AI96: 0.7240442274 | AJ96: 0.0818496 | AK96: 0.9135817254 | AL96: 0.0818496 | AM96: 0.739152 | AN96: 0.3955714467 | AO96: 0.0001056 | AP96: 0.0495 | AQ96: 0.4447384615 | AR96: 0.4257 | AS96: 0.0496056 | AT96: 4.644469008 | AU96: 69.6 | AV96: 0.9374435689 | AW96: 83.37211815 | AX96: 47.11032673 | AZ96: 93.74435689 | BA96: 0.9445597533 | BB96: 3.149943838 | BC96: 1.985050432 | BD96: 1.157501885 | BE96: 0.3955714467
G97: 88 | H97: 48 | I97: 1 | J97: 14.08 | K97: 14.08 | L97: 1.62962963 | M97: 0.107168139 | N97: 6.9467297 | O97: 17.55336485 | P97: 10.60663515 | Q97: 0 | R97: 14.2220892 | S97: 0.7079373739 | T97: 0.2 | U97: 0.962445463 | V97: 2.005348131 | W97: 0.004021421127 | X97: 0.004021421127 | Y97: 4.399274715 | Z97: 0.01935361802 | AA97: 0.01935361802 | AB97: 4.655820655 | AC97: 0.2601199916 | AD97: 0.8429562347 | AE97: 0.3456 | AF97: 0 | AG97: 1.514876573 | AH97: 13.43842086 | AI97: 0.7404237362 | AJ97: 0.0827904 | AK97: 0.9360460481 | AL97: 0.0827904 | AM97: 0.747648 | AN97: 0.4045356423 | AO97: 0.0001056 | AP97: 0.0495 | AQ97: 0.4447384615 | AR97: 0.4257 | AS97: 0.0496056 | AT97: 4.721322765 | AU97: 70.4 | AV97: 0.9371506971 | AW97: 84.34961862 | AX97: 48.13873445 | AZ97: 93.71506971 | BA97: 0.962445463 | BB97: 3.198570621 | BC97: 2.008324253 | BD97: 1.182769888 | BE97: 0.4045356423
G98: 89 | H98: 48 | I98: 1 | J98: 14.24 | K98: 14.24 | L98: 1.648148148 | M98: 0.1072023064 | N98: 6.948541642 | O98: 17.71427082 | P98: 10.76572918 | Q98: 0 | R98: 14.38058133 | S98: 0.7238039174 | T98: 0.2 | U98: 0.9805839582 | V98: 2.005871194 | W98: 0.004023519246 | X98: 0.004023519246 | Y98: 4.448924513 | Z98: 0.01979292932 | AA98: 0.01979292932 | AB98: 4.708455899 | AC98: 0.2660346835 | AD98: 0.8525352828 | AE98: 0.3456 | AF98: 0 | AG98: 1.532670894 | AH98: 13.58791972 | AI98: 0.7569894054 | AJ98: 0.0837312 | AK98: 0.9588924768 | AL98: 0.0837312 | AM98: 0.756144 | AN98: 0.4136022385 | AO98: 0.0001056 | AP98: 0.0495 | AQ98: 0.4447384615 | AR98: 0.4257 | AS98: 0.0496056 | AT98: 4.799046816 | AU98: 71.2 | AV98: 0.9368538552 | AW98: 85.33248922 | AX98: 49.18269387 | AZ98: 93.68538552 | BA98: 0.9805839582 | BB98: 3.247707371 | BC98: 2.031725934 | BD98: 1.208419997 | BE98: 0.4136022385
G99: 90 | H99: 48 | I99: 1 | J99: 14.4 | K99: 14.4 | L99: 1.666666667 | M99: 0.1072364752 | N99: 6.950353414 | O99: 17.87517671 | P99: 10.92482329 | Q99: 0 | R99: 14.5391065 | S99: 0.739849662 | T99: 0.2 | U99: 0.9989770911 | V99: 2.006394207 | W99: 0.004025617715 | X99: 0.004025617715 | Y99: 4.498598169 | Z99: 0.02023738548 | AA99: 0.02023738548 | AB99: 4.761118415 | AC99: 0.2720189827 | AD99: 0.8621143309 | AE99: 0.3456 | AF99: 0 | AG99: 1.550594212 | AH99: 13.73744405 | AI99: 0.7737412135 | AJ99: 0.084672 | AK99: 0.9821268964 | AL99: 0.084672 | AM99: 0.76464 | AN99: 0.4227712354 | AO99: 0.0001056 | AP99: 0.0495 | AQ99: 0.4447384615 | AR99: 0.4257 | AS99: 0.0496056 | AT99: 4.877650038 | AU99: 72 | AV99: 0.936553081 | AW99: 86.32077769 | AX99: 50.24244452 | AZ99: 93.6553081 | BA99: 0.9989770911 | BB99: 3.297361108 | BC99: 2.055256612 | BD99: 1.234458096 | BE99: 0.4227712354
G100: 91 | H100: 48 | I100: 1 | J100: 14.56 | K100: 14.56 | L100: 1.685185185 | M100: 0.1072706454 | N100: 6.952165017 | O100: 18.03608251 | P100: 11.08391749 | Q100: 0 | R100: 14.69766364 | S100: 0.7560746079 | T100: 0.2 | U100: 1.017626747 | V100: 2.006917172 | W100: 0.004027716536 | X100: 0.004027716536 | Y100: 4.548295353 | Z100: 0.02068699062 | AA100: 0.02068699062 | AB100: 4.813807852 | AC100: 0.2780729524 | AD100: 0.871693379 | AE100: 0.3456 | AF100: 0 | AG100: 1.568647678 | AH100: 13.88699285 | AI100: 0.790679139 | AJ100: 0.0856128 | AK100: 1.005755346 | AL100: 0.0856128 | AM100: 0.773136 | AN100: 0.4320426331 | AO100: 0.0001056 | AP100: 0.0495 | AQ100: 0.4447384615 | AR100: 0.4257 | AS100: 0.0496056 | AT100: 4.957141511 | AU100: 72.8 | AV100: 0.9362484086 | AW100: 87.3145324 | AX100: 51.31823219 | AZ100: 93.62484086 | BA100: 1.017626747 | BB100: 3.347539024 | BC100: 2.078917438 | BD100: 1.260890226 | BE100: 0.4320426331
G101: 92 | H101: 48 | I101: 1 | J101: 14.72 | K101: 14.72 | L101: 1.703703704 | M101: 0.1073048168 | N101: 6.953976451 | O101: 18.19698823 | P101: 11.24301177 | Q101: 0 | R101: 14.85625174 | S101: 0.772478755 | T101: 0.2 | U101: 1.036534847 | V101: 2.007440088 | W101: 0.004029815706 | X101: 0.004029815706 | Y101: 4.598015748 | Z101: 0.02114174882 | AA101: 0.02114174882 | AB101: 4.866523879 | AC101: 0.284196656 | AD101: 0.8812724271 | AE101: 0.3456 | AF101: 0 | AG101: 1.586832459 | AH101: 14.03656514 | AI101: 0.8078031603 | AJ101: 0.0865536 | AK101: 1.029784022 | AL101: 0.0865536 | AM101: 0.781632 | AN101: 0.4414164314 | AO101: 0.0001056 | AP101: 0.0495 | AQ101: 0.4447384615 | AR101: 0.4257 | AS101: 0.0496056 | AT101: 5.037530524 | AU101: 73.6 | AV101: 0.9359398688 | AW101: 88.31380234 | AX101: 52.41030909 | AZ101: 93.59398688 | BA101: 1.036534847 | BB101: 3.398248482 | BC101: 2.102709579 | BD101: 1.287722582 | BE101: 0.4414164314
G102: 93 | H102: 48 | I102: 1 | J102: 14.88 | K102: 14.88 | L102: 1.722222222 | M102: 0.1073389897 | N102: 6.955787715 | O102: 18.35789386 | P102: 11.40210614 | Q102: 0 | R102: 15.0148698 | S102: 0.7890621033 | T102: 0.2 | U102: 1.055703343 | V102: 2.007962955 | W102: 0.004031915227 | X102: 0.004031915227 | Y102: 4.647759052 | Z102: 0.0216016642 | AA102: 0.0216016642 | AB102: 4.919266175 | AC102: 0.2903901564 | AD102: 0.8908514753 | AE102: 0.3456 | AF102: 0 | AG102: 1.605149739 | AH102: 14.18616 | AI102: 0.8251132556 | AJ102: 0.0874944 | AK102: 1.054219286 | AL102: 0.0874944 | AM102: 0.790128 | AN102: 0.4508926305 | AO102: 0.0001056 | AP102: 0.0495 | AQ102: 0.4447384615 | AR102: 0.4257 | AS102: 0.0496056 | AT102: 5.118826577 | AU102: 74.4 | AV102: 0.9356274885 | AW102: 89.31863718 | AX102: 53.51893409 | AZ102: 93.56274885 | BA102: 1.055703343 | BB102: 3.449497024 | BC102: 2.126634219 | BD102: 1.314961526 | BE102: 0.4508926305
G103: 94 | H103: 48 | I103: 1 | J103: 15.04 | K103: 15.04 | L103: 1.740740741 | M103: 0.1073731639 | N103: 6.957598809 | O103: 18.5187994 | P103: 11.5612006 | Q103: 0 | R103: 15.1735169 | S103: 0.8058246528 | T103: 0.2 | U103: 1.075134226 | V103: 2.008485773 | W103: 0.004034015099 | X103: 0.004034015099 | Y103: 4.697524972 | Z103: 0.02206674087 | AA103: 0.02206674087 | AB103: 4.972034435 | AC103: 0.2966535171 | AD103: 0.9004305234 | AE103: 0.3456 | AF103: 0 | AG103: 1.623600713 | AH103: 14.33577653 | AI103: 0.8426094036 | AJ103: 0.0884352 | AK103: 1.079067665 | AL103: 0.0884352 | AM103: 0.798624 | AN103: 0.4604712302 | AO103: 0.0001056 | AP103: 0.0495 | AQ103: 0.4447384615 | AR103: 0.4257 | AS103: 0.0496056 | AT103: 5.20103939 | AU103: 75.2 | AV103: 0.9353112916 | AW103: 90.32908724 | AX103: 54.64437289 | AZ103: 93.53112916 | BA103: 1.075134226 | BB103: 3.501292378 | BC103: 2.150692553 | BD103: 1.342613585 | BE103: 0.4604712302
G104: 95 | H104: 48 | I104: 1 | J104: 15.2 | K104: 15.2 | L104: 1.759259259 | M104: 0.1074073394 | N104: 6.959409734 | O104: 18.67970487 | P104: 11.72029513 | Q104: 0 | R104: 15.33219212 | S104: 0.8227664036 | T104: 0.2 | U104: 1.094829519 | V104: 2.009008542 | W104: 0.00403611532 | X104: 0.00403611532 | Y104: 4.747313231 | Z104: 0.02253698292 | AA104: 0.02253698292 | AB104: 5.024828365 | AC104: 0.3029868012 | AD104: 0.9100095715 | AE104: 0.3456 | AF104: 0 | AG104: 1.642186598 | AH104: 14.48541388 | AI104: 0.8602915824 | AJ104: 0.089376 | AK104: 1.10433586 | AL104: 0.089376 | AM104: 0.80712 | AN104: 0.4701522306 | AO104: 0.0001056 | AP104: 0.0495 | AQ104: 0.4447384615 | AR104: 0.4257 | AS104: 0.0496056 | AT104: 5.284178906 | AU104: 76 | AV104: 0.9349912987 | AW104: 91.34520351 | AX104: 55.78689822 | AZ104: 93.49912987 | BA104: 1.094829519 | BB104: 3.553642458 | BC104: 2.174885798 | BD104: 1.37068546 | BE104: 0.4701522306
G105: 96 | H105: 48 | I105: 1 | J105: 15.36 | K105: 15.36 | L105: =Vout*K105/(Vin*Efficiency) -> 1.777777778 | M105: 0.1074415162 | N105: =(Vin-(Rdson1+Rdcr)*K105-Vout)*M105/(Fsw*Lf) -> 6.961220489 | O105: 18.84061024 | P105: 11.87938976 | Q105: =IF(MIN(Vin, -P105/(Coss_Q1+Coss_Q2)*0.00000002)<0, 0, MIN(Vin, -P105/(Coss_Q1+Coss_Q2)*0.00000002)) -> 0 | R105: 15.49089461 | S105: =R105^2*Rdcr -> 0.8398873556 | T105: 0.2 | U105: =(T105+S105*(1+Ltc*(Ta-25)))/(1-S105*Ltc*ThetaCa) -> 1.114791284 | V105: 2.009531262 | W105: 0.004038215891 | X105: 0.004038215891 | Y105: 4.79712356 | Z105: 0.02301239445 | AA105: 0.02301239445 | AB105: 5.077647683 | AC105: =Rdson1*AB105^2 -> 0.3093900719 | AD105: 0.9195886196 | AE105: 0.3456 | AF105: 0 | AG105: =(AF105+AE105+AD105+AC105*(1+RdsonTopTc*Ta-RdsonTopTc*25))/(1-AC105*RdsonTopTc*ThetaJA_Q1) -> 1.660908623 | AH105: 14.63507123 | AI105: =Rdson2*AH105^2 -> 0.8781597706 | AJ105: 0.0903168 | AK105: =(AJ105+AI105*(1+RdsonBotTc*Ta-RdsonBotTc*25))/(1-AI105*RdsonBotTc*ThetaJA_Q2) -> 1.130030751 | AL105: 0.0903168 | AM105: 0.815616 | AN105: 0.4799356318 | AO105: 0.0001056 | AP105: 0.0495 | AQ105: 0.4447384615 | AR105: 0.4257 | AS105: 0.0496056 | AT105: =SUM(U105,X105,AA105,AG105,AK105,AL105,AM105,AS105,AN105) -> 5.3682553 | AU105: 76.8 | AV105: 0.9346675273 | AW105: 92.36703767 | AX105: 56.94679006 | AZ105: 93.46675273 | BA105: 1.114791284 | BB105: 3.606555374 | BC105: 2.199215183 | BD105: 1.399184031 | BE105: 0.4799356318
G106: 97 | H106: 48 | I106: 1 | J106: 15.52 | K106: 15.52 | L106: =Vout*K106/(Vin*Efficiency) -> 1.796296296 | M106: 0.1074756945 | N106: =(Vin-(Rdson1+Rdcr)*K106-Vout)*M106/(Fsw*Lf) -> 6.963031074 | O106: 19.00151554 | P106: 12.03848446 | Q106: =IF(MIN(Vin, -P106/(Coss_Q1+Coss_Q2)*0.00000002)<0, 0, MIN(Vin, -P106/(Coss_Q1+Coss_Q2)*0.00000002)) -> 0 | R106: 15.64962354 | S106: =R106^2*Rdcr -> 0.8571875088 | T106: 0.2 | U106: =(T106+S106*(1+Ltc*(Ta-25)))/(1-S106*Ltc*ThetaCa) -> 1.135021617 | V106: 2.010053933 | W106: 0.004040316812 | X106: 0.004040316812 | Y106: 4.846955703 | Z106: 0.02349297958 | AA106: 0.02349297958 | AB106: 5.130492118 | AC106: =Rdson1*AB106^2 -> 0.3158633925 | AD106: 0.9291676677 | AE106: 0.3456 | AF106: 0 | AG106: =(AF106+AE106+AD106+AC106*(1+RdsonTopTc*Ta-RdsonTopTc*25))/(1-AC106*RdsonTopTc*ThetaJA_Q1) -> 1.679768035 | AH106: 14.7847478 | AI106: =Rdson2*AH106^2 -> 0.8962139465 | AJ106: 0.0912576 | AK106: =(AJ106+AI106*(1+RdsonBotTc*Ta-RdsonBotTc*25))/(1-AI106*RdsonBotTc*ThetaJA_Q2) -> 1.1561594 | AL106: 0.0912576 | AM106: 0.824112 | AN106: 0.4898214336 | AO106: 0.0001056 | AP106: 0.0495 | AQ106: 0.4447384615 | AR106: 0.4257 | AS106: 0.0496056 | AT106: =SUM(U106,X106,AA106,AG106,AK106,AL106,AM106,AS106,AN106) -> 5.453278982 | AU106: 77.6 | AV106: 0.9343399918 | AW106: 93.3946421 | AX106: 58.12433587 | AZ106: 93.43399918 | BA106: 1.135021617 | BB106: 3.660039435 | BC106: 2.223681955 | BD106: 1.42811636 | BE106: 0.4898214336
G107: 98 | H107: 48 | I107: 1 | J107: 15.68 | K107: 15.68 | L107: =Vout*K107/(Vin*Efficiency) -> 1.814814815 | M107: 0.107509874 | N107: =(Vin-(Rdson1+Rdcr)*K107-Vout)*M107/(Fsw*Lf) -> 6.96484149 | O107: 19.16242075 | P107: 12.19757925 | Q107: =IF(MIN(Vin, -P107/(Coss_Q1+Coss_Q2)*0.00000002)<0, 0, MIN(Vin, -P107/(Coss_Q1+Coss_Q2)*0.00000002)) -> 0 | R107: 15.8083781 | S107: =R107^2*Rdcr -> 0.8746668633 | T107: 0.2 | U107: =(T107+S107*(1+Ltc*(Ta-25)))/(1-S107*Ltc*ThetaCa) -> 1.155522653 | V107: 2.010576555 | W107: 0.004042418082 | X107: 0.004042418082 | Y107: 4.896809411 | Z107: 0.02397874241 | AA107: 0.02397874241 | AB107: 5.18336141 | AC107: =Rdson1*AB107^2 -> 0.3224068261 | AD107: 0.9387467159 | AE107: 0.3456 | AF107: 0 | AG107: =(AF107+AE107+AD107+AC107*(1+RdsonTopTc*Ta-RdsonTopTc*25))/(1-AC107*RdsonTopTc*ThetaJA_Q1) -> 1.698766098 | AH107: 14.93444283 | AI107: =Rdson2*AH107^2 -> 0.9144540885 | AJ107: 0.0921984 | AK107: =(AJ107+AI107*(1+RdsonBotTc*Ta-RdsonBotTc*25))/(1-AI107*RdsonBotTc*ThetaJA_Q2) -> 1.182729061 | AL107: 0.0921984 | AM107: 0.832608 | AN107: 0.4998096362 | AO107: 0.0001056 | AP107: 0.0495 | AQ107: 0.4447384615 | AR107: 0.4257 | AS107: 0.0496056 | AT107: =SUM(U107,X107,AA107,AG107,AK107,AL107,AM107,AS107,AN107) -> 5.539260608 | AU107: 78.4 | AV107: 0.9340087038 | AW107: 94.42806988 | AX107: 59.31983081 | AZ107: 93.40087038 | BA107: 1.155522653 | BB107: 3.714103159 | BC107: 2.248287378 | BD107: 1.457489701 | BE107: 0.4998096362
G108: 99 | H108: 48 | I108: 1 | J108: 15.84 | K108: 15.84 | L108: =Vout*K108/(Vin*Efficiency) -> 1.833333333 | M108: 0.1075440549 | N108: =(Vin-(Rdson1+Rdcr)*K108-Vout)*M108/(Fsw*Lf) -> 6.966651737 | O108: 19.32332587 | P108: 12.35667413 | Q108: =IF(MIN(Vin, -P108/(Coss_Q1+Coss_Q2)*0.00000002)<0, 0, MIN(Vin, -P108/(Coss_Q1+Coss_Q2)*0.00000002)) -> 0 | R108: 15.96715753 | S108: =R108^2*Rdcr -> 0.892325419 | T108: 0.2 | U108: =(T108+S108*(1+Ltc*(Ta-25)))/(1-S108*Ltc*ThetaCa) -> 1.176296565 | V108: 2.011099128 | W108: 0.004044519702 | X108: 0.004044519702 | Y108: 4.946684448 | Z108: 0.02446968703 | AA108: 0.02446968703 | AB108: 5.236255311 | AC108: =Rdson1*AB108^2 -> 0.3290204362 | AD108: 0.948325764 | AE108: 0.3456 | AF108: 0 | AG108: =(AF108+AE108+AD108+AC108*(1+RdsonTopTc*Ta-RdsonTopTc*25))/(1-AC108*RdsonTopTc*ThetaJA_Q1) -> 1.717904093 | AH108: 15.0841556 | AI108: =Rdson2*AH108^2 -> 0.9328801751 | AJ108: 0.0931392 | AK108: =(AJ108+AI108*(1+RdsonBotTc*Ta-RdsonBotTc*25))/(1-AI108*RdsonBotTc*ThetaJA_Q2) -> 1.209747178 | AL108: 0.0931392 | AM108: 0.841104 | AN108: 0.5099002394 | AO108: 0.0001056 | AP108: 0.0495 | AQ108: 0.4447384615 | AR108: 0.4257 | AS108: 0.0496056 | AT108: =SUM(U108,X108,AA108,AG108,AK108,AL108,AM108,AS108,AN108) -> 5.626211083 | AU108: 79.2 | AV108: 0.9336736722 | AW108: 95.4673748 | AX108: 60.53357798 | AZ108: 93.36736722 | BA108: 1.176296565 | BB108: 3.768755271 | BC108: 2.273032733 | BD108: 1.487311498 | BE108: 0.5099002394
G109: 100 | H109: 48 | I109: 1 | J109: 16 | K109: 16 | L109: =Vout*K109/(Vin*Efficiency) -> 1.851851852 | M109: 0.1075782372 | N109: =(Vin-(Rdson1+Rdcr)*K109-Vout)*M109/(Fsw*Lf) -> 6.968461813 | O109: 19.48423091 | P109: 12.51576909 | Q109: =IF(MIN(Vin, -P109/(Coss_Q1+Coss_Q2)*0.00000002)<0, 0, MIN(Vin, -P109/(Coss_Q1+Coss_Q2)*0.00000002)) -> 0 | R109: 16.12596111 | S109: =R109^2*Rdcr -> 0.9101631758 | T109: 0.2 | U109: =(T109+S109*(1+Ltc*(Ta-25)))/(1-S109*Ltc*ThetaCa) -> 1.197345563 | V109: 2.011621652 | W109: 0.00404662167 | X109: 0.00404662167 | Y109: 4.996580585 | Z109: 0.02496581754 | AA109: 0.02496581754 | AB109: 5.289173579 | AC109: =Rdson1*AB109^2 -> 0.3357042858 | AD109: 0.9579048121 | AE109: 0.3456 | AF109: 0 | AG109: =(AF109+AE109+AD109+AC109*(1+RdsonTopTc*Ta-RdsonTopTc*25))/(1-AC109*RdsonTopTc*ThetaJA_Q1) -> 1.737183319 | AH109: 15.2338854 | AI109: =Rdson2*AH109^2 -> 0.9514921845 | AJ109: 0.09408 | AK109: =(AJ109+AI109*(1+RdsonBotTc*Ta-RdsonBotTc*25))/(1-AI109*RdsonBotTc*ThetaJA_Q2) -> 1.237221402 | AL109: 0.09408 | AM109: 0.8496 | AN109: 0.5200932433 | AO109: 0.0001056 | AP109: 0.0495 | AQ109: 0.4447384615 | AR109: 0.4257 | AS109: 0.0496056 | AT109: =SUM(U109,X109,AA109,AG109,AK109,AL109,AM109,AS109,AN109) -> 5.714141566 | AU109: 80 | AV109: 0.9333349029 | AW109: 96.51261138 | AX109: 61.76588865 | AZ109: 93.33349029 | BA109: 1.197345563 | BB109: 3.82400472 | BC109: 2.297919319 | BD109: 1.517589402 | BE109: 0.5200932433

Sheet Efficiency Plot Management (hidden)
A2: =IF(PLOT_TYPE=1, "EFF_Ch1", "EFF_Ch2") -> EFF_Ch1

Sheet Input Filter Calculations (hidden)
AD2: AEF comparison Values
D3: =L_infilter*0.000001 -> 6.8e-07 | L3: Lfilter Passive | M3: ='EMI Filter Design'!O3*0.000001 -> 6.8e-07 | AD3: Lfilter | AE3: ='EMI Filter Design'!G3*0.000001 -> 1e-06
L4: Cfilter Passive | M4: ='EMI Filter Design'!O4*0.000001 -> 4.7e-07 | AD4: Cinj | AE4: ='EMI Filter Design'!G4*0.000001 -> 1e-06
L5: Cdamp passive | M5: ='EMI Filter Design'!O5*0.000001 -> 1e-05 | AD5: Cdamp | AE5: ='EMI Filter Design'!G5*0.000001 -> 1e-06
L6: Rdamp passive | M6: ='EMI Filter Design'!O6 -> 0.35 | AD6: Rdamp | AE6: ='EMI Filter Design'!G6 -> 10
A10: Freq (Hz) | B10: (kHz) | W10: AEF | AA10: Passive | AD10: AEFCompare
I11: AEF Numerator | L11: AEF Denominator | Q11: Passive | W11: Magnitude | X11: Phase | AA11: Magnitude | AB11: Phase | AD11: AEF Numerator | AF11: AEF Denominator
C12: jω | D12: -ω^2 | E12: -jω^3 | G12: Gop | Q12: Numerator | R12: Denominator | AM12: Magnitude | AN12: Phase
A13: 1 | B13: =A13/1000 -> 0.001 | C13: =COMPLEX(0,2*Pi*A13) -> 6.2831853i | D13: =COMPLEX(-POWER(2*Pi*A13,2),0) -> -39.4784175141361 | E13: =COMPLEX(0,-POWER(2*Pi*A13,3)) -> -248.050212592082i | G13: =IMSUM(IMPRODUCT(C13,Rcomp_AEF*Csen_AEF),Csen_AEF/Ccomp_AEF) -> 100+0.00062831853i | I13: =IMPRODUCT((RdampSel*CdampSel+RdampSel*CinjSel),C13) -> 0.00002011059118971i | J13: =IMSUM(1,I13) -> 1+0.00002011059118971i | L13: =IMPRODUCT(G13,L_infilterStd*RdampSel*CinjSel*CdampSel,E13) -> 0 | M13: =IMPRODUCT(G13,L_infilterStd*CinjSel,D13) -> -1.26173022375179E-09-7.92768479444296E-15i | N13: =J13 -> 1+0.00002011059118971i | O13: =IMSUM(L13:N13) -> 0.99999999873827+0.0000201105911817823i | P13: 0 | Q13: =IMSUM(IMPRODUCT(C13,RdampPssv*CdampPssv),1) -> 1+0.00002199114855i | R13: =IMPRODUCT(RdampPssv*CdampPssv*CfilterPssv*LinfilterPssv,E13) -> -2.77468967805503E-16i | S13: =IMPRODUCT(D13,LinfilterPssv*(CfilterPssv+CdampPssv)) -> -2.81070541333643E-10 | T13: =IMSUM(S13,R13,Q13) -> 0.999999999718929+0.0000219911485497225i | U13: 1 | V13: =CHOOSE(INFILTER_TYPE,U13,IMDIV(J13,O13)) -> 1.00000000126173-1.74464358853754E-14i | W13: =20*LOG10(IMABS(V13)) -> 1.095924799e-08 | X13: =IMARGUMENT(V13)*180/Pi -> -9.996071437e-13 | Z13: =IMDIV(Q13,T13) -> 1.00000000028107-5.90357569567796E-15i | AA13: =20*LOG10(IMABS(Z13)) -> 2.441343488e-09 | AB13: =IMARGUMENT(Z13)*180/Pi -> -3.382499717e-13 | AD13: =IMPRODUCT((RdampCom*CdampCom+RdampCom*CinjCom),C13) -> 0.000125663706i | AE13: =IMSUM(1,AD13) -> 1+0.000125663706i | AF13: =IMPRODUCT(G13,L_infilterStd*RdampSel*CinjSel*CdampSel,E13) -> 0 | AG13: =IMPRODUCT(G13,LAEFCom*CinjCom,D13) -> -3.94784175141361E-09-2.48050212592082E-14i | AH13: =AE13 -> 1+0.000125663706i | AI13: =IMSUM(AF13:AH13) -> 0.999999996052158+0.000125663705975195i | AK13: =IMDIV(AE13,AI13) -> 1.00000000394784-4.71295468853202E-13i | AM13: =20*LOG10(IMABS(AK13)) -> 3.429050296e-08 | AN13: =IMARGUMENT(AK13)*180/Pi -> -2.700324119e-11
A14: 2 | B14: =A14/1000 -> 0.002 | C14: 12.5663706i | D14: -157.913670056544 | E14: -1984.40170073666i | G14: 100+0.00125663706i | I14: 0.00004022118237942i | J14: =IMSUM(1,I14) -> 1+0.00004022118237942i | L14: 0 | M14: -5.04692089500715E-09-6.34214783555435E-14i | N14: =J14 -> 1+0.00004022118237942i | O14: =IMSUM(L14:N14) -> 0.999999994953079+0.0000402211823159985i | P14: 0 | Q14: 1+0.0000439822971i | R14: -2.21975174244403E-15i | S14: -1.12428216533457E-09 | T14: =IMSUM(S14,R14,Q14) -> 0.999999998875718+0.0000439822970977802i | U14: 1 | V14: =CHOOSE(INFILTER_TYPE,U14,IMDIV(J14,O14),IMDIV(Q14,T14)) -> 1.00000000504692-1.39571636519764E-13i | W14: =20*LOG10(IMABS(V14)) -> 4.383698996e-08 | X14: -7.996865681e-12 | Z14: 1.00000000112428-4.72287071806802E-14i | AA14: =20*LOG10(IMABS(Z14)) -> 9.765372018e-09 | AB14: -2.706005593e-12 | AD14: 0.000251327412i | AE14: =IMSUM(1,AD14) -> 1+0.000251327412i | AF14: 0 | AG14: -1.57913670056544E-08-1.98440170073665E-13i | AH14: =AE14 -> 1+0.000251327412i | AI14: =IMSUM(AF14:AH14) -> 0.999999984208633+0.00025132741180156i | AK14: =IMDIV(AE14,AI14) -> 1.00000001579137-3.77036329160179E-12i | AM14: =20*LOG10(IMABS(AK14)) -> 1.371620959e-07 | AN14: -2.160259007e-10
A15: 3 | B15: 0.003 | C15: 18.8495559i | D15: -355.305757627225 | E15: -6697.35573998623i | G15: 100+0.00188495559i | I15: 0.00006033177356913i | J15: 1+0.00006033177356913i | L15: 0 | M15: -1.13555720137661E-08-2.1404748944996E-13i | N15: 1+0.00006033177356913i | O15: 0.999999988644428+0.0000603317733550825i | P15: 0 | Q15: 1+0.00006597344565i | R15: -7.4916621307486E-15i | S15: -2.52963487200279E-09 | T15: 0.999999997470365+0.0000659734456425083i | U15: 1 | V15: 1.00000001135557-4.71054310848749E-13i | W15: 9.863322758e-08 | X15: -2.698942366e-11 | Z15: 1.00000000252963-1.59397031416008E-13i | AA15: 2.197208751e-08 | AB15: -9.132777154e-12 | AD15: 0.000376991118i | AE15: 1+0.000376991118i | AF15: 0 | AG15: -3.55305757627225E-08-6.69735573998623E-13i | AH15: 1+0.000376991118i | AI15: 0.999999964469424+0.000376991117330264i | AK15: 1.00000003553057-1.27249747186445E-11i | AM15: 3.086146047e-07 | AN15: -7.290873207e-10
A16: 4 | B16: 0.004 | C16: 25.1327412i | D16: -631.654680226178 | E16: -15875.2136058933i | G16: 100+0.00251327412i | I16: 0.00008044236475884i | J16: 1+0.00008044236475884i | L16: 0 | M16: -2.01876835800286E-08-5.0737182684435E-13i | N16: 1+0.00008044236475884i | O16: 0.999999979812316+0.0000804423642514682i | P16: 0 | Q16: 1+0.0000879645942i | R16: -1.77580139395522E-14i | S16: -4.4971286613383E-09 | T16: 0.999999995502871+0.000087964594182242i | U16: 1 | V16: 1.00000002018768-1.11657327982775E-12i | W16: 1.753479585e-07 | X16: -6.397493523e-11 | Z16: 1.00000000449713-3.77830130865583E-13i | AA16: 3.90615748e-08 | AB16: -2.16480718e-11 | AD16: 0.000502654824i | AE16: 1+0.000502654824i | AF16: 0 | AG16: -6.31654680226178E-08-1.58752136058933E-12i | AH16: 1+0.000502654824i | AI16: 0.999999936834532+0.000502654822412479i | AK16: 1.00000006316546-3.01629023712536E-11i | AM16: 5.486481969e-07 | AN16: -1.728206897e-09
A17: 5 | B17: 0.005 | C17: 31.4159265i | D17: -986.960437853402 | E17: -31006.2765740103i | G17: 100+0.00314159265i | I17: 0.00010055295594855i | J17: 1+0.00010055295594855i | L17: 0 | M17: -3.15432555937947E-08-9.90960599305369E-13i | N17: 1+0.00010055295594855i | O17: 0.999999968456744+0.000100552954957589i | P17: 0 | Q17: 1+0.00010995574275i | R17: -3.46836209756879E-14i | S17: -7.02676353334108E-09 | T17: 0.999999992973236+0.000109955742715316i | U17: 1 | V17: 1.00000003154326-2.18080674299223E-12i | W17: 2.739812709e-07 | X17: -1.249510185e-10 | Z17: 1.00000000702676-7.37949045461784E-13i | AA17: 6.10336622e-08 | AB17: -4.228136555e-11 | AD17: 0.00062831853i | AE17: 1+0.00062831853i | AF17: 0 | AG17: -9.86960437853402E-08-3.10062765740103E-12i | AH17: 1+0.00062831853i | AI17: 0.999999901303956+0.000628318526899372i | AK17: 1.00000009869602-5.89119136628583E-11i | AM17: 8.572626953e-07 | AN17: -3.375403687e-09
A18: 6 | B18: 0.006 | C18: 37.6991118i | D18: -1421.2230305089 | E18: -53578.8459198898i | G18: 100+0.00376991118i | I18: 0.00012066354713826i | J18: 1+0.00012066354713826i | L18: 0 | M18: -4.54222880550644E-08-1.71237991559968E-12i | N18: 1+0.00012066354713826i | O18: 0.999999954577712+0.00012066354542588i | P18: 0 | Q18: 1+0.0001319468913i | R18: -5.99332970459887E-14i | S18: -1.01185394880112E-08 | T18: 0.999999989881461+0.000131946891240067i | U18: 1 | V18: 1.00000004542229-3.76843468243797E-12i | W18: 3.945329885e-07 | X18: -2.159153931e-10 | Z18: 1.00000001011854-1.27517675935069E-12i | AA18: 8.788852134e-08 | AB18: -7.306224579e-11 | AD18: 0.000753982236i | AE18: 1+0.000753982236i | AF18: 0 | AG18: -1.4212230305089E-07-5.35788459198898E-12i | AH18: 1+0.000753982236i | AI18: 0.999999857877697+0.000753982230642115i | AK18: 1.00000014212225-1.01799777989694E-10i | AM18: 1.234458091e-06 | AN18: -5.832696812e-09
A19: 7 | B19: 0.007 | C19: 43.9822971i | D19: -1934.44245819267 | E19: -85081.2229190843i | G19: 100+0.00439822971i | I19: 0.00014077413832797i | J19: 1+0.00014077413832797i | L19: 0 | M19: -6.18247809638377E-08-2.71919588449394E-12i | N19: 1+0.00014077413832797i | O19: 0.999999938175219+0.000140774135608774i | P19: 0 | Q19: 1+0.00015393803985i | R19: -9.51718559572877E-14i | S19: -1.37724565253485E-08 | T19: 0.999999986227543+0.000153938039754828i | U19: 1 | V19: 1.00000006182478-5.98413490727791E-12i | W19: 5.37003199e-07 | X19: -3.428656534e-10 | Z19: 1.00000001377246-2.02493304401202E-12i | AA19: 1.196260673e-07 | AB19: -1.160201158e-10 | AD19: 0.000879645942i | AE19: 1+0.000879645942i | AF19: 0 | AG19: -1.93444245819267E-07-8.50812229190843E-12i | AH19: 1+0.000879645942i | AI19: 0.999999806555754+0.000879645933491878i | AK19: 1.00000019344414-1.61654261344709E-10i | AM19: 1.680234289e-06 | AN19: -9.262105134e-09
A20: 8 | B20: 0.008 | C20: 50.2654824i | D20: -2526.61872090471 | E20: -127001.708847146i | G20: 100+0.00502654824i | I20: 0.00016088472951768i | J20: 1+0.00016088472951768i | L20: 0 | M20: -8.07507343201145E-08-4.05897461475479E-12i | N20: 1+0.00016088472951768i | O20: 0.999999919249266+0.000160884725458705i | P20: 0 | Q20: 1+0.0001759291884i | R20: -1.42064111516417E-13i | S20: -1.79885146453532E-08 | T20: 0.999999982011485+0.000175929188257936i | U20: 1 | V20: 1.00000008075074-8.93258619962326E-12i | W20: 7.013919883e-07 | X20: -5.117994486e-10 | Z20: 1.00000001798851-3.0226408820135E-12i | AA20: 1.562462113e-07 | AB20: -1.731845626e-10 | AD20: 0.001005309648i | AE20: 1+0.001005309648i | AF20: 0 | AG20: -2.52661872090471E-07-1.27001708847146E-11i | AH20: 1+0.001005309648i | AI20: 0.999999747338128+0.00100530963529983i | AK20: 1.00000025266169-2.41303125593538E-10i | AM20: 2.194591278e-06 | AN20: -1.38256472e-08
A21: 9 | B21: 0.009 | C21: 56.5486677i | D21: -3197.75181864502 | E21: -180828.604979628i | G21: 100+0.00565486677i | I21: 0.00018099532070739i | J21: 1+0.00018099532070739i | L21: 0 | M21: -1.02200148123895E-07-5.77928221514891E-12i | N21: 1+0.00018099532070739i | O21: 0.999999897799852+0.000180995314928108i | P21: 0 | Q21: 1+0.00019792033695i | R21: -2.02274877530212E-13i | S21: -2.27667138480251E-08 | T21: 0.999999977233286+0.000197920336747725i | U21: 1 | V21: 1.00000010220016-1.27184687365068E-11i | W21: 8.876992644e-07 | X21: -7.287145068e-10 | Z21: 1.00000002276671-4.30372072059592E-12i | AA21: 1.977491289e-07 | AB21: -2.465850282e-10 | AD21: 0.001130973354i | AE21: 1+0.001130973354i | AF21: 0 | AG21: -3.19775181864502E-07-1.80828604979628E-11i | AH21: 1+0.001130973354i | AI21: 0.999999680224818+0.00113097333591714i | AK21: 1.0000003197749-3.43574130298358E-10i | AM21: 2.777529045e-06 | AN21: -1.968534134e-08
A22: 10 | B22: 0.01 | C22: 62.831853i | D22: -3947.84175141361 | E22: -248050.212592082i | G22: 100+0.0062831853i | I22: 0.0002011059118971i | J22: 1+0.0002011059118971i | L22: 0 | M22: -1.26173022375179E-07-7.92768479444296E-12i | N22: 1+0.0002011059118971i | O22: 0.999999873826978+0.000201105903969415i | P22: 0 | Q22: 1+0.0002199114855i | R22: -2.77468967805503E-13i | S22: -2.81070541333643E-08 | T22: 0.999999971892946+0.000219911485222531i | U22: 1 | V22: 1.00000012617303-1.74464593753979E-11i | W22: 1.095924945e-06 | X22: -9.996083647e-10 | Z22: 1.00000002810705-5.90359506583625E-12i | AA22: 2.441347311e-07 | AB22: -3.382510721e-10 | AD22: 0.00125663706i | AE22: 1+0.00125663706i | AF22: 0 | AG22: -3.94784175141361E-07-2.48050212592082E-11i | AH22: 1+0.00125663706i | AI22: 0.999999605215825+0.00125663703519498i | AK22: 1.00000039478374-4.71295032915428E-10i | AM22: 3.429047319e-06 | AN22: -2.700320566e-08
A23: 20 | B23: 0.02 | C23: 125.663706i | D23: -15791.3670056544 | E23: -1984401.70073666i | G23: 100+0.0125663706i | I23: 0.0004022118237942i | J23: 1+0.0004022118237942i | L23: 0 | M23: -5.04692089500715E-07-6.34214783555435E-11i | N23: 1+0.0004022118237942i | O23: 0.999999495307911+0.000402211760372722i | P23: 0 | Q23: 1+0.000439822971i | R23: -2.21975174244403E-12i | S23: -1.12428216533457E-07 | T23: 0.999999887571783+0.000439822968780248i | U23: 1 | V23: 1.00000050469229-1.39571765922673E-10i | W23: 4.383700426e-06 | X23: -7.9968691e-09 | Z23: 1.00000011242821-4.72287618853625E-11i | AA23: 9.7653897e-07 | AB23: -2.706008427e-09 | AD23: 0.00251327412i | AE23: 1+0.00251327412i | AF23: 0 | AG23: -1.57913670056544E-06-1.98440170073665E-10i | AH23: 1+0.00251327412i | AI23: 0.999998420863299+0.00251327392155983i | AK23: 1.00000157912972-3.77035132439892E-09i | AM23: 1.371613564e-05 | AN23: -2.160248773e-07
A24: 30 | B24: 0.03 | C24: 188.495559i | D24: -35530.5757627225 | E24: -6697355.73998623i | G24: 100+0.0188495559i | I24: 0.0006033177356913i | J24: 1+0.0006033177356913i | L24: 0 | M24: -1.13555720137661E-06-2.1404748944996E-10i | N24: 1+0.0006033177356913i | O24: 0.999998864442799+0.000603317521643811i | P24: 0 | Q24: 1+0.0006597344565i | R24: -7.4916621307486E-12i | S24: -2.52963487200279E-07 | T24: 0.999999747036513+0.000659734449008338i | U24: 1 | V24: 1.00000113555821-4.71055208644975E-10i | W24: 9.863327689e-06 | X24: -2.698944476e-08 | Z24: 1.00000025296345-1.59397078002735E-10i | AA24: 2.197212331e-06 | AB24: -9.132777536e-09 | AD24: 0.00376991118i | AE24: 1+0.00376991118i | AF24: 0 | AG24: -3.55305757627225E-06-6.69735573998623E-10i | AH24: 1+0.00376991118i | AI24: 0.999996446942424+0.00376991051026443i | AK24: 1.00000355302223-1.27248854845565E-08i | AM24: 3.086110415e-05 | AN24: -7.290796434e-07
A25: 40 | B25: 0.04 | C25: 251.327412i | D25: -63165.4680226178 | E25: -15875213.6058933i | G25: 100+0.0251327412i | I25: 0.0008044236475884i | J25: 1+0.0008044236475884i | L25: 0 | M25: -2.01876835800286E-06-5.07371826844349E-10i | N25: 1+0.0008044236475884i | O25: 0.999997981231642+0.000804423140216573i | P25: 0 | Q25: 1+0.000879645942i | R25: -1.77580139395522E-11i | S25: -4.4971286613383E-07 | T25: 0.999999550287134+0.000879645924241986i | U25: 1 | V25: 1.00000201877154-1.11657696492571E-09i | W25: 1.75348091e-05 | X25: -6.397501851e-08 | Z25: 1.00000044971274-3.7783013107933E-10i | AA25: 3.90615435e-06 | AB25: -2.164806217e-08 | AD25: 0.00502654824i | AE25: 1+0.00502654824i | AF25: 0 | AG25: -6.31654680226178E-06-1.58752136058933E-09i | AH25: 1+0.00502654824i | AI25: 0.999993683453198+0.00502654665247864i | AK25: 1.00000631643509-3.01625248040398E-08i | AM25: 5.486368483e-05 | AN25: -1.728174457e-06
A26: 50 | B26: 0.05 | C26: 314.159265i | D26: -98696.0437853402 | E26: -31006276.5740103i | G26: 100+0.0314159265i | I26: 0.0010055295594855i | J26: 1+0.0010055295594855i | L26: 0 | M26: -3.15432555937947E-06-9.90960599305369E-10i | N26: 1+0.0010055295594855i | O26: 0.999996845674441+0.0010055285685249i | P26: 0 | Q26: 1+0.0010995574275i | R26: -3.46836209756879E-11i | S26: -7.02676353334108E-07 | T26: 0.999999297323647+0.00109955739281638i | U26: 1 | V26: 1.00000315433332-2.18081854268935E-09i | W26: 2.739814789e-05 | X26: -1.249513044e-07 | Z26: 1.00000070267604-7.37949528045109E-10i | AA26: 6.103364391e-06 | AB26: -4.228136379e-08 | AD26: 0.0062831853i | AE26: 1+0.0062831853i | AF26: 0 | AG26: -9.86960437853402E-06-3.10062765740103E-09i | AH26: 1+0.0062831853i | AI26: 0.999990130395621+0.00628318219937234i | AK26: 1.00000986933164-5.89107626360051E-08i | AM26: 8.572350243e-05 | AN26: -3.375304759e-06
A27: 60 | B27: 0.06 | C27: 376.991118i | D27: -142122.30305089 | E27: -53578845.9198898i | G27: 100+0.0376991118i | I27: 0.0012066354713826i | J27: 1+0.0012066354713826i | L27: 0 | M27: -4.54222880550644E-06-1.71237991559968E-09i | N27: 1+0.0012066354713826i | O27: 0.999995457771194+0.00120663375900268i | P27: 0 | Q27: 1+0.001319468913i | R27: -5.99332970459887E-11i | S27: -1.01185394880112E-06 | T27: 0.999998988146051+0.0013194688530667i | U27: 1 | V27: 1.00000454224489-3.76846322419288E-09i | W27: 3.945334822e-05 | X27: -2.159160575e-07 | Z27: 1.00000101185329-1.27517689075155E-09i | AA27: 8.788841561e-06 | AB27: -7.306218013e-08 | AD27: 0.00753982236i | AE27: 1+0.00753982236i | AF27: 0 | AG27: -0.000014212230305089-5.35788459198898E-09i | AH27: 1+0.00753982236i | AI27: 0.999985787769695+0.00753981700211541i | AK27: 1.00001421166475-1.0179691371395E-07i | AM27: 0.0001234400745 | AN27: -5.832450641e-06
A28: 70 | B28: 0.07 | C28: 439.822971i | D28: -193444.245819267 | E28: -85081222.9190843i | G28: 100+0.0439822971i | I28: 0.0014077413832797i | J28: 1+0.0014077413832797i | L28: 0 | M28: -6.18247809638377E-06-2.71919588449394E-09i | N28: 1+0.0014077413832797i | O28: 0.999993817521904+0.00140773866408382i | P28: 0 | Q28: 1+0.0015393803985i | R28: -9.51718559572877E-11i | S28: -1.37724565253485E-06 | T28: 0.999998622754347+0.00153938030332814i | U28: 1 | V28: 1.00000618250789-5.9841965221557E-09i | W28: 5.370041522e-05 | X28: -3.428670851e-07 | Z28: 1.00000137724443-2.02493388141286E-09i | AA28: 1.196258489e-05 | AB28: -1.160200055e-07 | AD28: 0.00879645942i | AE28: 1+0.00879645942i | AF28: 0 | AG28: -0.0000193444245819267-8.50812229190843E-09i | AH28: 1+0.00879645942i | AI28: 0.999980655575418+0.00879645091187771i | AK28: 1.00001934337684-1.61648069534687E-07i | AM28: 0.0001680128116 | AN28: -9.261573011e-06
A29: 80 | B29: 0.08 | C29: 502.654824i | D29: -252661.872090471 | E29: -127001708.847146i | G29: 100+0.0502654824i | I29: 0.0016088472951768i | J29: 1+0.0016088472951768i | L29: 0 | M29: -8.07507343201145E-06-4.05897461475479E-09i | N29: 1+0.0016088472951768i | O29: 0.999991924926568+0.00160884323620219i | P29: 0 | Q29: 1+0.001759291884i | R29: -1.42064111516417E-10i | S29: -1.79885146453532E-06 | T29: 0.999998201148535+0.00175929174193589i | U29: 1 | V29: 1.00000807512427-8.93270658217443E-09i | W29: 7.013935503e-05 | X29: -5.118022545e-07 | Z29: 1.00000179884938-3.02264219205147E-09i | AA29: 1.562459314e-05 | AB29: -1.731843292e-07 | AD29: 0.01005309648i | AE29: 1+0.01005309648i | AF29: 0 | AG29: -0.0000252661872090471-1.27001708847146E-08i | AH29: 1+0.01005309648i | AI29: 0.999974733812791+0.0100530837798291i | AK29: 1.00002526439982-2.41291053691115E-07i | AM29: 0.0002194410168 | AN29: -1.382460976e-05
A30: 90 | B30: 0.09 | C30: 565.486677i | D30: -319775.181864502 | E30: -180828604.979628i | G30: 100+0.0565486677i | I30: 0.0018099532070739i | J30: 1+0.0018099532070739i | L30: 0 | M30: -0.0000102200148123895-5.77928221514891E-09i | N30: 1+0.0018099532070739i | O30: 0.999989779985188+0.00180994742779168i | P30: 0 | Q30: 1+0.0019792033695i | R30: -2.02274877530212E-10i | S30: -2.27667138480251E-06 | T30: 0.999997723328615+0.00197920316722512i | U30: 1 | V30: 1.00001022009624-1.2718684669172E-08i | W30: 8.877017441e-05 | X30: -7.287195058e-07 | Z30: 1.00000227666805-4.30372353394329E-09i | AA30: 1.977486492e-05 | AB30: -2.465846336e-07 | AD30: 0.01130973354i | AE30: 1+0.01130973354i | AF30: 0 | AG30: -0.0000319775181864502-1.80828604979628E-08i | AH30: 1+0.01130973354i | AI30: 0.999968022481814+0.0113097154571395i | AK30: 1.00003197465518-3.43552377337812E-07i | AM30: 0.0002777238866 | AN30: -1.968347191e-05
A31: 100 | B31: 0.1 | C31: 628.31853i | D31: -394784.175141361 | E31: -248050212.592082i | G31: 100+0.062831853i | I31: 0.002011059118971i | J31: 1+0.002011059118971i | L31: 0 | M31: -0.0000126173022375179-7.92768479444295E-09i | N31: 1+0.002011059118971i | O31: 0.999987382697762+0.00201105119128621i | P31: 0 | Q31: 1+0.002199114855i | R31: -2.77468967805503E-10i | S31: -2.81070541333643E-06 | T31: 0.999997189294587+0.00219911457753103i | U31: 1 | V31: 1.00001261742635-1.74468256329321E-08i | W31: 0.0001095928814 | X31: -9.996168632e-07 | Z31: 1.00000281070033-5.90359969265688E-09i | AA31: 2.441339856e-05 | AB31: -3.38250396e-07 | AD31: 0.0125663706i | AE31: 1+0.0125663706i | AF31: 0 | AG31: -0.0000394784175141361-2.48050212592082E-08i | AH31: 1+0.0125663706i | AI31: 0.999960521582486+0.0125663457949787i | AK31: 1.00003947405389-4.71258194387049E-07i | AM31: 0.0003428605096 | AN31: -2.700003983e-05
A32: 200 | B32: 0.2 | C32: 1256.63706i | D32: -1579136.70056544 | E32: -1984401700.73666i | G32: 100+0.125663706i | I32: 0.004022118237942i | J32: 1+0.004022118237942i | L32: 0 | M32: -0.0000504692089500715-6.34214783555435E-08i | N32: 1+0.004022118237942i | O32: 0.99994953079105+0.00402205481646364i | P32: 0 | Q32: 1+0.00439822971i | R32: -2.21975174244403E-09i | S32: -0.0000112428216533457 | T32: 0.999988757178347+0.00439822749024826i | U32: 1 | V32: 1.00005047119478-1.3958347836125E-07i | W32: 0.0004383761653 | X32: -7.997140584e-06 | Z32: 1.00001124274033-4.72289088298236E-08i | AA32: 9.765265281e-05 | AB32: -2.705986727e-06 | AD32: 0.0251327412i | AE32: 1+0.0251327412i | AF32: 0 | AG32: -0.000157913670056544-1.98440170073665E-07i | AH32: 1+0.0251327412i | AI32: 0.999842086329943+0.0251325427598299i | AK32: 1.00015784386687-3.76917276718269E-06i | AM32: 0.001370906278 | AN32: -0.0002159236098
A33: 300 | B33: 0.3 | C33: 1884.95559i | D33: -3553057.57627225 | E33: -6697355739.98623i | G33: 100+0.188495559i | I33: 0.006033177356913i | J33: 1+0.006033177356913i | L33: 0 | M33: -0.000113555720137661-2.1404748944996E-07i | N33: 1+0.006033177356913i | O33: 0.999886444279862+0.00603296330942355i | P33: 0 | Q33: 1+0.006597344565i | R33: -7.49166213074859E-09i | S33: -0.0000252963487200279 | T33: 0.99997470365128+0.00659733707333787i | U33: 1 | V33: 1.00011356577379-4.71144158120681E-07i | W33: 0.0009863637712 | X33: -2.699150652e-05 | Z33: 1.00002529593701-1.59398193110944E-07i | AA33: 0.0002197149383 | AB33: -9.13261272e-06 | AD33: 0.0376991118i | AE33: 1+0.0376991118i | AF33: 0 | AG33: -0.000355305757627225-6.69735573998623E-07i | AH33: 1+0.0376991118i | AI33: 0.999644694242373+0.037698442064426i | AK33: 1.00035495250321-0.0000127159388502096i | AM33: 0.003082531928 | AN33: -0.0007283111136
A34: 400 | B34: 0.4 | C34: 2513.27412i | D34: -6316546.80226177 | E34: -15875213605.8933i | G34: 100+0.251327412i | I34: 0.008044236475884i | J34: 1+0.008044236475884i | L34: 0 | M34: -0.000201876835800286-5.07371826844349E-07i | N34: 1+0.008044236475884i | O34: 0.9997981231642+0.00804372910405716i | P34: 0 | Q34: 1+0.00879645942i | R34: -1.77580139395522E-08i | S34: -0.0000449712866133829 | T34: 0.999955028713387+0.00879644166198606i | U34: 1 | V34: 1.00020190861201-1.11695183867607E-06i | W34: 0.001753578901 | X34: -6.398370749e-05 | Z34: 1.00004496998537-3.77834830617806E-07i | AA34: 0.0003905955481 | AB34: -2.164736769e-05 | AD34: 0.0502654824i | AE34: 1+0.0502654824i | AF34: 0 | AG34: -0.000631654680226177-1.58752136058933E-06i | AH34: 1+0.0502654824i | AI34: 0.999368345319774+0.0502638948786394i | AK34: 1.00063053877112-0.0000301248416450087i | AM34: 0.005475068176 | AN34: -0.001724938646
A35: 500 | B35: 0.5 | C35: 3141.59265i | D35: -9869604.37853402 | E35: -31006276574.0103i | G35: 100+0.314159265i | I35: 0.010055295594855i | J35: 1+0.010055295594855i | L35: 0 | M35: -0.000315432555937947-9.90960599305369E-07i | N35: 1+0.010055295594855i | O35: 0.999684567444062+0.0100543046342557i | P35: 0 | Q35: 1+0.010995574275i | R35: -3.46836209756879E-08i | S35: -0.0000702676353334108 | T35: 0.999929732364667+0.010995539591379i | U35: 1 | V35: 1.00031551013999-2.18196272543697E-06i | W35: 0.002740054042 | X35: -0.0001249778236 | Z35: 1.00007026445834-7.37963867515103E-07i | AA35: 0.0006102878925 | AB35: -4.227924436e-05 | AD35: 0.062831853i | AE35: 1+0.062831853i | AF35: 0 | AG35: -0.000986960437853402-3.10062765740103E-06i | AH35: 1+0.062831853i | AI35: 0.999013039562147+0.0628287523723426i | AK35: 1.00098423777278-0.0000587958328047741i | AM35: 0.008544791299 | AN35: -0.003365440679
A36: 600 | B36: 0.6 | C36: 3769.91118i | D36: -14212230.305089 | E36: -53578845919.8898i | G36: 100+0.376991118i | I36: 0.012066354713826i | J36: 1+0.012066354713826i | L36: 0 | M36: -0.000454222880550644-1.71237991559968E-06i | N36: 1+0.012066354713826i | O36: 0.999545777119449+0.0120646423339104i | P36: 0 | Q36: 1+0.01319468913i | R36: -5.99332970459887E-08i | S36: -0.000101185394880112 | T36: 0.99989881460512+0.013194629196703i | U36: 1 | V36: 1.00045438377254-3.77131079809482E-06i | W36: 0.00394583097 | X36: -0.0002159820535 | Z36: 1.00010117880674-1.27521257339415E-06i | AA36: 0.0008787834997 | AB36: -7.305690671e-05 | AD36: 0.0753982236i | AE36: 1+0.0753982236i | AF36: 0 | AG36: -0.0014212230305089-5.35788459198898E-06i | AH36: 1+0.0753982236i | AI36: 0.998578776969491+0.075392865715408i | AK36: 1.00141558167171-0.000101511144268809i | AM36: 0.0122869363 | AN36: -0.005807938516
A37: 700 | B37: 0.7 | C37: 4398.22971i | D37: -19344424.5819267 | E37: -85081222919.0843i | G37: 100+0.439822971i | I37: 0.014077413832797i | J37: 1+0.014077413832797i | L37: 0 | M37: -0.000618247809638377-2.71919588449394E-06i | N37: 1+0.014077413832797i | O37: 0.999381752190362+0.0140746946369125i | P37: 0 | Q37: 1+0.015393803985i | R37: -9.51718559572877E-08i | S37: -0.000137724565253485 | T37: 0.999862275434746+0.015393708813144i | U37: 1 | V37: 1.00061854591191-5.99035246685762E-06i | W37: 0.005370960761 | X37: -0.0003430097473 | Z37: 1.0001377123592-2.02501099524373E-06i | AA37: 0.001196072017 | AB37: -0.0001160086078 | AD37: 0.0879645942i | AE37: 1+0.0879645942i | AF37: 0 | AG37: -0.00193444245819267-8.50812229190843E-06i | AH37: 1+0.0879645942i | AI37: 0.998065557541807+0.0879560860777081i | AK37: 1.00192400067453-0.000161030951761084i | AM37: 0.01669571368 | AN37: -0.009208676338
A38: 800 | B38: 0.8 | C38: 5026.54824i | D38: -25266187.2090471 | E38: -127001708847.146i | G38: 100+0.502654824i | I38: 0.016088472951768i | J38: 1+0.016088472951768i | L38: 0 | M38: -0.000807507343201145-4.05897461475479E-06i | N38: 1+0.016088472951768i | O38: 0.999192492656799+0.0160844139771532i | P38: 0 | Q38: 1+0.01759291884i | R38: -1.42064111516417E-07i | S38: -0.000179885146453532 | T38: 0.999820114853546+0.0175927767758885i | U38: 1 | V38: 1.00080801595157-0.0000089447113705859i | W38: 0.00701550379 | X38: -0.0005120804419 | Z38: 1.00017986432206-3.02279251192149E-06i | AA38: 0.001562141208 | AB38: -0.0001731621078 | AD38: 0.1005309648i | AE38: 1+0.1005309648i | AF38: 0 | AG38: -0.00252661872090471-0.0000127001708847146i | AH38: 1+0.1005309648i | AI38: 0.997473381279095+0.100518264629115i | AK38: 1.00250882422347-0.000240089099932661i | AM38: 0.02176432969 | AN38: -0.01372166664
A39: 900 | B39: 0.9 | C39: 5654.86677i | D39: -31977518.1864502 | E39: -180828604979.628i | G39: 100+0.565486677i | I39: 0.018099532070739i | J39: 1+0.018099532070739i | L39: 0 | M39: -0.00102200148123895-5.77928221514891E-06i | N39: 1+0.018099532070739i | O39: 0.998977998518761+0.0180937527885239i | P39: 0 | Q39: 1+0.019792033695i | R39: -2.02274877530212E-07i | S39: -0.000227667138480251 | T39: 0.99977233286152+0.0197918314201225i | U39: 1 | V39: 1.00102281628073-0.0000127403233458728i | W39: 0.008879529748 | X39: -0.0007292208991 | Z39: 1.00022763377928-4.30399438561674E-06i | AA39: 0.00197697696 | AB39: -0.0002465445917 | AD39: 0.1130973354i | AE39: 1+0.1130973354i | AF39: 0 | AG39: -0.00319775181864502-0.0000180828604979628i | AH39: 1+0.1130973354i | AI39: 0.996802248181355+0.113079252539502i | AK39: 1.00316928239546-0.000341388900845323i | AM39: 0.02748500997 | AN39: -0.01949834669
A40: 1000 | B40: 1 | C40: 6283.1853i | D40: -39478417.5141361 | E40: -248050212592.082i | G40: 100+0.62831853i | I40: 0.02011059118971i | J40: 1+0.02011059118971i | L40: 0 | M40: -0.00126173022375179-7.92768479444296E-06i | N40: 1+0.02011059118971i | O40: 0.998738269776248+0.0201026635049156i | P40: 0 | Q40: 1+0.02199114855i | R40: -2.77468967805503E-07i | S40: -0.000281070541333643 | T40: 0.999718929458666+0.0219908710810322i | U40: 1 | V40: 1.00126297228951-0.0000174834815948787i | W40: 0.01096311765 | X40: -0.001000466147 | Z40: 1.00028101969231-5.90405831379392E-06i | AA40: 0.002440563278 | AB40: -0.0003381825878 | AD40: 0.125663706i | AE40: 1+0.125663706i | AF40: 0 | AG40: -0.00394784175141361-0.0000248050212592082i | AH40: 1+0.125663706i | AI40: 0.996052158248586+0.125638900978741i | AK40: 1.00390450750254-0.000467599017146001i | AM40: 0.03384902633 | AN40: -0.02668724772
A41: 2000 | B41: 2 | C41: 12566.3706i | D41: -157913670.056544 | E41: -1984401700736.66i | G41: 100+1.25663706i | I41: 0.04022118237942i | J41: 1+0.04022118237942i | L41: 0 | M41: -0.00504692089500715-0.0000634214783555435i | N41: 1+0.04022118237942i | O41: 0.994953079104993+0.0401577609010645i | P41: 0 | Q41: 1+0.0439822971i | R41: -2.21975174244403E-06i | S41: -0.00112428216533457 | T41: 0.998875717834665+0.0439800773482576i | U41: 1 | V41: 1.00506684015408-0.000140761891205962i | W41: 0.04389897892 | X41: -0.008024403867 | Z41: 1.0011234674848-0.0000472435502182413i | AA41: 0.009752846784 | AB41: -0.002703818386 | AD41: 0.251327412i | AE41: 1+0.251327412i | AF41: 0 | AG41: -0.0157913670056544-0.000198440170073665i | AH41: 1+0.251327412i | AI41: 0.984208632994346+0.251128971829926i | AK41: 1.01511228483668-0.00365440036023725i | AM41: 0.1303379564 | AN41: -0.2062636973
A42: 3000 | B42: 3 | C42: 18849.5559i | D42: -355305757.627225 | E42: -6697355739986.23i | G42: 100+1.88495559i | I42: 0.06033177356913i | J42: 1+0.06033177356913i | L42: 0 | M42: -0.0113555720137661-0.00021404748944996i | N42: 1+0.06033177356913i | O42: 0.988644427986234+0.06011772607968i | P42: 0 | Q42: 1+0.06597344565i | R42: -0.0000074916621307486i | S42: -0.00252963487200279 | T42: 0.997470365127997+0.0659659539878693i | U42: 1 | V42: 1.0114568043298-0.000480162049731479i | W42: 0.09894778579 | X42: -0.02719963599 | Z42: 1.00252550130876-0.00015950894037732i | AA42: 0.02190868216 | AB42: -0.009116166122 | AD42: 0.376991118i | AE42: 1+0.376991118i | AF42: 0 | AG42: -0.0355305757627225-0.000669735573998623i | AH42: 1+0.376991118i | AI42: 0.964469424237278+0.376321382426001i | AK42: 1.032207105914-0.0118723173174254i | AM42: 0.275911394 | AN42: -0.658979848
A43: 4000 | B43: 4 | C43: 25132.7412i | D43: -631654680.226177 | E43: -15875213605893.3i | G43: 100+2.51327412i | I43: 0.08044236475884i | J43: 1+0.08044236475884i | L43: 0 | M43: -0.0201876835800286-0.000507371826844349i | N43: 1+0.08044236475884i | O43: 0.979812316419971+0.0799349929319956i | P43: 0 | Q43: 1+0.0879645942i | R43: -0.0000177580139395522i | S43: -0.00449712866133829 | T43: 0.995502871338662+0.0879468361860604i | U43: 1 | V43: 1.02050936580278-0.00115536839522136i | W43: 0.1763454634 | X43: -0.06486731709 | Z43: 1.00448402369769-0.000378298942672899i | AA43: 0.03886128983 | AB43: -0.02157817476 | AD43: 0.502654824i | AE43: 1+0.502654824i | AF43: 0 | AG43: -0.0631654680226177-0.00158752136058933i | AH43: 1+0.502654824i | AI43: 0.936834531977382+0.501067302639411i | AK43: 1.05313156008286-0.0267229326851488i | AM43: 0.4524479795 | AN43: -1.453553222
A44: 5000 | B44: 5 | C44: 31415.9265i | D44: -986960437.853402 | E44: -31006276574010.3i | G44: 100+3.14159265i | I44: 0.10055295594855i | J44: 1+0.10055295594855i | L44: 0 | M44: -0.0315432555937947-0.000990960599305369i | N44: 1+0.10055295594855i | O44: 0.968456744406205+0.0995619953492446i | P44: 0 | Q44: 1+0.10995574275i | R44: -0.0000346836209756879i | S44: -0.00702676353334108 | T44: 0.992973236466659+0.109921059129024i | U44: 1 | V44: 1.03233409979464-0.00230086362343062i | W44: 0.2764270353 | X44: -0.1277004768 | Z44: 1.00699464087726-0.000739370091275133i | AA44: 0.06054552706 | AB44: -0.04206852395 | AD44: 0.62831853i | AE44: 1+0.62831853i | AF44: 0 | AG44: -0.0986960437853402-0.00310062765740103i | AH44: 1+0.62831853i | AI44: 0.90130395621466+0.625217902342599i | AK44: 1.07554039988132-0.0489608221446789i | AM44: 0.6415249562 | AN44: -2.606422917
A45: 6000 | B45: 6 | C45: =COMPLEX(0,2*Pi*A45) -> 37699.1118i | D45: =COMPLEX(-POWER(2*Pi*A45,2),0) -> -1421223030.5089 | E45: =COMPLEX(0,-POWER(2*Pi*A45,3)) -> -53578845919889.8i | G45: =IMSUM(IMPRODUCT(C45,Rcomp_AEF*Csen_AEF),Csen_AEF/Ccomp_AEF) -> 100+3.76991118i | I45: =IMPRODUCT((RdampSel*CdampSel+RdampSel*CinjSel),C45) -> 0.12066354713826i | J45: 1+0.12066354713826i | L45: =IMPRODUCT(G45,L_infilterStd*RdampSel*CinjSel*CdampSel,E45) -> 0 | M45: =IMPRODUCT(G45,L_infilterStd*CinjSel,D45) -> -0.0454222880550644-0.00171237991559968i | N45: 1+0.12066354713826i | O45: 0.954577711944936+0.11895116722266i | P45: 0 | Q45: =IMSUM(IMPRODUCT(C45,RdampPssv*CdampPssv),1) -> 1+0.1319468913i | R45: =IMPRODUCT(RdampPssv*CdampPssv*CfilterPssv*LinfilterPssv,E45) -> -0.0000599332970459887i | S45: =IMPRODUCT(D45,LinfilterPssv*(CfilterPssv+CdampPssv)) -> -0.0101185394880112 | T45: 0.989881460511989+0.131886958002954i | U45: 1 | V45: =CHOOSE(INFILTER_TYPE,U45,IMDIV(J45,O45),IMDIV(Q45,T45)) -> 1.04707618368279-0.00407236313315565i | W45: 0.3996313215 | X45: =IMARGUMENT(V45)*180/Pi -> -0.2228376957 | Z45: =IMDIV(Q45,T45) -> 1.01005160573809-0.00127868078885045i | AA45: 0.08687822821 | AB45: =IMARGUMENT(Z45)*180/Pi -> -0.07253389141 | AD45: =IMPRODUCT((RdampCom*CdampCom+RdampCom*CinjCom),C45) -> 0.753982236i | AE45: 1+0.753982236i | AF45: =IMPRODUCT(G45,L_infilterStd*RdampSel*CinjSel*CdampSel,E45) -> 0 | AG45: =IMPRODUCT(G45,LAEFCom*CinjCom,D45) -> -0.14212230305089-0.00535788459198898i | AH45: 1+0.753982236i | AI45: 0.85787769694911+0.748624351408011i | AK45: 1.09714233215486-0.0785254483841624i | AM45: 0.8274500527 | AN45: =IMARGUMENT(AK45)*180/Pi -> -4.093833228
A46: 7000 | B46: 7 | C46: 43982.2971i | D46: -1934442458.19267 | E46: -85081222919084.3i | G46: 100+4.39822971i | I46: 0.14077413832797i | J46: 1+0.14077413832797i | L46: 0 | M46: -0.0618247809638377-0.00271919588449394i | N46: 1+0.14077413832797i | O46: 0.938175219036162+0.138054942443476i | P46: 0 | Q46: 1+0.15393803985i | R46: -0.0000951718559572877i | S46: -0.0137724565253485 | T46: 0.986227543474651+0.153842867994043i | U46: 1 | V46: 1.06491971124035-0.0066547175704059i | W46: 0.546506905 | X46: -0.3580385113 | Z46: 1.01364774496306-0.00203242789564579i | AA46: 0.1177586308 | AB46: -0.1148815111 | AD46: 0.879645942i | AE46: 1+0.879645942i | AF46: 0 | AG46: -0.193444245819267-0.00850812229190843i | AH46: 1+0.879645942i | AI46: 0.806555754180733+0.871137819708092i | AK46: 1.11595982410557-0.114696182593257i | AM46: 0.9986065418 | AN46: -5.868144412
A47: 8000 | B47: 8 | C47: 50265.4824i | D47: -2526618720.90471 | E47: -127001708847146i | G47: 100+5.02654824i | I47: 0.16088472951768i | J47: 1+0.16088472951768i | L47: 0 | M47: -0.0807507343201145-0.00405897461475479i | N47: 1+0.16088472951768i | O47: 0.919249265679886+0.156825754902925i | P47: 0 | Q47: 1+0.1759291884i | R47: -0.000142064111516417i | S47: -0.0179885146453532 | T47: 0.982011485354647+0.175787124288484i | U47: 1 | V47: 1.08609181252912-0.0102719025498505i | W47: 0.7177192445 | X47: -0.5418686623 | Z47: 1.01777437069521-0.00303707384639667i | AA47: 0.1530688793 | AB47: -0.1709720761 | AD47: 1.005309648i | AE47: 1+1.005309648i | AF47: 0 | AG47: -0.252661872090471-0.0127001708847146i | AH47: 1+1.005309648i | AI47: 0.747338127909529+0.992609477115285i | AK47: 1.13047787639307-0.156305963009907i | AM47: 1.147483167 | AN47: -7.872111887
A48: 9000 | B48: 9 | C48: 56548.6677i | D48: -3197751818.64502 | E48: -180828604979628i | G48: 100+5.65486677i | I48: 0.18099532070739i | J48: 1+0.18099532070739i | L48: 0 | M48: -0.102200148123895-0.00577928221514891i | N48: 1+0.18099532070739i | O48: 0.897799851876105+0.175216038492241i | P48: 0 | Q48: 1+0.19792033695i | R48: -0.000202274877530212i | S48: -0.0227667138480251 | T48: 0.977233286151975+0.19771806207247i | U48: 1 | V48: 1.11086755800172-0.015199926873128i | W48: 0.9140586962 | X48: -0.7839254188 | Z48: 1.02242117727244-0.00432936219233828i | AA48: 0.1926745975 | AB48: -0.2426130296 | AD48: 1.130973354i | AE48: 1+1.130973354i | AF48: 0 | AG48: -0.319775181864502-0.0180828604979628i | AH48: 1+1.130973354i | AI48: 0.680224818135498+1.11289049350204i | AK48: 1.13968899635933-0.201956311993631i | AM48: 1.270002182 | AN48: -10.04867157
A49: 10000 | B49: 10 | C49: 62831.853i | D49: -3947841751.41361 | E49: -248050212592082i | G49: 100+6.2831853i | I49: 0.2011059118971i | J49: 1+0.2011059118971i | L49: 0 | M49: -0.126173022375179-0.00792768479444296i | N49: 1+0.2011059118971i | O49: 0.873826977624821+0.193178227102657i | P49: 0 | Q49: 1+0.2199114855i | R49: -0.000277468967805503i | S49: -0.0281070541333643 | T49: 0.971892945866636+0.219634016532194i | U49: 1 | V49: 1.13957553409158-0.0217837969251259i | W49: 1.136449001 | X49: -1.095116206 | Z49: 1.02757612372952-0.00594631936765738i | AA49: 0.2364255202 | AB49: -0.3315522744 | AD49: 1.25663706i | AE49: 1+1.25663706i | AF49: 0 | AG49: -0.394784175141361-0.0248050212592082i | AH49: 1+1.25663706i | AI49: 0.605215824858639+1.23183203874079i | AK49: 1.14306193658665-0.250197118999478i | AM49: 1.364634614 | AN49: -12.34637346
A50: 11000 | B50: 11 | C50: 69115.0383i | D50: -4776888519.21047 | E50: -330154832960062i | G50: 100+6.91150383i | I50: 0.22121650308681i | J50: 1+0.22121650308681i | L50: 0 | M50: -0.152669357073967-0.0105517484614036i | N50: =J50 -> 1+0.22121650308681i | O50: =IMSUM(L50:N50) -> 0.847330642926033+0.210664754625406i | P50: 0 | Q50: 1+0.24190263405i | R50: -0.000369311196149125i | S50: -0.0340095355013709 | T50: =IMSUM(S50,R50,Q50) -> 0.965990464498629+0.241533322853851i | U50: 1 | V50: 1.17260379513662-0.0304601136568577i | W50: 1.385955441 | X50: -1.488007779 | Z50: 1.03322530297936-0.00792524037931887i | AA50: 0.2841561732 | AB50: -0.4394723199 | AD50: 1.382300766i | AE50: 1+1.382300766i | AF50: 0 | AG50: -0.477688851921047-0.0330154832960062i | AH50: 1+1.382300766i | AI50: 0.522311148078953+1.34928528270399i | AK50: 1.1404664032261-0.299656187441126i | AM50: 1.431577026 | AN50: -14.72163974
A51: 12000 | B51: 12 | C51: 75398.2236i | D51: -5684892122.0356 | E51: -428630767359119i | G51: 100+7.53982236i | I51: 0.24132709427652i | J51: 1+0.24132709427652i | L51: 0 | M51: -0.181689152220258-0.0136990393247974i | N51: =J51 -> 1+0.24132709427652i | O51: =IMSUM(L51:N51) -> 0.818310847779742+0.227628054951723i | P51: 0 | Q51: 1+0.2638937826i | R51: -0.00047946637636791i | S51: -0.0404741579520447 | T51: =IMSUM(S51,R51,Q51) -> 0.959525842047955+0.263414316223632i | U51: 1 | V51: 1.21040555029269-0.0417875027957339i | W51: 1.663791298 | X51: -1.977268704 | Z51: 1.0393527988422-0.0103036560235159i | AA51: 0.3356865932 | AB51: -0.5679848714 | AD51: 1.507964472i | AE51: 1+1.507964472i | AF51: 0 | AG51: -0.56848921220356-0.0428630767359119i | AH51: 1+1.507964472i | AI51: 0.43151078779644+1.46510139526409i | AK51: 1.13208078901019-0.349119131643989i | AM51: 1.472096571 | AN51: -17.13908857
A52: 13000 | B52: 13 | C52: 81681.4089i | D52: -6671852559.889 | E52: -544966317064805i | G52: 100+8.16814089i | I52: 0.26143768546623i | J52: 1+0.26143768546623i | L52: 0 | M52: -0.213232407814052-0.0174171234933912i | N52: =J52 -> 1+0.26143768546623i | O52: =IMSUM(L52:N52) -> 0.786767592185948+0.244020561972839i | P52: 0 | Q52: 1+0.28588493115i | R52: -0.000609599322268691i | S52: -0.0475009214853857 | T52: =IMSUM(S52,R52,Q52) -> 0.952499078514614+0.285275331827731i | U52: 1 | V52: 1.25350330434962-0.0564879587534794i | W52: 1.971320243 | X52: -2.580235258 | Z52: 1.04594053239485-0.013119279149858i | AA52: 0.3908230759 | AB52: -0.7186258557 | AD52: 1.633628178i | AE52: 1+1.633628178i | AF52: 0 | AG52: -0.6671852559889-0.0544966317064805i | AH52: 1+1.633628178i | AI52: 0.3328147440111+1.57913154629352i | AK52: 1.11830126965405-0.397568429739991i | AM52: 1.488056851 | AN52: -19.57086072
A53: 15000 | B53: 15 | C53: 94247.7795i | D53: -8882643940.68062 | E53: -837169467498278i | G53: 100+9.42477795i | I53: 0.30165886784565i | J53: 1+0.30165886784565i | L53: 0 | M53: -0.283889300344153-0.026755936181245i | N53: =J53 -> 1+0.30165886784565i | O53: =IMSUM(L53:N53) -> 0.716110699655847+0.274902931664405i | P53: 0 | Q53: 1+0.32986722825i | R53: -0.000936457766343574i | S53: -0.0632408718000698 | T53: =IMSUM(S53,R53,Q53) -> 0.93675912819993+0.328930770483656i | U53: 1 | V53: 1.35801564778858-0.100073375543763i | W53: 2.681615376 | X53: -4.214558907 | Z53: 1.06041260153671-0.0202134201141273i | AA53: 0.511075341 | AB53: -1.092030989 | AD53: 1.88495559i | AE53: 1+1.88495559i | AF53: 0 | AG53: -0.888264394068062-0.0837169467498278i | AH53: 1+1.88495559i | AI53: 0.111735605931938+1.80123864325017i | AK53: 1.07677284136923-0.48837844858316i | AM53: 1.454926515 | AN53: -24.3970267
A54: 16000 | B54: 16 | C54: 100530.9648i | D54: -10106474883.6188 | E54: -1016013670777170i | G54: 100+10.05309648i | I54: 0.32176945903536i | J54: 1+0.32176945903536i | L54: 0 | M54: -0.323002937280457-0.0324717969180382i | N54: =J54 -> 1+0.32176945903536i | O54: =IMSUM(L54:N54) -> 0.676997062719543+0.289297662117322i | P54: 0 | Q54: 1+0.3518583768i | R54: -0.00113651289213134i | S54: -0.0719540585814124 | T54: =IMSUM(S54,R54,Q54) -> 0.928045941418588+0.350721863907869i | U54: 1 | V54: 1.42077198044782-0.131841861988947i | W54: 3.087725043 | X54: -5.301632527 | Z54: 1.06824847269031-0.0245674461156848i | AA54: 0.5757419976 | AB54: -1.31744901 | AD54: 2.010619296i | AE54: 1+2.010619296i | AF54: 0 | AG54: -1.01064748836188-0.101601367077717i | AH54: 1+2.010619296i | AI54: -0.0106474883618799+1.90901792892228i | AK54: 1.05026748328463-0.529687382965538i | AM54: 1.4102013 | AN54: -26.76344005
A55: 17500 | B55: 17.5 | C55: 109955.74275i | D55: -12090265363.7042 | E55: -1329394108110690i | G55: 100+10.995574275i | I55: 0.351935345819925i | J55: 1+0.351935345819925i | L55: 0 | M55: -0.386404881023986-0.0424874356952178i | N55: 1+0.351935345819925i | O55: 0.613595118976014+0.309447910124707i | P55: 0 | Q55: 1+0.384845099625i | R55: -0.00148706024933262i | S55: -0.0860778532834284 | T55: 0.913922146716572+0.383358039375667i | U55: 1 | V55: 1.52988903964521-0.197989873882504i | W55: 3.765332451 | X55: -7.373922305 | Z55: 1.08067313717697-0.0322124106028964i | AA55: 0.6777441186 | AB55: -1.707351455 | AD55: 2.199114855i | AE55: 1+2.199114855i | AF55: 0 | AG55: -1.20902653637042-0.132939410811069i | AH55: 1+2.199114855i | AI55: -0.20902653637042+2.06617544418893i | AK55: 1.00509127575334-0.585666987530125i | AM55: 1.313665762 | AN55: -30.22936807
